Workbook

Sheet CAPA
B1: SPARTA | C1: v17/04/25 - ajustes financeiros e aba balanco | R1: DF | S1: Sudeste/Centro Oeste
B2: Helenístico LX | C2: 0.94 | M2: =C23 -> 153 | N2: =C22 -> 6600
C3: Macro Ver.
C4: 81.05
B6: EPB | C6: =VLOOKUP(B6,TabEmpresas[#Data],5,FALSE) -> NÃO SUPRIDA | L6: CodigoSamp | M6: Empresa | N6: Nome Completo | O6: IdSgtAg | P6: CodigoSamp | Q6: Supridora/suprida | R6: Financeiro 243 (TUSD) | S6: Databse Fin. 243 | T6: Contrato de Concessão | U6: Data Aditivo (Cont Novo) | V6: Cidade Sede | W6: CNPJ | X6: Novo/Antigo
B7: =VLOOKUP(B6,TabEmpresas[#Data],2,FALSE) -> Energisa Paraíba - Distribuidora de Energia S.A. | C7: Revisão | G7: Últ. Atualização | L7: 7019 | M7: Amazonas Energia | N7: Amazonas Energia S.A. | O7: 102 | P7: 7019 | Q7: NÃO SUPRIDA | T7: 1/2019 | U7: 42579 | V7: Manaus - AM | W7: 02.341.467/0001-20 | X7: N
B8: CÓDIGO DA EMPRESA | C8: ="D" & TEXT(C23-100,"00") -> D53 | F8: Info iniciais | G8: 2025-08-06T16:00:55 | L8: 31 | M8: CEA | N8: Companhia de Eletricidade do Amapá | O8: 107 | P8: 31 | Q8: NÃO SUPRIDA | T8: 01/2021 | U8: 42606 | V8: Macapá - AP | W8: 05.965.546/0001-09 | X8: N
B9: Data do Reajuste/Revisão Anterior | C9: 45532 | F9: Energia do ano anterior (CM compra, MWh Mercado, R$ Mercado) | L9: 5707 | M9: CEEE-D | N9: Companhia Estadual de Distribuição de Energia Elétrica | O9: 110 | P9: 5707 | Q9: NÃO SUPRIDA | T9: 81/1999 | U9: 42347 | V9: Porto Alegre - RS | W9: 08.467.115/0001-00 | X9: N
B10: Data de Reajuste/Revisão em Processamento | C10: 45897 | F10: Perda de RB /Perdas Regulatórias /TUSDgONS-RB | L10: 5697 | M10: Celesc-Dis | N10: Celesc Distribuição S.A. | O10: 111 | P10: 5697 | Q10: NÃO SUPRIDA | T10: 56/1999 | U10: 42347 | V10: Florianópolis - SC | W10: 08.336.783/0001-90 | X10: N
F11: Financeiros ano anterior (CVA 5º dia útil, RTE restante) | L11: 4950 | M11: Cemig-D | N11: Cemig Distribuição S.A. | O11: 118 | P11: 4950 | Q11: NÃO SUPRIDA | T11: 3/1997 | U11: 42359 | V11: Belo Horizonte - MG | W11: 06.981.180/0001-16 | X11: N
F12: Encargos ano anterior (não RTE) | L12: 103 | M12: CHESP | N12: Companhia Hidroelétrica São Patrício | O12: 123 | P12: 103 | Q12: SUPRIDA | T12: 44/1999 | U12: 42347 | V12: Ceres - GO | W12: 01.377.555/0001-10 | X12: N
F13: Dados da Revisão, Fator X e DecFec | L13: 82 | M13: Cocel | N13: Companhia Campolarguense de Energia | O13: 128 | P13: 82 | Q13: SUPRIDA | T13: 27/1998 | U13: 42347 | V13: Campo Largo - PR | W13: 75.805.895/0001-30 | X13: N
F14: Previsão de Subsidios dos Processos Anteriores | L14: 2904 | M14: Cooperaliança | N14: Cooperativa Aliança | O14: 131 | P14: 2904 | Q14: SUPRIDA | T14: 145/2002 | U14: 42347 | V14: Iraça - SC | W14: 83.647.990/0001-81 | X14: N
B15: Período de Referencia final | C15: =DATE(YEAR($C$10),MONTH($C$10)-1,1) -> 45839 | F15: Conexão ano anterior | L15: 2866 | M15: Copel-Dis | N15: Copel Distribuição S.A. | O15: 132 | P15: 2866 | Q15: NÃO SUPRIDA | T15: 46/1999 | U15: 42347 | V15: Curitiba - PR | W15: 04.368.898/0001-06 | X15: N
B16: Período de Referencia inicial | C16: =DATE(YEAR($C$10)-1,MONTH($C$10),1) -> 45505 | F16: Energia (CCEAR, Bil., Itaipu) | G16: 2025-08-12T16:39:00 | L16: 63 | M16: CPFL Paulista | N16: Companhia Paulista de Força e Luz | O16: 136 | P16: 63 | Q16: NÃO SUPRIDA | T16: 14/1997 | V16: Campinas - SP | W16: 33.050.196/0001-88 | X16: A
B17: Índice IGPM na data Revisão/Reajuste | C17: =VLOOKUP(C15,Índices!$B$7:$F$500,2,FALSE) -> 1177.168 | F17: CCEAR | L17: 2937 | M17: CPFL Piratininga | N17: Companhia Piratininga de Força e Luz | O17: 135 | P17: 2937 | Q17: NÃO SUPRIDA | T17: 9/2002 | V17: Sorocaba - SP | W17: 04.172.213/0001-51 | X17: A
B18: Índice IPCA na data Revisão/Reajuste | C18: =VLOOKUP(C15,Índices!$B$7:$F$500,3,FALSE) -> 7331.98 | L18: 1000041 | M18: CPFL Santa Cruz | N18: Companhia Jaguari de Energia | O18: 166 | P18: 1000041 | Q18: NÃO SUPRIDA | T18: 15/1999 | U18: 42347 | V18: Jaguariúna - SP | W18: 53.859.112/0001-69 | X18: N
B19: IGPM para o período de Referência | C19: =VLOOKUP(DATE(YEAR($C$10),MONTH($C$10)-1,1),Índices!$B$7:$F$500,2,FALSE)/VLOOKUP(DATE(YEAR($C$9),MONTH($C$9)-1,1),Índices!$B$7:$F$500,2,FALSE)-1 -> 0.02961131379 | F19: Itaipu (Energia, Transporte, MUST) | L19: 87 | M19: DCELT | N19: Distribuidora Catarinense de Energia Elétrica Ltda | O19: 158 | P19: 87 | Q19: NÃO SUPRIDA | T19: 50/1999 | U19: 42353 | V19: Xanxerê - SC | W19: 83.855.973/0001-30 | X19: N
B20: IPCA para o período de Referência | C20: =VLOOKUP(DATE(YEAR(C10),MONTH(C10)-1,1),Índices!$B$7:$F$500,3,FALSE)/VLOOKUP(DATE(YEAR($C$9),MONTH($C$9)-1,1),Índices!$B$7:$F$500,3,FALSE)-1 -> 0.05225254704 | F20: Cotas Lei/Angra | L20: 95 | M20: Demei | N20: Departamento Municipal de Energia de Ijuí | O20: 138 | P20: 95 | Q20: SUPRIDA | T20: 85/2000 | U20: 42347 | V20: Ijuí - RS | W20: 95.289.500/0001-00 | X20: N
B21: Dados Gerenciais | F21: Encargos DRP | G21: 2025-08-06T15:34:04 | L21: 51 | M21: DME-D | N21: DME Distribuição S.A. | O21: 139 | P21: 51 | Q21: NÃO SUPRIDA | T21: 49/1999 | U21: 42347 | V21: Poços de Caldas - MG | W21: 23.664.303/0001-04 | X21: N
B22: IdAgente | C22: =VLOOKUP(B6,TabEmpresas[#Data],4,FALSE) -> 6600 | F22: Indicadores Econômicos / Dólar | G22: 2025-08-18T14:31:57 | L22: 26 | M22: EAC | N22: Energisa Acre - Distribuidora de Energia S.A | O22: 146 | P22: 26 | Q22: NÃO SUPRIDA | T22: 3/2018 | U22: 42579 | V22: Rio Branco - AC | W22: 04.065.033/0001-70 | X22: N
B23: ID Concessão | C23: =VLOOKUP(B6,TabEmpresas[#Data],3,FALSE) -> 153 | F23: Tudo de Mercado | G23: 2025-08-06T16:49:43 | L23: 6611 | M23: EBO | N23: Energisa Borborema - Distribuidora de Energia S.A | O23: 140 | P23: 6611 | Q23: NÃO SUPRIDA | T23: 8/2000 | V23: Campina Grande - PB | W23: 08.826.596/0001-95 | X23: A
F24: Rede Básica e Conexão | G24: 2025-08-13T09:03:32 | L24: 380 | M24: EDP ES | N24: EDP Espírito Santo Distribuição de Energia S.A. | O24: 154 | P24: 380 | Q24: NÃO SUPRIDA | T24: 1/1995 | V24: Vitória - ES | W24: 28.152.650/0001-71 | X24: A
B25: Quadro para vínculos | F25: Histórico de Tarifas B1 Residencial | L25: 391 | M25: EDP SP | N25: EDP São Paulo Distribuição de Energia S.A. | O25: 104 | P25: 391 | Q25: NÃO SUPRIDA | T25: 202/1998 | V25: São Paulo - SP | W25: 02.302.100/0001-06 | X25: A
B26: Descrição | C26: valor | F26: CVA | G26: 2025-08-14T08:46:42 | L26: 86 | M26: EFLUL | N26: Empresa Força e Luz de Urussanga Ltda | O26: 144 | P26: 86 | Q26: SUPRIDA | T26: 25/1999 | U26: 42347 | V26: Urussanga - SC | W26: 86.531.175/0001-40 | X26: N
B27: Tipo de contrato | C27: =IF(VLOOKUP(B6,TabEmpresas[],12,FALSE)="A", "Antigo","Novo") -> Antigo | F27: CUSD | G27: 2025-08-05T17:30:14 | L27: 398 | M27: Eletrocar | N27: Centrais Elétricas de Carazinho S.A. | O27: 147 | P27: 398 | Q27: SUPRIDA | T27: 84/2000 | U27: 42347 | V27: Carazinho - RS | W27: 88.446.034/0001-55 | X27: N
B28: Contrato de concessão | C28: =VLOOKUP(B6,TabEmpresas[],8,FALSE) -> 19/2001 | F28: Suprimento: Financeiro de Ultrapassagem e Sobrecontratação | G28: 2025-08-06T10:52:02 | L28: 6585 | M28: EMG | N28: Energisa Minas Gerais - Distribuidora de Energia S.A. | O28: 150 | P28: 6585 | Q28: NÃO SUPRIDA | T28: 40/1999 | U28: 42347 | V28: Cataguases - MG | W28: 19.527.639/0001-58 | X28: N
B29: Número do Processo | C29: 48500.003674/2025-18 | F29: Uderor | G29: 2025-08-07T08:07:33 | L29: 404 | M29: EMS | N29: Energisa Mato Grosso do Sul - Distribuidora de Energia S.A. | O29: 151 | P29: 404 | Q29: NÃO SUPRIDA | T29: 1/1997 | V29: Campo Grande - MS | W29: 15.413.826/0001-50 | X29: A
B30: Período de Referencia | C30: =TEXT(C16,"mmmm/aaaa")& " a "&TEXT(C15,"mmmm/aaaa") -> agosto/2024 a julho/2025 | F30: BMP/RIT | G30: 2025-08-07T08:08:51 | H30: < - Apenas para revisões tarifárias | L30: 405 | M30: EMT | N30: Energisa Mato Grosso - Distribuidora de Energia S.A. | O30: 117 | P30: 405 | Q30: NÃO SUPRIDA | T30: 3/1997 | V30: Cuibá - MT | W30: 03.467.321/0001-99 | X30: A
B31: Início da vigênica por extenso | C31: =DAY(LnkTxtDRPData)&" de "&TEXT(LnkTxtDRPData,"mmmmmm")&" de "&YEAR(LnkTxtDRPData) -> 28 de agosto de 2025 | F31: Componente Q do Fator X | G31: 2025-08-07T08:09:17 | L31: 39 | M31: ENEL CE | N31: Companhia Energética do Ceará | O31: 130 | P31: 39 | Q31: NÃO SUPRIDA | T31: 1/1998 | V31: Fortaleza - CE | W31: 07.047.251/0001-70 | X31: A
B32: CNPJ | C32: =VLOOKUP(B6,TabEmpresas[],11,FALSE) -> 09.095.183/0001-40 | F32: Itens extraordinários REN1000/covid/escassez | G32: 2025-08-15T09:49:24 | L32: 6072 | M32: ENEL GO | N32: Enel Distribuição Goiás | O32: 112 | P32: 6072 | Q32: NÃO SUPRIDA | T32: 63/2000 | U32: 42367 | V32: Goiânia - GO | W32: 01.543.032/0001-04 | X32: N
B33: Período de competência de previsão de subsídios | C33: =TEXT(EDATE(Aj.Subsidio!G19,12),"mmmmmm")&"/"&TEXT(EDATE(Aj.Subsidio!G19,12),"aaaa")&" a "&TEXT(EDATE(Aj.Subsidio!R19,12),"mmmmmm")&"/"&TEXT(EDATE(Aj.Subsidio!R19,12),"aaaa") -> agosto/2025 a julho/2026 | F33: SAMP_balanco | G33: 2025-07-30T15:42:32 | L33: 383 | M33: ENEL RJ | N33: Ampla Energia e Serviços S.A. | O33: 103 | P33: 383 | Q33: NÃO SUPRIDA | T33: 5/1996 | U33: 42808 | V33: Rio de Janeiro - RJ | W33: 33.050.071/0001-58 | X33: N
B34: Período de competência de ajuste de subsídios | C34: =TEXT(Aj.Subsidio!G19,"mmmmmm")&"/"&TEXT(Aj.Subsidio!G19,"aaaa")&" a "&TEXT(Aj.Subsidio!R19,"mmmmmm")&"/"&TEXT(Aj.Subsidio!R19,"aaaa") -> agosto/2024 a julho/2025 | L34: 390 | M34: ENEL SP | N34: Eletropaulo Metropolitana Eletricidade de São Paulo S.A. | O34: 148 | P34: 390 | Q34: NÃO SUPRIDA | T34: 162/1998 | V34: São Paulo - SP | W34: 61.695.227/0001-93 | X34: A
B35: Cidade Sede | C35: =VLOOKUP(B6,TabEmpresas[],10,FALSE) -> João Pessoa - PB | L35: 6612 | M35: ENF | N35: Energisa Nova Friburgo - Distribuidora de Energia S.A. | O35: 152 | P35: 6612 | Q35: SUPRIDA | T35: 42/1999 | U35: 42347 | V35: Nova Friburgo - RJ | W35: 33.249.046/0001-06 | X35: N
B36: Receita | C36: =IF(Mercado!D24>2000000000,ROUND(Mercado!D24/1000000000,2)&" bilhões",IF(Mercado!D24>1000000000,ROUND(Mercado!D24/1000000000,2)&" bilhão",IF(Mercado!D24>100000000,ROUND(Mercado!D24/1000000,0)&" milhões",IF(Mercado!D24>10000000,ROUND(Mercado!D24/1000000,1)&" milhões",IF(Mercado!D24>2000000,ROUND(Mercado!D24/1000000,2)&" milhões",IF(Mercado!D24>1000000,ROUND(Mercado!D24/1000000,2)&" milhão",ROUND(Mercado!D24/1000,0)&" mil")))))) -> 3,28 bilhões | L36: 6600 | M36: EPB | N36: Energisa Paraíba - Distribuidora de Energia S.A. | O36: 153 | P36: 6600 | Q36: NÃO SUPRIDA | T36: 19/2001 | V36: João Pessoa - PB | W36: 09.095.183/0001-40 | X36: A
B37: Unidades Consumidoras | C37: =IF(Mercado!E38>2000000,ROUND(Mercado!E38/1000000,2)&" milhões",IF(Mercado!E38>1000000,ROUND(Mercado!E38/1000000,2)&" milhão",IF(Mercado!E38>100000,ROUND(Mercado!E38/1000,0)&" mil",IF(Mercado!E38>10000,ROUND(Mercado!E38/1000,1)&" mil",IF(Mercado!E38>1000,ROUND(Mercado!E38/1000,2)&" mil",Mercado!E38))))) -> 1,89 milhão | L37: 44 | M37: Equatorial AL | N37: Equatorial Alagoas Distribuidora de Energia S.A. | O37: 108 | P37: 44 | Q37: NÃO SUPRIDA | T37: 2/2019 | U37: 42579 | V37: Maceió - AL | W37: 12.272.084/0001-00 | X37: N
B38: Data SAMP | C38: =TEXT(_xlfn.MAXIFS(Mercado_Receita!K:K,Mercado_Receita!B:B,"regular"),"mmmmmm")&"/"&YEAR(_xlfn.MAXIFS(Mercado_Receita!K:K,Mercado_Receita!B:B,"regular")) -> junho/2025 | L38: 37 | M38: Equatorial MA | N38: Equatorial Maranhão Distribuidora de Energia S.A. | O38: 116 | P38: 37 | Q38: NÃO SUPRIDA | T38: 60/2000 | V38: São Luís - MA | W38: 06.272.793/0001-84 | X38: A
B39: Classificação mercado próprio | C39: >700 | L39: 371 | M39: Equatorial PA | N39: Equatorial Pará Distribuidora de Energia S.A. | O39: 113 | P39: 371 | Q39: NÃO SUPRIDA | T39: 182/1998 | V39: Belém - PA | W39: 04.895.728/0001-80 | X39: A
B40: Data Reunião Pública - RPO | C40: 45895 | L40: 38 | M40: Equatorial PI | N40: Equatorial Piauí Distribuidora de Energia S.A. | O40: 119 | P40: 38 | Q40: NÃO SUPRIDA | T40: 1/2018 | U40: 42579 | V40: Teresina - PI | W40: 06.840.748/0001-89 | X40: N
B41: Data limite Atualização Indicadores Econômicos (RPO-8) | C41: =C40-8 -> 45887 | L41: 369 | M41: ERO | N41: Energisa Rondônia - Distribuidora de Energia S.A. | O41: 120 | P41: 369 | Q41: NÃO SUPRIDA | T41: 2/2018 | U41: 42579 | V41: Porto Velho - RO | W41: 05.914.650/0001-66 | X41: N
L42: 6587 | M42: ESE | N42: Energisa Sergipe - Distribuidora de Energia S.A. | O42: 155 | P42: 6587 | Q42: NÃO SUPRIDA | T42: 7/1997 | V42: Aracajú - SE | W42: 13.017.462/0001-63 | X42: A
L43: 1000040 | M43: ESS | N43: Energisa Sul-Sudeste - Distribuidora de Energia S.A. | O43: 165 | P43: 1000040 | Q43: NÃO SUPRIDA | T43: 13/1999 | U43: 42347 | V43: Presidente Prudente - SP | W43: 07.282.377/0001-20 | X43: N
L44: 32 | M44: ETO | N44: Energisa Tocantins Distribuidora de Energia S.A. | O44: 115 | P44: 32 | Q44: NÃO SUPRIDA | T44: 52/1999 | U44: 43805 | V44: Palmas - TO | W44: 25.086.034/0001-71 | X44: N
L45: 83 | M45: Forcel | N45: Força e Luz Coronel Vivida Ltda. | O45: 156 | P45: 83 | Q45: SUPRIDA | T45: 69/1999 | U45: 42347 | V45: Coronel Vivida - PR | W45: 79.850.574/0001-09 | X45: N
L46: 399 | M46: Hidropan | N46: Hidropan Distribuição de Energia S.A. | O46: 157 | P46: 399 | Q46: SUPRIDA | T46: 86/2000 | U46: 42347 | V46: Panambi - RS | W46: 91.982.348/0001-87 | X46: N
B47: Deslocar mercado | C47: Não | L47: 88 | M47: João Cesa | N47: Empresa Força e Luz João Cesa Ltda. | O47: 143 | P47: 88 | Q47: SUPRIDA | T47: 26/1999 | U47: 42347 | V47: Siderópolis - SC | W47: 86.301.124/0001-22 | X47: N
B48: Data de processamento em simulação | C48: 43811 | L48: 382 | M48: Light | N48: Light Serviços de Eletricidade S.A. | O48: 160 | P48: 382 | Q48: NÃO SUPRIDA | T48: 1/1996 | U48: 42803 | V48: Rio de Janeiro - RJ | W48: 60.444.437/0001-46 | X48: N
L49: 401 | M49: Mux Energia | N49: Muxfeldt Marin E Cia Ltda | O49: 161 | P49: 401 | Q49: SUPRIDA | T49: 87/2000 | U49: 42347 | V49: Tapejara - RS | W49: 97.578.090/0001-34 | X49: N
L50: 5160 | M50: Neoenergia Brasília | N50: Neoenergia Distribuição Brasília S.A. | O50: 109 | P50: 5160 | Q50: NÃO SUPRIDA | T50: 66/1999 | U50: 42347 | V50: Brasília - DF | W50: 07.522.669/0001-92 | X50: N
L51: 47 | M51: Neoenergia Coelba | N51: Companhia de Eletricidade do Estado da Bahia | O51: 129 | P51: 47 | Q51: NÃO SUPRIDA | T51: 10/1997 | V51: Salvador - BA | W51: 15.139.629/0001-94 | X51: A
L52: 40 | M52: Neoenergia Cosern | N52: Companhia Energetica do Rio Grande do Norte | O52: 133 | P52: 40 | Q52: NÃO SUPRIDA | T52: 8/1997 | V52: Natal - RN | W52: 08.324.196/0001-81 | X52: A
L53: 385 | M53: Neoenergia Elektro | N53: Elektro Redes S.A. | O53: 145 | P53: 385 | Q53: NÃO SUPRIDA | T53: 187/1998 | V53: Campinas - SP | W53: 02.328.280/0001-97 | X53: A
L54: 43 | M54: Neoenergia Pernambuco | N54: Companhia Energética de Pernambuco | O54: 114 | P54: 43 | Q54: NÃO SUPRIDA | T54: 26/2000 | V54: Recife - PE | W54: 10.835.932/0001-08 | X54: A
L55: 400 | M55: Nova Palma | N55: Nova Palma Energia Ltda. | O55: 164 | P55: 400 | Q55: SUPRIDA | T55: 107/2001 | U55: 42347 | V55: Faxinal do Soturno - RS | W55: 89.889.604/0001-44 | X55: N
L56: 1000042 | M56: RGE | N56: RGE Sul Distribuidora de Energia S.A. | O56: 167 | P56: 1000042 | Q56: NÃO SUPRIDA | T56: 12/1997 | V56: São Leopoldo - RS | W56: 02.016.440/0001-62 | X56: A
L57: 370 | M57: Roraima Energia | N57: Roraima Energia S.A. | O57: 105 | P57: 370 | Q57: NÃO SUPRIDA | T57: 4/2018 | U57: 42579 | V57: Boa Vista - RR | W57: 02.341.470/0001-44 | X57: N
L58: 381 | M58: Santa Maria | N58: Empresa Luz e Força Santa Maria S/A | O58: 149 | P58: 381 | Q58: SUPRIDA | T58: 20/1999 | U58: 42347 | V58: Colatina - ES | W58: 27.485.069/0001-09 | X58: N
L59: 46 | M59: Sulgipe | N59: Companhia Sul Sergipana de Eletricidade | O59: 163 | P59: 46 | Q59: SUPRIDA | T59: 91/1999 | U59: 42347 | V59: Estância - SE | W59: 13.255.658/0001-96 | X59: N

Sheet BD
B1: Banco de Dados | M1: Anexo II | N1: =Resultado!$D$6 -> 0.06731740628
B2: =CAPA!B6 -> EPB | M2: Anexo I | N2: =Resultado!$D$8 -> 0.0269341683
B5: Informações do ano anterior | G5: Dados de abertura (Neutralidade e CVA saldo a compensar) | L5: Dados de Energia | S5: Dados para Revisão | AA5: BMP_RIT | AK5: Avaliação Parcela B
B7: Encargos | G7: Encargo | H7: Valor | I7: Norma | L7: Cotas | M7: Valor da "Cota" | N7: Ano | O7: Custo Médio da Cota | P7: Energia MWh | S7: item | T7: Descrição | U7: Detalhe | V7: Valor | AA7: IDAGENTE | AB7: ANO | AC7: SIGLA | AD7: ContaPrincipal | AE7: ContaDetalhada | AF7: CONTA | AG7: SALDO | AK7: Ano | AL7: DataRevREa | AM7: item | AN7: valor
B8: CDE Covid TE | C8: 13143524.42 | G8: CDE Eletrobras | H8: -3108566.75 | I8: DSP 1536/2025 | L8: Angra | M8: 0.01348129 | N8: 2025 | O8: 308.74 | P8: 179537.5737 | S8: 0 | T8: Duração do Ciclo de Revisão | V8: 4 | AA8: 6600 | AB8: 2022 | AC8: EPB | AD8: Pessoal | AE8: Remuneração | AF8: 610530501 | AG8: 17338910.02 | AK8: 2020 | AL8: 22155 | AM8: ANEXO II | AN8: 0.09465788237
B9: CDE Covid TUSD | C9: 9174870.757 | G9: CDE | H9: 296824990.2 | I9: REH 3.484/2025 | J9: REH 3.484/2025 | S9: 1 | T9: RI Limite de Neutralidade de Encargos (por grupo) | U9: Residencial | V9: 0.0295 | AA9: 6600 | AB9: 2022 | AC9: EPB | AD9: Pessoal | AE9: Encargos | AF9: 610530502 | AG9: 19410347.63 | AK9: 2020 | AL9: 22155 | AM9: CONSUMIDOR DISTRIBUIÇÃO | AN9: 192373.335
B10: TFSEE | C10: 4223387.363 | G10: CFURH | S10: 2 | T10: RI Limite de Neutralidade de Encargos (por grupo) | U10: Industrial | V10: 0.0219 | AA10: 6600 | AB10: 2022 | AC10: EPB | AD10: Pessoal | AE10: Previdência Privada Corrente | AF10: 610530503 | AG10: 1320702.82 | AK10: 2020 | AL10: 22155 | AM10: CONSUMIDOR LIVRE | AN10: 623465.419
B11: CDE | C11: 198720777.3 | G11: PROINFA | H11: 62766502.35 | I11: REH 3.422/2024 | L11: Ano | M11: Cota Itaipu | S11: 3 | T11: RI Limite de Neutralidade de Encargos (por grupo) | U11: COMERCIAL | V11: 0.0154 | AA11: 6600 | AB11: 2022 | AC11: EPB | AD11: Pessoal | AE11: Despesas Rescisórias | AF11: 610530506 | AG11: 0 | AK11: 2020 | AL11: 22155 | AM11: ENCARGO | AN11: 163907121.1
B12: ESS/ERR | C12: 87915533.94 | G12: ONS | H12: 144681.84 | I12: Contribuição 2025 | S12: 4 | T12: RI Limite de Neutralidade de Encargos (por grupo) | U12: RURAL | V12: 0.0317 | AA12: 6600 | AB12: 2022 | AC12: EPB | AD12: Pessoal | AE12: Participação Lucros Resultados | AF12: 610530507 | AG12: 13730775.86 | AK12: 2020 | AL12: 22155 | AM12: ENERGIA | AN12: 869057775
B13: PROINFA | C13: 50950516.98 | F13: 2296212.78 | G13: ERCAP | H13: 2296212.78 | I13: DSP 1.312/2025 | J13: DSP 1.312/2025 | S13: 5 | T13: RI Limite de Neutralidade de Encargos (por grupo) | U13: PODERPUBLICO | V13: 0.0252 | AA13: 6600 | AB13: 2022 | AC13: EPB | AD13: Pessoal | AE13: Outros Benefícios | AF13: 610530508 | AG13: 28861375.25 | AK13: 2020 | AL13: 22155 | AM13: FATOR X | AN13: 0.01787940721
B14: P&D | C14: 25672710.27 | F14: 104550334.4 | G14: EER | H14: 104550334.4 | I14: DSP 1.312/2025 | J14: DSP 1.312/2025 | S14: 6 | T14: RI Limite de Neutralidade de Encargos (por grupo) | U14: ILUMPUBLICA | V14: 0.0184 | AA14: 6600 | AB14: 2022 | AC14: EPB | AD14: Pessoal | AE14: (-)Créditos Tributários Recuperáveis | AF14: 610530510 | AG14: 0 | AK14: 2020 | AL14: 22155 | AM14: Fornecimento | AN14: 3708326.721
B15: ONS | C15: 116780.9949 | F15: 2138047.75 | G15: ESS | H15: 2138047.75 | I15: DSP 1.312/2025 | J15: DSP 1.312/2025 | S15: 7 | T15: RI Limite de Neutralidade de Encargos (por grupo) | U15: SERVPUBLICO | V15: 0.1299 | AA15: 6600 | AB15: 2022 | AC15: EPB | AD15: Pessoal | AE15: Remuneração | AF15: 610530511 | AG15: 688554.02 | AK15: 2020 | AL15: 22155 | AM15: IGPM | AN15: 0.09271918915
B16: CDE Eletrobras | C16: -18498042.7 | G16: TFSEE Fator de Carga | H16: 0.92 | S16: 11 | T16: RI Limite de outros componentes (por empresa) | U16: Residencial | V16: 0.0136 | AA16: 6600 | AB16: 2022 | AC16: EPB | AD16: Pessoal | AE16: Outros | AF16: 610530599 | AG16: 0 | AK16: 2020 | AL16: 22155 | AM16: IPCA | AN16: 0.02305624998
B17: CDE GD | C17: 14875486.02 | G17: CDE Covid | H17: 0 | I17: Previsão | S17: 12 | T17: RI Limite de outros componentes (por empresa) | U17: Industrial | V17: 0.0036 | AA17: 6600 | AB17: 2022 | AC17: EPB | AD17: Pessoal | AE17: Administradores | AF17: 6105306 | AG17: 0 | AK17: 2020 | AL17: 22155 | AM17: Parcela B | AN17: 820428387.5
B18: CDE Conta - Escassez Hídrica TUSD | C18: 0 | G18: CDE Covid TE% | H18: 0.5889099246 | S18: 13 | T18: RI Limite de outros componentes (por empresa) | U18: COMERCIAL | V18: 0.0066 | AA18: 6600 | AB18: 2022 | AC18: EPB | AD18: Materiais | AE18: Materiais | AF18: 610530701 | AG18: 22803333.51 | AK18: 2020 | AL18: 22155 | AM18: Revisão ou Reajuste (1-REVI,0-Reaj) | AN18: 0
B19: CDE Conta - Escassez Hídrica TE | C19: 18377444.93 | G19: CDE Covid TUSD% | H19: 0.4110900754 | S19: 14 | T19: RI Limite de outros componentes (por empresa) | U19: RURAL | V19: 0.0118 | AA19: 6600 | AB19: 2022 | AC19: EPB | AD19: Materiais | AE19: (-)Créditos Tributários Recuperáveis | AF19: 610530710 | AG19: -1071968.3 | AK19: 2020 | AL19: 22155 | AM19: SUPRIMENTO (Mercado TUSD) | AN19: 0
E20: 16066845.31 | F20: 2310599.62 | G20: CDE Escassez Hidrica | H20: =E20+F20 -> 18377444.93 | I20: DSP 510/2023 | J20: EPB + EBO | S20: 15 | T20: RI Limite de outros componentes (por empresa) | U20: PODERPUBLICO | V20: 0.001 | AA20: 6600 | AB20: 2022 | AC20: EPB | AD20: Materiais | AE20: Outros | AF20: 610530799 | AG20: 372924.93 | AK20: 2020 | AL20: 22155 | AM20: TRANSPORTE TERCEIROS | AN20: 210296167.1
B21: Pmix | C21: 236.3542431 | G21: CDE Escassez Hidr TE% | H21: 1 | S21: 16 | T21: RI Limite de outros componentes (por empresa) | U21: ILUMPUBLICA | V21: 0.0001 | AA21: 6600 | AB21: 2022 | AC21: EPB | AD21: Terceiros | AE21: (-)Créditos Tributários Recuperáveis | AF21: 610530810 | AG21: -1453452.64 | AK21: 2021 | AL21: 22520 | AM21: ANEXO II | AN21: -0.001246225497
B22: PN2024 | C22: 0.057228 | G22: CDE Escassez Hidr TUSD% | H22: 0 | L22: Mês | M22: Potência | N22: Tarifa | O22: Perdas | P22: Energia | S22: 17 | T22: RI Limite de outros componentes (por empresa) | U22: SERVPUBLICO | V22: 0 | AA22: 6600 | AB22: 2022 | AC22: EPB | AD22: Seguros | AE22: Seguros | AF22: 610531001 | AG22: 0 | AK22: 2021 | AL22: 22520 | AM22: Base de Remuneração Bruta | AN22: 2959948948
B23: PT2024 | C23: 0.090761 | G23: CDE GD | H23: 48477574.29 | I23: REH 3.484/2025 | J23: REH 3.484/2025 | S23: 101 | T23: Parâmetros de Custos Operacionais | U23: CO1_Theta_inf | V23: 0.88305536 | AA23: 6600 | AB23: 2022 | AC23: EPB | AD23: Seguros | AE23: (-)Créditos Tributários Recuperáveis | AF23: 610531010 | AG23: 0 | AK23: 2021 | AL23: 22520 | AM23: Base de Remuneração Líquida | AN23: 1762271963
S24: 102 | T24: Parâmetros de Custos Operacionais | U24: CO2_Theta_centro | V24: 0.9585816885 | AA24: 6600 | AB24: 2022 | AC24: EPB | AD24: Seguros | AE24: Outros | AF24: 610531099 | AG24: 0 | AK24: 2021 | AL24: 22520 | AM24: CONSUMIDOR DISTRIBUIÇÃO | AN24: 206376.932
B25: Perda RB total | C25: 0.01712146375 | G25: Informações de Postergação | S25: 103 | T25: Parâmetros de Custos Operacionais | U25: CO3_Theta_sup | V25: 1 | AA25: 6600 | AB25: 2022 | AC25: EPB | AD25: Demais | AE25: Condenações Trabalhistas | AF25: 610531212 | AG25: 0 | AK25: 2021 | AL25: 22520 | AM25: CONSUMIDOR LIVRE | AN25: 717873.292
S26: 104 | T26: Parâmetros de Custos Operacionais | U26: CO4_Theta_ref | V26: 0.786868 | AA26: 6600 | AB26: 2022 | AC26: EPB | AD26: Tributos | AE26: Tributos | AF26: 6105316 | AG26: 127039.96 | AK26: 2021 | AL26: 22520 | AM26: ENCARGO | AN26: 205604347.2
B27: CVA RB | C27: 26403368.04 | G27: Tipo | H27: Valor | I27: Coluna1 | S27: 105 | T27: Parâmetros de Custos Operacionais | U27: CO5_Opex_real | V27: 269558.8368 | AA27: 6600 | AB27: 2022 | AC27: EPB | AD27: Outros | AE27: Indenização Perdas Danos | AF27: 610531901 | AG27: 794177.12 | AK27: 2021 | AL27: 22520 | AM27: ENERGIA | AN27: 933844723.9
B28: CVA CDE Covid TUSD | C28: -364540.4299 | G28: Data Postergada | H28: DtAniversario | I28: 45897 | S28: 106 | T28: Parâmetros de Custos Operacionais | U28: CO6_PMSOcorrigido | V28: 303062.3641 | AA28: 6600 | AB28: 2022 | AC28: EPB | AD28: Outros | AE28: Consumo Próprio Energia | AF28: 610531902 | AG28: 4381915.28 | AK28: 2021 | AL28: 22520 | AM28: FATOR X | AN28: 0.01680656722
B29: CVA CCC | C29: 0 | G29: Data Anterior | I29: 45897 | S29: 107 | T29: Parâmetros de Custos Operacionais | U29: CO7_FatorEscala | V29: 0.001399212063 | AA29: 6600 | AB29: 2022 | AC29: EPB | AD29: Outros | AE29: Taxas Arrecadação | AF29: 610531903 | AG29: 0 | AK29: 2021 | AL29: 22520 | AM29: Fornecimento | AN29: 3813676.159
B30: CVA CDE | C30: 20037821.37 | G30: Diferença de Dias | I30: 0 | S30: 108 | T30: Parâmetros de Custos Operacionais | U30: CO8_u | V30: 3.299650892e-06 | AA30: 6600 | AB30: 2022 | AC30: EPB | AD30: Outros | AE30: Taxas Bancárias | AF30: 610531904 | AG30: 0 | AK30: 2021 | AL30: 22520 | AM30: IGPM | AN30: 0.3382517594
B31: CVA CFURH | G31: MesesAdin | I31: 0 | S31: 109 | T31: Parâmetros de Custos Operacionais | U31: CO9_Vs_Yrsub | V31: 1.67295118e-05 | AA31: 6600 | AB31: 2022 | AC31: EPB | AD31: Outros | AE31: DespesaConselhoConsumidores | AF31: 610531905 | AG31: 0 | AK31: 2021 | AL31: 22520 | AM31: IPCA | AN31: 0.08994822841
B32: CVA ESS\ERR | C32: 22251305.68 | G32: Reversão Subvenção CDE | S32: 110 | T32: Parâmetros de Custos Operacionais | U32: CO10_Vs_Yrdist_a | V32: 8.364755899e-06 | AA32: 6600 | AB32: 2022 | AC32: EPB | AD32: Outros | AE32: Comunicação e Reprografia | AF32: 610531908 | AG32: 439984.74 | AK32: 2021 | AL32: 22520 | AM32: Parcela B | AN32: 794661337.9
B33: CVA PROINFA | C33: -3148252.721 | G33: Data 4CRT | I33: 45897 | S33: 111 | T33: Parâmetros de Custos Operacionais | U33: CO11_Vs_Yralta | V33: 3.34590236e-06 | AA33: 6600 | AB33: 2022 | AC33: EPB | AD33: Demais | AE33: Gastos com CCEE | AF33: 610531909 | AG33: 111241.24 | AK33: 2021 | AL33: 22520 | AM33: Revisão ou Reajuste (1-REVI,0-Reaj) | AN33: 1
B34: CVA TRANS. ITAIPU | C34: 0 | S34: 112 | T34: Parâmetros de Custos Operacionais | U34: CO12_Vs_Ycons | V34: 2.578678718e-07 | AA34: 6600 | AB34: 2022 | AC34: EPB | AD34: Outros | AE34: (-)Créditos Tributários Recuperáveis | AF34: 610531910 | AG34: 0 | AK34: 2021 | AL34: 22520 | AM34: SUPRIMENTO (Mercado TUSD) | AN34: 0
B35: CVA ENERGIA | C35: -86738609.65 | G35: Nome | H35: Valor | S35: 113 | T35: Parâmetros de Custos Operacionais | U35: CO13_Vs_Ymponderado | V35: 4.131162917e-09 | AA35: 6600 | AB35: 2022 | AC35: EPB | AD35: Pessoal | AE35: Remuneração | AF35: 610532501 | AG35: 10982174.07 | AK35: 2021 | AL35: 22520 | AM35: TRANSPORTE TERCEIROS | AN35: 195910342.9
B36: CVA CDE Covid TE | C36: -522224.9087 | G36: TUSDg Export DRP | H36: 0 | L36: Mês | M36: Potência | N36: Tarifa DRA | O36: Tarifa DRP | P36: Colunas1 | S36: 114 | T36: Parâmetros de Custos Operacionais | U36: CO14_Vs_Yd_perdas_dif2 | V36: 6.195226536e-07 | AA36: 6600 | AB36: 2022 | AC36: EPB | AD36: Pessoal | AE36: Encargos | AF36: 610532502 | AG36: 4650091.72 | AK36: 2022 | AL36: 22885 | AM36: ANEXO II | AN36: 0.1139876221
G37: TUSDg ONS DRP | H37: 0 | S37: 115 | T37: Parâmetros de Custos Operacionais | U37: CO15_Vs_Yd_DEC_V8 | V37: 0 | AA37: 6600 | AB37: 2022 | AC37: EPB | AD37: Pessoal | AE37: Previdência Privada Corrente | AF37: 610532503 | AG37: 507962.72 | AK37: 2022 | AL37: 22885 | AM37: CONSUMIDOR DISTRIBUIÇÃO | AN37: 211062.03
G38: TUSDg ONS DRA | H38: 0 | S38: 116 | T38: Parâmetros de Custos Operacionais | U38: CO16_P_AT | V38: 0.02141195049 | AA38: 6600 | AB38: 2022 | AC38: EPB | AD38: Pessoal | AE38: Despesas Rescisórias | AF38: 610532506 | AG38: 0 | AK38: 2022 | AL38: 22885 | AM38: CONSUMIDOR LIVRE | AN38: 785258.79
B39: Transporte | G39: TUSDg Export DRA | H39: 0 | S39: 117 | T39: Parâmetros de Custos Operacionais | U39: CO17_P_MT | V39: 0.1615606011 | AA39: 6600 | AB39: 2022 | AC39: EPB | AD39: Pessoal | AE39: Participação Lucros Resultados | AF39: 610532507 | AG39: 7427243.82 | AK39: 2022 | AL39: 22885 | AM39: ENCARGO | AN39: 283337358.5
B40: Conexao | C40: 11376310.03 | S40: 118 | T40: Parâmetros de Custos Operacionais | U40: CO18_P_BT | V40: 0.8170274485 | AA40: 6600 | AB40: 2022 | AC40: EPB | AD40: Pessoal | AE40: Outros Benefícios | AF40: 610532508 | AG40: 3701151.24 | AK40: 2022 | AL40: 22885 | AM40: ENERGIA | AN40: 1023384876
S41: 119 | T41: Parâmetros de Custos Operacionais | U41: CO19_PMSO2013 | AA41: 6600 | AB41: 2022 | AC41: EPB | AD41: Pessoal | AE41: (-)Créditos Tributários Recuperáveis | AF41: 610532510 | AG41: 0 | AK41: 2022 | AL41: 22885 | AM41: FATOR X | AN41: 0.005597727079
G42: Fator X | H42: Valor | S42: 120 | T42: Parâmetros de Custos Operacionais | U42: CO20_Cont_Associativa | V42: 453050.1485 | AA42: 6600 | AB42: 2022 | AC42: EPB | AD42: Pessoal | AE42: Remuneração | AF42: 610532511 | AG42: 398577.7 | AK42: 2022 | AL42: 22885 | AM42: Fornecimento | AN42: 3848195.585
S43: 201 | T43: Parâmetros de Custos Operacionais | U43: pesoAT | V43: 0.03582559738 | AA43: 6600 | AB43: 2022 | AC43: EPB | AD43: Pessoal | AE43: Outros | AF43: 610532599 | AG43: 0 | AK43: 2022 | AL43: 22885 | AM43: IGPM | AN43: 0.1007679216
B44: Mercado | S44: 202 | T44: Parâmetros de Custos Operacionais | U44: pesoMT | V44: 0.1913686646 | AA44: 6600 | AB44: 2022 | AC44: EPB | AD44: Pessoal | AE44: Administradores | AF44: 6105326 | AG44: 4791631.82 | AK44: 2022 | AL44: 22885 | AM44: IPCA | AN44: 0.1006940332
B45: RA0_MWh_Tusd | C45: 5966866.258 | S45: 203 | T45: Parâmetros de Custos Operacionais | U45: pesoBT | V45: 0.772805738 | AA45: 6600 | AB45: 2022 | AC45: EPB | AD45: Materiais | AE45: Materiais | AF45: 610532701 | AG45: 3942917.79 | AK45: 2022 | AL45: 22885 | AM45: Parcela B | AN45: 892880835.4
B46: RA1_R$ | C46: 3133964902 | G46: DecFec Processo Anterior | H46: Valor | S46: 301 | T46: Financeiro de RTP | U46: Conselho de Consumidor | V46: 102934.17 | AA46: 6600 | AB46: 2022 | AC46: EPB | AD46: Materiais | AE46: (-)Créditos Tributários Recuperáveis | AF46: 610532710 | AG46: 0 | AK46: 2022 | AL46: 22885 | AM46: Revisão ou Reajuste (1-REVI,0-Reaj) | AN46: 0
B47: Proinfa | S47: 2018 | T47: Financeiro de RTP | U47: Conselho de Consumidor | V47: 177420.01 | AA47: 6600 | AB47: 2022 | AC47: EPB | AD47: Materiais | AE47: Outros | AF47: 610532799 | AG47: 0 | AK47: 2022 | AL47: 22885 | AM47: SUPRIMENTO (Mercado TUSD) | AN47: 0
B48: 2025 | C48: 105199.8507 | S48: 401 | T48: Duração do Próximo Ciclo de Revisão | V48: 4 | AA48: 6600 | AB48: 2022 | AC48: EPB | AD48: Terceiros | AE48: AdmCentral | AF48: 610532801 | AG48: 84600785.37 | AK48: 2022 | AL48: 22885 | AM48: TRANSPORTE TERCEIROS | AN48: 219459613.1
B49: Detalhamento de Encargos ESS e CDE | AA49: 6600 | AB49: 2022 | AC49: EPB | AD49: Terceiros | AE49: (-)Créditos Tributários Recuperáveis | AF49: 610532810 | AG49: 0 | AK49: 2023 | AL49: 23250 | AM49: ANEXO II | AN49: 0.02892008936
L50: Dado | M50: Valor | N50: Início | O50: Fim | AA50: 6600 | AB50: 2022 | AC50: EPB | AD50: Seguros | AE50: Seguros | AF50: 610533001 | AG50: 1390733.22 | AK50: 2023 | AL50: 23250 | AM50: CONSUMIDOR DISTRIBUIÇÃO | AN50: 217522.422
L51: MUST | M51: 6963 | N51: 45474 | O51: 45838 | AA51: 6600 | AB51: 2022 | AC51: EPB | AD51: Seguros | AE51: (-)Créditos Tributários Recuperáveis | AF51: 610533010 | AG51: 0 | AK51: 2023 | AL51: 23250 | AM51: CONSUMIDOR LIVRE | AN51: 985781.288
G52: Dados de dólar | H52: Valor | L52: MUST | M52: 7180 | N52: 45839 | O52: 46203 | AA52: 6600 | AB52: 2022 | AC52: EPB | AD52: Seguros | AE52: Outros | AF52: 610533099 | AG52: 0 | AK52: 2023 | AL52: 23250 | AM52: ENCARGO | AN52: 395833600.4
G53: Dólar médio | H53: 5.54834 | L53: Potência Max | M53: 10335 | N53: 45292 | O53: 45657 | AA53: 6600 | AB53: 2022 | AC53: EPB | AD53: Demais | AE53: Condenações Trabalhistas | AF53: 610533212 | AG53: -812738.76 | AK53: 2023 | AL53: 23250 | AM53: ENERGIA | AN53: 1238978768
G54: Data Inicial | H54: 45845 | L54: Potência Max | M54: 10193 | N54: 45658 | O54: 46022 | AA54: 6600 | AB54: 2022 | AC54: EPB | AD54: Tributos | AE54: Tributos | AF54: 6105336 | AG54: 356042.08 | AK54: 2023 | AL54: 23250 | AM54: FATOR X | AN54: 0.02065354741
G55: Data Final | H55: 45870 | AA55: 6600 | AB55: 2022 | AC55: EPB | AD55: Outros | AE55: Indenização Perdas Danos | AF55: 610533901 | AG55: 16256.01 | AK55: 2023 | AL55: 23250 | AM55: Fornecimento | AN55: 4478350.091
L56: Dados de perda | M56: Valor | O56: Agente | P56: Ressarcimento P&D | AA56: 6600 | AB56: 2022 | AC56: EPB | AD56: Outros | AE56: Consumo Próprio Energia | AF56: 610533902 | AG56: 0 | AK56: 2023 | AL56: 23250 | AM56: IGPM | AN56: -0.07720618736
B57: Subsídios Concedidos (sem ajuste) | L57: Perdas RB | M57: 110693.7319 | AA57: 6600 | AB57: 2022 | AC57: EPB | AD57: Outros | AE57: Taxas Arrecadação | AF57: 610533903 | AG57: 0 | AK57: 2023 | AL57: 23250 | AM57: IPCA | AN57: 0.03992389211
B58: Mês de Início | C58: Carga Fonte | D58: Geração | E58: Distribuição | F58: Água, Esgoto e Saneamento | G58: Rural | H58: Irrigante/Aquicultor | I58: SCEE | J58: Lei 14299/20222 | L58: Perdas DITs | M58: 19481.03744 | AA58: 6600 | AB58: 2022 | AC58: EPB | AD58: Outros | AE58: Taxas Bancárias | AF58: 610533904 | AG58: 0 | AK58: 2023 | AL58: 23250 | AM58: Parcela B | AN58: 955942780.9
B59: 2024-08-01 | C59: 4008925.2 | D59: 1930105.24 | H59: 2155520.13 | I59: 1171244.42 | AA59: 6600 | AB59: 2022 | AC59: EPB | AD59: Outros | AE59: Comunicação e Reprografia | AF59: 610533907 | AG59: 6431342.69 | AK59: 2023 | AL59: 23250 | AM59: Revisão ou Reajuste (1-REVI,0-Reaj) | AN59: 0
AA60: 6600 | AB60: 2022 | AC60: EPB | AD60: Demais | AE60: Gastos com CCEE | AF60: 610533908 | AG60: 0 | AK60: 2023 | AL60: 23250 | AM60: SUPRIMENTO (Mercado TUSD) | AN60: 0
AA61: 6600 | AB61: 2022 | AC61: EPB | AD61: Outros | AE61: (-)Créditos Tributários Recuperáveis | AF61: 610533910 | AG61: 0 | AK61: 2023 | AL61: 23250 | AM61: SUPRIMENTO (via Rede Básica) | AN61: 0
AA62: 6600 | AB62: 2022 | AC62: EPB | AD62: Pessoal | AE62: Remuneração | AF62: 610550501 | AG62: 0 | AK62: 2023 | AL62: 23250 | AM62: TRANSPORTE TERCEIROS | AN62: 297455829
AA63: 6600 | AB63: 2022 | AC63: EPB | AD63: Pessoal | AE63: Encargos | AF63: 610550502 | AG63: 0 | AK63: 2024 | AL63: 23616 | AM63: ANEXO II | AN63: 0.005805849974
AA64: 6600 | AB64: 2022 | AC64: EPB | AD64: Pessoal | AE64: Previdência Privada Corrente | AF64: 610550503 | AG64: 0 | AK64: 2024 | AL64: 23616 | AM64: CONSUMIDOR DISTRIBUIÇÃO | AN64: 48822.06
B65: Data | C65: Tipo | D65: Valor | E65: Valor IGPM | F65: Valor IPCA | G65: EixoRef | AA65: 6600 | AB65: 2022 | AC65: EPB | AD65: Pessoal | AE65: Despesas Rescisórias | AF65: 610550506 | AG65: 0 | AK65: 2024 | AL65: 23616 | AM65: CONSUMIDOR LIVRE | AN65: 1190134.611
B66: =DATE(YEAR(CAPA!C10),MONTH(CAPA!C10),1) -> 2025-08-01 | C66: =IF(CAPA!C7="Revisão",1,0) -> 1 | D66: =Resultado!L11 -> 675.6448803 | E66: =IFERROR(VLOOKUP(EDATE($B66,-1),Índices!$B$6:$F$500,2,FALSE)/VLOOKUP(EDATE(MIN($B$67:$B$81),-1),Índices!$B$6:$F$500,2,FALSE)*VLOOKUP(MIN($B$67:$B$81),$B$67:$D$81,3,FALSE),0) -> 0 | F66: =IFERROR(VLOOKUP(EDATE($B66,-1),Índices!$B$6:$F$500,3,FALSE)/VLOOKUP(EDATE(MIN($B$67:$B$81),-1),Índices!$B$6:$F$500,3,FALSE)*VLOOKUP(MIN($B$67:$B$81),$B$67:$D$81,3,FALSE),0) -> 0 | G66: =IF(B66<>"",150+1,"") -> 151 | O66: Data | P66: Fat Bandeiras | AA66: 6600 | AB66: 2022 | AC66: EPB | AD66: Pessoal | AE66: Participação Lucros Resultados | AF66: 610550507 | AG66: 0 | AK66: 2024 | AL66: 23616 | AM66: ENCARGO | AN66: 404672990.3
O67: 45505 | P67: 2556195.23 | AA67: 6600 | AB67: 2022 | AC67: EPB | AD67: Pessoal | AE67: Outros Benefícios | AF67: 610550508 | AG67: 0 | AK67: 2024 | AL67: 23616 | AM67: ENERGIA | AN67: 1343201766
O68: 45536 | P68: 8645629.41 | AA68: 6600 | AB68: 2022 | AC68: EPB | AD68: Pessoal | AE68: (-)Créditos Tributários Recuperáveis | AF68: 610550510 | AG68: 0 | AK68: 2024 | AL68: 23616 | AM68: FATOR X | AN68: 0.01078381704
O69: 45566 | P69: 23302248.43 | AA69: 6600 | AB69: 2022 | AC69: EPB | AD69: Pessoal | AE69: Outros | AF69: 610550599 | AG69: 0 | AK69: 2024 | AL69: 23616 | AM69: Fornecimento | AN69: 4727909.587
O70: 45597 | P70: 16040863.49 | AA70: 6600 | AB70: 2022 | AC70: EPB | AD70: Pessoal | AE70: Administradores | AF70: 6105506 | AG70: 0 | AK70: 2024 | AL70: 23616 | AM70: IGPM | AN70: 0.03823905471
O71: 45627 | P71: 3278909.6 | AA71: 6600 | AB71: 2022 | AC71: EPB | AD71: Materiais | AE71: Materiais | AF71: 610550701 | AG71: 0 | AK71: 2024 | AL71: 23616 | AM71: IPCA | AN71: 0.04498390807
O72: 45658 | P72: 7843.89 | AA72: 6600 | AB72: 2022 | AC72: EPB | AD72: Materiais | AE72: (-)Créditos Tributários Recuperáveis | AF72: 610550710 | AG72: 0 | AK72: 2024 | AL72: 23616 | AM72: Parcela B | AN72: 1114334397
O73: 45689 | P73: 43454.42 | AA73: 6600 | AB73: 2022 | AC73: EPB | AD73: Materiais | AE73: Outros | AF73: 610550799 | AG73: 0 | AK73: 2024 | AL73: 23616 | AM73: Revisão ou Reajuste (1-REVI,0-Reaj) | AN73: 0
O74: 45717 | P74: 42126.87 | AA74: 6600 | AB74: 2022 | AC74: EPB | AD74: Terceiros | AE74: (-)Créditos Tributários Recuperáveis | AF74: 610550810 | AG74: 0 | AK74: 2024 | AL74: 23616 | AM74: SUPRIMENTO (Mercado TUSD) | AN74: 0
O75: 45748 | P75: 37031.69 | AA75: 6600 | AB75: 2022 | AC75: EPB | AD75: Seguros | AE75: Seguros | AF75: 610551001 | AG75: 0 | AK75: 2024 | AL75: 23616 | AM75: SUPRIMENTO (via Rede Básica) | AN75: 0
O76: 45778 | P76: 3984280.27 | AA76: 6600 | AB76: 2022 | AC76: EPB | AD76: Seguros | AE76: (-)Créditos Tributários Recuperáveis | AF76: 610551010 | AG76: 0 | AK76: 2024 | AL76: 23616 | AM76: TRANSPORTE TERCEIROS | AN76: 271755749.6
O77: 45809 | P77: 11155849.23 | AA77: 6600 | AB77: 2022 | AC77: EPB | AD77: Seguros | AE77: Outros | AF77: 610551099 | AG77: 0 | AK77: 2025 | AL77: 23766 | AM77: ANEXO II | AN77: 0.01615012467
O78: 45839 | P78: 11155849.23 | AA78: 6600 | AB78: 2022 | AC78: EPB | AD78: Tributos | AE78: Tributos | AF78: 6105516 | AG78: 0 | AK78: 2025 | AL78: 23766 | AM78: CONSUMIDOR DISTRIBUIÇÃO | AN78: 0
AA79: 6600 | AB79: 2022 | AC79: EPB | AD79: Outros | AE79: Indenização Perdas Danos | AF79: 610551901 | AG79: 0 | AK79: 2025 | AL79: 23766 | AM79: CONSUMIDOR LIVRE | AN79: 0
AA80: 6600 | AB80: 2022 | AC80: EPB | AD80: Outros | AE80: Consumo Próprio Energia | AF80: 610551902 | AG80: 0 | AK80: 2025 | AL80: 23766 | AM80: ENCARGO | AN80: 95688922.49
AA81: 6600 | AB81: 2022 | AC81: EPB | AD81: Outros | AE81: Taxas Arrecadação | AF81: 610551903 | AG81: 0 | AK81: 2025 | AL81: 23766 | AM81: ENERGIA | AN81: 505088708.7
AA82: 6600 | AB82: 2022 | AC82: EPB | AD82: Outros | AE82: Taxas Bancárias | AF82: 610551904 | AG82: 0 | AK82: 2025 | AL82: 23766 | AM82: FATOR X | AN82: 0.01120173884
AA83: 6600 | AB83: 2022 | AC83: EPB | AD83: Outros | AE83: (-)Créditos Tributários Recuperáveis | AF83: 610551910 | AG83: 0 | AK83: 2025 | AL83: 23766 | AM83: Fornecimento | AN83: 1377495.142
B84: Tabela de Resumo de Montante DRP ano anterior/ Montante Apurado pelo Mercado | AA84: 6600 | AB84: 2022 | AC84: EPB | AD84: Pessoal | AE84: Remuneração | AF84: 610552501 | AG84: 0 | AK84: 2025 | AL84: 23766 | AM84: IGPM | AN84: 0.06537837434
B85: detalhe_grupo | C85: GrupoTarifa | D85: tipoBase | E85: tipofatura | F85: ValorCTAnterior_Sum | G85: ValorAnt_Sum | L85: Prcesso Anterior | N85: RTE | AA85: 6600 | AB85: 2022 | AC85: EPB | AD85: Pessoal | AE85: Encargos | AF85: 610552502 | AG85: 0 | AK85: 2025 | AL85: 23766 | AM85: IPCA | AN85: 0.04831196748
L86: MWh | M86: R$ | N86: MWh | O86: R$ | S86: DthEfetivaPagamento | T86: VlrGarantiaFinanceira | V86: Conta Escassez | W86: Valor | X86: Legislacao | AA86: 6600 | AB86: 2022 | AC86: EPB | AD86: Pessoal | AE86: Previdência Privada Corrente | AF86: 610552503 | AG86: 0 | AK86: 2025 | AL86: 23766 | AM86: Parcela B | AN86: 255674738.4
I87: CCEAR-DISP | J87: Alternativa | K87: valor | L87: 91183.01705 | M87: 27861334.38 | S87: 45505 | T87: 154859.61 | AA87: 6600 | AB87: 2022 | AC87: EPB | AD87: Pessoal | AE87: Despesas Rescisórias | AF87: 610552506 | AG87: 0 | AK87: 2025 | AL87: 23766 | AM87: Receita Irrecuperável | AN87: 5651186.062
I88: CCEAR-DISP | J88: Nova | K88: valor | L88: 1491580.881 | M88: 419040454 | S88: 45536 | T88: 154859.61 | AA88: 6600 | AB88: 2022 | AC88: EPB | AD88: Pessoal | AE88: Participação Lucros Resultados | AF88: 610552507 | AG88: 0 | AK88: 2025 | AL88: 23766 | AM88: Revisão ou Reajuste (1-REVI,0-Reaj) | AN88: 0
I89: CCEAR-QTD | J89: Alternativa | K89: valor | L89: 6288.387645 | M89: 2069350.584 | S89: 45566 | T89: 154859.61 | AA89: 6600 | AB89: 2022 | AC89: EPB | AD89: Pessoal | AE89: Outros Benefícios | AF89: 610552508 | AG89: 0 | AK89: 2025 | AL89: 23766 | AM89: SUPRIMENTO (Mercado TUSD) | AN89: 0
I90: CCEAR-QTD | J90: Belo Monte | K90: valor | L90: 374343.3749 | M90: 65811277.54 | S90: 45597 | T90: 154859.61 | AA90: 6600 | AB90: 2022 | AC90: EPB | AD90: Pessoal | AE90: (-)Créditos Tributários Recuperáveis | AF90: 610552510 | AG90: 0 | AK90: 2025 | AL90: 23766 | AM90: SUPRIMENTO (via Rede Básica) | AN90: 0
I91: CCEAR-QTD | J91: Existente | K91: valor | L91: 64851.267 | M91: 20661109.79 | S91: 45627 | T91: 154859.61 | AA91: 6600 | AB91: 2022 | AC91: EPB | AD91: Pessoal | AE91: Outros | AF91: 610552599 | AG91: 0 | AK91: 2025 | AL91: 23766 | AM91: TRANSPORTE TERCEIROS | AN91: 3186197.334
I92: CCEAR-QTD | J92: Madeira | K92: valor | L92: 270031.1433 | M92: 51881987.3 | S92: 45658 | T92: 154859.61 | AA92: 6600 | AB92: 2022 | AC92: EPB | AD92: Pessoal | AE92: Administradores | AF92: 6105526 | AG92: 0
I93: CCEAR-QTD | J93: Nova | K93: valor | L93: 762777.7105 | M93: 171387028.4 | S93: 45689 | T93: 87920.03 | AA93: 6600 | AB93: 2022 | AC93: EPB | AD93: Materiais | AE93: Materiais | AF93: 610552701 | AG93: 0
I94: CCEN | K94: valor | L94: 181310.3622 | M94: 64394188.23 | S94: 45717 | T94: 90400.01 | AA94: 6600 | AB94: 2022 | AC94: EPB | AD94: Materiais | AE94: (-)Créditos Tributários Recuperáveis | AF94: 610552710 | AG94: 0
I95: CCGF | K95: valor | L95: 811762.0447 | M95: 153126051 | S95: 45748 | T95: 90400.01 | AA95: 6600 | AB95: 2022 | AC95: EPB | AD95: Materiais | AE95: Outros | AF95: 610552799 | AG95: 0
I96: PROINFA | K96: valor | L96: 104914.7757 | S96: 45778 | T96: 90400.01 | AA96: 6600 | AB96: 2022 | AC96: EPB | AD96: Terceiros | AE96: AdmCentral | AF96: 610552801 | AG96: 0
I97: SOBRA/EXPOSIÇÃO | K97: valor | L97: 1523959.586 | M97: 366968984.7 | S97: 45809 | T97: 90400.01 | AA97: 6600 | AB97: 2022 | AC97: EPB | AD97: Terceiros | AE97: (-)Créditos Tributários Recuperáveis | AF97: 610552810 | AG97: 0
S98: 45839 | T98: 90400.01 | AA98: 6600 | AB98: 2022 | AC98: EPB | AD98: Seguros | AE98: Seguros | AF98: 610553001 | AG98: 0
AA99: 6600 | AB99: 2022 | AC99: EPB | AD99: Seguros | AE99: (-)Créditos Tributários Recuperáveis | AF99: 610553010 | AG99: 0
AA100: 6600 | AB100: 2022 | AC100: EPB | AD100: Seguros | AE100: Outros | AF100: 610553099 | AG100: 0
AA101: 6600 | AB101: 2022 | AC101: EPB | AD101: Tributos | AE101: Tributos | AF101: 6105536 | AG101: 0
AA102: 6600 | AB102: 2022 | AC102: EPB | AD102: Outros | AE102: Indenização Perdas Danos | AF102: 610553901 | AG102: 0
AA103: 6600 | AB103: 2022 | AC103: EPB | AD103: Outros | AE103: Consumo Próprio Energia | AF103: 610553902 | AG103: 0
AA104: 6600 | AB104: 2022 | AC104: EPB | AD104: Outros | AE104: Taxas Arrecadação | AF104: 610553903 | AG104: 0
V105: Empresa | W105: AT | X105: MT | Y105: BT | AA105: 6600 | AB105: 2022 | AC105: EPB | AD105: Outros | AE105: Taxas Bancárias | AF105: 610553904 | AG105: 0
V106: 167 | W106: 0.02134 | X106: 0.35825 | Y106: 0.62041 | AA106: 6600 | AB106: 2022 | AC106: EPB | AD106: Outros | AE106: (-)Créditos Tributários Recuperáveis | AF106: 610553910 | AG106: 0
V107: 102 | W107: 0.064 | X107: 0.32003 | Y107: 0.61596 | AA107: 6600 | AB107: 2022 | AC107: EPB | AD107: Demais | AE107: Ganhos Alienação Materiais | AF107: 611112103 | AG107: 0
V108: 103 | W108: 0.02996 | X108: 0.27106 | Y108: 0.69898 | AA108: 6600 | AB108: 2022 | AC108: EPB | AD108: Demais | AE108: Ganhos Alienação Materiais | AF108: 611112203 | AG108: 0
V109: 104 | W109: 0.07171 | X109: 0.2909 | Y109: 0.63739 | AA109: 6600 | AB109: 2022 | AC109: EPB | AD109: Demais | AE109: Ganhos Alienação Materiais | AF109: 611112303 | AG109: 0
V110: 105 | W110: 0.00823 | X110: 0.24677 | Y110: 0.745 | AA110: 6600 | AB110: 2022 | AC110: EPB | AD110: Demais | AE110: Ganhos Alienação Materiais | AF110: 611112403 | AG110: 0
I111: Agente | J111: idagente | K111: indexador | L111: database | M111: RAP do ciclo | N111: Colunas1 | O111: RAP atualizada | V111: 165 | W111: 0.00795 | X111: 0.22554 | Y111: 0.76651 | AA111: 6600 | AB111: 2022 | AC111: EPB | AD111: Demais | AE111: Ganhos Alienação Materiais | AF111: 611112503 | AG111: 0
O112: =M112*VLOOKUP(CAPA!C15,Índices!$B$6:$F$626,IF(BD!K112="IPCA",3,2),FALSE)/VLOOKUP(L112,Índices!$B$6:$F$626,IF(BD!K112="IPCA",3,2),FALSE) ->  | V112: 108 | W112: 0.06098 | X112: 0.1711 | Y112: 0.76792 | AA112: 6600 | AB112: 2022 | AC112: EPB | AD112: Demais | AE112: Perdas Alienação Desativação | AF112: 611511401 | AG112: 0
O113: =M113*VLOOKUP(CAPA!C16,Índices!$B$6:$F$626,IF(BD!K113="IPCA",3,2),FALSE)/VLOOKUP(L113,Índices!$B$6:$F$626,IF(BD!K113="IPCA",3,2),FALSE) ->  | V113: 109 | W113: 0.01034 | X113: 0.24366 | Y113: 0.746 | AA113: 6600 | AB113: 2022 | AC113: EPB | AD113: Demais | AE113: Perdas Alienação Desativação | AF113: 611512003 | AG113: 8034768.81
O114: =M114*VLOOKUP(CAPA!C17,Índices!$B$6:$F$626,IF(BD!K114="IPCA",3,2),FALSE)/VLOOKUP(L114,Índices!$B$6:$F$626,IF(BD!K114="IPCA",3,2),FALSE) ->  | V114: 110 | W114: 0.01165 | X114: 0.24322 | Y114: 0.74513 | AA114: 6600 | AB114: 2022 | AC114: EPB | AD114: Demais | AE114: Perdas Alienação Desativação | AF114: 611512103 | AG114: 0
O115: =M115*VLOOKUP(CAPA!C18,Índices!$B$6:$F$626,IF(BD!K115="IPCA",3,2),FALSE)/VLOOKUP(L115,Índices!$B$6:$F$626,IF(BD!K115="IPCA",3,2),FALSE) ->  | V115: 111 | W115: 0.03791 | X115: 0.37961 | Y115: 0.58248 | AA115: 6600 | AB115: 2022 | AC115: EPB | AD115: Demais | AE115: Perdas Alienação Desativação | AF115: 611512203 | AG115: 2329534.67
O116: =M116*VLOOKUP(CAPA!C19,Índices!$B$6:$F$626,IF(BD!K116="IPCA",3,2),FALSE)/VLOOKUP(L116,Índices!$B$6:$F$626,IF(BD!K116="IPCA",3,2),FALSE) ->  | V116: 112 | W116: 0.02273 | X116: 0.26361 | Y116: 0.71367 | AA116: 6600 | AB116: 2022 | AC116: EPB | AD116: Demais | AE116: Perdas Alienação Desativação | AF116: 611512303 | AG116: 4160509.05
O117: =M117*VLOOKUP(CAPA!C20,Índices!$B$6:$F$626,IF(BD!K117="IPCA",3,2),FALSE)/VLOOKUP(L117,Índices!$B$6:$F$626,IF(BD!K117="IPCA",3,2),FALSE) ->  | V117: 113 | W117: 0.01263 | X117: 0.23345 | Y117: 0.75392 | AA117: 6600 | AB117: 2023 | AC117: EPB | AD117: Pessoal | AE117: Remuneração | AF117: 610530501 | AG117: 34825976.25
O118: =M118*VLOOKUP(CAPA!C21,Índices!$B$6:$F$626,IF(BD!K118="IPCA",3,2),FALSE)/VLOOKUP(L118,Índices!$B$6:$F$626,IF(BD!K118="IPCA",3,2),FALSE) ->  | V118: 114 | W118: 0.01726 | X118: 0.23794 | Y118: 0.7448 | AA118: 6600 | AB118: 2023 | AC118: EPB | AD118: Pessoal | AE118: Encargos | AF118: 610530502 | AG118: 23787108.65
O119: =M119*VLOOKUP(CAPA!C22,Índices!$B$6:$F$626,IF(BD!K119="IPCA",3,2),FALSE)/VLOOKUP(L119,Índices!$B$6:$F$626,IF(BD!K119="IPCA",3,2),FALSE) ->  | V119: 115 | W119: 0.00993 | X119: 0.23087 | Y119: 0.7592 | AA119: 6600 | AB119: 2023 | AC119: EPB | AD119: Pessoal | AE119: Previdência Privada Corrente | AF119: 610530503 | AG119: 1982030.78
O120: =M120*VLOOKUP(CAPA!C23,Índices!$B$6:$F$626,IF(BD!K120="IPCA",3,2),FALSE)/VLOOKUP(L120,Índices!$B$6:$F$626,IF(BD!K120="IPCA",3,2),FALSE) ->  | S120: iddet1 | T120: valor | V120: 116 | W120: 0.00806 | X120: 0.16835 | Y120: 0.82359 | AA120: 6600 | AB120: 2023 | AC120: EPB | AD120: Pessoal | AE120: Despesas Rescisórias | AF120: 610530506 | AG120: 0
O121: =M121*VLOOKUP(CAPA!C24,Índices!$B$6:$F$626,IF(BD!K121="IPCA",3,2),FALSE)/VLOOKUP(L121,Índices!$B$6:$F$626,IF(BD!K121="IPCA",3,2),FALSE) ->  | S121: 56-Datalimite_D-25 | T121: 45873 | V121: 117 | W121: 0.03028 | X121: 0.29131 | Y121: 0.67841 | AA121: 6600 | AB121: 2023 | AC121: EPB | AD121: Pessoal | AE121: Participação Lucros Resultados | AF121: 610530507 | AG121: 10723273.74
O122: =M122*VLOOKUP(CAPA!C25,Índices!$B$6:$F$626,IF(BD!K122="IPCA",3,2),FALSE)/VLOOKUP(L122,Índices!$B$6:$F$626,IF(BD!K122="IPCA",3,2),FALSE) ->  | S122: 57-DthEfetivaPagamento | T122: 45853 | V122: 118 | W122: 0.04215 | X122: 0.2081 | Y122: 0.74975 | AA122: 6600 | AB122: 2023 | AC122: EPB | AD122: Pessoal | AE122: Outros Benefícios | AF122: 610530508 | AG122: 34805770.33
O123: =M123*VLOOKUP(CAPA!C26,Índices!$B$6:$F$626,IF(BD!K123="IPCA",3,2),FALSE)/VLOOKUP(L123,Índices!$B$6:$F$626,IF(BD!K123="IPCA",3,2),FALSE) ->  | S123: 58-DthCompetenciaPagamento | T123: 45809 | V123: 119 | W123: 0.01807 | X123: 0.11713 | Y123: 0.8648 | AA123: 6600 | AB123: 2023 | AC123: EPB | AD123: Pessoal | AE123: (-)Créditos Tributários Recuperáveis | AF123: 610530510 | AG123: 0
O124: =M124*VLOOKUP(CAPA!C27,Índices!$B$6:$F$626,IF(BD!K124="IPCA",3,2),FALSE)/VLOOKUP(L124,Índices!$B$6:$F$626,IF(BD!K124="IPCA",3,2),FALSE) ->  | V124: 120 | W124: - | X124: 0.17688 | Y124: 0.82312 | AA124: 6600 | AB124: 2023 | AC124: EPB | AD124: Pessoal | AE124: Remuneração | AF124: 610530511 | AG124: 806262.95
O125: =M125*VLOOKUP(CAPA!C28,Índices!$B$6:$F$626,IF(BD!K125="IPCA",3,2),FALSE)/VLOOKUP(L125,Índices!$B$6:$F$626,IF(BD!K125="IPCA",3,2),FALSE) ->  | V125: 123 | W125: - | X125: 0.13612 | Y125: 0.86388 | AA125: 6600 | AB125: 2023 | AC125: EPB | AD125: Pessoal | AE125: Outros | AF125: 610530599 | AG125: 0
O126: =M126*VLOOKUP(CAPA!C29,Índices!$B$6:$F$626,IF(BD!K126="IPCA",3,2),FALSE)/VLOOKUP(L126,Índices!$B$6:$F$626,IF(BD!K126="IPCA",3,2),FALSE) ->  | V126: 166 | W126: 0.04257 | X126: 0.29652 | Y126: 0.66092 | AA126: 6600 | AB126: 2023 | AC126: EPB | AD126: Pessoal | AE126: Administradores | AF126: 6105306 | AG126: 0
O127: =M127*VLOOKUP(CAPA!C30,Índices!$B$6:$F$626,IF(BD!K127="IPCA",3,2),FALSE)/VLOOKUP(L127,Índices!$B$6:$F$626,IF(BD!K127="IPCA",3,2),FALSE) ->  | V127: 128 | W127: - | X127: 0.40427 | Y127: 0.59573 | AA127: 6600 | AB127: 2023 | AC127: EPB | AD127: Materiais | AE127: Materiais | AF127: 610530701 | AG127: 25269433.92
O128: =M128*VLOOKUP(CAPA!C31,Índices!$B$6:$F$626,IF(BD!K128="IPCA",3,2),FALSE)/VLOOKUP(L128,Índices!$B$6:$F$626,IF(BD!K128="IPCA",3,2),FALSE) ->  | V128: 129 | W128: 0.02905 | X128: 0.24895 | Y128: 0.722 | AA128: 6600 | AB128: 2023 | AC128: EPB | AD128: Materiais | AE128: (-)Créditos Tributários Recuperáveis | AF128: 610530710 | AG128: -868956.85
O129: =M129*VLOOKUP(CAPA!C32,Índices!$B$6:$F$626,IF(BD!K129="IPCA",3,2),FALSE)/VLOOKUP(L129,Índices!$B$6:$F$626,IF(BD!K129="IPCA",3,2),FALSE) ->  | V129: 130 | W129: 0.0175 | X129: 0.14397 | Y129: 0.83853 | AA129: 6600 | AB129: 2023 | AC129: EPB | AD129: Materiais | AE129: Outros | AF129: 610530799 | AG129: 163297.2
O130: =M130*VLOOKUP(CAPA!C33,Índices!$B$6:$F$626,IF(BD!K130="IPCA",3,2),FALSE)/VLOOKUP(L130,Índices!$B$6:$F$626,IF(BD!K130="IPCA",3,2),FALSE) ->  | S130: Nível | T130: Mercado Faturado A-6 | V130: 131 | W130: - | X130: 0.30099 | Y130: 0.69901 | AA130: 6600 | AB130: 2023 | AC130: EPB | AD130: Terceiros | AE130: (-)Créditos Tributários Recuperáveis | AF130: 610530810 | AG130: -1390227.31
O131: =M131*VLOOKUP(CAPA!C34,Índices!$B$6:$F$626,IF(BD!K131="IPCA",3,2),FALSE)/VLOOKUP(L131,Índices!$B$6:$F$626,IF(BD!K131="IPCA",3,2),FALSE) ->  | S131: AT | T131: 780582.341 | V131: 132 | W131: 0.02757 | X131: 0.26424 | Y131: 0.70819 | AA131: 6600 | AB131: 2023 | AC131: EPB | AD131: Seguros | AE131: Seguros | AF131: 610531001 | AG131: 0
O132: =M132*VLOOKUP(CAPA!C35,Índices!$B$6:$F$626,IF(BD!K132="IPCA",3,2),FALSE)/VLOOKUP(L132,Índices!$B$6:$F$626,IF(BD!K132="IPCA",3,2),FALSE) ->  | S132: BT | T132: 3399510.1 | V132: 133 | W132: 0.01856 | X132: 0.19536 | Y132: 0.78608 | AA132: 6600 | AB132: 2023 | AC132: EPB | AD132: Seguros | AE132: (-)Créditos Tributários Recuperáveis | AF132: 610531010 | AG132: 0
S133: MT | T133: 1063442.155 | V133: 135 | W133: 0.04788 | X133: 0.27054 | Y133: 0.68158 | AA133: 6600 | AB133: 2023 | AC133: EPB | AD133: Seguros | AE133: Outros | AF133: 610531099 | AG133: 0
V134: 136 | W134: 0.06732 | X134: 0.35547 | Y134: 0.57721 | AA134: 6600 | AB134: 2023 | AC134: EPB | AD134: Demais | AE134: Condenações Trabalhistas | AF134: 610531212 | AG134: 0
V135: 138 | W135: - | X135: 0.07651 | Y135: 0.92349 | AA135: 6600 | AB135: 2023 | AC135: EPB | AD135: Tributos | AE135: Tributos | AF135: 6105316 | AG135: 1202128.68
V136: 139 | W136: - | X136: 0.35483 | Y136: 0.64517 | AA136: 6600 | AB136: 2023 | AC136: EPB | AD136: Outros | AE136: Indenização Perdas Danos | AF136: 610531901 | AG136: 846062.39
V137: 140 | W137: 0.01004 | X137: 0.21058 | Y137: 0.77938 | AA137: 6600 | AB137: 2023 | AC137: EPB | AD137: Outros | AE137: Consumo Próprio Energia | AF137: 610531902 | AG137: 4246370.96
V138: 143 | W138: - | X138: 0.20409 | Y138: 0.79591 | AA138: 6600 | AB138: 2023 | AC138: EPB | AD138: Outros | AE138: Taxas Arrecadação | AF138: 610531903 | AG138: 0
V139: 144 | W139: - | X139: 0.48131 | Y139: 0.51869 | AA139: 6600 | AB139: 2023 | AC139: EPB | AD139: Outros | AE139: Taxas Bancárias | AF139: 610531904 | AG139: 0
A140: NumBar | B140: Nome Conexão | C140: Tensão | D140: Posto Tarifário | E140: Tarifas RB- DRA | F140: Tarifas RB - DRP | G140: Tarifas FR- DRA | H140: Tarifas FR - DRP | I140: M01 | J140: M02 | K140: M03 | L140: M04 | M140: M05 | N140: M06 | O140: M07 | P140: M08 | Q140: M09 | R140: M10 | S140: M11 | T140: M12 | V140: 145 | W140: 0.03725 | X140: 0.29306 | Y140: 0.66969 | AA140: 6600 | AB140: 2023 | AC140: EPB | AD140: Outros | AE140: DespesaConselhoConsumidores | AF140: 610531905 | AG140: 0
A141: 5249 | B141: PILOES - 138 kV (A) | C141: 138.0 | D141: Ponta | E141: 5616 | F141: 6720 | G141: 15211 | H141: 12670 | I141: 84.7 | J141: 84.7 | K141: 84.7 | L141: 84.7 | M141: 84.7 | N141: 92 | O141: 92 | P141: 92 | Q141: 92 | R141: 92 | S141: 92 | T141: 92 | V141: 146 | W141: - | X141: 0.14124 | Y141: 0.85876 | AA141: 6600 | AB141: 2023 | AC141: EPB | AD141: Outros | AE141: Comunicação e Reprografia | AF141: 610531908 | AG141: 466041.71
A142: 5226 | B142: C.GRANDE II - 69 kV (A) | C142: 69.0 | D142: Ponta | E142: 5862 | F142: 7040 | G142: 2509 | H142: 1900 | I142: 207.839 | J142: 207.839 | K142: 207.839 | L142: 207.839 | M142: 207.839 | N142: 228.116 | O142: 228.116 | P142: 228.116 | Q142: 228.116 | R142: 228.116 | S142: 228.116 | T142: 228.116 | V142: 147 | W142: - | X142: 0.20977 | Y142: 0.79023 | AA142: 6600 | AB142: 2023 | AC142: EPB | AD142: Demais | AE142: Gastos com CCEE | AF142: 610531909 | AG142: 138046.71
A143: 5623 | B143: COREMAS - 69 kV (A) | C143: 69.0 | D143: Ponta | E143: 5716 | F143: 6910 | G143: 1143 | H143: 550 | I143: 223 | J143: 223 | K143: 223 | L143: 223 | M143: 223 | N143: 237 | O143: 237 | P143: 237 | Q143: 237 | R143: 237 | S143: 237 | T143: 237 | V143: 148 | W143: 0.03455 | X143: 0.23757 | Y143: 0.72788 | AA143: 6600 | AB143: 2023 | AC143: EPB | AD143: Outros | AE143: (-)Créditos Tributários Recuperáveis | AF143: 610531910 | AG143: 0
A144: 5203 | B144: GOIANINHA - 69 kV (A) | C144: 69.0 | D144: Ponta | E144: 6439 | F144: 7640 | G144: 2092 | H144: 2210 | I144: 66 | J144: 66 | K144: 66 | L144: 66 | M144: 66 | N144: 71.127 | O144: 71.127 | P144: 71.127 | Q144: 71.127 | R144: 71.127 | S144: 71.127 | T144: 71.127 | V144: 149 | W144: - | X144: 0.17399 | Y144: 0.82601 | AA144: 6600 | AB144: 2023 | AC144: EPB | AD144: Pessoal | AE144: Remuneração | AF144: 610532501 | AG144: 13801237.61
A145: 5838 | B145: JOAO PESSOA II69kVA | C145: 69.0 | D145: Ponta | E145: 6372 | F145: 7570 | G145: 3162 | H145: 4980 | I145: 58 | J145: 58 | K145: 58 | L145: 58 | M145: 58 | N145: 63 | O145: 63 | P145: 63 | Q145: 63 | R145: 63 | S145: 63 | T145: 63 | V145: 150 | W145: 0.03635 | X145: 0.17413 | Y145: 0.78952 | AA145: 6600 | AB145: 2023 | AC145: EPB | AD145: Pessoal | AE145: Encargos | AF145: 610532502 | AG145: 6502150
A146: 5213 | B146: MUSSURE II - 69 kV (A) | C146: 69.0 | D146: Ponta | E146: 6582 | F146: 7760 | G146: 1301 | H146: 900 | I146: 289 | J146: 289 | K146: 289 | L146: 289 | M146: 289 | N146: 315.2 | O146: 315.2 | P146: 315.2 | Q146: 315.2 | R146: 315.2 | S146: 315.2 | T146: 315.2 | V146: 151 | W146: 0.02735 | X146: 0.28351 | Y146: 0.68915 | AA146: 6600 | AB146: 2023 | AC146: EPB | AD146: Pessoal | AE146: Previdência Privada Corrente | AF146: 610532503 | AG146: 886955.32
A147: 5253 | B147: SANTA CRUZ II - 69 kV (A) | C147: 69.0 | D147: Ponta | E147: 5493 | F147: 6570 | G147: 15211 | H147: 12670 | I147: 15.8 | J147: 15.8 | K147: 15.8 | L147: 15.8 | M147: 15.8 | N147: 16.61 | O147: 16.61 | P147: 16.61 | Q147: 16.61 | R147: 19.2 | S147: 19.2 | T147: 19.2 | V147: 152 | W147: 0.00215 | X147: 0.1412 | Y147: 0.85665 | AA147: 6600 | AB147: 2023 | AC147: EPB | AD147: Pessoal | AE147: Despesas Rescisórias | AF147: 610532506 | AG147: 0
A148: 5273 | B148: SANTA RITA II - 69 kV (A) | C148: 69.0 | D148: Ponta | E148: 6520 | F148: 7690 | G148: 1326 | H148: 1220 | I148: 227 | J148: 227 | K148: 227 | L148: 227 | M148: 227 | N148: 238.5 | O148: 238.5 | P148: 238.5 | Q148: 238.5 | R148: 238.5 | S148: 238.5 | T148: 238.5 | V148: 153 | W148: 0.03606 | X148: 0.17601 | Y148: 0.78793 | AA148: 6600 | AB148: 2023 | AC148: EPB | AD148: Pessoal | AE148: Participação Lucros Resultados | AF148: 610532507 | AG148: 5154454.96
A149: 5249 | B149: PILOES - 138 kV (A) | C149: 138.0 | D149: Fora Ponta | E149: 5414 | F149: 6760 | G149: 15211 | H149: 12670 | I149: 88 | J149: 88 | K149: 88 | L149: 88 | M149: 88 | N149: 92 | O149: 92 | P149: 92 | Q149: 92 | R149: 92 | S149: 92 | T149: 92 | V149: 154 | W149: 0.12913 | X149: 0.26626 | Y149: 0.60462 | AA149: 6600 | AB149: 2023 | AC149: EPB | AD149: Pessoal | AE149: Outros Benefícios | AF149: 610532508 | AG149: 5214675.55
A150: 5226 | B150: C.GRANDE II - 69 kV (A) | C150: 69.0 | D150: Fora Ponta | E150: 5683 | F150: 7100 | G150: 2509 | H150: 1900 | I150: 205 | J150: 205 | K150: 205 | L150: 205 | M150: 205 | N150: 222.318 | O150: 222.318 | P150: 222.318 | Q150: 222.318 | R150: 222.318 | S150: 222.318 | T150: 222.318 | V150: 155 | W150: 0.04008 | X150: 0.23225 | Y150: 0.72768 | AA150: 6600 | AB150: 2023 | AC150: EPB | AD150: Pessoal | AE150: (-)Créditos Tributários Recuperáveis | AF150: 610532510 | AG150: 0
A151: 5623 | B151: COREMAS - 69 kV (A) | C151: 69.0 | D151: Fora Ponta | E151: 5573 | F151: 6860 | G151: 1143 | H151: 550 | I151: 261.11 | J151: 261.11 | K151: 261.11 | L151: 261.11 | M151: 261.11 | N151: 261.11 | O151: 261.11 | P151: 261.11 | Q151: 261.11 | R151: 261.11 | S151: 261.11 | T151: 261.11 | V151: 156 | W151: - | X151: 0.35985 | Y151: 0.64015 | AA151: 6600 | AB151: 2023 | AC151: EPB | AD151: Pessoal | AE151: Remuneração | AF151: 610532511 | AG151: 376260.17
A152: 5203 | B152: GOIANINHA - 69 kV (A) | C152: 69.0 | D152: Fora Ponta | E152: 6348 | F152: 7780 | G152: 2092 | H152: 2210 | I152: 77.5 | J152: 77.5 | K152: 77.5 | L152: 77.5 | M152: 77.5 | N152: 87.715 | O152: 87.715 | P152: 87.715 | Q152: 87.715 | R152: 87.715 | S152: 87.715 | T152: 87.715 | V152: 157 | W152: - | X152: 0.15963 | Y152: 0.84037 | AA152: 6600 | AB152: 2023 | AC152: EPB | AD152: Pessoal | AE152: Outros | AF152: 610532599 | AG152: 0
A153: 5838 | B153: JOAO PESSOA II69kVA | C153: 69.0 | D153: Fora Ponta | E153: 6272 | F153: 7690 | G153: 3162 | H153: 4980 | I153: 67.78 | J153: 67.78 | K153: 67.78 | L153: 67.78 | M153: 67.78 | N153: 67.78 | O153: 67.78 | P153: 67.78 | Q153: 67.78 | R153: 67.78 | S153: 67.78 | T153: 67.78 | V153: 158 | W153: - | X153: 0.33049 | Y153: 0.66951 | AA153: 6600 | AB153: 2023 | AC153: EPB | AD153: Pessoal | AE153: Administradores | AF153: 6105326 | AG153: 6309966.75
A154: 5213 | B154: MUSSURE II - 69 kV (A) | C154: 69.0 | D154: Fora Ponta | E154: 6503 | F154: 7900 | G154: 1301 | H154: 900 | I154: 298 | J154: 298 | K154: 298 | L154: 298 | M154: 298 | N154: 328.2 | O154: 328.2 | P154: 328.2 | Q154: 328.2 | R154: 328.2 | S154: 328.2 | T154: 328.2 | V154: 160 | W154: 0.1013 | X154: 0.22818 | Y154: 0.67051 | AA154: 6600 | AB154: 2023 | AC154: EPB | AD154: Materiais | AE154: Materiais | AF154: 610532701 | AG154: 5325455.39
A155: 5253 | B155: SANTA CRUZ II - 69 kV (A) | C155: 69.0 | D155: Fora Ponta | E155: 5279 | F155: 6600 | G155: 15211 | H155: 12670 | I155: 14.9 | J155: 14.9 | K155: 14.9 | L155: 14.9 | M155: 14.9 | N155: 15.05 | O155: 15.05 | P155: 15.05 | Q155: 15.05 | R155: 18 | S155: 18 | T155: 18 | V155: 161 | W155: - | X155: 0.28355 | Y155: 0.71645 | AA155: 6600 | AB155: 2023 | AC155: EPB | AD155: Materiais | AE155: (-)Créditos Tributários Recuperáveis | AF155: 610532710 | AG155: 0
A156: 5273 | B156: SANTA RITA II - 69 kV (A) | C156: 69.0 | D156: Fora Ponta | E156: 6440 | F156: 7820 | G156: 1326 | H156: 1220 | I156: 240 | J156: 240 | K156: 240 | L156: 240 | M156: 240 | N156: 249.5 | O156: 249.5 | P156: 249.5 | Q156: 249.5 | R156: 249.5 | S156: 249.5 | T156: 249.5 | V156: 163 | W156: 0.03507 | X156: 0.1664 | Y156: 0.79853 | AA156: 6600 | AB156: 2023 | AC156: EPB | AD156: Materiais | AE156: Outros | AF156: 610532799 | AG156: 0
V157: 164 | W157: - | X157: 0.12897 | Y157: 0.87103 | AA157: 6600 | AB157: 2023 | AC157: EPB | AD157: Terceiros | AE157: AdmCentral | AF157: 610532801 | AG157: 97968835.54
AA158: 6600 | AB158: 2023 | AC158: EPB | AD158: Terceiros | AE158: (-)Créditos Tributários Recuperáveis | AF158: 610532810 | AG158: 0
AA159: 6600 | AB159: 2023 | AC159: EPB | AD159: Seguros | AE159: Seguros | AF159: 610533001 | AG159: 1969973.29
AA160: 6600 | AB160: 2023 | AC160: EPB | AD160: Seguros | AE160: (-)Créditos Tributários Recuperáveis | AF160: 610533010 | AG160: 0
AA161: 6600 | AB161: 2023 | AC161: EPB | AD161: Seguros | AE161: Outros | AF161: 610533099 | AG161: 0
AA162: 6600 | AB162: 2023 | AC162: EPB | AD162: Demais | AE162: Condenações Trabalhistas | AF162: 610533212 | AG162: -1190271.09
V163: Tab_EnergiaConsumidaMWh | AA163: 6600 | AB163: 2023 | AC163: EPB | AD163: Tributos | AE163: Tributos | AF163: 6105336 | AG163: 900794.86
V164: Competencia | W164: EnergiaConsumidaMWh | X164: EnergiaFaturadaMWh | Y164: Dif_Consumida_FaturadaMWh | AA164: 6600 | AB164: 2023 | AC164: EPB | AD164: Outros | AE164: Indenização Perdas Danos | AF164: 610533901 | AG164: 0
V165: 45505 | W165: 55484.91 | X165: 22706.748 | Y165: 32778.162 | AA165: 6600 | AB165: 2023 | AC165: EPB | AD165: Outros | AE165: Consumo Próprio Energia | AF165: 610533902 | AG165: 0
V166: 45536 | W166: 57439.939 | X166: 21143.896 | Y166: 36296.043 | AA166: 6600 | AB166: 2023 | AC166: EPB | AD166: Outros | AE166: Taxas Arrecadação | AF166: 610533903 | AG166: 0
V167: 45566 | W167: 63593.162 | X167: 22625.527 | Y167: 40967.635 | AA167: 6600 | AB167: 2023 | AC167: EPB | AD167: Outros | AE167: Taxas Bancárias | AF167: 610533904 | AG167: 0
V168: 45597 | W168: 63497.401 | X168: 22601.735 | Y168: 40895.666 | AA168: 6600 | AB168: 2023 | AC168: EPB | AD168: Outros | AE168: Comunicação e Reprografia | AF168: 610533907 | AG168: 6169135.89
V169: 45627 | W169: 70665.814 | X169: 25478.54 | Y169: 45187.274 | AA169: 6600 | AB169: 2023 | AC169: EPB | AD169: Demais | AE169: Gastos com CCEE | AF169: 610533908 | AG169: 0
V170: 45658 | W170: 70782.743 | X170: 26442.147 | Y170: 44340.596 | AA170: 6600 | AB170: 2023 | AC170: EPB | AD170: Outros | AE170: (-)Créditos Tributários Recuperáveis | AF170: 610533910 | AG170: 0
V171: 45689 | W171: 68288.603 | X171: 24827.298 | Y171: 43461.305 | AA171: 6600 | AB171: 2023 | AC171: EPB | AD171: Pessoal | AE171: Remuneração | AF171: 610550501 | AG171: 0
V172: 45717 | W172: 68024.853 | X172: 24603.144 | Y172: 43421.709 | AA172: 6600 | AB172: 2023 | AC172: EPB | AD172: Pessoal | AE172: Encargos | AF172: 610550502 | AG172: 0
V173: 45748 | W173: 70684.708 | X173: 25993.373 | Y173: 44691.335 | AA173: 6600 | AB173: 2023 | AC173: EPB | AD173: Pessoal | AE173: Previdência Privada Corrente | AF173: 610550503 | AG173: 0
V174: 45778 | W174: 74934.276 | X174: 27603.433 | Y174: 47330.843 | AA174: 6600 | AB174: 2023 | AC174: EPB | AD174: Pessoal | AE174: Despesas Rescisórias | AF174: 610550506 | AG174: 0
V175: 45809 | W175: 70306.394 | X175: 27322.926 | Y175: 42983.468 | AA175: 6600 | AB175: 2023 | AC175: EPB | AD175: Pessoal | AE175: Participação Lucros Resultados | AF175: 610550507 | AG175: 0
V176: 45839 | W176: 70306.394 | X176: 27322.926 | Y176: 42983.468 | AA176: 6600 | AB176: 2023 | AC176: EPB | AD176: Pessoal | AE176: Outros Benefícios | AF176: 610550508 | AG176: 0
AA177: 6600 | AB177: 2023 | AC177: EPB | AD177: Pessoal | AE177: (-)Créditos Tributários Recuperáveis | AF177: 610550510 | AG177: 0
AA178: 6600 | AB178: 2023 | AC178: EPB | AD178: Pessoal | AE178: Outros | AF178: 610550599 | AG178: 0
AA179: 6600 | AB179: 2023 | AC179: EPB | AD179: Pessoal | AE179: Administradores | AF179: 6105506 | AG179: 0
AA180: 6600 | AB180: 2023 | AC180: EPB | AD180: Materiais | AE180: Materiais | AF180: 610550701 | AG180: 0
AA181: 6600 | AB181: 2023 | AC181: EPB | AD181: Materiais | AE181: (-)Créditos Tributários Recuperáveis | AF181: 610550710 | AG181: 0
AA182: 6600 | AB182: 2023 | AC182: EPB | AD182: Materiais | AE182: Outros | AF182: 610550799 | AG182: 0
AA183: 6600 | AB183: 2023 | AC183: EPB | AD183: Terceiros | AE183: (-)Créditos Tributários Recuperáveis | AF183: 610550810 | AG183: 0
AA184: 6600 | AB184: 2023 | AC184: EPB | AD184: Seguros | AE184: Seguros | AF184: 610551001 | AG184: 0
AA185: 6600 | AB185: 2023 | AC185: EPB | AD185: Seguros | AE185: (-)Créditos Tributários Recuperáveis | AF185: 610551010 | AG185: 0
AA186: 6600 | AB186: 2023 | AC186: EPB | AD186: Seguros | AE186: Outros | AF186: 610551099 | AG186: 0
AA187: 6600 | AB187: 2023 | AC187: EPB | AD187: Tributos | AE187: Tributos | AF187: 6105516 | AG187: 0
AA188: 6600 | AB188: 2023 | AC188: EPB | AD188: Outros | AE188: Indenização Perdas Danos | AF188: 610551901 | AG188: 0
AA189: 6600 | AB189: 2023 | AC189: EPB | AD189: Outros | AE189: Consumo Próprio Energia | AF189: 610551902 | AG189: 0
AA190: 6600 | AB190: 2023 | AC190: EPB | AD190: Outros | AE190: Taxas Arrecadação | AF190: 610551903 | AG190: 0
AA191: 6600 | AB191: 2023 | AC191: EPB | AD191: Outros | AE191: Taxas Bancárias | AF191: 610551904 | AG191: 0
AA192: 6600 | AB192: 2023 | AC192: EPB | AD192: Outros | AE192: (-)Créditos Tributários Recuperáveis | AF192: 610551910 | AG192: 0
AA193: 6600 | AB193: 2023 | AC193: EPB | AD193: Pessoal | AE193: Remuneração | AF193: 610552501 | AG193: 0
AA194: 6600 | AB194: 2023 | AC194: EPB | AD194: Pessoal | AE194: Encargos | AF194: 610552502 | AG194: 0
AA195: 6600 | AB195: 2023 | AC195: EPB | AD195: Pessoal | AE195: Previdência Privada Corrente | AF195: 610552503 | AG195: 0
AA196: 6600 | AB196: 2023 | AC196: EPB | AD196: Pessoal | AE196: Despesas Rescisórias | AF196: 610552506 | AG196: 0
AA197: 6600 | AB197: 2023 | AC197: EPB | AD197: Pessoal | AE197: Participação Lucros Resultados | AF197: 610552507 | AG197: 0
AA198: 6600 | AB198: 2023 | AC198: EPB | AD198: Pessoal | AE198: Outros Benefícios | AF198: 610552508 | AG198: 0
AA199: 6600 | AB199: 2023 | AC199: EPB | AD199: Pessoal | AE199: (-)Créditos Tributários Recuperáveis | AF199: 610552510 | AG199: 0
AA200: 6600 | AB200: 2023 | AC200: EPB | AD200: Pessoal | AE200: Outros | AF200: 610552599 | AG200: 0
AA201: 6600 | AB201: 2023 | AC201: EPB | AD201: Pessoal | AE201: Administradores | AF201: 6105526 | AG201: 0
AA202: 6600 | AB202: 2023 | AC202: EPB | AD202: Materiais | AE202: Materiais | AF202: 610552701 | AG202: 0
AA203: 6600 | AB203: 2023 | AC203: EPB | AD203: Materiais | AE203: (-)Créditos Tributários Recuperáveis | AF203: 610552710 | AG203: 0
... 196 more rows

Sheet BD_Uderor
K1: Número de lançamentos por item e por competência
A2: Dados SAMP Opção:Cativo Classe:Industrial | K2: Descrição | L2: =EDATE(M2,1) -> 2025-07-01 | M2: 2025-06-01 | N2: 2025-05-01 | O2: 2025-04-01 | P2: 2025-03-01 | Q2: =EDATE(R2,1) -> 2025-02-01 | R2: =Entrada!R5 -> 2025-01-01 | S2: =EDATE(R2,-1) -> 2024-12-01 | T2: 2024-11-01 | U2: 2024-10-01 | V2: 2024-09-01 | W2: 2024-08-01 | X2: 2024-07-01 | Y2: 2024-06-01 | Z2: 2024-05-01 | AA2: =EDATE(Z2,-1) -> 2024-04-01 | AB2: 2024-03-01 | AC2: 2024-02-01 | AD2: 2024-01-01 | AE2: 2023-12-01 | AF2: 2023-11-01 | AG2: 2023-10-01 | AH2: 2023-09-01 | AI2: 2023-08-01 | AJ2: 2023-07-01 | AK2: 2023-06-01 | AL2: 2023-05-01 | AM2: 2023-04-01 | AN2: 2023-03-01 | AO2: 2023-02-01 | AP2: 2023-01-01 | AQ2: 2022-12-01 | AR2: 2022-11-01 | AS2: 2022-10-01 | AT2: 2022-09-01 | AU2: 2022-08-01 | AV2: 2022-07-01 | AW2: 2022-06-01 | AX2: 2022-05-01 | AY2: 2022-04-01 | AZ2: 2022-03-01 | BA2: =EDATE(AZ2,-1) -> 2022-02-01 | BB2: 2022-01-01 | BC2: 2021-12-01 | BD2: 2021-11-01 | BE2: 2021-10-01 | BF2: 2021-09-01 | BG2: =EDATE(BF2,-1) -> 2021-08-01 | BH2: 2021-07-01 | BI2: 2021-06-01 | BJ2: 2021-05-01 | BK2: 2021-04-01 | BL2: 2021-03-01 | BM2: 2021-02-01 | BN2: 2021-01-01 | BO2: 2020-12-01 | BP2: 2020-11-01 | BQ2: 2020-10-01 | BR2: 2020-09-01
A3: Competencia | B3: COFINS (R$) | C3: ICMS (R$) | D3: PIS/PASEP (R$) | E3: Receita Bandeiras (R$) | F3: Receita Demanda (R$) | G3: Receita Energia (R$) | H3: PIS_Cofins_% | I3: ICMS_% | K3: =Entrada!P8 -> Serviços Cobráveis | L3: =IF(COUNTIFS($C$82:$C$200000,$K3,$H$82:$H$200000,L$2)=0,"",COUNTIFS($C$82:$C$200000,$K3,$H$82:$H$200000,L$2)) -> 1 | M3: 1 | N3: 1 | O3: 1 | P3: 1 | Q3: 1 | R3: 1 | S3: 1 | T3: 1 | U3: 1 | V3: =IF(COUNTIFS($C$82:$C$200000,$K3,$H$82:$H$200000,V$2)=0,"",COUNTIFS($C$82:$C$200000,$K3,$H$82:$H$200000,V$2)) -> 1 | W3: 1 | X3: 1 | Y3: 1 | Z3: 1 | AA3: 1 | AB3: 1 | AC3: 1 | AD3: 1 | AE3: 1 | AF3: =IF(COUNTIFS($C$82:$C$200000,$K3,$H$82:$H$200000,AF$2)=0,"",COUNTIFS($C$82:$C$200000,$K3,$H$82:$H$200000,AF$2)) -> 1 | AG3: 1 | AH3: 1 | AI3: 1 | AJ3: 1 | AK3: 1 | AL3: 1 | AM3: 1 | AN3: 1 | AO3: 1 | AP3: =IF(COUNTIFS($C$82:$C$200000,$K3,$H$82:$H$200000,AP$2)=0,"",COUNTIFS($C$82:$C$200000,$K3,$H$82:$H$200000,AP$2)) -> 1 | AQ3: 1 | AR3: 1 | AS3: 1 | AT3: 1 | AU3: 1 | AV3: 1 | AW3: 1 | AX3: 1 | AY3: 1 | AZ3: =IF(COUNTIFS($C$82:$C$200000,$K3,$H$82:$H$200000,AZ$2)=0,"",COUNTIFS($C$82:$C$200000,$K3,$H$82:$H$200000,AZ$2)) -> 1 | BA3: 1 | BB3: 1 | BC3: 1 | BD3: 1 | BE3: 1 | BF3: 1 | BG3: 1 | BH3: 1 | BI3: 1 | BJ3: =IF(COUNTIFS($C$82:$C$200000,$K3,$H$82:$H$200000,BJ$2)=0,"",COUNTIFS($C$82:$C$200000,$K3,$H$82:$H$200000,BJ$2)) -> 1 | BK3: 1 | BL3: 1 | BM3: 1 | BN3: 1 | BO3: 1 | BP3: 1
A4: 43709 | B4: 521763.15 | C4: 2781400.4 | D4: 113258.31 | E4: 682418.65 | F4: 1453857.81 | G4: 6475251.22 | H4: 0.05597106615 | I4: 0.2451538343 | K4: =Entrada!P9 -> Arrecadação de convênios ou valores pela fatura | L4: 1 | M4: 1 | N4: 1 | O4: 1 | P4: 1 | Q4: 1 | R4: 1 | S4: 1 | T4: 1 | U4: 1 | V4: 1 | W4: 1 | X4: 1 | Y4: 1 | Z4: 1 | AA4: 1 | AB4: 1 | AC4: 1 | AD4: 1 | AE4: 1 | AF4: 1 | AG4: 1 | AH4: 1 | AI4: 1 | AJ4: 1 | AK4: 1 | AL4: 1 | AM4: 1 | AN4: 1 | AO4: 1 | AP4: 1 | AQ4: 1 | AR4: 1 | AS4: 1 | AT4: 1 | AU4: 1 | AV4: 1 | AW4: 1 | AX4: 1 | AY4: 1 | AZ4: 1 | BA4: 1 | BB4: 1 | BC4: 1 | BD4: 1 | BE4: 1 | BF4: 1 | BG4: 1 | BH4: 1 | BI4: 1 | BJ4: 1 | BK4: 1 | BL4: 1 | BM4: 1 | BN4: 1 | BO4: 1 | BP4: 1
A5: 43739 | B5: 428390.81 | C5: 2688483.13 | D5: 92987.99 | E5: 331314.24 | F5: 1499590.67 | G5: 6308723.9 | H5: 0.04731988093 | I5: 0.2440043622 | K5: =Entrada!P10 -> Arrecadação de faturas de terceiros por estrutura própria
A6: 43770 | B6: 445462.44 | C6: 2817809.84 | D6: 96690.61 | E6: 650161.37 | F6: 1388615.54 | G6: 6710612.15 | H6: 0.04731163569 | I6: 0.2458995529 | K6: =Entrada!P11 -> Veiculação de publicidade
A7: 43800 | B7: 557340.45 | C7: 2788265.27 | D7: 120987.36 | E7: 311430.39 | F7: 1511161.27 | G7: 6348695.49 | H7: 0.05988882833 | I7: 0.2461729235 | K7: =Entrada!P12 -> Aluguel ou cessão onerosa de imóveis e espaços físicos
A8: 43831 | B8: 497242.24 | C8: 2627722.74 | D8: 107940.92 | E8: 225491.51 | F8: 1487668.78 | G8: 5968294.72 | H8: 0.05661807038 | I8: 0.245837295 | K8: =Entrada!P13 -> Compartilhamento de infraestrutura | L8: 1 | M8: 1 | N8: 1 | O8: 1 | P8: 1 | Q8: 1 | R8: 1 | S8: 1 | T8: 1 | U8: 1 | V8: 1 | W8: 1 | X8: 1 | Y8: 1 | Z8: 1 | AA8: 1 | AB8: 1 | AC8: 1 | AD8: 1 | AE8: 1 | AF8: 1 | AG8: 1 | AH8: 1 | AI8: 1 | AJ8: 1 | AK8: 1 | AL8: 1 | AM8: 1 | AN8: 1 | AO8: 1 | AP8: 1 | AQ8: 1 | AR8: 1 | AS8: 1 | AT8: 1 | AU8: 1 | AV8: 1 | AW8: 1 | AX8: 1 | AY8: 1 | AZ8: 1 | BA8: 1 | BB8: 1 | BC8: 1 | BD8: 1 | BE8: 1 | BF8: 1 | BG8: 1 | BH8: 1 | BI8: 1 | BJ8: 1 | BK8: 1 | BL8: 1 | BM8: 1 | BN8: 1 | BO8: 1 | BP8: 1
A9: 43862 | B9: 420167.61 | C9: 2345636.28 | D9: 91205.65 | E9: 36341.51 | F9: 1324153.15 | G9: 5566659.9 | H9: 0.05246025513 | I9: 0.2406318189 | K9: =Entrada!P14 -> Serviços de avaliação técnica e aferição de medidores.
A10: 43891 | B10: 398727.23 | C10: 2167054.91 | D10: 86547.19 | E10: 1511.58 | F10: 1361392.18 | G10: 4981614.05 | H10: 0.05394733935 | I10: 0.2409087349 | K10: =Entrada!P15 -> Operacionalização de serviço de créditos tributários
A11: 43922 | B11: 380330.85 | C11: 1828894.7 | D11: 82556.6 | E11: -1718.91 | F11: 1287484.9 | G11: 4123889.86 | H11: 0.0600906168 | I11: 0.2374214522 | K11: =Entrada!P16 -> Elaboração de projeto, construção, operação, manutenção ou reforma de:
A12: 43952 | B12: 412612.6 | C12: 1952627.23 | D12: 89557.98 | E12: 136.29 | F12: 1367414.78 | G12: 4418930.95 | H12: 0.06093457511 | I12: 0.2369364422 | K12: =Entrada!P17 -> (1) redes de distribuição de energia elétrica destinadas à regularização fundiária de interesse específico e ao atendimento dos empreendimentos de múltiplas unidades consumidoras; | L12: =IF(COUNTIFS($C$82:$C$200000,$K12,$H$82:$H$200000,L$2)=0,"",COUNTIFS($C$82:$C$200000,$K12,$H$82:$H$200000,L$2)) ->  | V12: =IF(COUNTIFS($C$82:$C$200000,$K12,$H$82:$H$200000,V$2)=0,"",COUNTIFS($C$82:$C$200000,$K12,$H$82:$H$200000,V$2)) ->  | AF12: =IF(COUNTIFS($C$82:$C$200000,$K12,$H$82:$H$200000,AF$2)=0,"",COUNTIFS($C$82:$C$200000,$K12,$H$82:$H$200000,AF$2)) ->  | AP12: =IF(COUNTIFS($C$82:$C$200000,$K12,$H$82:$H$200000,AP$2)=0,"",COUNTIFS($C$82:$C$200000,$K12,$H$82:$H$200000,AP$2)) ->  | AZ12: =IF(COUNTIFS($C$82:$C$200000,$K12,$H$82:$H$200000,AZ$2)=0,"",COUNTIFS($C$82:$C$200000,$K12,$H$82:$H$200000,AZ$2)) ->  | BJ12: =IF(COUNTIFS($C$82:$C$200000,$K12,$H$82:$H$200000,BJ$2)=0,"",COUNTIFS($C$82:$C$200000,$K12,$H$82:$H$200000,BJ$2)) -> 
A13: 43983 | B13: 350168.69 | C13: 1985717.36 | D13: 76008.18 | F13: 1338699.63 | G13: 4504400.27 | H13: 0.05162655034 | I13: 0.2405473982 | K13: =Entrada!P18 -> (2) redes de energia elétrica destinadas ao acesso dos sistemas de distribuição ou transmissão;
A14: 44013 | B14: 436948.63 | C14: 2194961.57 | D14: 94856.14 | F14: 1404415.31 | G14: 4885165.32 | H14: 0.05898228759 | I14: 0.2434424471 | K14: =Entrada!P19 -> (3) subestações de energia;
A15: 44044 | B15: 473646.6 | C15: 2303411.36 | D15: 102808.66 | F15: 1374648.23 | G15: 5093728.07 | H15: 0.06166455717 | I15: 0.2464004605 | K15: =Entrada!P20 -> (4) instalações elétricas internas de unidades consumidoras;
A16: 44075 | B16: 430305.86 | C16: 2435404.85 | D16: 93410.28 | F16: 1609527.01 | G16: 5321301.06 | H16: 0.05295438195 | I16: 0.2462504948 | K16: =Entrada!P21 -> (5) banco de capacitores;
A17: 44105 | B17: 303947.84 | C17: 2395776.5 | D17: 65966.68 | F17: 1647754.31 | G17: 5328034.68 | H17: 0.03797313341 | I17: 0.2459355763 | K17: =Entrada!P22 -> (6) padrões de entrada de unidades consumidoras atendidas em baixa tensão;
A18: 44136 | B18: 336897.01 | C18: 2496643.97 | D18: 73128.23 | F18: 1619537.73 | G18: 5667754.48 | H18: 0.04022236529 | I18: 0.2449140101 | K18: =Entrada!P23 -> (7) sistemas de medição de energia elétrica;
A19: 44166 | B19: 441843.8 | C19: 2869633.84 | D19: 95911.36 | E19: 809208.84 | F19: 1688769.01 | G19: 6545571.75 | H19: 0.04619203255 | I19: 0.2464954864 | K19: =Entrada!P24 -> (8) geradores, incluindo-se unidades de microgeração e minigeração distribuída;
A20: 44197 | B20: 241157.86 | C20: 2468681.91 | D20: 52338.06 | E20: 352569.6 | F20: 1573332.66 | G20: 5748496.54 | H20: 0.02910508879 | I20: 0.2448116014 | K20: =Entrada!P25 -> (9) sistemas de iluminação pública.
A21: 44228 | B21: 236105.43 | C21: 2379638.63 | D21: 51240.46 | E21: 201255.15 | F21: 1685590.96 | G21: 5437339.26 | H21: 0.02935121476 | I21: 0.2430704141 | K21: =Entrada!P26 -> (10) estações de recarga de veículos elétricos, incluindo a prestação de serviços aos usuários
A22: 44256 | B22: 176356.87 | C22: 1845723 | D22: 38273.05 | E22: 160046.17 | F22: 939532.28 | G22: 4489240.42 | H22: 0.02865887567 | I22: 0.2464537375 | K22: =Entrada!P27 -> Eficientização do consumo de energia elétrica e instalação de cogeração qualificada, desde que não enquadráveis nos projetos de Pesquisa e Desenvolvimento (P&D) ou de Eficiência Energética estabelecidos em lei
A23: 44287 | B23: 227872.08 | C23: 2290131.16 | D23: 49457.56 | E23: 197346.07 | F23: 1557001.15 | G23: 5359257.05 | H23: 0.02924270953 | I23: 0.2414802843 | K23: =Entrada!P28 -> Serviços de comunicação de dados
A24: 44317 | B24: 232838.51 | C24: 2356223.49 | D24: 50532.6 | E24: 469668.54 | F24: 1548353.03 | G24: 5531813.54 | H24: 0.02915412272 | I24: 0.2424157805 | K24: =Entrada!P29 -> Serviços de consultoria
A25: 44348 | B25: 305436.09 | C25: 2501480.57 | D25: 66292.71 | E25: 804905.97 | F25: 1525798.12 | G25: 5919868.77 | H25: 0.03602415521 | I25: 0.2424179249 | K25: =Entrada!P30 -> Receita proveniente da comercialização de resultados de projetos de P&D COM comprovação
A26: 44378 | B26: 302236.8 | C26: 2554275.73 | D26: 65601.97 | E26: 1188024.44 | F26: 1491919.26 | G26: 6076339.87 | H26: 0.03506441076 | I26: 0.243487584 | K26: =Entrada!P31 -> Receita proveniente da comercialização de resultados de projetos de P&D SEM comprovação
A27: 44409 | B27: 283478.72 | C27: 2874165.39 | D27: 61527.6 | E27: 1455971.88 | F27: 1636886.75 | G27: 6599408.77 | H27: 0.03011717576 | I27: 0.2508990103
A28: 44440 | B28: 288185.89 | C28: 3109484.51 | D28: 62547.81 | E28: 1822098.94 | F28: 1712486.07 | G28: 7437058.95 | H28: 0.02781445564 | I28: 0.2465934097 | K28: Descrição | L28: =L2 -> 2025-07-01 | M28: =M2 -> 2025-06-01 | N28: 2025-05-01 | O28: 2025-04-01 | P28: 2025-03-01 | Q28: 2025-02-01 | R28: 2025-01-01 | S28: 2024-12-01 | T28: 2024-11-01 | U28: 2024-10-01 | V28: 2024-09-01 | W28: 2024-08-01 | X28: 2024-07-01 | Y28: 2024-06-01 | Z28: 2024-05-01 | AA28: =AA2 -> 2024-04-01 | AB28: 2024-03-01 | AC28: 2024-02-01 | AD28: 2024-01-01 | AE28: 2023-12-01 | AF28: 2023-11-01 | AG28: 2023-10-01 | AH28: 2023-09-01 | AI28: 2023-08-01 | AJ28: 2023-07-01 | AK28: 2023-06-01 | AL28: 2023-05-01 | AM28: 2023-04-01 | AN28: 2023-03-01 | AO28: 2023-02-01 | AP28: 2023-01-01 | AQ28: 2022-12-01 | AR28: 2022-11-01 | AS28: 2022-10-01 | AT28: 2022-09-01 | AU28: 2022-08-01 | AV28: 2022-07-01 | AW28: 2022-06-01 | AX28: 2022-05-01 | AY28: 2022-04-01 | AZ28: 2022-03-01 | BA28: =BA2 -> 2022-02-01 | BB28: 2022-01-01 | BC28: 2021-12-01 | BD28: 2021-11-01 | BE28: 2021-10-01 | BF28: 2021-09-01 | BG28: =BG2 -> 2021-08-01 | BH28: 2021-07-01 | BI28: 2021-06-01 | BJ28: 2021-05-01 | BK28: 2021-04-01 | BL28: 2021-03-01 | BM28: 2021-02-01 | BN28: 2021-01-01 | BO28: 2020-12-01 | BP28: 2020-11-01 | BQ28: 2020-10-01 | BR28: 2020-09-01
A29: 44470 | B29: 281368.57 | C29: 3029154.28 | D29: 61071.25 | E29: 1878908.11 | F29: 1649262.73 | G29: 7154764.28 | H29: 0.02812503912 | I29: 0.2487884809 | K29: =Entrada!P36 -> Ultrapassagem de Demanda | L29: =IF(COUNTIFS($C$82:$C$200000,$K29,$H$82:$H$200000,L$2)=0,"",COUNTIFS($C$82:$C$200000,$K29,$H$82:$H$200000,L$2)) -> 1 | M29: 1 | N29: 1 | O29: 1 | P29: 1 | Q29: 1 | R29: 1 | S29: 1 | T29: 1 | U29: 1 | V29: =IF(COUNTIFS($C$82:$C$200000,$K29,$H$82:$H$200000,V$2)=0,"",COUNTIFS($C$82:$C$200000,$K29,$H$82:$H$200000,V$2)) -> 1 | W29: 1 | X29: 1 | Y29: 1 | Z29: 1 | AA29: 1 | AB29: 1 | AC29: 1 | AD29: 1 | AE29: 1 | AF29: =IF(COUNTIFS($C$82:$C$200000,$K29,$H$82:$H$200000,AF$2)=0,"",COUNTIFS($C$82:$C$200000,$K29,$H$82:$H$200000,AF$2)) -> 1 | AG29: 1 | AH29: 1 | AI29: 1 | AJ29: 1 | AK29: 1 | AL29: 1 | AM29: 1 | AN29: 1 | AO29: 1 | AP29: =IF(COUNTIFS($C$82:$C$200000,$K29,$H$82:$H$200000,AP$2)=0,"",COUNTIFS($C$82:$C$200000,$K29,$H$82:$H$200000,AP$2)) -> 1 | AQ29: 1 | AR29: 1 | AS29: 1 | AT29: 1 | AU29: 1 | AV29: 1 | AW29: 1 | AX29: 1 | AY29: 1 | AZ29: =IF(COUNTIFS($C$82:$C$200000,$K29,$H$82:$H$200000,AZ$2)=0,"",COUNTIFS($C$82:$C$200000,$K29,$H$82:$H$200000,AZ$2)) -> 1 | BA29: 1 | BB29: 1 | BC29: 1 | BD29: 1 | BE29: 1 | BF29: 1 | BG29: 1 | BH29: 1 | BI29: 1 | BJ29: =IF(COUNTIFS($C$82:$C$200000,$K29,$H$82:$H$200000,BJ$2)=0,"",COUNTIFS($C$82:$C$200000,$K29,$H$82:$H$200000,BJ$2)) -> 1 | BK29: 1 | BL29: 1 | BM29: 1 | BN29: 1 | BO29: 1 | BP29: 1
A30: 44501 | B30: 289334.41 | C30: 3141078.6 | D30: 62800.28 | E30: 1955944.95 | F30: 1665807.75 | G30: 7411992.1 | H30: 0.02801163964 | I30: 0.249866782 | K30: =Entrada!P37 -> Excedente Reativo | L30: 1 | M30: 1 | N30: 1 | O30: 1 | P30: 1 | Q30: 1 | R30: 1 | S30: 1 | T30: 1 | U30: 1 | V30: 1 | W30: 1 | X30: 1 | Y30: 1 | Z30: 1 | AA30: 1 | AB30: 1 | AC30: 1 | AD30: 1 | AE30: 1 | AF30: 1 | AG30: 1 | AH30: 1 | AI30: 1 | AJ30: 1 | AK30: 1 | AL30: 1 | AM30: 1 | AN30: 1 | AO30: 1 | AP30: 1 | AQ30: 1 | AR30: 1 | AS30: 1 | AT30: 1 | AU30: 1 | AV30: 1 | AW30: 1 | AX30: 1 | AY30: 1 | AZ30: 1 | BA30: 1 | BB30: 1 | BC30: 1 | BD30: 1 | BE30: 1 | BF30: 1 | BG30: 1 | BH30: 1 | BI30: 1 | BJ30: 1 | BK30: 1 | BL30: 1 | BM30: 1 | BN30: 1 | BO30: 1 | BP30: 1
A31: 44531 | B31: 281621.38 | C31: 3052512.93 | D31: 61125.97 | E31: 1856300.6 | F31: 1675778.91 | G31: 7080163.8 | H31: 0.02820686563 | I31: 0.2512107593
A32: 44562 | B32: 274076.78 | C32: 2967580.71 | D32: 59488.86 | E32: 1843653.56 | F32: 1646381.56 | G32: 6981232.09 | H32: 0.02796314453 | I32: 0.2487752885
A33: 44593 | B33: 265751.96 | C33: 2877308.01 | D33: 57681.08 | E33: 1799085.47 | F33: 1586442.32 | G33: 6710160.33 | H33: 0.02813110997 | I33: 0.2502585019
A34: 44621 | B34: 277522.25 | C34: 3020259.01 | D34: 60235.85 | E34: 1893556.76 | F34: 1569219.49 | G34: 7142679.34 | H34: 0.02798346746 | I34: 0.2502303268 | K34: Data do último Lançamento por item e competência
A35: 44652 | B35: 261092.33 | C35: 2810799.55 | D35: 56667.31 | E35: 1404993.62 | F35: 1524093.92 | G35: 6620139.94 | H35: 0.02818819068 | I35: 0.2493436664 | K35: Descrição | L35: =L2 -> 2025-07-01 | M35: =M2 -> 2025-06-01 | N35: 2025-05-01 | O35: 2025-04-01 | P35: 2025-03-01 | Q35: 2025-02-01 | R35: 2025-01-01 | S35: 2024-12-01 | T35: 2024-11-01 | U35: 2024-10-01 | V35: 2024-09-01 | W35: 2024-08-01 | X35: 2024-07-01 | Y35: 2024-06-01 | Z35: 2024-05-01 | AA35: 2024-04-01 | AB35: 2024-03-01 | AC35: 2024-02-01 | AD35: 2024-01-01 | AE35: 2023-12-01 | AF35: 2023-11-01 | AG35: 2023-10-01 | AH35: 2023-09-01 | AI35: 2023-08-01 | AJ35: 2023-07-01 | AK35: 2023-06-01 | AL35: 2023-05-01 | AM35: 2023-04-01 | AN35: 2023-03-01 | AO35: 2023-02-01 | AP35: 2023-01-01 | AQ35: 2022-12-01 | AR35: 2022-11-01 | AS35: 2022-10-01 | AT35: 2022-09-01 | AU35: 2022-08-01 | AV35: 2022-07-01 | AW35: 2022-06-01 | AX35: 2022-05-01 | AY35: 2022-04-01 | AZ35: 2022-03-01 | BA35: 2022-02-01 | BB35: 2022-01-01 | BC35: 2021-12-01 | BD35: 2021-11-01 | BE35: 2021-10-01 | BF35: 2021-09-01 | BG35: =BG2 -> 2021-08-01 | BH35: 2021-07-01 | BI35: 2021-06-01 | BJ35: 2021-05-01 | BK35: 2021-04-01 | BL35: 2021-03-01 | BM35: 2021-02-01 | BN35: 2021-01-01 | BO35: 2020-12-01 | BP35: 2020-11-01 | BQ35: 2020-10-01 | BR35: 2020-09-01
A36: 44682 | B36: 238651.44 | C36: 2567157.7 | D36: 51794.76 | E36: 319158.41 | F36: 1562538.09 | G36: 5910292.56 | H36: 0.02811558397 | I36: 0.2485043284 | K36: =Entrada!P8 -> Serviços Cobráveis | L36: =IF(_xlfn.MAXIFS($G$82:$G$200000,$C$82:$C$200000,$K36,$H$82:$H$200000,L$2)=0,"",_xlfn.MAXIFS($G$82:$G$200000,$C$82:$C$200000,$K36,$H$82:$H$200000,L$2)) -> 45839 | M36: 45809 | N36: 45778 | O36: 45748 | P36: 45717 | Q36: 45689 | R36: 45658 | S36: 45627 | T36: 45597 | U36: 45566 | V36: =IF(_xlfn.MAXIFS($G$82:$G$200000,$C$82:$C$200000,$K36,$H$82:$H$200000,V$2)=0,"",_xlfn.MAXIFS($G$82:$G$200000,$C$82:$C$200000,$K36,$H$82:$H$200000,V$2)) -> 45536 | W36: 45505 | X36: 45474 | Y36: 45444 | Z36: 45413 | AA36: 45383 | AB36: 45352 | AC36: 45323 | AD36: 45292 | AE36: 45261 | AF36: =IF(_xlfn.MAXIFS($G$82:$G$200000,$C$82:$C$200000,$K36,$H$82:$H$200000,AF$2)=0,"",_xlfn.MAXIFS($G$82:$G$200000,$C$82:$C$200000,$K36,$H$82:$H$200000,AF$2)) -> 45231 | AG36: 45200 | AH36: 45170 | AI36: 45139 | AJ36: 45108 | AK36: 45078 | AL36: 45047 | AM36: 45017 | AN36: 44986 | AO36: 44958 | AP36: =IF(_xlfn.MAXIFS($G$82:$G$200000,$C$82:$C$200000,$K36,$H$82:$H$200000,AP$2)=0,"",_xlfn.MAXIFS($G$82:$G$200000,$C$82:$C$200000,$K36,$H$82:$H$200000,AP$2)) -> 44927 | AQ36: 44896 | AR36: 44866 | AS36: 44835 | AT36: 44805 | AU36: 44774 | AV36: 44743 | AW36: 44713 | AX36: 44682 | AY36: 44652 | AZ36: =IF(_xlfn.MAXIFS($G$82:$G$200000,$C$82:$C$200000,$K36,$H$82:$H$200000,AZ$2)=0,"",_xlfn.MAXIFS($G$82:$G$200000,$C$82:$C$200000,$K36,$H$82:$H$200000,AZ$2)) -> 44621 | BA36: 44593 | BB36: 44562 | BC36: 44531 | BD36: 44501 | BE36: 44470 | BF36: 44440 | BG36: 44409 | BH36: 44378 | BI36: 44348 | BJ36: =IF(_xlfn.MAXIFS($G$82:$G$200000,$C$82:$C$200000,$K36,$H$82:$H$200000,BJ$2)=0,"",_xlfn.MAXIFS($G$82:$G$200000,$C$82:$C$200000,$K36,$H$82:$H$200000,BJ$2)) -> 44317 | BK36: 44287 | BL36: 44256 | BM36: 44228 | BN36: 44197 | BO36: 44166 | BP36: 44136
A37: 44713 | B37: 221476.31 | C37: 2389638.74 | D37: 48066.75 | E37: 495.83 | F37: 1563777.88 | G37: 5308141.65 | H37: 0.02828036873 | I37: 0.2507201064 | K37: =Entrada!P9 -> Arrecadação de convênios ou valores pela fatura | L37: 45839 | M37: 45809 | N37: 45778 | O37: 45748 | P37: 45717 | Q37: 45689 | R37: 45658 | S37: 45627 | T37: 45597 | U37: 45566 | V37: 45536 | W37: 45505 | X37: 45474 | Y37: 45444 | Z37: 45413 | AA37: 45383 | AB37: 45352 | AC37: 45323 | AD37: 45292 | AE37: 45261 | AF37: 45231 | AG37: 45200 | AH37: 45170 | AI37: 45139 | AJ37: 45108 | AK37: 45078 | AL37: 45047 | AM37: 45017 | AN37: 44986 | AO37: 44958 | AP37: 44927 | AQ37: 44896 | AR37: 44866 | AS37: 44835 | AT37: 44805 | AU37: 44774 | AV37: 44743 | AW37: 44713 | AX37: 44682 | AY37: 44652 | AZ37: 44621 | BA37: 44593 | BB37: 44562 | BC37: 44531 | BD37: 44501 | BE37: 44470 | BF37: 44440 | BG37: 44409 | BH37: 44378 | BI37: 44348 | BJ37: 44317 | BK37: 44287 | BL37: 44256 | BM37: 44228 | BN37: 44197 | BO37: 44166 | BP37: 44136
A38: 44743 | B38: 231437.94 | C38: 1719545.55 | D38: 50229.86 | E38: -2201.42 | F38: 1637148.03 | G38: 5398892.95 | H38: 0.03116740879 | I38: 0.1902730063 | K38: =Entrada!P10 -> Arrecadação de faturas de terceiros por estrutura própria
A39: 44774 | B39: 212730.94 | C39: 1449512.39 | D39: 46169.21 | E39: -48376.21 | F39: 1595698.76 | G39: 5067573.87 | H39: 0.03092569115 | I39: 0.173144637 | K39: =Entrada!P11 -> Veiculação de publicidade
A40: 44805 | B40: 234017.75 | C40: 1678478.84 | D40: 50790.44 | E40: 9887.21 | F40: 1690230.65 | G40: 5584933.34 | H40: 0.03082856524 | I40: 0.1816840114 | K40: =Entrada!P12 -> Aluguel ou cessão onerosa de imóveis e espaços físicos
A41: 44835 | B41: 257639.35 | C41: 1629735.09 | D41: 55921.88 | E41: 1.08 | F41: 1700167.25 | G41: 5288365.35 | H41: 0.0351060497 | I41: 0.1824637602 | K41: =Entrada!P13 -> Compartilhamento de infraestrutura | L41: 45839 | M41: 45809 | N41: 45778 | O41: 45748 | P41: 45717 | Q41: 45689 | R41: 45658 | S41: 45627 | T41: 45597 | U41: 45566 | V41: 45536 | W41: 45505 | X41: 45474 | Y41: 45444 | Z41: 45413 | AA41: 45383 | AB41: 45352 | AC41: 45323 | AD41: 45292 | AE41: 45261 | AF41: 45231 | AG41: 45200 | AH41: 45170 | AI41: 45139 | AJ41: 45108 | AK41: 45078 | AL41: 45047 | AM41: 45017 | AN41: 44986 | AO41: 44958 | AP41: 44927 | AQ41: 44896 | AR41: 44866 | AS41: 44835 | AT41: 44805 | AU41: 44774 | AV41: 44743 | AW41: 44713 | AX41: 44682 | AY41: 44652 | AZ41: 44621 | BA41: 44593 | BB41: 44562 | BC41: 44531 | BD41: 44501 | BE41: 44470 | BF41: 44440 | BG41: 44409 | BH41: 44378 | BI41: 44348 | BJ41: 44317 | BK41: 44287 | BL41: 44256 | BM41: 44228 | BN41: 44197 | BO41: 44166 | BP41: 44136
A42: 44866 | B42: 329888.98 | C42: 1638989.28 | D42: 71611.01 | E42: 291.68 | F42: 1637502.68 | G42: 5271042.09 | H42: 0.04486517631 | I42: 0.1831470606 | K42: =Entrada!P14 -> Serviços de avaliação técnica e aferição de medidores.
A43: 44896 | B43: 317538.8 | C43: 1621573.04 | D43: 68932.18 | E43: -1815.15 | F43: 1699934.95 | G43: 5164942.12 | H43: 0.04355622867 | I43: 0.1827552644 | K43: =Entrada!P15 -> Operacionalização de serviço de créditos tributários
A44: 44927 | B44: 292906.31 | C44: 1620927.81 | D44: 63581.74 | E44: 149.93 | F44: 1582725.36 | G44: 5334169.12 | H44: 0.04008046002 | I44: 0.1822432261 | K44: =Entrada!P16 -> Elaboração de projeto, construção, operação, manutenção ou reforma de:
A45: 44958 | B45: 241902.15 | C45: 1599167.39 | D45: 52504.04 | E45: -474.66 | F45: 1659292.06 | G45: 5165788.45 | H45: 0.03376738966 | I45: 0.183419066 | K45: =Entrada!P17 -> (1) redes de distribuição de energia elétrica destinadas à regularização fundiária de interesse específico e ao atendimento dos empreendimentos de múltiplas unidades consumidoras; | L45: =IF(_xlfn.MAXIFS($G$82:$G$200000,$C$82:$C$200000,$K45,$H$82:$H$200000,L$2)=0,"",_xlfn.MAXIFS($G$82:$G$200000,$C$82:$C$200000,$K45,$H$82:$H$200000,L$2)) ->  | V45: =IF(_xlfn.MAXIFS($G$82:$G$200000,$C$82:$C$200000,$K45,$H$82:$H$200000,V$2)=0,"",_xlfn.MAXIFS($G$82:$G$200000,$C$82:$C$200000,$K45,$H$82:$H$200000,V$2)) ->  | AF45: =IF(_xlfn.MAXIFS($G$82:$G$200000,$C$82:$C$200000,$K45,$H$82:$H$200000,AF$2)=0,"",_xlfn.MAXIFS($G$82:$G$200000,$C$82:$C$200000,$K45,$H$82:$H$200000,AF$2)) ->  | AP45: =IF(_xlfn.MAXIFS($G$82:$G$200000,$C$82:$C$200000,$K45,$H$82:$H$200000,AP$2)=0,"",_xlfn.MAXIFS($G$82:$G$200000,$C$82:$C$200000,$K45,$H$82:$H$200000,AP$2)) ->  | AZ45: =IF(_xlfn.MAXIFS($G$82:$G$200000,$C$82:$C$200000,$K45,$H$82:$H$200000,AZ$2)=0,"",_xlfn.MAXIFS($G$82:$G$200000,$C$82:$C$200000,$K45,$H$82:$H$200000,AZ$2)) ->  | BJ45: =IF(_xlfn.MAXIFS($G$82:$G$200000,$C$82:$C$200000,$K45,$H$82:$H$200000,BJ$2)=0,"",_xlfn.MAXIFS($G$82:$G$200000,$C$82:$C$200000,$K45,$H$82:$H$200000,BJ$2)) -> 
A46: 44986 | B46: 331188.49 | C46: 1643394.2 | D46: 71888.97 | E46: 1891.62 | F46: 1710297.34 | G46: 5165922.04 | H46: 0.04517442756 | I46: 0.184181453 | K46: =Entrada!P18 -> (2) redes de energia elétrica destinadas ao acesso dos sistemas de distribuição ou transmissão;
A47: 45017 | B47: 358844.31 | C47: 1563409.29 | D47: 77893.63 | E47: 1043.55 | F47: 1627623.35 | G47: 4919131.32 | H47: 0.05109897658 | I47: 0.1829211694 | K47: =Entrada!P19 -> (3) subestações de energia;
A48: 45047 | B48: 367726.64 | C48: 1587245.24 | D48: 79821.77 | E48: 1059.27 | F48: 1636666.66 | G48: 5152808.45 | H48: 0.05071790334 | I48: 0.1798727218 | K48: =Entrada!P20 -> (4) instalações elétricas internas de unidades consumidoras;
A49: 45078 | B49: 360567.17 | C49: 1563050.18 | D49: 78267.87 | E49: 96.52 | F49: 1625361.57 | G49: 5039201.18 | H49: 0.05063609007 | I49: 0.180356495 | K49: =Entrada!P21 -> (5) banco de capacitores;
A50: 45108 | B50: 299904.28 | C50: 1524715.41 | D50: 65100.05 | E50: -131.71 | F50: 1663469.41 | G50: 4932188.34 | H50: 0.04301568556 | I50: 0.1796873989 | K50: =Entrada!P22 -> (6) padrões de entrada de unidades consumidoras atendidas em baixa tensão;
A51: 45139 | B51: 226301.58 | C51: 1505596.44 | D51: 49117.66 | F51: 1647757.33 | G51: 4829886.68 | H51: 0.03334914506 | I51: 0.1823051798 | K51: =Entrada!P23 -> (7) sistemas de medição de energia elétrica;
A52: 45170 | B52: 252357.68 | C52: 1766950.67 | D52: 54771.84 | F52: 2078982.33 | G52: 5687857.92 | H52: 0.03120943024 | I52: 0.1795513622 | K52: =Entrada!P24 -> (8) geradores, incluindo-se unidades de microgeração e minigeração distribuída;
A53: 45200 | B53: 247646.45 | C53: 1744828.33 | D53: 53749.17 | F53: 1992354.78 | G53: 5638719.05 | H53: 0.03114460533 | I53: 0.1803011925 | K53: =Entrada!P25 -> (9) sistemas de iluminação pública.
A54: 45231 | B54: 303088.67 | C54: 1814465.06 | D54: 65791.32 | E54: 143.13 | F54: 1980231.9 | G54: 5794281.49 | H54: 0.03704410865 | I54: 0.1822143858 | K54: =Entrada!P26 -> (10) estações de recarga de veículos elétricos, incluindo a prestação de serviços aos usuários
A55: 45261 | B55: 326205.17 | C55: 1731395.06 | D55: 70807.6 | F55: 2021336.45 | G55: 5441397.06 | H55: 0.04139369403 | I55: 0.180520232 | K55: =Entrada!P27 -> Eficientização do consumo de energia elétrica e instalação de cogeração qualificada, desde que não enquadráveis nos projetos de Pesquisa e Desenvolvimento (P&D) ou de Eficiência Energética estabelecidos em lei
A56: 45292 | B56: 382933.74 | C56: 1982265.97 | D56: 83125.6 | F56: 2015856.58 | G56: 5552133.61 | H56: 0.04653001795 | I56: 0.1979037072 | K56: =Entrada!P28 -> Serviços de comunicação de dados
A57: 45323 | B57: 369257.7 | C57: 2004358.48 | D57: 80157.07 | E57: 76.68 | F57: 2073772.5 | G57: 5482897.08 | H57: 0.04489459434 | I57: 0.2002267546 | K57: =Entrada!P29 -> Serviços de consultoria
A58: 45352 | B58: 353651.03 | C58: 1972175.06 | D58: 76764.77 | F58: 1987778.47 | G58: 5443556.93 | H58: 0.04376845917 | I58: 0.200548083 | K58: =Entrada!P30 -> Receita proveniente da comercialização de resultados de projetos de P&D COM comprovação
A59: 45383 | B59: 327417.83 | C59: 1969809.6 | D59: 71069.15 | F59: 1982099.35 | G59: 5448764.1 | H59: 0.04066542222 | I59: 0.2010182091 | K59: =Entrada!P31 -> Receita proveniente da comercialização de resultados de projetos de P&D SEM comprovação
A60: 45413 | B60: 272921.14 | C60: 1951779.88 | D60: 59239.65 | F60: 1959708.98 | G60: 5466047.53 | H60: 0.03420918118 | I60: 0.2010134656
A61: 45444 | B61: 277126.44 | C61: 1725042.3 | D61: 60157.79 | E61: 0.15 | F61: 1786973.33 | G61: 4824627.87 | H61: 0.03888483286 | I61: 0.1988767204 | K61: Descrição | L61: =L35 -> 2025-07-01 | M61: =M35 -> 2025-06-01 | N61: 2025-05-01 | O61: 2025-04-01 | P61: 2025-03-01 | Q61: 2025-02-01 | R61: 2025-01-01 | S61: 2024-12-01 | T61: 2024-11-01 | U61: 2024-10-01 | V61: 2024-09-01 | W61: 2024-08-01 | X61: 2024-07-01 | Y61: 2024-06-01 | Z61: 2024-05-01 | AA61: =AA35 -> 2024-04-01 | AB61: 2024-03-01 | AC61: 2024-02-01 | AD61: 2024-01-01 | AE61: 2023-12-01 | AF61: 2023-11-01 | AG61: 2023-10-01 | AH61: 2023-09-01 | AI61: 2023-08-01 | AJ61: 2023-07-01 | AK61: 2023-06-01 | AL61: 2023-05-01 | AM61: 2023-04-01 | AN61: 2023-03-01 | AO61: 2023-02-01 | AP61: 2023-01-01 | AQ61: 2022-12-01 | AR61: 2022-11-01 | AS61: 2022-10-01 | AT61: 2022-09-01 | AU61: 2022-08-01 | AV61: 2022-07-01 | AW61: 2022-06-01 | AX61: 2022-05-01 | AY61: 2022-04-01 | AZ61: 2022-03-01 | BA61: =BA35 -> 2022-02-01 | BB61: 2022-01-01 | BC61: 2021-12-01 | BD61: 2021-11-01 | BE61: 2021-10-01 | BF61: 2021-09-01 | BG61: =BG35 -> 2021-08-01 | BH61: 2021-07-01 | BI61: 2021-06-01 | BJ61: 2021-05-01 | BK61: 2021-04-01 | BL61: 2021-03-01 | BM61: 2021-02-01 | BN61: 2021-01-01 | BO61: 2020-12-01 | BP61: 2020-11-01 | BQ61: 2020-10-01 | BR61: 2020-09-01
A62: 45474 | B62: 246373.19 | C62: 1826082.35 | D62: 53475.3 | E62: 144876.66 | F62: 1753291.07 | G62: 5244172.94 | H62: 0.03286588983 | I62: 0.2001538221 | K62: =Entrada!P36 -> Ultrapassagem de Demanda | L62: =IF(COUNTIFS($C$82:$C$200000,$K62,$H$82:$H$200000,L$2)=0,"",COUNTIFS($C$82:$C$200000,$K62,$H$82:$H$200000,L$2)) -> 1 | M62: 1 | N62: 1 | O62: 1 | P62: 1 | Q62: 1 | R62: 1 | S62: 1 | T62: 1 | U62: 1 | V62: =IF(COUNTIFS($C$82:$C$200000,$K62,$H$82:$H$200000,V$2)=0,"",COUNTIFS($C$82:$C$200000,$K62,$H$82:$H$200000,V$2)) -> 1 | W62: 1 | X62: 1 | Y62: 1 | Z62: 1 | AA62: 1 | AB62: 1 | AC62: 1 | AD62: 1 | AE62: 1 | AF62: =IF(COUNTIFS($C$82:$C$200000,$K62,$H$82:$H$200000,AF$2)=0,"",COUNTIFS($C$82:$C$200000,$K62,$H$82:$H$200000,AF$2)) -> 1 | AG62: 1 | AH62: 1 | AI62: 1 | AJ62: 1 | AK62: 1 | AL62: 1 | AM62: 1 | AN62: 1 | AO62: 1 | AP62: =IF(COUNTIFS($C$82:$C$200000,$K62,$H$82:$H$200000,AP$2)=0,"",COUNTIFS($C$82:$C$200000,$K62,$H$82:$H$200000,AP$2)) -> 1 | AQ62: 1 | AR62: 1 | AS62: 1 | AT62: 1 | AU62: 1 | AV62: 1 | AW62: 1 | AX62: 1 | AY62: 1 | AZ62: =IF(COUNTIFS($C$82:$C$200000,$K62,$H$82:$H$200000,AZ$2)=0,"",COUNTIFS($C$82:$C$200000,$K62,$H$82:$H$200000,AZ$2)) -> 1 | BA62: 1 | BB62: 1 | BC62: 1 | BD62: 1 | BE62: 1 | BF62: 1 | BG62: 1 | BH62: 1 | BI62: 1 | BJ62: =IF(COUNTIFS($C$82:$C$200000,$K62,$H$82:$H$200000,BJ$2)=0,"",COUNTIFS($C$82:$C$200000,$K62,$H$82:$H$200000,BJ$2)) -> 1 | BK62: 1 | BL62: 1 | BM62: 1 | BN62: 1 | BO62: 1 | BP62: 1
A63: 45505 | B63: 223465.84 | C63: 1792733.75 | D63: 48499.66 | E63: 83319.17 | F63: 1786729.88 | G63: 5103939.57 | H63: 0.03036898972 | I63: 0.2001853648 | K63: =Entrada!P37 -> Excedente Reativo | L63: 1 | M63: 1 | N63: 1 | O63: 1 | P63: 1 | Q63: 1 | R63: 1 | S63: 1 | T63: 1 | U63: 1 | V63: 1 | W63: 1 | X63: 1 | Y63: 1 | Z63: 1 | AA63: 1 | AB63: 1 | AC63: 1 | AD63: 1 | AE63: 1 | AF63: 1 | AG63: 1 | AH63: 1 | AI63: 1 | AJ63: 1 | AK63: 1 | AL63: 1 | AM63: 1 | AN63: 1 | AO63: 1 | AP63: 1 | AQ63: 1 | AR63: 1 | AS63: 1 | AT63: 1 | AU63: 1 | AV63: 1 | AW63: 1 | AX63: 1 | AY63: 1 | AZ63: 1 | BA63: 1 | BB63: 1 | BC63: 1 | BD63: 1 | BE63: 1 | BF63: 1 | BG63: 1 | BH63: 1 | BI63: 1 | BJ63: 1 | BK63: 1 | BL63: 1 | BM63: 1 | BN63: 1 | BO63: 1 | BP63: 1
A64: 45536 | B64: 223675.81 | C64: 1783295.68 | D64: 48545.76 | E64: 311881.32 | F64: 1909236.19 | G64: 4922843.27 | H64: 0.03062937922 | I64: 0.2006499325
A65: 45566 | B65: 259126.94 | C65: 1988535.73 | D65: 56245.46 | E65: 753895.26 | F65: 1985386.61 | G65: 5531617.68 | H65: 0.03211233198 | I65: 0.2024797335
A66: 45597 | B66: 299247.56 | C66: 1794829.7 | D66: 64954.14 | E66: 416026.74 | F66: 1885318.14 | G66: 4792631.8 | H66: 0.04121336076 | I66: 0.2031043895
A67: 45627 | B67: 332064.16 | C67: 1718838.86 | D67: 72081.97 | E67: 64331.09 | F67: 1861970.21 | G67: 4454480.12 | H67: 0.0478878165 | I67: 0.2036675198
A68: 45658 | B68: 326973.68 | C68: 1640730.99 | D68: 70972.7 | E68: 2129.49 | F68: 1807370.19 | G68: 4216227.45 | H68: 0.04935906794 | I68: 0.2035071972
A69: 45689 | B69: 317597.45 | C69: 1578058.8 | D69: 68936.45 | E69: 717.29 | F69: 1770271.59 | G69: 4045418.4 | H69: 0.04968121537 | I69: 0.2028279515
A70: 45717 | B70: 311225.59 | C70: 1520626.31 | D70: 67241.62 | E70: 187.84 | F70: 1771078.94 | G70: 3916583.45 | H70: 0.04988524931 | I70: 0.2004316902
A71: 45748 | B71: 257722.15 | C71: 1486660.16 | D71: 55941.46 | F71: 1662027.88 | G71: 3774105.19 | H71: 0.04334491547 | I71: 0.2054403409
A72: 45778 | B72: 208568.15 | C72: 1556429.74 | D72: 45268.58 | E72: 105288.54 | F72: 1701979.3 | G72: 4173146.18 | H72: 0.03302846903 | I72: 0.2025179392
A73: 45809 | B73: 218662.1 | C73: 1528501.44 | D73: 47461.2 | E73: 287912.92 | F73: 1679346.08 | G73: 4103866.35 | H73: 0.03511863531 | I73: 0.2017068203
A80: Tab_Uderor
A81: IdeTipoReceita | B81: TipoReceitaArquivo | C81: TipoReceita | D81: CompetenciaArquivo | E81: Data_envio_arquivo | F81: NomeArquivo | G81: Data_Lancamento | H81: Competencia | I81: R$
A82: 1 | B82: Serviços Cobráveis | C82: Serviços Cobráveis | D82: 202011 | E82: 44323 | F82: APLCVA06600_FLXPAGAMENTOS_112020_S005.XML | G82: 44136 | H82: 44136 | I82: 216743.94
A83: 1 | B83: Serviços Cobráveis | C83: Serviços Cobráveis | D83: 202012 | E83: 44296 | F83: APLCVA06600_FLXPAGAMENTOS_122020_S004.XML | G83: 44166 | H83: 44166 | I83: 246377.64
A84: 1 | B84: Serviços Cobráveis | C84: Serviços Cobráveis | D84: 202101 | E84: 44296 | F84: APLCVA06600_FLXPAGAMENTOS_012021_S003.XML | G84: 44197 | H84: 44197 | I84: 220278.23
A85: 1 | B85: Serviços Cobráveis | C85: Serviços Cobráveis | D85: 202102 | E85: 44296 | F85: APLCVA06600_FLXPAGAMENTOS_022021_S002.XML | G85: 44228 | H85: 44228 | I85: 220770.96
A86: 1 | B86: Serviços Cobráveis | C86: Serviços Cobráveis | D86: 202103 | E86: 44938 | F86: APLCVA06600_FLXPAGAMENTOS_032021_S002.XML | G86: 44256 | H86: 44256 | I86: 193558.97
A87: 1 | B87: Serviços Cobráveis | C87: Serviços Cobráveis | D87: 202104 | E87: 44938 | F87: APLCVA06600_FLXPAGAMENTOS_042021_S004.XML | G87: 44287 | H87: 44287 | I87: 183480.61
A88: 1 | B88: Serviços Cobráveis | C88: Serviços Cobráveis | D88: 202105 | E88: 44938 | F88: APLCVA06600_FLXPAGAMENTOS_052021_S002.XML | G88: 44317 | H88: 44317 | I88: 216610.8
A89: 1 | B89: Serviços Cobráveis | C89: Serviços Cobráveis | D89: 202106 | E89: 44938 | F89: APLCVA06600_FLXPAGAMENTOS_062021_S002.XML | G89: 44348 | H89: 44348 | I89: 248302.66
A90: 1 | B90: Serviços Cobráveis | C90: Serviços Cobráveis | D90: 202107 | E90: 44450 | F90: APLCVA06600_FLXPAGAMENTOS_072021_S001.XML | G90: 44378 | H90: 44378 | I90: 279396.24
A91: 1 | B91: Serviços Cobráveis | C91: Serviços Cobráveis | D91: 202108 | E91: 44938 | F91: APLCVA06600_FLXPAGAMENTOS_082021_S003.XML | G91: 44409 | H91: 44409 | I91: 300159.81
A92: 1 | B92: Serviços Cobráveis | C92: Serviços Cobráveis | D92: 202109 | E92: 44938 | F92: APLCVA06600_FLXPAGAMENTOS_092021_S003.XML | G92: 44440 | H92: 44440 | I92: 291036.16
A93: 1 | B93: Serviços Cobráveis | C93: Serviços Cobráveis | D93: 202110 | E93: 44938 | F93: APLCVA06600_FLXPAGAMENTOS_102021_S003.XML | G93: 44470 | H93: 44470 | I93: 331960.85
A94: 1 | B94: Serviços Cobráveis | C94: Serviços Cobráveis | D94: 202111 | E94: 44938 | F94: APLCVA06600_FLXPAGAMENTOS_112021_S005.XML | G94: 44501 | H94: 44501 | I94: 333815.74
A95: 1 | B95: Serviços Cobráveis | C95: Serviços Cobráveis | D95: 202112 | E95: 44938 | F95: APLCVA06600_FLXPAGAMENTOS_122021_S003.XML | G95: 44531 | H95: 44531 | I95: 384978.84
A96: 1 | B96: Serviços Cobráveis | C96: Serviços Cobráveis | D96: 202201 | E96: 44938 | F96: APLCVA06600_FLXPAGAMENTOS_012022_S004.XML | G96: 44562 | H96: 44562 | I96: 326222.33
A97: 1 | B97: Serviços Cobráveis | C97: Serviços Cobráveis | D97: 202202 | E97: 44938 | F97: APLCVA06600_FLXPAGAMENTOS_022022_S004.XML | G97: 44593 | H97: 44593 | I97: 297973.71
A98: 1 | B98: Serviços Cobráveis | C98: Serviços Cobráveis | D98: 202203 | E98: 44938 | F98: APLCVA06600_FLXPAGAMENTOS_032022_S004.XML | G98: 44621 | H98: 44621 | I98: 311722.88
A99: 1 | B99: Serviços Cobráveis | C99: Serviços Cobráveis | D99: 202204 | E99: 44938 | F99: APLCVA06600_FLXPAGAMENTOS_042022_S002.XML | G99: 44652 | H99: 44652 | I99: 240183.75
A100: 1 | B100: Serviços Cobráveis | C100: Serviços Cobráveis | D100: 202205 | E100: 44936 | F100: APLCVA06600_FLXPAGAMENTOS_052022_S002.XML | G100: 44682 | H100: 44682 | I100: 272800.61
A101: 1 | B101: Serviços Cobráveis | C101: Serviços Cobráveis | D101: 202206 | E101: 44936 | F101: APLCVA06600_FLXPAGAMENTOS_062022_S002.XML | G101: 44713 | H101: 44713 | I101: 202963.19
A102: 1 | B102: Serviços Cobráveis | C102: Serviços Cobráveis | D102: 202207 | E102: 44936 | F102: APLCVA06600_FLXPAGAMENTOS_072022_S003.XML | G102: 44743 | H102: 44743 | I102: 258474.64
A103: 1 | B103: Serviços Cobráveis | C103: Serviços Cobráveis | D103: 202208 | E103: 45117 | F103: APLCVA06600_FLXPAGAMENTOS_082022_S002.XML | G103: 44774 | H103: 44774 | I103: 282493.91
A104: 1 | B104: Serviços Cobráveis | C104: Serviços Cobráveis | D104: 202209 | E104: 45117 | F104: APLCVA06600_FLXPAGAMENTOS_092022_S003.XML | G104: 44805 | H104: 44805 | I104: 280579.9
A105: 1 | B105: Serviços Cobráveis | C105: Serviços Cobráveis | D105: 202210 | E105: 44936 | F105: APLCVA06600_FLXPAGAMENTOS_102022_S003.XML | G105: 44835 | H105: 44835 | I105: 257842.96
A106: 1 | B106: Serviços Cobráveis | C106: Serviços Cobráveis | D106: 202211 | E106: 44936 | F106: APLCVA06600_FLXPAGAMENTOS_112022_S001.XML | G106: 44866 | H106: 44866 | I106: 216758.1
A107: 1 | B107: Serviços Cobráveis | C107: Serviços Cobráveis | D107: 202212 | E107: 44968 | F107: APLCVA06600_FLXPAGAMENTOS_122022_S001.XML | G107: 44896 | H107: 44896 | I107: 222338.32
A108: 1 | B108: Serviços Cobráveis | C108: Serviços Cobráveis | D108: 202301 | E108: 45117 | F108: APLCVA06600_FLXPAGAMENTOS_012023_S004.XML | G108: 44927 | H108: 44927 | I108: 246338.64
A109: 1 | B109: Serviços Cobráveis | C109: Serviços Cobráveis | D109: 202302 | E109: 45120 | F109: APLCVA06600_FLXPAGAMENTOS_022023_S004.XML | G109: 44958 | H109: 44958 | I109: 200569.57
A110: 1 | B110: Serviços Cobráveis | C110: Serviços Cobráveis | D110: 202303 | E110: 45120 | F110: APLCVA06600_FLXPAGAMENTOS_032023_S003.XML | G110: 44986 | H110: 44986 | I110: 190988.86
A111: 1 | B111: Serviços Cobráveis | C111: Serviços Cobráveis | D111: 202304 | E111: 45133 | F111: APLCVA06600_FLXPAGAMENTOS_042023_S003.XML | G111: 45017 | H111: 45017 | I111: 185386.05
A112: 1 | B112: Serviços Cobráveis | C112: Serviços Cobráveis | D112: 202305 | E112: 45133 | F112: APLCVA06600_FLXPAGAMENTOS_052023_S002.XML | G112: 45047 | H112: 45047 | I112: 161688.94
A113: 1 | B113: Serviços Cobráveis | C113: Serviços Cobráveis | D113: 202306 | E113: 45176 | F113: APLCVA06600_FLXPAGAMENTOS_062023_S002.XML | G113: 45078 | H113: 45078 | I113: 146069.55
A114: 1 | B114: Serviços Cobráveis | C114: Serviços Cobráveis | D114: 202307 | E114: 45209 | F114: APLCVA06600_FLXPAGAMENTOS_072023_S002.XML | G114: 45108 | H114: 45108 | I114: 156560.81
A115: 1 | B115: Serviços Cobráveis | C115: Serviços Cobráveis | D115: 202308 | E115: 45335 | F115: APLCVA06600_FLXPAGAMENTOS_082023_S002.XML | G115: 45139 | H115: 45139 | I115: 209101.19
A116: 1 | B116: Serviços Cobráveis | C116: Serviços Cobráveis | D116: 202309 | E116: 45335 | F116: APLCVA06600_FLXPAGAMENTOS_092023_S002.XML | G116: 45170 | H116: 45170 | I116: 200817.02
A117: 1 | B117: Serviços Cobráveis | C117: Serviços Cobráveis | D117: 202310 | E117: 45483 | F117: APLCVA06600_FLXPAGAMENTOS_102023_S006.XML | G117: 45200 | H117: 45200 | I117: 197296.98
A118: 1 | B118: Serviços Cobráveis | C118: Serviços Cobráveis | D118: 202311 | E118: 45495 | F118: APLCVA06600_FLXPAGAMENTOS_112023_S006.XML | G118: 45231 | H118: 45231 | I118: 189716.71
A119: 1 | B119: Serviços Cobráveis | C119: Serviços Cobráveis | D119: 202312 | E119: 45483 | F119: APLCVA06600_FLXPAGAMENTOS_122023_S006.XML | G119: 45261 | H119: 45261 | I119: 178838.22
A120: 1 | B120: Serviços Cobráveis | C120: Serviços Cobráveis | D120: 202401 | E120: 45483 | F120: APLCVA06600_FLXPAGAMENTOS_012024_S006.XML | G120: 45292 | H120: 45292 | I120: 166798.47
A121: 1 | B121: Serviços Cobráveis | C121: Serviços Cobráveis | D121: 202402 | E121: 45860 | F121: APLCVA06600_FLXPAGAMENTOS_022024_S005.XML | G121: 45323 | H121: 45323 | I121: 140303.16
A122: 1 | B122: Serviços Cobráveis | C122: Serviços Cobráveis | D122: 202403 | E122: 45860 | F122: APLCVA06600_FLXPAGAMENTOS_032024_S004.XML | G122: 45352 | H122: 45352 | I122: 123048.24
A123: 1 | B123: Serviços Cobráveis | C123: Serviços Cobráveis | D123: 202404 | E123: 45862 | F123: APLCVA06600_FLXPAGAMENTOS_042024_S005.XML | G123: 45383 | H123: 45383 | I123: 159475.53
A124: 1 | B124: Serviços Cobráveis | C124: Serviços Cobráveis | D124: 202405 | E124: 45789 | F124: APLCVA06600_FLXPAGAMENTOS_052024_S003.XML | G124: 45413 | H124: 45413 | I124: 181931.03
A125: 1 | B125: Serviços Cobráveis | C125: Serviços Cobráveis | D125: 202406 | E125: 45860 | F125: APLCVA06600_FLXPAGAMENTOS_062024_S006.XML | G125: 45444 | H125: 45444 | I125: 197666.2
A126: 1 | B126: Serviços Cobráveis | C126: Serviços Cobráveis | D126: 202407 | E126: 45860 | F126: APLCVA06600_FLXPAGAMENTOS_072024_S004.XML | G126: 45474 | H126: 45474 | I126: 243587.32
A127: 1 | B127: Serviços Cobráveis | C127: Serviços Cobráveis | D127: 202408 | E127: 45860 | F127: APLCVA06600_FLXPAGAMENTOS_082024_S003.XML | G127: 45505 | H127: 45505 | I127: 230207.05
A128: 1 | B128: Serviços Cobráveis | C128: Serviços Cobráveis | D128: 202409 | E128: 45860 | F128: APLCVA06600_FLXPAGAMENTOS_092024_S003.XML | G128: 45536 | H128: 45536 | I128: 263770.34
A129: 1 | B129: Serviços Cobráveis | C129: Serviços Cobráveis | D129: 202410 | E129: 45860 | F129: APLCVA06600_FLXPAGAMENTOS_102024_S002.XML | G129: 45566 | H129: 45566 | I129: 253723.54
A130: 1 | B130: Serviços Cobráveis | C130: Serviços Cobráveis | D130: 202411 | E130: 45860 | F130: APLCVA06600_FLXPAGAMENTOS_112024_S004.XML | G130: 45597 | H130: 45597 | I130: 212532.37
A131: 1 | B131: Serviços Cobráveis | C131: Serviços Cobráveis | D131: 202412 | E131: 45860 | F131: APLCVA06600_FLXPAGAMENTOS_122024_S003.XML | G131: 45627 | H131: 45627 | I131: 236857.74
A132: 1 | B132: Serviços Cobráveis | C132: Serviços Cobráveis | D132: 202501 | E132: 45860 | F132: APLCVA06600_FLXPAGAMENTOS_012025_S004.XML | G132: 45658 | H132: 45658 | I132: 223273.18
A133: 1 | B133: Serviços Cobráveis | C133: Serviços Cobráveis | D133: 202502 | E133: 45860 | F133: APLCVA06600_FLXPAGAMENTOS_022025_S004.XML | G133: 45689 | H133: 45689 | I133: 199683.64
A134: 1 | B134: Serviços Cobráveis | C134: Serviços Cobráveis | D134: 202503 | E134: 45860 | F134: APLCVA06600_FLXPAGAMENTOS_032025_S002.XML | G134: 45717 | H134: 45717 | I134: 180333.59
A135: 1 | B135: Serviços Cobráveis | C135: Serviços Cobráveis | D135: 202504 | E135: 45860 | F135: APLCVA06600_FLXPAGAMENTOS_042025_S004.XML | G135: 45748 | H135: 45748 | I135: 224560.56
A136: 1 | B136: Serviços Cobráveis | C136: Serviços Cobráveis | D136: 202505 | E136: 45860 | F136: APLCVA06600_FLXPAGAMENTOS_052025_S002.XML | G136: 45778 | H136: 45778 | I136: 266092.22
A137: 1 | B137: Serviços Cobráveis | C137: Serviços Cobráveis | D137: 202506 | E137: 45863 | F137: APLCVA06600_FLXPAGAMENTOS_062025_S002.XML | G137: 45809 | H137: 45809 | I137: 287074.94
A138: 1 | B138: Serviços Cobráveis | C138: Serviços Cobráveis | D138: 202507 | E138: 45860 | F138: APLCVA06600_FLXPAGAMENTOS_072025_S000.XML | G138: 45839 | H138: 45839 | I138: 0
A139: 2 | B139: Arrecadação de convênios ou valores pela fatura | C139: Arrecadação de convênios ou valores pela fatura | D139: 202011 | E139: 44323 | F139: APLCVA06600_FLXPAGAMENTOS_112020_S005.XML | G139: 44136 | H139: 44136 | I139: 344070.77
A140: 2 | B140: Arrecadação de convênios ou valores pela fatura | C140: Arrecadação de convênios ou valores pela fatura | D140: 202012 | E140: 44296 | F140: APLCVA06600_FLXPAGAMENTOS_122020_S004.XML | G140: 44166 | H140: 44166 | I140: 346814.31
A141: 2 | B141: Arrecadação de convênios ou valores pela fatura | C141: Arrecadação de convênios ou valores pela fatura | D141: 202101 | E141: 44296 | F141: APLCVA06600_FLXPAGAMENTOS_012021_S003.XML | G141: 44197 | H141: 44197 | I141: 340836.07
A142: 2 | B142: Arrecadação de convênios ou valores pela fatura | C142: Arrecadação de convênios ou valores pela fatura | D142: 202102 | E142: 44296 | F142: APLCVA06600_FLXPAGAMENTOS_022021_S002.XML | G142: 44228 | H142: 44228 | I142: 278712.32
A143: 2 | B143: Arrecadação de convênios ou valores pela fatura | C143: Arrecadação de convênios ou valores pela fatura | D143: 202103 | E143: 44938 | F143: APLCVA06600_FLXPAGAMENTOS_032021_S002.XML | G143: 44256 | H143: 44256 | I143: 217267.47
A144: 2 | B144: Arrecadação de convênios ou valores pela fatura | C144: Arrecadação de convênios ou valores pela fatura | D144: 202104 | E144: 44938 | F144: APLCVA06600_FLXPAGAMENTOS_042021_S004.XML | G144: 44287 | H144: 44287 | I144: 257505.03
A145: 2 | B145: Arrecadação de convênios ou valores pela fatura | C145: Arrecadação de convênios ou valores pela fatura | D145: 202105 | E145: 44938 | F145: APLCVA06600_FLXPAGAMENTOS_052021_S002.XML | G145: 44317 | H145: 44317 | I145: 233595.11
A146: 2 | B146: Arrecadação de convênios ou valores pela fatura | C146: Arrecadação de convênios ou valores pela fatura | D146: 202106 | E146: 44938 | F146: APLCVA06600_FLXPAGAMENTOS_062021_S002.XML | G146: 44348 | H146: 44348 | I146: 220319.75
A147: 2 | B147: Arrecadação de convênios ou valores pela fatura | C147: Arrecadação de convênios ou valores pela fatura | D147: 202107 | E147: 44450 | F147: APLCVA06600_FLXPAGAMENTOS_072021_S001.XML | G147: 44378 | H147: 44378 | I147: 380691.04
A148: 2 | B148: Arrecadação de convênios ou valores pela fatura | C148: Arrecadação de convênios ou valores pela fatura | D148: 202108 | E148: 44938 | F148: APLCVA06600_FLXPAGAMENTOS_082021_S003.XML | G148: 44409 | H148: 44409 | I148: 251801.55
A149: 2 | B149: Arrecadação de convênios ou valores pela fatura | C149: Arrecadação de convênios ou valores pela fatura | D149: 202109 | E149: 44938 | F149: APLCVA06600_FLXPAGAMENTOS_092021_S003.XML | G149: 44440 | H149: 44440 | I149: 248322.48
A150: 2 | B150: Arrecadação de convênios ou valores pela fatura | C150: Arrecadação de convênios ou valores pela fatura | D150: 202110 | E150: 44938 | F150: APLCVA06600_FLXPAGAMENTOS_102021_S003.XML | G150: 44470 | H150: 44470 | I150: 245102.37
A151: 2 | B151: Arrecadação de convênios ou valores pela fatura | C151: Arrecadação de convênios ou valores pela fatura | D151: 202111 | E151: 44938 | F151: APLCVA06600_FLXPAGAMENTOS_112021_S005.XML | G151: 44501 | H151: 44501 | I151: 245111.34
A152: 2 | B152: Arrecadação de convênios ou valores pela fatura | C152: Arrecadação de convênios ou valores pela fatura | D152: 202112 | E152: 44938 | F152: APLCVA06600_FLXPAGAMENTOS_122021_S003.XML | G152: 44531 | H152: 44531 | I152: 267143.68
A153: 2 | B153: Arrecadação de convênios ou valores pela fatura | C153: Arrecadação de convênios ou valores pela fatura | D153: 202201 | E153: 44938 | F153: APLCVA06600_FLXPAGAMENTOS_012022_S004.XML | G153: 44562 | H153: 44562 | I153: 234709.66
A154: 2 | B154: Arrecadação de convênios ou valores pela fatura | C154: Arrecadação de convênios ou valores pela fatura | D154: 202202 | E154: 44938 | F154: APLCVA06600_FLXPAGAMENTOS_022022_S004.XML | G154: 44593 | H154: 44593 | I154: 233870.25
A155: 2 | B155: Arrecadação de convênios ou valores pela fatura | C155: Arrecadação de convênios ou valores pela fatura | D155: 202203 | E155: 44938 | F155: APLCVA06600_FLXPAGAMENTOS_032022_S004.XML | G155: 44621 | H155: 44621 | I155: 274671.3
A156: 2 | B156: Arrecadação de convênios ou valores pela fatura | C156: Arrecadação de convênios ou valores pela fatura | D156: 202204 | E156: 44938 | F156: APLCVA06600_FLXPAGAMENTOS_042022_S002.XML | G156: 44652 | H156: 44652 | I156: 274549.91
A157: 2 | B157: Arrecadação de convênios ou valores pela fatura | C157: Arrecadação de convênios ou valores pela fatura | D157: 202205 | E157: 44936 | F157: APLCVA06600_FLXPAGAMENTOS_052022_S002.XML | G157: 44682 | H157: 44682 | I157: 246715.51
A158: 2 | B158: Arrecadação de convênios ou valores pela fatura | C158: Arrecadação de convênios ou valores pela fatura | D158: 202206 | E158: 44936 | F158: APLCVA06600_FLXPAGAMENTOS_062022_S002.XML | G158: 44713 | H158: 44713 | I158: 271458.6
A159: 2 | B159: Arrecadação de convênios ou valores pela fatura | C159: Arrecadação de convênios ou valores pela fatura | D159: 202207 | E159: 44936 | F159: APLCVA06600_FLXPAGAMENTOS_072022_S003.XML | G159: 44743 | H159: 44743 | I159: 251754.36
A160: 2 | B160: Arrecadação de convênios ou valores pela fatura | C160: Arrecadação de convênios ou valores pela fatura | D160: 202208 | E160: 45117 | F160: APLCVA06600_FLXPAGAMENTOS_082022_S002.XML | G160: 44774 | H160: 44774 | I160: 249103.25
A161: 2 | B161: Arrecadação de convênios ou valores pela fatura | C161: Arrecadação de convênios ou valores pela fatura | D161: 202209 | E161: 45117 | F161: APLCVA06600_FLXPAGAMENTOS_092022_S003.XML | G161: 44805 | H161: 44805 | I161: 268831.66
A162: 2 | B162: Arrecadação de convênios ou valores pela fatura | C162: Arrecadação de convênios ou valores pela fatura | D162: 202210 | E162: 44936 | F162: APLCVA06600_FLXPAGAMENTOS_102022_S003.XML | G162: 44835 | H162: 44835 | I162: 247180.83
A163: 2 | B163: Arrecadação de convênios ou valores pela fatura | C163: Arrecadação de convênios ou valores pela fatura | D163: 202211 | E163: 44936 | F163: APLCVA06600_FLXPAGAMENTOS_112022_S001.XML | G163: 44866 | H163: 44866 | I163: 269892.55
A164: 2 | B164: Arrecadação de convênios ou valores pela fatura | C164: Arrecadação de convênios ou valores pela fatura | D164: 202212 | E164: 44968 | F164: APLCVA06600_FLXPAGAMENTOS_122022_S001.XML | G164: 44896 | H164: 44896 | I164: 257503.19
A165: 2 | B165: Arrecadação de convênios ou valores pela fatura | C165: Arrecadação de convênios ou valores pela fatura | D165: 202301 | E165: 45117 | F165: APLCVA06600_FLXPAGAMENTOS_012023_S004.XML | G165: 44927 | H165: 44927 | I165: 265779.25
A166: 2 | B166: Arrecadação de convênios ou valores pela fatura | C166: Arrecadação de convênios ou valores pela fatura | D166: 202302 | E166: 45120 | F166: APLCVA06600_FLXPAGAMENTOS_022023_S004.XML | G166: 44958 | H166: 44958 | I166: 275447.28
A167: 2 | B167: Arrecadação de convênios ou valores pela fatura | C167: Arrecadação de convênios ou valores pela fatura | D167: 202303 | E167: 45120 | F167: APLCVA06600_FLXPAGAMENTOS_032023_S003.XML | G167: 44986 | H167: 44986 | I167: 247345.97
A168: 2 | B168: Arrecadação de convênios ou valores pela fatura | C168: Arrecadação de convênios ou valores pela fatura | D168: 202304 | E168: 45133 | F168: APLCVA06600_FLXPAGAMENTOS_042023_S003.XML | G168: 45017 | H168: 45017 | I168: 278456.87
A169: 2 | B169: Arrecadação de convênios ou valores pela fatura | C169: Arrecadação de convênios ou valores pela fatura | D169: 202305 | E169: 45133 | F169: APLCVA06600_FLXPAGAMENTOS_052023_S002.XML | G169: 45047 | H169: 45047 | I169: 225400.36
A170: 2 | B170: Arrecadação de convênios ou valores pela fatura | C170: Arrecadação de convênios ou valores pela fatura | D170: 202306 | E170: 45176 | F170: APLCVA06600_FLXPAGAMENTOS_062023_S002.XML | G170: 45078 | H170: 45078 | I170: 279376.2
A171: 2 | B171: Arrecadação de convênios ou valores pela fatura | C171: Arrecadação de convênios ou valores pela fatura | D171: 202307 | E171: 45209 | F171: APLCVA06600_FLXPAGAMENTOS_072023_S002.XML | G171: 45108 | H171: 45108 | I171: 303616.16
A172: 2 | B172: Arrecadação de convênios ou valores pela fatura | C172: Arrecadação de convênios ou valores pela fatura | D172: 202308 | E172: 45335 | F172: APLCVA06600_FLXPAGAMENTOS_082023_S002.XML | G172: 45139 | H172: 45139 | I172: 313542.35
A173: 2 | B173: Arrecadação de convênios ou valores pela fatura | C173: Arrecadação de convênios ou valores pela fatura | D173: 202309 | E173: 45335 | F173: APLCVA06600_FLXPAGAMENTOS_092023_S002.XML | G173: 45170 | H173: 45170 | I173: 357483.35
A174: 2 | B174: Arrecadação de convênios ou valores pela fatura | C174: Arrecadação de convênios ou valores pela fatura | D174: 202310 | E174: 45483 | F174: APLCVA06600_FLXPAGAMENTOS_102023_S006.XML | G174: 45200 | H174: 45200 | I174: 210866.27
A175: 2 | B175: Arrecadação de convênios ou valores pela fatura | C175: Arrecadação de convênios ou valores pela fatura | D175: 202311 | E175: 45495 | F175: APLCVA06600_FLXPAGAMENTOS_112023_S006.XML | G175: 45231 | H175: 45231 | I175: 309727.54
A176: 2 | B176: Arrecadação de convênios ou valores pela fatura | C176: Arrecadação de convênios ou valores pela fatura | D176: 202312 | E176: 45483 | F176: APLCVA06600_FLXPAGAMENTOS_122023_S006.XML | G176: 45261 | H176: 45261 | I176: 294021.91
A177: 2 | B177: Arrecadação de convênios ou valores pela fatura | C177: Arrecadação de convênios ou valores pela fatura | D177: 202401 | E177: 45483 | F177: APLCVA06600_FLXPAGAMENTOS_012024_S006.XML | G177: 45292 | H177: 45292 | I177: 278983.94
A178: 2 | B178: Arrecadação de convênios ou valores pela fatura | C178: Arrecadação de convênios ou valores pela fatura | D178: 202402 | E178: 45860 | F178: APLCVA06600_FLXPAGAMENTOS_022024_S005.XML | G178: 45323 | H178: 45323 | I178: 319666.17
A179: 2 | B179: Arrecadação de convênios ou valores pela fatura | C179: Arrecadação de convênios ou valores pela fatura | D179: 202403 | E179: 45860 | F179: APLCVA06600_FLXPAGAMENTOS_032024_S004.XML | G179: 45352 | H179: 45352 | I179: 292891.67
A180: 2 | B180: Arrecadação de convênios ou valores pela fatura | C180: Arrecadação de convênios ou valores pela fatura | D180: 202404 | E180: 45862 | F180: APLCVA06600_FLXPAGAMENTOS_042024_S005.XML | G180: 45383 | H180: 45383 | I180: 300800.79
A181: 2 | B181: Arrecadação de convênios ou valores pela fatura | C181: Arrecadação de convênios ou valores pela fatura | D181: 202405 | E181: 45789 | F181: APLCVA06600_FLXPAGAMENTOS_052024_S003.XML | G181: 45413 | H181: 45413 | I181: 316918.63
A182: 2 | B182: Arrecadação de convênios ou valores pela fatura | C182: Arrecadação de convênios ou valores pela fatura | D182: 202406 | E182: 45860 | F182: APLCVA06600_FLXPAGAMENTOS_062024_S006.XML | G182: 45444 | H182: 45444 | I182: 301838.13
A183: 2 | B183: Arrecadação de convênios ou valores pela fatura | C183: Arrecadação de convênios ou valores pela fatura | D183: 202407 | E183: 45860 | F183: APLCVA06600_FLXPAGAMENTOS_072024_S004.XML | G183: 45474 | H183: 45474 | I183: 275446.72
A184: 2 | B184: Arrecadação de convênios ou valores pela fatura | C184: Arrecadação de convênios ou valores pela fatura | D184: 202408 | E184: 45860 | F184: APLCVA06600_FLXPAGAMENTOS_082024_S003.XML | G184: 45505 | H184: 45505 | I184: 296059.77
A185: 2 | B185: Arrecadação de convênios ou valores pela fatura | C185: Arrecadação de convênios ou valores pela fatura | D185: 202409 | E185: 45860 | F185: APLCVA06600_FLXPAGAMENTOS_092024_S003.XML | G185: 45536 | H185: 45536 | I185: 273405.12
A186: 2 | B186: Arrecadação de convênios ou valores pela fatura | C186: Arrecadação de convênios ou valores pela fatura | D186: 202410 | E186: 45860 | F186: APLCVA06600_FLXPAGAMENTOS_102024_S002.XML | G186: 45566 | H186: 45566 | I186: 286538.93
A187: 2 | B187: Arrecadação de convênios ou valores pela fatura | C187: Arrecadação de convênios ou valores pela fatura | D187: 202411 | E187: 45860 | F187: APLCVA06600_FLXPAGAMENTOS_112024_S004.XML | G187: 45597 | H187: 45597 | I187: 277341.77
A188: 2 | B188: Arrecadação de convênios ou valores pela fatura | C188: Arrecadação de convênios ou valores pela fatura | D188: 202412 | E188: 45860 | F188: APLCVA06600_FLXPAGAMENTOS_122024_S003.XML | G188: 45627 | H188: 45627 | I188: 277038.14
A189: 2 | B189: Arrecadação de convênios ou valores pela fatura | C189: Arrecadação de convênios ou valores pela fatura | D189: 202501 | E189: 45860 | F189: APLCVA06600_FLXPAGAMENTOS_012025_S004.XML | G189: 45658 | H189: 45658 | I189: 299557.86
A190: 2 | B190: Arrecadação de convênios ou valores pela fatura | C190: Arrecadação de convênios ou valores pela fatura | D190: 202502 | E190: 45860 | F190: APLCVA06600_FLXPAGAMENTOS_022025_S004.XML | G190: 45689 | H190: 45689 | I190: 287310.93
A191: 2 | B191: Arrecadação de convênios ou valores pela fatura | C191: Arrecadação de convênios ou valores pela fatura | D191: 202503 | E191: 45860 | F191: APLCVA06600_FLXPAGAMENTOS_032025_S002.XML | G191: 45717 | H191: 45717 | I191: 291546.94
A192: 2 | B192: Arrecadação de convênios ou valores pela fatura | C192: Arrecadação de convênios ou valores pela fatura | D192: 202504 | E192: 45860 | F192: APLCVA06600_FLXPAGAMENTOS_042025_S004.XML | G192: 45748 | H192: 45748 | I192: 299005.31
A193: 2 | B193: Arrecadação de convênios ou valores pela fatura | C193: Arrecadação de convênios ou valores pela fatura | D193: 202505 | E193: 45860 | F193: APLCVA06600_FLXPAGAMENTOS_052025_S002.XML | G193: 45778 | H193: 45778 | I193: 286751.06
A194: 2 | B194: Arrecadação de convênios ou valores pela fatura | C194: Arrecadação de convênios ou valores pela fatura | D194: 202506 | E194: 45863 | F194: APLCVA06600_FLXPAGAMENTOS_062025_S002.XML | G194: 45809 | H194: 45809 | I194: 309827.84
A195: 2 | B195: Arrecadação de convênios ou valores pela fatura | C195: Arrecadação de convênios ou valores pela fatura | D195: 202507 | E195: 45860 | F195: APLCVA06600_FLXPAGAMENTOS_072025_S000.XML | G195: 45839 | H195: 45839 | I195: 0
A196: 6 | B196: Compartilhamento de infraestrutura | C196: Compartilhamento de infraestrutura | D196: 202011 | E196: 44323 | F196: APLCVA06600_FLXPAGAMENTOS_112020_S005.XML | G196: 44136 | H196: 44136 | I196: 988065.17
A197: 6 | B197: Compartilhamento de infraestrutura | C197: Compartilhamento de infraestrutura | D197: 202012 | E197: 44296 | F197: APLCVA06600_FLXPAGAMENTOS_122020_S004.XML | G197: 44166 | H197: 44166 | I197: 1000922.2
A198: 6 | B198: Compartilhamento de infraestrutura | C198: Compartilhamento de infraestrutura | D198: 202101 | E198: 44296 | F198: APLCVA06600_FLXPAGAMENTOS_012021_S003.XML | G198: 44197 | H198: 44197 | I198: 1026408.21
A199: 6 | B199: Compartilhamento de infraestrutura | C199: Compartilhamento de infraestrutura | D199: 202102 | E199: 44296 | F199: APLCVA06600_FLXPAGAMENTOS_022021_S002.XML | G199: 44228 | H199: 44228 | I199: 1084351.87
A200: 6 | B200: Compartilhamento de infraestrutura | C200: Compartilhamento de infraestrutura | D200: 202103 | E200: 44938 | F200: APLCVA06600_FLXPAGAMENTOS_032021_S002.XML | G200: 44256 | H200: 44256 | I200: 1111326.33
A201: 6 | B201: Compartilhamento de infraestrutura | C201: Compartilhamento de infraestrutura | D201: 202104 | E201: 44938 | F201: APLCVA06600_FLXPAGAMENTOS_042021_S004.XML | G201: 44287 | H201: 44287 | I201: 1440001.47
A202: 6 | B202: Compartilhamento de infraestrutura | C202: Compartilhamento de infraestrutura | D202: 202105 | E202: 44938 | F202: APLCVA06600_FLXPAGAMENTOS_052021_S002.XML | G202: 44317 | H202: 44317 | I202: 1369579.08
A203: 6 | B203: Compartilhamento de infraestrutura | C203: Compartilhamento de infraestrutura | D203: 202106 | E203: 44938 | F203: APLCVA06600_FLXPAGAMENTOS_062021_S002.XML | G203: 44348 | H203: 44348 | I203: 1424360.96
A204: 6 | B204: Compartilhamento de infraestrutura | C204: Compartilhamento de infraestrutura | D204: 202107 | E204: 44450 | F204: APLCVA06600_FLXPAGAMENTOS_072021_S001.XML | G204: 44378 | H204: 44378 | I204: 9592635.4
A205: 6 | B205: Compartilhamento de infraestrutura | C205: Compartilhamento de infraestrutura | D205: 202108 | E205: 44938 | F205: APLCVA06600_FLXPAGAMENTOS_082021_S003.XML | G205: 44409 | H205: 44409 | I205: 1988971.33
A206: 6 | B206: Compartilhamento de infraestrutura | C206: Compartilhamento de infraestrutura | D206: 202109 | E206: 44938 | F206: APLCVA06600_FLXPAGAMENTOS_092021_S003.XML | G206: 44440 | H206: 44440 | I206: 2014541.61
... 160 more rows

Sheet Entrada
A1: Entrada de parâmetros para cálculo tarifário
B4: Energia | D4: Últ. Atulização | F4: Parâmetros para Revisão | P4: ="Caso de OR para a empresa é: " &IF(BD!C53=4,"caso 1","caso 3") -> Caso de OR para a empresa é: caso 3
Q5: Competência Final OR | R5: =IF(CAPA!C7="Revisão",(DATE(YEAR('VPB e Fator X'!C10),MONTH('VPB e Fator X'!C10)-1,1)),0) -> 45658
D6: 45372 | F6: CAPEX - Ativos de Distribuição | J6: Custo Operacional Real do(s) último(s) ano(s) | P6: Outras Receitas
B7: Montante de Geração Própria | D7: 45372 | F7: (1) Ativo Imobilizado em Serviço (Valor Novo de Reposição) | G7: =G73*VLOOKUP(DATE(YEAR(CAPA!$C$10),MONTH(CAPA!$C$10)-1,1),Índices!$B$135:$D$638,3,0)/VLOOKUP(DATE(YEAR($G$72),MONTH($G$72)-1,1),Índices!$B$135:$D$638,3,0) -> 6734571160 | J7: Ano do Custo Operacional | L7: =MAX(Tab_RIT_BMP[ANO])-1 -> 2023 | M7: =MAX(Tab_RIT_BMP[ANO]) -> 2024 | P7: Tipo de Receita | Q7: =$R$5 -> 2025-01-01 | R7: =DATE(YEAR(Q7),MONTH(Q7)-1,1) -> 2024-12-01 | S7: =DATE(YEAR(R7),MONTH(R7)-1,1) -> 2024-11-01 | T7: 2024-10-01 | U7: 2024-09-01 | V7: 2024-08-01 | W7: 2024-07-01 | X7: 2024-06-01 | Y7: 2024-05-01 | Z7: 2024-04-01 | AA7: 2024-03-01 | AB7: 2024-02-01 | AC7: 2024-01-01 | AD7: 2023-12-01 | AE7: 2023-11-01 | AF7: 2023-10-01 | AG7: 2023-09-01 | AH7: 2023-08-01 | AI7: 2023-07-01 | AJ7: 2023-06-01 | AK7: 2023-05-01 | AL7: 2023-04-01 | AM7: 2023-03-01 | AN7: 2023-02-01 | AO7: 2023-01-01 | AP7: 2022-12-01 | AQ7: 2022-11-01 | AR7: 2022-10-01 | AS7: 2022-09-01 | AT7: 2022-08-01 | AU7: 2022-07-01 | AV7: 2022-06-01 | AW7: 2022-05-01 | AX7: 2022-04-01 | AY7: 2022-03-01 | AZ7: 2022-02-01
B8: Custo médio da Geração Própria | D8: 45372 | F8: (2) Índice de Aproveitamento Integral | G8: =G74*VLOOKUP(DATE(YEAR(CAPA!$C$10),MONTH(CAPA!$C$10)-1,1),Índices!$B$135:$D$638,3,0)/VLOOKUP(DATE(YEAR($G$72),MONTH($G$72)-1,1),Índices!$B$135:$D$638,3,0) -> 9161693.787 | J8: CONTA PESSOAL | P8: Serviços Cobráveis | Q8: =SUMIFS(Tab_Uderor[R$],Tab_Uderor[Competencia],Entrada!Q$7,Tab_Uderor[TipoReceita],Entrada!$P8) -> 223273.18 | R8: =SUMIFS(Tab_Uderor[R$],Tab_Uderor[Competencia],Entrada!R$7,Tab_Uderor[TipoReceita],Entrada!$P8) -> 236857.74 | S8: =SUMIFS(Tab_Uderor[R$],Tab_Uderor[Competencia],Entrada!S$7,Tab_Uderor[TipoReceita],Entrada!$P8) -> 212532.37 | T8: =SUMIFS(Tab_Uderor[R$],Tab_Uderor[Competencia],Entrada!T$7,Tab_Uderor[TipoReceita],Entrada!$P8) -> 253723.54 | U8: =SUMIFS(Tab_Uderor[R$],Tab_Uderor[Competencia],Entrada!U$7,Tab_Uderor[TipoReceita],Entrada!$P8) -> 263770.34 | V8: =SUMIFS(Tab_Uderor[R$],Tab_Uderor[Competencia],Entrada!V$7,Tab_Uderor[TipoReceita],Entrada!$P8) -> 230207.05 | W8: =SUMIFS(Tab_Uderor[R$],Tab_Uderor[Competencia],Entrada!W$7,Tab_Uderor[TipoReceita],Entrada!$P8) -> 243587.32 | X8: =SUMIFS(Tab_Uderor[R$],Tab_Uderor[Competencia],Entrada!X$7,Tab_Uderor[TipoReceita],Entrada!$P8) -> 197666.2 | Y8: =SUMIFS(Tab_Uderor[R$],Tab_Uderor[Competencia],Entrada!Y$7,Tab_Uderor[TipoReceita],Entrada!$P8) -> 181931.03 | Z8: =SUMIFS(Tab_Uderor[R$],Tab_Uderor[Competencia],Entrada!Z$7,Tab_Uderor[TipoReceita],Entrada!$P8) -> 159475.53 | AA8: =SUMIFS(Tab_Uderor[R$],Tab_Uderor[Competencia],Entrada!AA$7,Tab_Uderor[TipoReceita],Entrada!$P8) -> 123048.24 | AB8: =SUMIFS(Tab_Uderor[R$],Tab_Uderor[Competencia],Entrada!AB$7,Tab_Uderor[TipoReceita],Entrada!$P8) -> 140303.16 | AC8: =SUMIFS(Tab_Uderor[R$],Tab_Uderor[Competencia],Entrada!AC$7,Tab_Uderor[TipoReceita],Entrada!$P8) -> 166798.47 | AD8: =SUMIFS(Tab_Uderor[R$],Tab_Uderor[Competencia],Entrada!AD$7,Tab_Uderor[TipoReceita],Entrada!$P8) -> 178838.22 | AE8: =SUMIFS(Tab_Uderor[R$],Tab_Uderor[Competencia],Entrada!AE$7,Tab_Uderor[TipoReceita],Entrada!$P8) -> 189716.71 | AF8: =SUMIFS(Tab_Uderor[R$],Tab_Uderor[Competencia],Entrada!AF$7,Tab_Uderor[TipoReceita],Entrada!$P8) -> 197296.98 | AG8: =SUMIFS(Tab_Uderor[R$],Tab_Uderor[Competencia],Entrada!AG$7,Tab_Uderor[TipoReceita],Entrada!$P8) -> 200817.02 | AH8: =SUMIFS(Tab_Uderor[R$],Tab_Uderor[Competencia],Entrada!AH$7,Tab_Uderor[TipoReceita],Entrada!$P8) -> 209101.19 | AI8: =SUMIFS(Tab_Uderor[R$],Tab_Uderor[Competencia],Entrada!AI$7,Tab_Uderor[TipoReceita],Entrada!$P8) -> 156560.81 | AJ8: =SUMIFS(Tab_Uderor[R$],Tab_Uderor[Competencia],Entrada!AJ$7,Tab_Uderor[TipoReceita],Entrada!$P8) -> 146069.55 | AK8: =SUMIFS(Tab_Uderor[R$],Tab_Uderor[Competencia],Entrada!AK$7,Tab_Uderor[TipoReceita],Entrada!$P8) -> 161688.94 | AL8: =SUMIFS(Tab_Uderor[R$],Tab_Uderor[Competencia],Entrada!AL$7,Tab_Uderor[TipoReceita],Entrada!$P8) -> 185386.05 | AM8: =SUMIFS(Tab_Uderor[R$],Tab_Uderor[Competencia],Entrada!AM$7,Tab_Uderor[TipoReceita],Entrada!$P8) -> 190988.86 | AN8: =SUMIFS(Tab_Uderor[R$],Tab_Uderor[Competencia],Entrada!AN$7,Tab_Uderor[TipoReceita],Entrada!$P8) -> 200569.57 | AO8: =SUMIFS(Tab_Uderor[R$],Tab_Uderor[Competencia],Entrada!AO$7,Tab_Uderor[TipoReceita],Entrada!$P8) -> 246338.64 | AP8: =SUMIFS(Tab_Uderor[R$],Tab_Uderor[Competencia],Entrada!AP$7,Tab_Uderor[TipoReceita],Entrada!$P8) -> 222338.32 | AQ8: =SUMIFS(Tab_Uderor[R$],Tab_Uderor[Competencia],Entrada!AQ$7,Tab_Uderor[TipoReceita],Entrada!$P8) -> 216758.1 | AR8: =SUMIFS(Tab_Uderor[R$],Tab_Uderor[Competencia],Entrada!AR$7,Tab_Uderor[TipoReceita],Entrada!$P8) -> 257842.96 | AS8: =SUMIFS(Tab_Uderor[R$],Tab_Uderor[Competencia],Entrada!AS$7,Tab_Uderor[TipoReceita],Entrada!$P8) -> 280579.9 | AT8: =SUMIFS(Tab_Uderor[R$],Tab_Uderor[Competencia],Entrada!AT$7,Tab_Uderor[TipoReceita],Entrada!$P8) -> 282493.91 | AU8: =SUMIFS(Tab_Uderor[R$],Tab_Uderor[Competencia],Entrada!AU$7,Tab_Uderor[TipoReceita],Entrada!$P8) -> 258474.64 | AV8: =SUMIFS(Tab_Uderor[R$],Tab_Uderor[Competencia],Entrada!AV$7,Tab_Uderor[TipoReceita],Entrada!$P8) -> 202963.19 | AW8: =SUMIFS(Tab_Uderor[R$],Tab_Uderor[Competencia],Entrada!AW$7,Tab_Uderor[TipoReceita],Entrada!$P8) -> 272800.61 | AX8: =SUMIFS(Tab_Uderor[R$],Tab_Uderor[Competencia],Entrada!AX$7,Tab_Uderor[TipoReceita],Entrada!$P8) -> 240183.75 | AY8: =SUMIFS(Tab_Uderor[R$],Tab_Uderor[Competencia],Entrada!AY$7,Tab_Uderor[TipoReceita],Entrada!$P8) -> 311722.88 | AZ8: =SUMIFS(Tab_Uderor[R$],Tab_Uderor[Competencia],Entrada!AZ$7,Tab_Uderor[TipoReceita],Entrada!$P8) -> 297973.71
D9: 45372 | F9: (3) Obrigações Especiais Bruta | G9: =G75*VLOOKUP(DATE(YEAR(CAPA!$C$10),MONTH(CAPA!$C$10)-1,1),Índices!$B$135:$D$638,3,0)/VLOOKUP(DATE(YEAR($G$72),MONTH($G$72)-1,1),Índices!$B$135:$D$638,3,0) -> 950449756.4 | J9: BMP - 610530501; 610550501; 610532501; 610552501; 610530511; 610532511 | K9: Remuneração | L9: =SUMIFS(Tab_RIT_BMP[SALDO],Tab_RIT_BMP[CONTA],610530501,Tab_RIT_BMP[ANO],$L$7)+SUMIFS(Tab_RIT_BMP[SALDO],Tab_RIT_BMP[CONTA],610550501,Tab_RIT_BMP[ANO],$L$7)+ SUMIFS(Tab_RIT_BMP[SALDO],Tab_RIT_BMP[CONTA],610532501,Tab_RIT_BMP[ANO],$L$7)+SUMIFS(Tab_RIT_BMP[SALDO],Tab_RIT_BMP[CONTA],610552501,Tab_RIT_BMP[ANO],$L$7)+ SUMIFS(Tab_RIT_BMP[SALDO],Tab_RIT_BMP[CONTA],610530511,Tab_RIT_BMP[ANO],$L$7)+SUMIFS(Tab_RIT_BMP[SALDO],Tab_RIT_BMP[CONTA],610532511,Tab_RIT_BMP[ANO],$L$7) -> 49809736.98 | M9: =SUMIFS(Tab_RIT_BMP[SALDO],Tab_RIT_BMP[CONTA],610530501,Tab_RIT_BMP[ANO],$M$7)+SUMIFS(Tab_RIT_BMP[SALDO],Tab_RIT_BMP[CONTA],610550501,Tab_RIT_BMP[ANO],$M$7)+ SUMIFS(Tab_RIT_BMP[SALDO],Tab_RIT_BMP[CONTA],610532501,Tab_RIT_BMP[ANO],$M$7)+SUMIFS(Tab_RIT_BMP[SALDO],Tab_RIT_BMP[CONTA],610552501,Tab_RIT_BMP[ANO],$M$7)+ SUMIFS(Tab_RIT_BMP[SALDO],Tab_RIT_BMP[CONTA],610530511,Tab_RIT_BMP[ANO],$M$7)+SUMIFS(Tab_RIT_BMP[SALDO],Tab_RIT_BMP[CONTA],610532511,Tab_RIT_BMP[ANO],$M$7) -> 48828947.72 | P9: Arrecadação de convênios ou valores pela fatura | Q9: =SUMIFS(Tab_Uderor[R$],Tab_Uderor[Competencia],Entrada!Q$7,Tab_Uderor[TipoReceita],Entrada!$P9) -> 299557.86 | R9: =SUMIFS(Tab_Uderor[R$],Tab_Uderor[Competencia],Entrada!R$7,Tab_Uderor[TipoReceita],Entrada!$P9) -> 277038.14 | S9: =SUMIFS(Tab_Uderor[R$],Tab_Uderor[Competencia],Entrada!S$7,Tab_Uderor[TipoReceita],Entrada!$P9) -> 277341.77 | T9: =SUMIFS(Tab_Uderor[R$],Tab_Uderor[Competencia],Entrada!T$7,Tab_Uderor[TipoReceita],Entrada!$P9) -> 286538.93 | U9: =SUMIFS(Tab_Uderor[R$],Tab_Uderor[Competencia],Entrada!U$7,Tab_Uderor[TipoReceita],Entrada!$P9) -> 273405.12 | V9: =SUMIFS(Tab_Uderor[R$],Tab_Uderor[Competencia],Entrada!V$7,Tab_Uderor[TipoReceita],Entrada!$P9) -> 296059.77 | W9: =SUMIFS(Tab_Uderor[R$],Tab_Uderor[Competencia],Entrada!W$7,Tab_Uderor[TipoReceita],Entrada!$P9) -> 275446.72 | X9: =SUMIFS(Tab_Uderor[R$],Tab_Uderor[Competencia],Entrada!X$7,Tab_Uderor[TipoReceita],Entrada!$P9) -> 301838.13 | Y9: =SUMIFS(Tab_Uderor[R$],Tab_Uderor[Competencia],Entrada!Y$7,Tab_Uderor[TipoReceita],Entrada!$P9) -> 316918.63 | Z9: =SUMIFS(Tab_Uderor[R$],Tab_Uderor[Competencia],Entrada!Z$7,Tab_Uderor[TipoReceita],Entrada!$P9) -> 300800.79 | AA9: =SUMIFS(Tab_Uderor[R$],Tab_Uderor[Competencia],Entrada!AA$7,Tab_Uderor[TipoReceita],Entrada!$P9) -> 292891.67 | AB9: =SUMIFS(Tab_Uderor[R$],Tab_Uderor[Competencia],Entrada!AB$7,Tab_Uderor[TipoReceita],Entrada!$P9) -> 319666.17 | AC9: =SUMIFS(Tab_Uderor[R$],Tab_Uderor[Competencia],Entrada!AC$7,Tab_Uderor[TipoReceita],Entrada!$P9) -> 278983.94 | AD9: =SUMIFS(Tab_Uderor[R$],Tab_Uderor[Competencia],Entrada!AD$7,Tab_Uderor[TipoReceita],Entrada!$P9) -> 294021.91 | AE9: =SUMIFS(Tab_Uderor[R$],Tab_Uderor[Competencia],Entrada!AE$7,Tab_Uderor[TipoReceita],Entrada!$P9) -> 309727.54 | AF9: =SUMIFS(Tab_Uderor[R$],Tab_Uderor[Competencia],Entrada!AF$7,Tab_Uderor[TipoReceita],Entrada!$P9) -> 210866.27 | AG9: =SUMIFS(Tab_Uderor[R$],Tab_Uderor[Competencia],Entrada!AG$7,Tab_Uderor[TipoReceita],Entrada!$P9) -> 357483.35 | AH9: =SUMIFS(Tab_Uderor[R$],Tab_Uderor[Competencia],Entrada!AH$7,Tab_Uderor[TipoReceita],Entrada!$P9) -> 313542.35 | AI9: =SUMIFS(Tab_Uderor[R$],Tab_Uderor[Competencia],Entrada!AI$7,Tab_Uderor[TipoReceita],Entrada!$P9) -> 303616.16 | AJ9: =SUMIFS(Tab_Uderor[R$],Tab_Uderor[Competencia],Entrada!AJ$7,Tab_Uderor[TipoReceita],Entrada!$P9) -> 279376.2 | AK9: =SUMIFS(Tab_Uderor[R$],Tab_Uderor[Competencia],Entrada!AK$7,Tab_Uderor[TipoReceita],Entrada!$P9) -> 225400.36 | AL9: =SUMIFS(Tab_Uderor[R$],Tab_Uderor[Competencia],Entrada!AL$7,Tab_Uderor[TipoReceita],Entrada!$P9) -> 278456.87 | AM9: =SUMIFS(Tab_Uderor[R$],Tab_Uderor[Competencia],Entrada!AM$7,Tab_Uderor[TipoReceita],Entrada!$P9) -> 247345.97 | AN9: =SUMIFS(Tab_Uderor[R$],Tab_Uderor[Competencia],Entrada!AN$7,Tab_Uderor[TipoReceita],Entrada!$P9) -> 275447.28 | AO9: =SUMIFS(Tab_Uderor[R$],Tab_Uderor[Competencia],Entrada!AO$7,Tab_Uderor[TipoReceita],Entrada!$P9) -> 265779.25 | AP9: =SUMIFS(Tab_Uderor[R$],Tab_Uderor[Competencia],Entrada!AP$7,Tab_Uderor[TipoReceita],Entrada!$P9) -> 257503.19 | AQ9: =SUMIFS(Tab_Uderor[R$],Tab_Uderor[Competencia],Entrada!AQ$7,Tab_Uderor[TipoReceita],Entrada!$P9) -> 269892.55 | AR9: =SUMIFS(Tab_Uderor[R$],Tab_Uderor[Competencia],Entrada!AR$7,Tab_Uderor[TipoReceita],Entrada!$P9) -> 247180.83 | AS9: =SUMIFS(Tab_Uderor[R$],Tab_Uderor[Competencia],Entrada!AS$7,Tab_Uderor[TipoReceita],Entrada!$P9) -> 268831.66 | AT9: =SUMIFS(Tab_Uderor[R$],Tab_Uderor[Competencia],Entrada!AT$7,Tab_Uderor[TipoReceita],Entrada!$P9) -> 249103.25 | AU9: =SUMIFS(Tab_Uderor[R$],Tab_Uderor[Competencia],Entrada!AU$7,Tab_Uderor[TipoReceita],Entrada!$P9) -> 251754.36 | AV9: =SUMIFS(Tab_Uderor[R$],Tab_Uderor[Competencia],Entrada!AV$7,Tab_Uderor[TipoReceita],Entrada!$P9) -> 271458.6 | AW9: =SUMIFS(Tab_Uderor[R$],Tab_Uderor[Competencia],Entrada!AW$7,Tab_Uderor[TipoReceita],Entrada!$P9) -> 246715.51 | AX9: =SUMIFS(Tab_Uderor[R$],Tab_Uderor[Competencia],Entrada!AX$7,Tab_Uderor[TipoReceita],Entrada!$P9) -> 274549.91 | AY9: =SUMIFS(Tab_Uderor[R$],Tab_Uderor[Competencia],Entrada!AY$7,Tab_Uderor[TipoReceita],Entrada!$P9) -> 274671.3 | AZ9: =SUMIFS(Tab_Uderor[R$],Tab_Uderor[Competencia],Entrada!AZ$7,Tab_Uderor[TipoReceita],Entrada!$P9) -> 233870.25
D10: 45372 | F10: (4) Bens Totalmente Depreciados | G10: =G76*VLOOKUP(DATE(YEAR(CAPA!$C$10),MONTH(CAPA!$C$10)-1,1),Índices!$B$135:$D$638,3,0)/VLOOKUP(DATE(YEAR($G$72),MONTH($G$72)-1,1),Índices!$B$135:$D$638,3,0) -> 751268204.7 | J10: BMP - 610530502; 610550502; 610532502; 610552502 | K10: Encargos | L10: =SUMIFS(Tab_RIT_BMP[SALDO],Tab_RIT_BMP[CONTA],610530502,Tab_RIT_BMP[ANO],$L$7)+SUMIFS(Tab_RIT_BMP[SALDO],Tab_RIT_BMP[CONTA],610550502,Tab_RIT_BMP[ANO],$L$7)+ SUMIFS(Tab_RIT_BMP[SALDO],Tab_RIT_BMP[CONTA],610532502,Tab_RIT_BMP[ANO],$L$7)+SUMIFS(Tab_RIT_BMP[SALDO],Tab_RIT_BMP[CONTA],610552502,Tab_RIT_BMP[ANO],$L$7) -> 30289258.65 | M10: =SUMIFS(Tab_RIT_BMP[SALDO],Tab_RIT_BMP[CONTA],610530502,Tab_RIT_BMP[ANO],$M$7)+SUMIFS(Tab_RIT_BMP[SALDO],Tab_RIT_BMP[CONTA],610550502,Tab_RIT_BMP[ANO],$M$7)+ SUMIFS(Tab_RIT_BMP[SALDO],Tab_RIT_BMP[CONTA],610532502,Tab_RIT_BMP[ANO],$M$7)+SUMIFS(Tab_RIT_BMP[SALDO],Tab_RIT_BMP[CONTA],610552502,Tab_RIT_BMP[ANO],$M$7) -> 34769001.46 | P10: Arrecadação de faturas de terceiros por estrutura própria | Q10: =SUMIFS(Tab_Uderor[R$],Tab_Uderor[Competencia],Entrada!Q$7,Tab_Uderor[TipoReceita],Entrada!$P10) -> 0 | R10: =SUMIFS(Tab_Uderor[R$],Tab_Uderor[Competencia],Entrada!R$7,Tab_Uderor[TipoReceita],Entrada!$P10) -> 0 | S10: =SUMIFS(Tab_Uderor[R$],Tab_Uderor[Competencia],Entrada!S$7,Tab_Uderor[TipoReceita],Entrada!$P10) -> 0 | T10: =SUMIFS(Tab_Uderor[R$],Tab_Uderor[Competencia],Entrada!T$7,Tab_Uderor[TipoReceita],Entrada!$P10) -> 0 | U10: =SUMIFS(Tab_Uderor[R$],Tab_Uderor[Competencia],Entrada!U$7,Tab_Uderor[TipoReceita],Entrada!$P10) -> 0 | V10: =SUMIFS(Tab_Uderor[R$],Tab_Uderor[Competencia],Entrada!V$7,Tab_Uderor[TipoReceita],Entrada!$P10) -> 0 | W10: =SUMIFS(Tab_Uderor[R$],Tab_Uderor[Competencia],Entrada!W$7,Tab_Uderor[TipoReceita],Entrada!$P10) -> 0 | X10: =SUMIFS(Tab_Uderor[R$],Tab_Uderor[Competencia],Entrada!X$7,Tab_Uderor[TipoReceita],Entrada!$P10) -> 0 | Y10: =SUMIFS(Tab_Uderor[R$],Tab_Uderor[Competencia],Entrada!Y$7,Tab_Uderor[TipoReceita],Entrada!$P10) -> 0 | Z10: =SUMIFS(Tab_Uderor[R$],Tab_Uderor[Competencia],Entrada!Z$7,Tab_Uderor[TipoReceita],Entrada!$P10) -> 0 | AA10: =SUMIFS(Tab_Uderor[R$],Tab_Uderor[Competencia],Entrada!AA$7,Tab_Uderor[TipoReceita],Entrada!$P10) -> 0 | AB10: =SUMIFS(Tab_Uderor[R$],Tab_Uderor[Competencia],Entrada!AB$7,Tab_Uderor[TipoReceita],Entrada!$P10) -> 0 | AC10: =SUMIFS(Tab_Uderor[R$],Tab_Uderor[Competencia],Entrada!AC$7,Tab_Uderor[TipoReceita],Entrada!$P10) -> 0 | AD10: =SUMIFS(Tab_Uderor[R$],Tab_Uderor[Competencia],Entrada!AD$7,Tab_Uderor[TipoReceita],Entrada!$P10) -> 0 | AE10: =SUMIFS(Tab_Uderor[R$],Tab_Uderor[Competencia],Entrada!AE$7,Tab_Uderor[TipoReceita],Entrada!$P10) -> 0 | AF10: =SUMIFS(Tab_Uderor[R$],Tab_Uderor[Competencia],Entrada!AF$7,Tab_Uderor[TipoReceita],Entrada!$P10) -> 0 | AG10: =SUMIFS(Tab_Uderor[R$],Tab_Uderor[Competencia],Entrada!AG$7,Tab_Uderor[TipoReceita],Entrada!$P10) -> 0 | AH10: =SUMIFS(Tab_Uderor[R$],Tab_Uderor[Competencia],Entrada!AH$7,Tab_Uderor[TipoReceita],Entrada!$P10) -> 0 | AI10: =SUMIFS(Tab_Uderor[R$],Tab_Uderor[Competencia],Entrada!AI$7,Tab_Uderor[TipoReceita],Entrada!$P10) -> 0 | AJ10: =SUMIFS(Tab_Uderor[R$],Tab_Uderor[Competencia],Entrada!AJ$7,Tab_Uderor[TipoReceita],Entrada!$P10) -> 0 | AK10: =SUMIFS(Tab_Uderor[R$],Tab_Uderor[Competencia],Entrada!AK$7,Tab_Uderor[TipoReceita],Entrada!$P10) -> 0 | AL10: =SUMIFS(Tab_Uderor[R$],Tab_Uderor[Competencia],Entrada!AL$7,Tab_Uderor[TipoReceita],Entrada!$P10) -> 0 | AM10: =SUMIFS(Tab_Uderor[R$],Tab_Uderor[Competencia],Entrada!AM$7,Tab_Uderor[TipoReceita],Entrada!$P10) -> 0 | AN10: =SUMIFS(Tab_Uderor[R$],Tab_Uderor[Competencia],Entrada!AN$7,Tab_Uderor[TipoReceita],Entrada!$P10) -> 0 | AO10: =SUMIFS(Tab_Uderor[R$],Tab_Uderor[Competencia],Entrada!AO$7,Tab_Uderor[TipoReceita],Entrada!$P10) -> 0 | AP10: =SUMIFS(Tab_Uderor[R$],Tab_Uderor[Competencia],Entrada!AP$7,Tab_Uderor[TipoReceita],Entrada!$P10) -> 0 | AQ10: =SUMIFS(Tab_Uderor[R$],Tab_Uderor[Competencia],Entrada!AQ$7,Tab_Uderor[TipoReceita],Entrada!$P10) -> 0 | AR10: =SUMIFS(Tab_Uderor[R$],Tab_Uderor[Competencia],Entrada!AR$7,Tab_Uderor[TipoReceita],Entrada!$P10) -> 0 | AS10: =SUMIFS(Tab_Uderor[R$],Tab_Uderor[Competencia],Entrada!AS$7,Tab_Uderor[TipoReceita],Entrada!$P10) -> 0 | AT10: =SUMIFS(Tab_Uderor[R$],Tab_Uderor[Competencia],Entrada!AT$7,Tab_Uderor[TipoReceita],Entrada!$P10) -> 0 | AU10: =SUMIFS(Tab_Uderor[R$],Tab_Uderor[Competencia],Entrada!AU$7,Tab_Uderor[TipoReceita],Entrada!$P10) -> 0 | AV10: =SUMIFS(Tab_Uderor[R$],Tab_Uderor[Competencia],Entrada!AV$7,Tab_Uderor[TipoReceita],Entrada!$P10) -> 0 | AW10: =SUMIFS(Tab_Uderor[R$],Tab_Uderor[Competencia],Entrada!AW$7,Tab_Uderor[TipoReceita],Entrada!$P10) -> 0 | AX10: =SUMIFS(Tab_Uderor[R$],Tab_Uderor[Competencia],Entrada!AX$7,Tab_Uderor[TipoReceita],Entrada!$P10) -> 0 | AY10: =SUMIFS(Tab_Uderor[R$],Tab_Uderor[Competencia],Entrada!AY$7,Tab_Uderor[TipoReceita],Entrada!$P10) -> 0 | AZ10: =SUMIFS(Tab_Uderor[R$],Tab_Uderor[Competencia],Entrada!AZ$7,Tab_Uderor[TipoReceita],Entrada!$P10) -> 0
F11: (5) Base de Remuneração Bruta = (1)-(2)-(3)-(4) | G11: =G7-G8-G9-G10 -> 5023691505 | J11: BMP - 610530503; 610550503; 610532503; 610552503 | K11: Previdência Privada - Corrente | L11: =SUMIFS(Tab_RIT_BMP[SALDO],Tab_RIT_BMP[CONTA],610530503,Tab_RIT_BMP[ANO],$L$7)+SUMIFS(Tab_RIT_BMP[SALDO],Tab_RIT_BMP[CONTA],610550503,Tab_RIT_BMP[ANO],$L$7)+ SUMIFS(Tab_RIT_BMP[SALDO],Tab_RIT_BMP[CONTA],610532503,Tab_RIT_BMP[ANO],$L$7)+SUMIFS(Tab_RIT_BMP[SALDO],Tab_RIT_BMP[CONTA],610552503,Tab_RIT_BMP[ANO],$L$7) -> 2868986.1 | M11: =SUMIFS(Tab_RIT_BMP[SALDO],Tab_RIT_BMP[CONTA],610530503,Tab_RIT_BMP[ANO],$M$7)+SUMIFS(Tab_RIT_BMP[SALDO],Tab_RIT_BMP[CONTA],610550503,Tab_RIT_BMP[ANO],$M$7)+ SUMIFS(Tab_RIT_BMP[SALDO],Tab_RIT_BMP[CONTA],610532503,Tab_RIT_BMP[ANO],$M$7)+SUMIFS(Tab_RIT_BMP[SALDO],Tab_RIT_BMP[CONTA],610552503,Tab_RIT_BMP[ANO],$M$7) -> 3535435.66 | P11: Veiculação de publicidade | Q11: =SUMIFS(Tab_Uderor[R$],Tab_Uderor[Competencia],Entrada!Q$7,Tab_Uderor[TipoReceita],Entrada!$P11) -> 0 | R11: =SUMIFS(Tab_Uderor[R$],Tab_Uderor[Competencia],Entrada!R$7,Tab_Uderor[TipoReceita],Entrada!$P11) -> 0 | S11: =SUMIFS(Tab_Uderor[R$],Tab_Uderor[Competencia],Entrada!S$7,Tab_Uderor[TipoReceita],Entrada!$P11) -> 0 | T11: =SUMIFS(Tab_Uderor[R$],Tab_Uderor[Competencia],Entrada!T$7,Tab_Uderor[TipoReceita],Entrada!$P11) -> 0 | U11: =SUMIFS(Tab_Uderor[R$],Tab_Uderor[Competencia],Entrada!U$7,Tab_Uderor[TipoReceita],Entrada!$P11) -> 0 | V11: =SUMIFS(Tab_Uderor[R$],Tab_Uderor[Competencia],Entrada!V$7,Tab_Uderor[TipoReceita],Entrada!$P11) -> 0 | W11: =SUMIFS(Tab_Uderor[R$],Tab_Uderor[Competencia],Entrada!W$7,Tab_Uderor[TipoReceita],Entrada!$P11) -> 0 | X11: =SUMIFS(Tab_Uderor[R$],Tab_Uderor[Competencia],Entrada!X$7,Tab_Uderor[TipoReceita],Entrada!$P11) -> 0 | Y11: =SUMIFS(Tab_Uderor[R$],Tab_Uderor[Competencia],Entrada!Y$7,Tab_Uderor[TipoReceita],Entrada!$P11) -> 0 | Z11: =SUMIFS(Tab_Uderor[R$],Tab_Uderor[Competencia],Entrada!Z$7,Tab_Uderor[TipoReceita],Entrada!$P11) -> 0 | AA11: =SUMIFS(Tab_Uderor[R$],Tab_Uderor[Competencia],Entrada!AA$7,Tab_Uderor[TipoReceita],Entrada!$P11) -> 0 | AB11: =SUMIFS(Tab_Uderor[R$],Tab_Uderor[Competencia],Entrada!AB$7,Tab_Uderor[TipoReceita],Entrada!$P11) -> 0 | AC11: =SUMIFS(Tab_Uderor[R$],Tab_Uderor[Competencia],Entrada!AC$7,Tab_Uderor[TipoReceita],Entrada!$P11) -> 0 | AD11: =SUMIFS(Tab_Uderor[R$],Tab_Uderor[Competencia],Entrada!AD$7,Tab_Uderor[TipoReceita],Entrada!$P11) -> 0 | AE11: =SUMIFS(Tab_Uderor[R$],Tab_Uderor[Competencia],Entrada!AE$7,Tab_Uderor[TipoReceita],Entrada!$P11) -> 0 | AF11: =SUMIFS(Tab_Uderor[R$],Tab_Uderor[Competencia],Entrada!AF$7,Tab_Uderor[TipoReceita],Entrada!$P11) -> 0 | AG11: =SUMIFS(Tab_Uderor[R$],Tab_Uderor[Competencia],Entrada!AG$7,Tab_Uderor[TipoReceita],Entrada!$P11) -> 0 | AH11: =SUMIFS(Tab_Uderor[R$],Tab_Uderor[Competencia],Entrada!AH$7,Tab_Uderor[TipoReceita],Entrada!$P11) -> 0 | AI11: =SUMIFS(Tab_Uderor[R$],Tab_Uderor[Competencia],Entrada!AI$7,Tab_Uderor[TipoReceita],Entrada!$P11) -> 0 | AJ11: =SUMIFS(Tab_Uderor[R$],Tab_Uderor[Competencia],Entrada!AJ$7,Tab_Uderor[TipoReceita],Entrada!$P11) -> 0 | AK11: =SUMIFS(Tab_Uderor[R$],Tab_Uderor[Competencia],Entrada!AK$7,Tab_Uderor[TipoReceita],Entrada!$P11) -> 0 | AL11: =SUMIFS(Tab_Uderor[R$],Tab_Uderor[Competencia],Entrada!AL$7,Tab_Uderor[TipoReceita],Entrada!$P11) -> 0 | AM11: =SUMIFS(Tab_Uderor[R$],Tab_Uderor[Competencia],Entrada!AM$7,Tab_Uderor[TipoReceita],Entrada!$P11) -> 0 | AN11: =SUMIFS(Tab_Uderor[R$],Tab_Uderor[Competencia],Entrada!AN$7,Tab_Uderor[TipoReceita],Entrada!$P11) -> 0 | AO11: =SUMIFS(Tab_Uderor[R$],Tab_Uderor[Competencia],Entrada!AO$7,Tab_Uderor[TipoReceita],Entrada!$P11) -> 0 | AP11: =SUMIFS(Tab_Uderor[R$],Tab_Uderor[Competencia],Entrada!AP$7,Tab_Uderor[TipoReceita],Entrada!$P11) -> 0 | AQ11: =SUMIFS(Tab_Uderor[R$],Tab_Uderor[Competencia],Entrada!AQ$7,Tab_Uderor[TipoReceita],Entrada!$P11) -> 0 | AR11: =SUMIFS(Tab_Uderor[R$],Tab_Uderor[Competencia],Entrada!AR$7,Tab_Uderor[TipoReceita],Entrada!$P11) -> 0 | AS11: =SUMIFS(Tab_Uderor[R$],Tab_Uderor[Competencia],Entrada!AS$7,Tab_Uderor[TipoReceita],Entrada!$P11) -> 0 | AT11: =SUMIFS(Tab_Uderor[R$],Tab_Uderor[Competencia],Entrada!AT$7,Tab_Uderor[TipoReceita],Entrada!$P11) -> 0 | AU11: =SUMIFS(Tab_Uderor[R$],Tab_Uderor[Competencia],Entrada!AU$7,Tab_Uderor[TipoReceita],Entrada!$P11) -> 0 | AV11: =SUMIFS(Tab_Uderor[R$],Tab_Uderor[Competencia],Entrada!AV$7,Tab_Uderor[TipoReceita],Entrada!$P11) -> 0 | AW11: =SUMIFS(Tab_Uderor[R$],Tab_Uderor[Competencia],Entrada!AW$7,Tab_Uderor[TipoReceita],Entrada!$P11) -> 0 | AX11: =SUMIFS(Tab_Uderor[R$],Tab_Uderor[Competencia],Entrada!AX$7,Tab_Uderor[TipoReceita],Entrada!$P11) -> 0 | AY11: =SUMIFS(Tab_Uderor[R$],Tab_Uderor[Competencia],Entrada!AY$7,Tab_Uderor[TipoReceita],Entrada!$P11) -> 0 | AZ11: =SUMIFS(Tab_Uderor[R$],Tab_Uderor[Competencia],Entrada!AZ$7,Tab_Uderor[TipoReceita],Entrada!$P11) -> 0
F12: (6) Depreciação Acumulada | G12: =G78*VLOOKUP(DATE(YEAR(CAPA!$C$10),MONTH(CAPA!$C$10)-1,1),Índices!$B$135:$D$638,3,0)/VLOOKUP(DATE(YEAR($G$72),MONTH($G$72)-1,1),Índices!$B$135:$D$638,3,0) -> 3338899149 | J12: BMP - 610530508; 610550508; 610532508; 610552508 | K12: Outros Benefícios | L12: =SUMIFS(Tab_RIT_BMP[SALDO],Tab_RIT_BMP[CONTA],610530508,Tab_RIT_BMP[ANO],$L$7)+SUMIFS(Tab_RIT_BMP[SALDO],Tab_RIT_BMP[CONTA],610550508,Tab_RIT_BMP[ANO],$L$7)+ SUMIFS(Tab_RIT_BMP[SALDO],Tab_RIT_BMP[CONTA],610532508,Tab_RIT_BMP[ANO],$L$7)+SUMIFS(Tab_RIT_BMP[SALDO],Tab_RIT_BMP[CONTA],610552508,Tab_RIT_BMP[ANO],$L$7) -> 40020445.88 | M12: =SUMIFS(Tab_RIT_BMP[SALDO],Tab_RIT_BMP[CONTA],610530508,Tab_RIT_BMP[ANO],$M$7)+SUMIFS(Tab_RIT_BMP[SALDO],Tab_RIT_BMP[CONTA],610550508,Tab_RIT_BMP[ANO],$M$7)+ SUMIFS(Tab_RIT_BMP[SALDO],Tab_RIT_BMP[CONTA],610532508,Tab_RIT_BMP[ANO],$M$7)+SUMIFS(Tab_RIT_BMP[SALDO],Tab_RIT_BMP[CONTA],610552508,Tab_RIT_BMP[ANO],$M$7) -> 48326495.45 | P12: Aluguel ou cessão onerosa de imóveis e espaços físicos | Q12: =SUMIFS(Tab_Uderor[R$],Tab_Uderor[Competencia],Entrada!Q$7,Tab_Uderor[TipoReceita],Entrada!$P12) -> 0 | R12: =SUMIFS(Tab_Uderor[R$],Tab_Uderor[Competencia],Entrada!R$7,Tab_Uderor[TipoReceita],Entrada!$P12) -> 0 | S12: =SUMIFS(Tab_Uderor[R$],Tab_Uderor[Competencia],Entrada!S$7,Tab_Uderor[TipoReceita],Entrada!$P12) -> 0 | T12: =SUMIFS(Tab_Uderor[R$],Tab_Uderor[Competencia],Entrada!T$7,Tab_Uderor[TipoReceita],Entrada!$P12) -> 0 | U12: =SUMIFS(Tab_Uderor[R$],Tab_Uderor[Competencia],Entrada!U$7,Tab_Uderor[TipoReceita],Entrada!$P12) -> 0 | V12: =SUMIFS(Tab_Uderor[R$],Tab_Uderor[Competencia],Entrada!V$7,Tab_Uderor[TipoReceita],Entrada!$P12) -> 0 | W12: =SUMIFS(Tab_Uderor[R$],Tab_Uderor[Competencia],Entrada!W$7,Tab_Uderor[TipoReceita],Entrada!$P12) -> 0 | X12: =SUMIFS(Tab_Uderor[R$],Tab_Uderor[Competencia],Entrada!X$7,Tab_Uderor[TipoReceita],Entrada!$P12) -> 0 | Y12: =SUMIFS(Tab_Uderor[R$],Tab_Uderor[Competencia],Entrada!Y$7,Tab_Uderor[TipoReceita],Entrada!$P12) -> 0 | Z12: =SUMIFS(Tab_Uderor[R$],Tab_Uderor[Competencia],Entrada!Z$7,Tab_Uderor[TipoReceita],Entrada!$P12) -> 0 | AA12: =SUMIFS(Tab_Uderor[R$],Tab_Uderor[Competencia],Entrada!AA$7,Tab_Uderor[TipoReceita],Entrada!$P12) -> 0 | AB12: =SUMIFS(Tab_Uderor[R$],Tab_Uderor[Competencia],Entrada!AB$7,Tab_Uderor[TipoReceita],Entrada!$P12) -> 0 | AC12: =SUMIFS(Tab_Uderor[R$],Tab_Uderor[Competencia],Entrada!AC$7,Tab_Uderor[TipoReceita],Entrada!$P12) -> 0 | AD12: =SUMIFS(Tab_Uderor[R$],Tab_Uderor[Competencia],Entrada!AD$7,Tab_Uderor[TipoReceita],Entrada!$P12) -> 0 | AE12: =SUMIFS(Tab_Uderor[R$],Tab_Uderor[Competencia],Entrada!AE$7,Tab_Uderor[TipoReceita],Entrada!$P12) -> 0 | AF12: =SUMIFS(Tab_Uderor[R$],Tab_Uderor[Competencia],Entrada!AF$7,Tab_Uderor[TipoReceita],Entrada!$P12) -> 0 | AG12: =SUMIFS(Tab_Uderor[R$],Tab_Uderor[Competencia],Entrada!AG$7,Tab_Uderor[TipoReceita],Entrada!$P12) -> 0 | AH12: =SUMIFS(Tab_Uderor[R$],Tab_Uderor[Competencia],Entrada!AH$7,Tab_Uderor[TipoReceita],Entrada!$P12) -> 0 | AI12: =SUMIFS(Tab_Uderor[R$],Tab_Uderor[Competencia],Entrada!AI$7,Tab_Uderor[TipoReceita],Entrada!$P12) -> 0 | AJ12: =SUMIFS(Tab_Uderor[R$],Tab_Uderor[Competencia],Entrada!AJ$7,Tab_Uderor[TipoReceita],Entrada!$P12) -> 0 | AK12: =SUMIFS(Tab_Uderor[R$],Tab_Uderor[Competencia],Entrada!AK$7,Tab_Uderor[TipoReceita],Entrada!$P12) -> 0 | AL12: =SUMIFS(Tab_Uderor[R$],Tab_Uderor[Competencia],Entrada!AL$7,Tab_Uderor[TipoReceita],Entrada!$P12) -> 0 | AM12: =SUMIFS(Tab_Uderor[R$],Tab_Uderor[Competencia],Entrada!AM$7,Tab_Uderor[TipoReceita],Entrada!$P12) -> 0 | AN12: =SUMIFS(Tab_Uderor[R$],Tab_Uderor[Competencia],Entrada!AN$7,Tab_Uderor[TipoReceita],Entrada!$P12) -> 0 | AO12: =SUMIFS(Tab_Uderor[R$],Tab_Uderor[Competencia],Entrada!AO$7,Tab_Uderor[TipoReceita],Entrada!$P12) -> 0 | AP12: =SUMIFS(Tab_Uderor[R$],Tab_Uderor[Competencia],Entrada!AP$7,Tab_Uderor[TipoReceita],Entrada!$P12) -> 0 | AQ12: =SUMIFS(Tab_Uderor[R$],Tab_Uderor[Competencia],Entrada!AQ$7,Tab_Uderor[TipoReceita],Entrada!$P12) -> 0 | AR12: =SUMIFS(Tab_Uderor[R$],Tab_Uderor[Competencia],Entrada!AR$7,Tab_Uderor[TipoReceita],Entrada!$P12) -> 0 | AS12: =SUMIFS(Tab_Uderor[R$],Tab_Uderor[Competencia],Entrada!AS$7,Tab_Uderor[TipoReceita],Entrada!$P12) -> 0 | AT12: =SUMIFS(Tab_Uderor[R$],Tab_Uderor[Competencia],Entrada!AT$7,Tab_Uderor[TipoReceita],Entrada!$P12) -> 0 | AU12: =SUMIFS(Tab_Uderor[R$],Tab_Uderor[Competencia],Entrada!AU$7,Tab_Uderor[TipoReceita],Entrada!$P12) -> 0 | AV12: =SUMIFS(Tab_Uderor[R$],Tab_Uderor[Competencia],Entrada!AV$7,Tab_Uderor[TipoReceita],Entrada!$P12) -> 0 | AW12: =SUMIFS(Tab_Uderor[R$],Tab_Uderor[Competencia],Entrada!AW$7,Tab_Uderor[TipoReceita],Entrada!$P12) -> 0 | AX12: =SUMIFS(Tab_Uderor[R$],Tab_Uderor[Competencia],Entrada!AX$7,Tab_Uderor[TipoReceita],Entrada!$P12) -> 0 | AY12: =SUMIFS(Tab_Uderor[R$],Tab_Uderor[Competencia],Entrada!AY$7,Tab_Uderor[TipoReceita],Entrada!$P12) -> 0 | AZ12: =SUMIFS(Tab_Uderor[R$],Tab_Uderor[Competencia],Entrada!AZ$7,Tab_Uderor[TipoReceita],Entrada!$P12) -> 0
F13: (7) AIS Líquido (Valor de Mercado em Uso) | G13: =G7-G12 -> 3395672011 | J13: BMP - 610530506; 610550506; 610532506; 610552506 | K13: Despesas Rescisórias | L13: =SUMIFS(Tab_RIT_BMP[SALDO],Tab_RIT_BMP[CONTA],610530506,Tab_RIT_BMP[ANO],$L$7)+SUMIFS(Tab_RIT_BMP[SALDO],Tab_RIT_BMP[CONTA],610550506,Tab_RIT_BMP[ANO],$L$7)+ SUMIFS(Tab_RIT_BMP[SALDO],Tab_RIT_BMP[CONTA],610532506,Tab_RIT_BMP[ANO],$L$7)+SUMIFS(Tab_RIT_BMP[SALDO],Tab_RIT_BMP[CONTA],610552506,Tab_RIT_BMP[ANO],$L$7) -> 0 | M13: =SUMIFS(Tab_RIT_BMP[SALDO],Tab_RIT_BMP[CONTA],610530506,Tab_RIT_BMP[ANO],$M$7)+SUMIFS(Tab_RIT_BMP[SALDO],Tab_RIT_BMP[CONTA],610550506,Tab_RIT_BMP[ANO],$M$7)+ SUMIFS(Tab_RIT_BMP[SALDO],Tab_RIT_BMP[CONTA],610532506,Tab_RIT_BMP[ANO],$M$7)+SUMIFS(Tab_RIT_BMP[SALDO],Tab_RIT_BMP[CONTA],610552506,Tab_RIT_BMP[ANO],$M$7) -> 0 | P13: Compartilhamento de infraestrutura | Q13: =SUMIFS(Tab_Uderor[R$],Tab_Uderor[Competencia],Entrada!Q$7,Tab_Uderor[TipoReceita],Entrada!$P13) -> 2188417.57 | R13: =SUMIFS(Tab_Uderor[R$],Tab_Uderor[Competencia],Entrada!R$7,Tab_Uderor[TipoReceita],Entrada!$P13) -> 2237404.77 | S13: =SUMIFS(Tab_Uderor[R$],Tab_Uderor[Competencia],Entrada!S$7,Tab_Uderor[TipoReceita],Entrada!$P13) -> 2294064.73 | T13: =SUMIFS(Tab_Uderor[R$],Tab_Uderor[Competencia],Entrada!T$7,Tab_Uderor[TipoReceita],Entrada!$P13) -> 1959271.13 | U13: =SUMIFS(Tab_Uderor[R$],Tab_Uderor[Competencia],Entrada!U$7,Tab_Uderor[TipoReceita],Entrada!$P13) -> 3615838.66 | V13: =SUMIFS(Tab_Uderor[R$],Tab_Uderor[Competencia],Entrada!V$7,Tab_Uderor[TipoReceita],Entrada!$P13) -> 1985969.23 | W13: =SUMIFS(Tab_Uderor[R$],Tab_Uderor[Competencia],Entrada!W$7,Tab_Uderor[TipoReceita],Entrada!$P13) -> 1900977.32 | X13: =SUMIFS(Tab_Uderor[R$],Tab_Uderor[Competencia],Entrada!X$7,Tab_Uderor[TipoReceita],Entrada!$P13) -> 2780981.96 | Y13: =SUMIFS(Tab_Uderor[R$],Tab_Uderor[Competencia],Entrada!Y$7,Tab_Uderor[TipoReceita],Entrada!$P13) -> 2776037.95 | Z13: =SUMIFS(Tab_Uderor[R$],Tab_Uderor[Competencia],Entrada!Z$7,Tab_Uderor[TipoReceita],Entrada!$P13) -> 2777638.54 | AA13: =SUMIFS(Tab_Uderor[R$],Tab_Uderor[Competencia],Entrada!AA$7,Tab_Uderor[TipoReceita],Entrada!$P13) -> 2017157.72 | AB13: =SUMIFS(Tab_Uderor[R$],Tab_Uderor[Competencia],Entrada!AB$7,Tab_Uderor[TipoReceita],Entrada!$P13) -> 2824250.6 | AC13: =SUMIFS(Tab_Uderor[R$],Tab_Uderor[Competencia],Entrada!AC$7,Tab_Uderor[TipoReceita],Entrada!$P13) -> 3374115.23 | AD13: =SUMIFS(Tab_Uderor[R$],Tab_Uderor[Competencia],Entrada!AD$7,Tab_Uderor[TipoReceita],Entrada!$P13) -> 1839361.75 | AE13: =SUMIFS(Tab_Uderor[R$],Tab_Uderor[Competencia],Entrada!AE$7,Tab_Uderor[TipoReceita],Entrada!$P13) -> 2651332.22 | AF13: =SUMIFS(Tab_Uderor[R$],Tab_Uderor[Competencia],Entrada!AF$7,Tab_Uderor[TipoReceita],Entrada!$P13) -> 2630812.39 | AG13: =SUMIFS(Tab_Uderor[R$],Tab_Uderor[Competencia],Entrada!AG$7,Tab_Uderor[TipoReceita],Entrada!$P13) -> 3042368.27 | AH13: =SUMIFS(Tab_Uderor[R$],Tab_Uderor[Competencia],Entrada!AH$7,Tab_Uderor[TipoReceita],Entrada!$P13) -> 3702060.94 | AI13: =SUMIFS(Tab_Uderor[R$],Tab_Uderor[Competencia],Entrada!AI$7,Tab_Uderor[TipoReceita],Entrada!$P13) -> 1540667.3 | AJ13: =SUMIFS(Tab_Uderor[R$],Tab_Uderor[Competencia],Entrada!AJ$7,Tab_Uderor[TipoReceita],Entrada!$P13) -> 2036772.49 | AK13: =SUMIFS(Tab_Uderor[R$],Tab_Uderor[Competencia],Entrada!AK$7,Tab_Uderor[TipoReceita],Entrada!$P13) -> 2443612.7 | AL13: =SUMIFS(Tab_Uderor[R$],Tab_Uderor[Competencia],Entrada!AL$7,Tab_Uderor[TipoReceita],Entrada!$P13) -> 2224561.05 | AM13: =SUMIFS(Tab_Uderor[R$],Tab_Uderor[Competencia],Entrada!AM$7,Tab_Uderor[TipoReceita],Entrada!$P13) -> 2834459.41 | AN13: =SUMIFS(Tab_Uderor[R$],Tab_Uderor[Competencia],Entrada!AN$7,Tab_Uderor[TipoReceita],Entrada!$P13) -> 1660978.28 | AO13: =SUMIFS(Tab_Uderor[R$],Tab_Uderor[Competencia],Entrada!AO$7,Tab_Uderor[TipoReceita],Entrada!$P13) -> 2202680.78 | AP13: =SUMIFS(Tab_Uderor[R$],Tab_Uderor[Competencia],Entrada!AP$7,Tab_Uderor[TipoReceita],Entrada!$P13) -> 2371542.76 | AQ13: =SUMIFS(Tab_Uderor[R$],Tab_Uderor[Competencia],Entrada!AQ$7,Tab_Uderor[TipoReceita],Entrada!$P13) -> 2358428.57 | AR13: =SUMIFS(Tab_Uderor[R$],Tab_Uderor[Competencia],Entrada!AR$7,Tab_Uderor[TipoReceita],Entrada!$P13) -> 2348343.23 | AS13: =SUMIFS(Tab_Uderor[R$],Tab_Uderor[Competencia],Entrada!AS$7,Tab_Uderor[TipoReceita],Entrada!$P13) -> 2336505.12 | AT13: =SUMIFS(Tab_Uderor[R$],Tab_Uderor[Competencia],Entrada!AT$7,Tab_Uderor[TipoReceita],Entrada!$P13) -> 2330754.48 | AU13: =SUMIFS(Tab_Uderor[R$],Tab_Uderor[Competencia],Entrada!AU$7,Tab_Uderor[TipoReceita],Entrada!$P13) -> 2270480.33 | AV13: =SUMIFS(Tab_Uderor[R$],Tab_Uderor[Competencia],Entrada!AV$7,Tab_Uderor[TipoReceita],Entrada!$P13) -> 2182588.67 | AW13: =SUMIFS(Tab_Uderor[R$],Tab_Uderor[Competencia],Entrada!AW$7,Tab_Uderor[TipoReceita],Entrada!$P13) -> 2111632.41 | AX13: =SUMIFS(Tab_Uderor[R$],Tab_Uderor[Competencia],Entrada!AX$7,Tab_Uderor[TipoReceita],Entrada!$P13) -> 2299543.08 | AY13: =SUMIFS(Tab_Uderor[R$],Tab_Uderor[Competencia],Entrada!AY$7,Tab_Uderor[TipoReceita],Entrada!$P13) -> 1905119.51 | AZ13: =SUMIFS(Tab_Uderor[R$],Tab_Uderor[Competencia],Entrada!AZ$7,Tab_Uderor[TipoReceita],Entrada!$P13) -> 2085387.37
F14: (8) Índice de Aproveitamento Depreciado | G14: =G80*VLOOKUP(DATE(YEAR(CAPA!$C$10),MONTH(CAPA!$C$10)-1,1),Índices!$B$135:$D$638,3,0)/VLOOKUP(DATE(YEAR($G$72),MONTH($G$72)-1,1),Índices!$B$135:$D$638,3,0) -> 7081105.407 | J14: BMP - 610530507; 610550507; 610532507; 610552507 | K14: Participação nos Lucros e Resultados - PLR | L14: =SUMIFS(Tab_RIT_BMP[SALDO],Tab_RIT_BMP[CONTA],610530507,Tab_RIT_BMP[ANO],$L$7)+SUMIFS(Tab_RIT_BMP[SALDO],Tab_RIT_BMP[CONTA],610550507,Tab_RIT_BMP[ANO],$L$7)+SUMIFS(Tab_RIT_BMP[SALDO],Tab_RIT_BMP[CONTA],610532507,Tab_RIT_BMP[ANO],$L$7)+SUMIFS(Tab_RIT_BMP[SALDO],Tab_RIT_BMP[CONTA],610552507,Tab_RIT_BMP[ANO],$L$7) -> 15877728.7 | M14: =SUMIFS(Tab_RIT_BMP[SALDO],Tab_RIT_BMP[CONTA],610530507,Tab_RIT_BMP[ANO],$M$7)+SUMIFS(Tab_RIT_BMP[SALDO],Tab_RIT_BMP[CONTA],610550507,Tab_RIT_BMP[ANO],$M$7)+ SUMIFS(Tab_RIT_BMP[SALDO],Tab_RIT_BMP[CONTA],610532507,Tab_RIT_BMP[ANO],$M$7)+SUMIFS(Tab_RIT_BMP[SALDO],Tab_RIT_BMP[CONTA],610552507,Tab_RIT_BMP[ANO],$M$7) -> 25809335.93 | P14: Serviços de avaliação técnica e aferição de medidores. | Q14: =SUMIFS(Tab_Uderor[R$],Tab_Uderor[Competencia],Entrada!Q$7,Tab_Uderor[TipoReceita],Entrada!$P14) -> 0 | R14: =SUMIFS(Tab_Uderor[R$],Tab_Uderor[Competencia],Entrada!R$7,Tab_Uderor[TipoReceita],Entrada!$P14) -> 0 | S14: =SUMIFS(Tab_Uderor[R$],Tab_Uderor[Competencia],Entrada!S$7,Tab_Uderor[TipoReceita],Entrada!$P14) -> 0 | T14: =SUMIFS(Tab_Uderor[R$],Tab_Uderor[Competencia],Entrada!T$7,Tab_Uderor[TipoReceita],Entrada!$P14) -> 0 | U14: =SUMIFS(Tab_Uderor[R$],Tab_Uderor[Competencia],Entrada!U$7,Tab_Uderor[TipoReceita],Entrada!$P14) -> 0 | V14: =SUMIFS(Tab_Uderor[R$],Tab_Uderor[Competencia],Entrada!V$7,Tab_Uderor[TipoReceita],Entrada!$P14) -> 0 | W14: =SUMIFS(Tab_Uderor[R$],Tab_Uderor[Competencia],Entrada!W$7,Tab_Uderor[TipoReceita],Entrada!$P14) -> 0 | X14: =SUMIFS(Tab_Uderor[R$],Tab_Uderor[Competencia],Entrada!X$7,Tab_Uderor[TipoReceita],Entrada!$P14) -> 0 | Y14: =SUMIFS(Tab_Uderor[R$],Tab_Uderor[Competencia],Entrada!Y$7,Tab_Uderor[TipoReceita],Entrada!$P14) -> 0 | Z14: =SUMIFS(Tab_Uderor[R$],Tab_Uderor[Competencia],Entrada!Z$7,Tab_Uderor[TipoReceita],Entrada!$P14) -> 0 | AA14: =SUMIFS(Tab_Uderor[R$],Tab_Uderor[Competencia],Entrada!AA$7,Tab_Uderor[TipoReceita],Entrada!$P14) -> 0 | AB14: =SUMIFS(Tab_Uderor[R$],Tab_Uderor[Competencia],Entrada!AB$7,Tab_Uderor[TipoReceita],Entrada!$P14) -> 0 | AC14: =SUMIFS(Tab_Uderor[R$],Tab_Uderor[Competencia],Entrada!AC$7,Tab_Uderor[TipoReceita],Entrada!$P14) -> 0 | AD14: =SUMIFS(Tab_Uderor[R$],Tab_Uderor[Competencia],Entrada!AD$7,Tab_Uderor[TipoReceita],Entrada!$P14) -> 0 | AE14: =SUMIFS(Tab_Uderor[R$],Tab_Uderor[Competencia],Entrada!AE$7,Tab_Uderor[TipoReceita],Entrada!$P14) -> 0 | AF14: =SUMIFS(Tab_Uderor[R$],Tab_Uderor[Competencia],Entrada!AF$7,Tab_Uderor[TipoReceita],Entrada!$P14) -> 0 | AG14: =SUMIFS(Tab_Uderor[R$],Tab_Uderor[Competencia],Entrada!AG$7,Tab_Uderor[TipoReceita],Entrada!$P14) -> 0 | AH14: =SUMIFS(Tab_Uderor[R$],Tab_Uderor[Competencia],Entrada!AH$7,Tab_Uderor[TipoReceita],Entrada!$P14) -> 0 | AI14: =SUMIFS(Tab_Uderor[R$],Tab_Uderor[Competencia],Entrada!AI$7,Tab_Uderor[TipoReceita],Entrada!$P14) -> 0 | AJ14: =SUMIFS(Tab_Uderor[R$],Tab_Uderor[Competencia],Entrada!AJ$7,Tab_Uderor[TipoReceita],Entrada!$P14) -> 0 | AK14: =SUMIFS(Tab_Uderor[R$],Tab_Uderor[Competencia],Entrada!AK$7,Tab_Uderor[TipoReceita],Entrada!$P14) -> 0 | AL14: =SUMIFS(Tab_Uderor[R$],Tab_Uderor[Competencia],Entrada!AL$7,Tab_Uderor[TipoReceita],Entrada!$P14) -> 0 | AM14: =SUMIFS(Tab_Uderor[R$],Tab_Uderor[Competencia],Entrada!AM$7,Tab_Uderor[TipoReceita],Entrada!$P14) -> 0 | AN14: =SUMIFS(Tab_Uderor[R$],Tab_Uderor[Competencia],Entrada!AN$7,Tab_Uderor[TipoReceita],Entrada!$P14) -> 0 | AO14: =SUMIFS(Tab_Uderor[R$],Tab_Uderor[Competencia],Entrada!AO$7,Tab_Uderor[TipoReceita],Entrada!$P14) -> 0 | AP14: =SUMIFS(Tab_Uderor[R$],Tab_Uderor[Competencia],Entrada!AP$7,Tab_Uderor[TipoReceita],Entrada!$P14) -> 0 | AQ14: =SUMIFS(Tab_Uderor[R$],Tab_Uderor[Competencia],Entrada!AQ$7,Tab_Uderor[TipoReceita],Entrada!$P14) -> 0 | AR14: =SUMIFS(Tab_Uderor[R$],Tab_Uderor[Competencia],Entrada!AR$7,Tab_Uderor[TipoReceita],Entrada!$P14) -> 0 | AS14: =SUMIFS(Tab_Uderor[R$],Tab_Uderor[Competencia],Entrada!AS$7,Tab_Uderor[TipoReceita],Entrada!$P14) -> 0 | AT14: =SUMIFS(Tab_Uderor[R$],Tab_Uderor[Competencia],Entrada!AT$7,Tab_Uderor[TipoReceita],Entrada!$P14) -> 0 | AU14: =SUMIFS(Tab_Uderor[R$],Tab_Uderor[Competencia],Entrada!AU$7,Tab_Uderor[TipoReceita],Entrada!$P14) -> 0 | AV14: =SUMIFS(Tab_Uderor[R$],Tab_Uderor[Competencia],Entrada!AV$7,Tab_Uderor[TipoReceita],Entrada!$P14) -> 0 | AW14: =SUMIFS(Tab_Uderor[R$],Tab_Uderor[Competencia],Entrada!AW$7,Tab_Uderor[TipoReceita],Entrada!$P14) -> 0 | AX14: =SUMIFS(Tab_Uderor[R$],Tab_Uderor[Competencia],Entrada!AX$7,Tab_Uderor[TipoReceita],Entrada!$P14) -> 0 | AY14: =SUMIFS(Tab_Uderor[R$],Tab_Uderor[Competencia],Entrada!AY$7,Tab_Uderor[TipoReceita],Entrada!$P14) -> 0 | AZ14: =SUMIFS(Tab_Uderor[R$],Tab_Uderor[Competencia],Entrada!AZ$7,Tab_Uderor[TipoReceita],Entrada!$P14) -> 0
F15: (9) Valor da Base de Remuneração (VBR) | G15: =G13-G14 -> 3388590905 | J15: BMP - 610530599; 610550599; 610532599; 610552599 | K15: Outros | L15: =SUMIFS(Tab_RIT_BMP[SALDO],Tab_RIT_BMP[CONTA],610530599,Tab_RIT_BMP[ANO],$L$7)+SUMIFS(Tab_RIT_BMP[SALDO],Tab_RIT_BMP[CONTA],610550599,Tab_RIT_BMP[ANO],$L$7)+ SUMIFS(Tab_RIT_BMP[SALDO],Tab_RIT_BMP[CONTA],610532599,Tab_RIT_BMP[ANO],$L$7)+SUMIFS(Tab_RIT_BMP[SALDO],Tab_RIT_BMP[CONTA],610552599,Tab_RIT_BMP[ANO],$L$7) -> 0 | M15: =SUMIFS(Tab_RIT_BMP[SALDO],Tab_RIT_BMP[CONTA],610530599,Tab_RIT_BMP[ANO],$M$7)+SUMIFS(Tab_RIT_BMP[SALDO],Tab_RIT_BMP[CONTA],610550599,Tab_RIT_BMP[ANO],$M$7)+ SUMIFS(Tab_RIT_BMP[SALDO],Tab_RIT_BMP[CONTA],610532599,Tab_RIT_BMP[ANO],$M$7)+SUMIFS(Tab_RIT_BMP[SALDO],Tab_RIT_BMP[CONTA],610552599,Tab_RIT_BMP[ANO],$M$7) -> 0 | P15: Operacionalização de serviço de créditos tributários | Q15: =SUMIFS(Tab_Uderor[R$],Tab_Uderor[Competencia],Entrada!Q$7,Tab_Uderor[TipoReceita],Entrada!$P15) -> 0 | R15: =SUMIFS(Tab_Uderor[R$],Tab_Uderor[Competencia],Entrada!R$7,Tab_Uderor[TipoReceita],Entrada!$P15) -> 0 | S15: =SUMIFS(Tab_Uderor[R$],Tab_Uderor[Competencia],Entrada!S$7,Tab_Uderor[TipoReceita],Entrada!$P15) -> 0 | T15: =SUMIFS(Tab_Uderor[R$],Tab_Uderor[Competencia],Entrada!T$7,Tab_Uderor[TipoReceita],Entrada!$P15) -> 0 | U15: =SUMIFS(Tab_Uderor[R$],Tab_Uderor[Competencia],Entrada!U$7,Tab_Uderor[TipoReceita],Entrada!$P15) -> 0 | V15: =SUMIFS(Tab_Uderor[R$],Tab_Uderor[Competencia],Entrada!V$7,Tab_Uderor[TipoReceita],Entrada!$P15) -> 0 | W15: =SUMIFS(Tab_Uderor[R$],Tab_Uderor[Competencia],Entrada!W$7,Tab_Uderor[TipoReceita],Entrada!$P15) -> 0 | X15: =SUMIFS(Tab_Uderor[R$],Tab_Uderor[Competencia],Entrada!X$7,Tab_Uderor[TipoReceita],Entrada!$P15) -> 0 | Y15: =SUMIFS(Tab_Uderor[R$],Tab_Uderor[Competencia],Entrada!Y$7,Tab_Uderor[TipoReceita],Entrada!$P15) -> 0 | Z15: =SUMIFS(Tab_Uderor[R$],Tab_Uderor[Competencia],Entrada!Z$7,Tab_Uderor[TipoReceita],Entrada!$P15) -> 0 | AA15: =SUMIFS(Tab_Uderor[R$],Tab_Uderor[Competencia],Entrada!AA$7,Tab_Uderor[TipoReceita],Entrada!$P15) -> 0 | AB15: =SUMIFS(Tab_Uderor[R$],Tab_Uderor[Competencia],Entrada!AB$7,Tab_Uderor[TipoReceita],Entrada!$P15) -> 0 | AC15: =SUMIFS(Tab_Uderor[R$],Tab_Uderor[Competencia],Entrada!AC$7,Tab_Uderor[TipoReceita],Entrada!$P15) -> 0 | AD15: =SUMIFS(Tab_Uderor[R$],Tab_Uderor[Competencia],Entrada!AD$7,Tab_Uderor[TipoReceita],Entrada!$P15) -> 0 | AE15: =SUMIFS(Tab_Uderor[R$],Tab_Uderor[Competencia],Entrada!AE$7,Tab_Uderor[TipoReceita],Entrada!$P15) -> 0 | AF15: =SUMIFS(Tab_Uderor[R$],Tab_Uderor[Competencia],Entrada!AF$7,Tab_Uderor[TipoReceita],Entrada!$P15) -> 0 | AG15: =SUMIFS(Tab_Uderor[R$],Tab_Uderor[Competencia],Entrada!AG$7,Tab_Uderor[TipoReceita],Entrada!$P15) -> 0 | AH15: =SUMIFS(Tab_Uderor[R$],Tab_Uderor[Competencia],Entrada!AH$7,Tab_Uderor[TipoReceita],Entrada!$P15) -> 0 | AI15: =SUMIFS(Tab_Uderor[R$],Tab_Uderor[Competencia],Entrada!AI$7,Tab_Uderor[TipoReceita],Entrada!$P15) -> 0 | AJ15: =SUMIFS(Tab_Uderor[R$],Tab_Uderor[Competencia],Entrada!AJ$7,Tab_Uderor[TipoReceita],Entrada!$P15) -> 0 | AK15: =SUMIFS(Tab_Uderor[R$],Tab_Uderor[Competencia],Entrada!AK$7,Tab_Uderor[TipoReceita],Entrada!$P15) -> 0 | AL15: =SUMIFS(Tab_Uderor[R$],Tab_Uderor[Competencia],Entrada!AL$7,Tab_Uderor[TipoReceita],Entrada!$P15) -> 0 | AM15: =SUMIFS(Tab_Uderor[R$],Tab_Uderor[Competencia],Entrada!AM$7,Tab_Uderor[TipoReceita],Entrada!$P15) -> 0 | AN15: =SUMIFS(Tab_Uderor[R$],Tab_Uderor[Competencia],Entrada!AN$7,Tab_Uderor[TipoReceita],Entrada!$P15) -> 0 | AO15: =SUMIFS(Tab_Uderor[R$],Tab_Uderor[Competencia],Entrada!AO$7,Tab_Uderor[TipoReceita],Entrada!$P15) -> 0 | AP15: =SUMIFS(Tab_Uderor[R$],Tab_Uderor[Competencia],Entrada!AP$7,Tab_Uderor[TipoReceita],Entrada!$P15) -> 0 | AQ15: =SUMIFS(Tab_Uderor[R$],Tab_Uderor[Competencia],Entrada!AQ$7,Tab_Uderor[TipoReceita],Entrada!$P15) -> 0 | AR15: =SUMIFS(Tab_Uderor[R$],Tab_Uderor[Competencia],Entrada!AR$7,Tab_Uderor[TipoReceita],Entrada!$P15) -> 0 | AS15: =SUMIFS(Tab_Uderor[R$],Tab_Uderor[Competencia],Entrada!AS$7,Tab_Uderor[TipoReceita],Entrada!$P15) -> 0 | AT15: =SUMIFS(Tab_Uderor[R$],Tab_Uderor[Competencia],Entrada!AT$7,Tab_Uderor[TipoReceita],Entrada!$P15) -> 0 | AU15: =SUMIFS(Tab_Uderor[R$],Tab_Uderor[Competencia],Entrada!AU$7,Tab_Uderor[TipoReceita],Entrada!$P15) -> 0 | AV15: =SUMIFS(Tab_Uderor[R$],Tab_Uderor[Competencia],Entrada!AV$7,Tab_Uderor[TipoReceita],Entrada!$P15) -> 0 | AW15: =SUMIFS(Tab_Uderor[R$],Tab_Uderor[Competencia],Entrada!AW$7,Tab_Uderor[TipoReceita],Entrada!$P15) -> 0 | AX15: =SUMIFS(Tab_Uderor[R$],Tab_Uderor[Competencia],Entrada!AX$7,Tab_Uderor[TipoReceita],Entrada!$P15) -> 0 | AY15: =SUMIFS(Tab_Uderor[R$],Tab_Uderor[Competencia],Entrada!AY$7,Tab_Uderor[TipoReceita],Entrada!$P15) -> 0 | AZ15: =SUMIFS(Tab_Uderor[R$],Tab_Uderor[Competencia],Entrada!AZ$7,Tab_Uderor[TipoReceita],Entrada!$P15) -> 0
F16: (10) Almoxarifado em Operação | G16: =G82*VLOOKUP(DATE(YEAR(CAPA!$C$10),MONTH(CAPA!$C$10)-1,1),Índices!$B$135:$D$638,3,0)/VLOOKUP(DATE(YEAR($G$72),MONTH($G$72)-1,1),Índices!$B$135:$D$638,3,0) -> 5676858.277 | J16: BMP - 610530510; 610550510; 610532510; 610552510 | K16: (-) Créditos de Tributos Recuperáveis | L16: =SUMIFS(Tab_RIT_BMP[SALDO],Tab_RIT_BMP[CONTA],610530510,Tab_RIT_BMP[ANO],$L$7)+SUMIFS(Tab_RIT_BMP[SALDO],Tab_RIT_BMP[CONTA],610550510,Tab_RIT_BMP[ANO],$L$7)+ SUMIFS(Tab_RIT_BMP[SALDO],Tab_RIT_BMP[CONTA],610532510,Tab_RIT_BMP[ANO],$L$7)+SUMIFS(Tab_RIT_BMP[SALDO],Tab_RIT_BMP[CONTA],610552510,Tab_RIT_BMP[ANO],$L$7) -> 0 | M16: =SUMIFS(Tab_RIT_BMP[SALDO],Tab_RIT_BMP[CONTA],610530510,Tab_RIT_BMP[ANO],$M$7)+SUMIFS(Tab_RIT_BMP[SALDO],Tab_RIT_BMP[CONTA],610550510,Tab_RIT_BMP[ANO],$M$7)+ SUMIFS(Tab_RIT_BMP[SALDO],Tab_RIT_BMP[CONTA],610532510,Tab_RIT_BMP[ANO],$M$7)+SUMIFS(Tab_RIT_BMP[SALDO],Tab_RIT_BMP[CONTA],610552510,Tab_RIT_BMP[ANO],$M$7) -> 0 | P16: Elaboração de projeto, construção, operação, manutenção ou reforma de:
F17: (11) Ativo Diferido | G17: =G83*VLOOKUP(DATE(YEAR(CAPA!$C$10),MONTH(CAPA!$C$10)-1,1),Índices!$B$135:$D$638,3,0)/VLOOKUP(DATE(YEAR($G$72),MONTH($G$72)-1,1),Índices!$B$135:$D$638,3,0) -> 0 | J17: BMP - 6105306; 6105506; 6105326; 6105526 | K17: Administradores | L17: =SUMIFS(Tab_RIT_BMP[SALDO],Tab_RIT_BMP[CONTA],6105306,Tab_RIT_BMP[ANO],$L$7)+SUMIFS(Tab_RIT_BMP[SALDO],Tab_RIT_BMP[CONTA],6105506,Tab_RIT_BMP[ANO],$L$7)+ SUMIFS(Tab_RIT_BMP[SALDO],Tab_RIT_BMP[CONTA],6105326,Tab_RIT_BMP[ANO],$L$7)+SUMIFS(Tab_RIT_BMP[SALDO],Tab_RIT_BMP[CONTA],6105526,Tab_RIT_BMP[ANO],$L$7) -> 6309966.75 | M17: =SUMIFS(Tab_RIT_BMP[SALDO],Tab_RIT_BMP[CONTA],6105306,Tab_RIT_BMP[ANO],$M$7)+SUMIFS(Tab_RIT_BMP[SALDO],Tab_RIT_BMP[CONTA],6105506,Tab_RIT_BMP[ANO],$M$7)+ SUMIFS(Tab_RIT_BMP[SALDO],Tab_RIT_BMP[CONTA],6105326,Tab_RIT_BMP[ANO],$M$7)+SUMIFS(Tab_RIT_BMP[SALDO],Tab_RIT_BMP[CONTA],6105526,Tab_RIT_BMP[ANO],$M$7) -> 8254952.04 | P17: (1) redes de distribuição de energia elétrica destinadas à regularização fundiária de interesse específico e ao atendimento dos empreendimentos de múltiplas unidades consumidoras; | Q17: =SUMIFS(Tab_Uderor[R$],Tab_Uderor[Competencia],Entrada!Q$7,Tab_Uderor[TipoReceita],Entrada!$P17) -> 0 | R17: =SUMIFS(Tab_Uderor[R$],Tab_Uderor[Competencia],Entrada!R$7,Tab_Uderor[TipoReceita],Entrada!$P17) -> 0 | S17: =SUMIFS(Tab_Uderor[R$],Tab_Uderor[Competencia],Entrada!S$7,Tab_Uderor[TipoReceita],Entrada!$P17) -> 0 | T17: =SUMIFS(Tab_Uderor[R$],Tab_Uderor[Competencia],Entrada!T$7,Tab_Uderor[TipoReceita],Entrada!$P17) -> 0 | U17: =SUMIFS(Tab_Uderor[R$],Tab_Uderor[Competencia],Entrada!U$7,Tab_Uderor[TipoReceita],Entrada!$P17) -> 0 | V17: =SUMIFS(Tab_Uderor[R$],Tab_Uderor[Competencia],Entrada!V$7,Tab_Uderor[TipoReceita],Entrada!$P17) -> 0 | W17: =SUMIFS(Tab_Uderor[R$],Tab_Uderor[Competencia],Entrada!W$7,Tab_Uderor[TipoReceita],Entrada!$P17) -> 0 | X17: =SUMIFS(Tab_Uderor[R$],Tab_Uderor[Competencia],Entrada!X$7,Tab_Uderor[TipoReceita],Entrada!$P17) -> 0 | Y17: =SUMIFS(Tab_Uderor[R$],Tab_Uderor[Competencia],Entrada!Y$7,Tab_Uderor[TipoReceita],Entrada!$P17) -> 0 | Z17: =SUMIFS(Tab_Uderor[R$],Tab_Uderor[Competencia],Entrada!Z$7,Tab_Uderor[TipoReceita],Entrada!$P17) -> 0 | AA17: =SUMIFS(Tab_Uderor[R$],Tab_Uderor[Competencia],Entrada!AA$7,Tab_Uderor[TipoReceita],Entrada!$P17) -> 0 | AB17: =SUMIFS(Tab_Uderor[R$],Tab_Uderor[Competencia],Entrada!AB$7,Tab_Uderor[TipoReceita],Entrada!$P17) -> 0 | AC17: =SUMIFS(Tab_Uderor[R$],Tab_Uderor[Competencia],Entrada!AC$7,Tab_Uderor[TipoReceita],Entrada!$P17) -> 0 | AD17: =SUMIFS(Tab_Uderor[R$],Tab_Uderor[Competencia],Entrada!AD$7,Tab_Uderor[TipoReceita],Entrada!$P17) -> 0 | AE17: =SUMIFS(Tab_Uderor[R$],Tab_Uderor[Competencia],Entrada!AE$7,Tab_Uderor[TipoReceita],Entrada!$P17) -> 0 | AF17: =SUMIFS(Tab_Uderor[R$],Tab_Uderor[Competencia],Entrada!AF$7,Tab_Uderor[TipoReceita],Entrada!$P17) -> 0 | AG17: =SUMIFS(Tab_Uderor[R$],Tab_Uderor[Competencia],Entrada!AG$7,Tab_Uderor[TipoReceita],Entrada!$P17) -> 0 | AH17: =SUMIFS(Tab_Uderor[R$],Tab_Uderor[Competencia],Entrada!AH$7,Tab_Uderor[TipoReceita],Entrada!$P17) -> 0 | AI17: =SUMIFS(Tab_Uderor[R$],Tab_Uderor[Competencia],Entrada!AI$7,Tab_Uderor[TipoReceita],Entrada!$P17) -> 0 | AJ17: =SUMIFS(Tab_Uderor[R$],Tab_Uderor[Competencia],Entrada!AJ$7,Tab_Uderor[TipoReceita],Entrada!$P17) -> 0 | AK17: =SUMIFS(Tab_Uderor[R$],Tab_Uderor[Competencia],Entrada!AK$7,Tab_Uderor[TipoReceita],Entrada!$P17) -> 0 | AL17: =SUMIFS(Tab_Uderor[R$],Tab_Uderor[Competencia],Entrada!AL$7,Tab_Uderor[TipoReceita],Entrada!$P17) -> 0 | AM17: =SUMIFS(Tab_Uderor[R$],Tab_Uderor[Competencia],Entrada!AM$7,Tab_Uderor[TipoReceita],Entrada!$P17) -> 0 | AN17: =SUMIFS(Tab_Uderor[R$],Tab_Uderor[Competencia],Entrada!AN$7,Tab_Uderor[TipoReceita],Entrada!$P17) -> 0 | AO17: =SUMIFS(Tab_Uderor[R$],Tab_Uderor[Competencia],Entrada!AO$7,Tab_Uderor[TipoReceita],Entrada!$P17) -> 0 | AP17: =SUMIFS(Tab_Uderor[R$],Tab_Uderor[Competencia],Entrada!AP$7,Tab_Uderor[TipoReceita],Entrada!$P17) -> 0 | AQ17: =SUMIFS(Tab_Uderor[R$],Tab_Uderor[Competencia],Entrada!AQ$7,Tab_Uderor[TipoReceita],Entrada!$P17) -> 0 | AR17: =SUMIFS(Tab_Uderor[R$],Tab_Uderor[Competencia],Entrada!AR$7,Tab_Uderor[TipoReceita],Entrada!$P17) -> 0 | AS17: =SUMIFS(Tab_Uderor[R$],Tab_Uderor[Competencia],Entrada!AS$7,Tab_Uderor[TipoReceita],Entrada!$P17) -> 0 | AT17: =SUMIFS(Tab_Uderor[R$],Tab_Uderor[Competencia],Entrada!AT$7,Tab_Uderor[TipoReceita],Entrada!$P17) -> 0 | AU17: =SUMIFS(Tab_Uderor[R$],Tab_Uderor[Competencia],Entrada!AU$7,Tab_Uderor[TipoReceita],Entrada!$P17) -> 0 | AV17: =SUMIFS(Tab_Uderor[R$],Tab_Uderor[Competencia],Entrada!AV$7,Tab_Uderor[TipoReceita],Entrada!$P17) -> 0 | AW17: =SUMIFS(Tab_Uderor[R$],Tab_Uderor[Competencia],Entrada!AW$7,Tab_Uderor[TipoReceita],Entrada!$P17) -> 0 | AX17: =SUMIFS(Tab_Uderor[R$],Tab_Uderor[Competencia],Entrada!AX$7,Tab_Uderor[TipoReceita],Entrada!$P17) -> 0 | AY17: =SUMIFS(Tab_Uderor[R$],Tab_Uderor[Competencia],Entrada!AY$7,Tab_Uderor[TipoReceita],Entrada!$P17) -> 0 | AZ17: =SUMIFS(Tab_Uderor[R$],Tab_Uderor[Competencia],Entrada!AZ$7,Tab_Uderor[TipoReceita],Entrada!$P17) -> 0
D18: 45884 | F18: (12) Obrigações Especiais Líquida | G18: =G84*VLOOKUP(DATE(YEAR(CAPA!$C$10),MONTH(CAPA!$C$10)-1,1),Índices!$B$135:$D$638,3,0)/VLOOKUP(DATE(YEAR($G$72),MONTH($G$72)-1,1),Índices!$B$135:$D$638,3,0) -> 429849352.2 | K18: Subtotal | L18: =SUM(L9:L17) -> 145176123.1 | M18: =SUM(M9:M17) -> 169524168.3 | P18: (2) redes de energia elétrica destinadas ao acesso dos sistemas de distribuição ou transmissão; | Q18: =SUMIFS(Tab_Uderor[R$],Tab_Uderor[Competencia],Entrada!Q$7,Tab_Uderor[TipoReceita],Entrada!$P18) -> 0 | R18: =SUMIFS(Tab_Uderor[R$],Tab_Uderor[Competencia],Entrada!R$7,Tab_Uderor[TipoReceita],Entrada!$P18) -> 0 | S18: =SUMIFS(Tab_Uderor[R$],Tab_Uderor[Competencia],Entrada!S$7,Tab_Uderor[TipoReceita],Entrada!$P18) -> 0 | T18: =SUMIFS(Tab_Uderor[R$],Tab_Uderor[Competencia],Entrada!T$7,Tab_Uderor[TipoReceita],Entrada!$P18) -> 0 | U18: =SUMIFS(Tab_Uderor[R$],Tab_Uderor[Competencia],Entrada!U$7,Tab_Uderor[TipoReceita],Entrada!$P18) -> 0 | V18: =SUMIFS(Tab_Uderor[R$],Tab_Uderor[Competencia],Entrada!V$7,Tab_Uderor[TipoReceita],Entrada!$P18) -> 0 | W18: =SUMIFS(Tab_Uderor[R$],Tab_Uderor[Competencia],Entrada!W$7,Tab_Uderor[TipoReceita],Entrada!$P18) -> 0 | X18: =SUMIFS(Tab_Uderor[R$],Tab_Uderor[Competencia],Entrada!X$7,Tab_Uderor[TipoReceita],Entrada!$P18) -> 0 | Y18: =SUMIFS(Tab_Uderor[R$],Tab_Uderor[Competencia],Entrada!Y$7,Tab_Uderor[TipoReceita],Entrada!$P18) -> 0 | Z18: =SUMIFS(Tab_Uderor[R$],Tab_Uderor[Competencia],Entrada!Z$7,Tab_Uderor[TipoReceita],Entrada!$P18) -> 0 | AA18: =SUMIFS(Tab_Uderor[R$],Tab_Uderor[Competencia],Entrada!AA$7,Tab_Uderor[TipoReceita],Entrada!$P18) -> 0 | AB18: =SUMIFS(Tab_Uderor[R$],Tab_Uderor[Competencia],Entrada!AB$7,Tab_Uderor[TipoReceita],Entrada!$P18) -> 0 | AC18: =SUMIFS(Tab_Uderor[R$],Tab_Uderor[Competencia],Entrada!AC$7,Tab_Uderor[TipoReceita],Entrada!$P18) -> 0 | AD18: =SUMIFS(Tab_Uderor[R$],Tab_Uderor[Competencia],Entrada!AD$7,Tab_Uderor[TipoReceita],Entrada!$P18) -> 0 | AE18: =SUMIFS(Tab_Uderor[R$],Tab_Uderor[Competencia],Entrada!AE$7,Tab_Uderor[TipoReceita],Entrada!$P18) -> 0 | AF18: =SUMIFS(Tab_Uderor[R$],Tab_Uderor[Competencia],Entrada!AF$7,Tab_Uderor[TipoReceita],Entrada!$P18) -> 0 | AG18: =SUMIFS(Tab_Uderor[R$],Tab_Uderor[Competencia],Entrada!AG$7,Tab_Uderor[TipoReceita],Entrada!$P18) -> 0 | AH18: =SUMIFS(Tab_Uderor[R$],Tab_Uderor[Competencia],Entrada!AH$7,Tab_Uderor[TipoReceita],Entrada!$P18) -> 0 | AI18: =SUMIFS(Tab_Uderor[R$],Tab_Uderor[Competencia],Entrada!AI$7,Tab_Uderor[TipoReceita],Entrada!$P18) -> 0 | AJ18: =SUMIFS(Tab_Uderor[R$],Tab_Uderor[Competencia],Entrada!AJ$7,Tab_Uderor[TipoReceita],Entrada!$P18) -> 0 | AK18: =SUMIFS(Tab_Uderor[R$],Tab_Uderor[Competencia],Entrada!AK$7,Tab_Uderor[TipoReceita],Entrada!$P18) -> 0 | AL18: =SUMIFS(Tab_Uderor[R$],Tab_Uderor[Competencia],Entrada!AL$7,Tab_Uderor[TipoReceita],Entrada!$P18) -> 0 | AM18: =SUMIFS(Tab_Uderor[R$],Tab_Uderor[Competencia],Entrada!AM$7,Tab_Uderor[TipoReceita],Entrada!$P18) -> 0 | AN18: =SUMIFS(Tab_Uderor[R$],Tab_Uderor[Competencia],Entrada!AN$7,Tab_Uderor[TipoReceita],Entrada!$P18) -> 0 | AO18: =SUMIFS(Tab_Uderor[R$],Tab_Uderor[Competencia],Entrada!AO$7,Tab_Uderor[TipoReceita],Entrada!$P18) -> 0 | AP18: =SUMIFS(Tab_Uderor[R$],Tab_Uderor[Competencia],Entrada!AP$7,Tab_Uderor[TipoReceita],Entrada!$P18) -> 0 | AQ18: =SUMIFS(Tab_Uderor[R$],Tab_Uderor[Competencia],Entrada!AQ$7,Tab_Uderor[TipoReceita],Entrada!$P18) -> 0 | AR18: =SUMIFS(Tab_Uderor[R$],Tab_Uderor[Competencia],Entrada!AR$7,Tab_Uderor[TipoReceita],Entrada!$P18) -> 0 | AS18: =SUMIFS(Tab_Uderor[R$],Tab_Uderor[Competencia],Entrada!AS$7,Tab_Uderor[TipoReceita],Entrada!$P18) -> 0 | AT18: =SUMIFS(Tab_Uderor[R$],Tab_Uderor[Competencia],Entrada!AT$7,Tab_Uderor[TipoReceita],Entrada!$P18) -> 0 | AU18: =SUMIFS(Tab_Uderor[R$],Tab_Uderor[Competencia],Entrada!AU$7,Tab_Uderor[TipoReceita],Entrada!$P18) -> 0 | AV18: =SUMIFS(Tab_Uderor[R$],Tab_Uderor[Competencia],Entrada!AV$7,Tab_Uderor[TipoReceita],Entrada!$P18) -> 0 | AW18: =SUMIFS(Tab_Uderor[R$],Tab_Uderor[Competencia],Entrada!AW$7,Tab_Uderor[TipoReceita],Entrada!$P18) -> 0 | AX18: =SUMIFS(Tab_Uderor[R$],Tab_Uderor[Competencia],Entrada!AX$7,Tab_Uderor[TipoReceita],Entrada!$P18) -> 0 | AY18: =SUMIFS(Tab_Uderor[R$],Tab_Uderor[Competencia],Entrada!AY$7,Tab_Uderor[TipoReceita],Entrada!$P18) -> 0 | AZ18: =SUMIFS(Tab_Uderor[R$],Tab_Uderor[Competencia],Entrada!AZ$7,Tab_Uderor[TipoReceita],Entrada!$P18) -> 0
F19: (13) Terrenos e Servidões | G19: =G85*VLOOKUP(DATE(YEAR(CAPA!$C$10),MONTH(CAPA!$C$10)-1,1),Índices!$B$135:$D$638,3,0)/VLOOKUP(DATE(YEAR($G$72),MONTH($G$72)-1,1),Índices!$B$135:$D$638,3,0) -> 54435799.37 | J19: CONTA MATERIAIS | P19: (3) subestações de energia; | Q19: =SUMIFS(Tab_Uderor[R$],Tab_Uderor[Competencia],Entrada!Q$7,Tab_Uderor[TipoReceita],Entrada!$P19) -> 0 | R19: =SUMIFS(Tab_Uderor[R$],Tab_Uderor[Competencia],Entrada!R$7,Tab_Uderor[TipoReceita],Entrada!$P19) -> 0 | S19: =SUMIFS(Tab_Uderor[R$],Tab_Uderor[Competencia],Entrada!S$7,Tab_Uderor[TipoReceita],Entrada!$P19) -> 0 | T19: =SUMIFS(Tab_Uderor[R$],Tab_Uderor[Competencia],Entrada!T$7,Tab_Uderor[TipoReceita],Entrada!$P19) -> 0 | U19: =SUMIFS(Tab_Uderor[R$],Tab_Uderor[Competencia],Entrada!U$7,Tab_Uderor[TipoReceita],Entrada!$P19) -> 0 | V19: =SUMIFS(Tab_Uderor[R$],Tab_Uderor[Competencia],Entrada!V$7,Tab_Uderor[TipoReceita],Entrada!$P19) -> 0 | W19: =SUMIFS(Tab_Uderor[R$],Tab_Uderor[Competencia],Entrada!W$7,Tab_Uderor[TipoReceita],Entrada!$P19) -> 0 | X19: =SUMIFS(Tab_Uderor[R$],Tab_Uderor[Competencia],Entrada!X$7,Tab_Uderor[TipoReceita],Entrada!$P19) -> 0 | Y19: =SUMIFS(Tab_Uderor[R$],Tab_Uderor[Competencia],Entrada!Y$7,Tab_Uderor[TipoReceita],Entrada!$P19) -> 0 | Z19: =SUMIFS(Tab_Uderor[R$],Tab_Uderor[Competencia],Entrada!Z$7,Tab_Uderor[TipoReceita],Entrada!$P19) -> 0 | AA19: =SUMIFS(Tab_Uderor[R$],Tab_Uderor[Competencia],Entrada!AA$7,Tab_Uderor[TipoReceita],Entrada!$P19) -> 0 | AB19: =SUMIFS(Tab_Uderor[R$],Tab_Uderor[Competencia],Entrada!AB$7,Tab_Uderor[TipoReceita],Entrada!$P19) -> 0 | AC19: =SUMIFS(Tab_Uderor[R$],Tab_Uderor[Competencia],Entrada!AC$7,Tab_Uderor[TipoReceita],Entrada!$P19) -> 0 | AD19: =SUMIFS(Tab_Uderor[R$],Tab_Uderor[Competencia],Entrada!AD$7,Tab_Uderor[TipoReceita],Entrada!$P19) -> 0 | AE19: =SUMIFS(Tab_Uderor[R$],Tab_Uderor[Competencia],Entrada!AE$7,Tab_Uderor[TipoReceita],Entrada!$P19) -> 0 | AF19: =SUMIFS(Tab_Uderor[R$],Tab_Uderor[Competencia],Entrada!AF$7,Tab_Uderor[TipoReceita],Entrada!$P19) -> 0 | AG19: =SUMIFS(Tab_Uderor[R$],Tab_Uderor[Competencia],Entrada!AG$7,Tab_Uderor[TipoReceita],Entrada!$P19) -> 0 | AH19: =SUMIFS(Tab_Uderor[R$],Tab_Uderor[Competencia],Entrada!AH$7,Tab_Uderor[TipoReceita],Entrada!$P19) -> 0 | AI19: =SUMIFS(Tab_Uderor[R$],Tab_Uderor[Competencia],Entrada!AI$7,Tab_Uderor[TipoReceita],Entrada!$P19) -> 0 | AJ19: =SUMIFS(Tab_Uderor[R$],Tab_Uderor[Competencia],Entrada!AJ$7,Tab_Uderor[TipoReceita],Entrada!$P19) -> 0 | AK19: =SUMIFS(Tab_Uderor[R$],Tab_Uderor[Competencia],Entrada!AK$7,Tab_Uderor[TipoReceita],Entrada!$P19) -> 0 | AL19: =SUMIFS(Tab_Uderor[R$],Tab_Uderor[Competencia],Entrada!AL$7,Tab_Uderor[TipoReceita],Entrada!$P19) -> 0 | AM19: =SUMIFS(Tab_Uderor[R$],Tab_Uderor[Competencia],Entrada!AM$7,Tab_Uderor[TipoReceita],Entrada!$P19) -> 0 | AN19: =SUMIFS(Tab_Uderor[R$],Tab_Uderor[Competencia],Entrada!AN$7,Tab_Uderor[TipoReceita],Entrada!$P19) -> 0 | AO19: =SUMIFS(Tab_Uderor[R$],Tab_Uderor[Competencia],Entrada!AO$7,Tab_Uderor[TipoReceita],Entrada!$P19) -> 0 | AP19: =SUMIFS(Tab_Uderor[R$],Tab_Uderor[Competencia],Entrada!AP$7,Tab_Uderor[TipoReceita],Entrada!$P19) -> 0 | AQ19: =SUMIFS(Tab_Uderor[R$],Tab_Uderor[Competencia],Entrada!AQ$7,Tab_Uderor[TipoReceita],Entrada!$P19) -> 0 | AR19: =SUMIFS(Tab_Uderor[R$],Tab_Uderor[Competencia],Entrada!AR$7,Tab_Uderor[TipoReceita],Entrada!$P19) -> 0 | AS19: =SUMIFS(Tab_Uderor[R$],Tab_Uderor[Competencia],Entrada!AS$7,Tab_Uderor[TipoReceita],Entrada!$P19) -> 0 | AT19: =SUMIFS(Tab_Uderor[R$],Tab_Uderor[Competencia],Entrada!AT$7,Tab_Uderor[TipoReceita],Entrada!$P19) -> 0 | AU19: =SUMIFS(Tab_Uderor[R$],Tab_Uderor[Competencia],Entrada!AU$7,Tab_Uderor[TipoReceita],Entrada!$P19) -> 0 | AV19: =SUMIFS(Tab_Uderor[R$],Tab_Uderor[Competencia],Entrada!AV$7,Tab_Uderor[TipoReceita],Entrada!$P19) -> 0 | AW19: =SUMIFS(Tab_Uderor[R$],Tab_Uderor[Competencia],Entrada!AW$7,Tab_Uderor[TipoReceita],Entrada!$P19) -> 0 | AX19: =SUMIFS(Tab_Uderor[R$],Tab_Uderor[Competencia],Entrada!AX$7,Tab_Uderor[TipoReceita],Entrada!$P19) -> 0 | AY19: =SUMIFS(Tab_Uderor[R$],Tab_Uderor[Competencia],Entrada!AY$7,Tab_Uderor[TipoReceita],Entrada!$P19) -> 0 | AZ19: =SUMIFS(Tab_Uderor[R$],Tab_Uderor[Competencia],Entrada!AZ$7,Tab_Uderor[TipoReceita],Entrada!$P19) -> 0
F20: (14) Base de Rem. Líquida Total = (1)-(6)-(8)+(10)+(11)-(12)+(13) | G20: =G15+G16+G17-G18+G19 -> 3018854211 | J20: BMP - 610530701; 610550701; 610532701; 610552701 | K20: Materiais | L20: =SUMIFS(Tab_RIT_BMP[SALDO],Tab_RIT_BMP[CONTA],610530701,Tab_RIT_BMP[ANO],$L$7)+SUMIFS(Tab_RIT_BMP[SALDO],Tab_RIT_BMP[CONTA],610550701,Tab_RIT_BMP[ANO],$L$7)+ SUMIFS(Tab_RIT_BMP[SALDO],Tab_RIT_BMP[CONTA],610532701,Tab_RIT_BMP[ANO],$L$7)+SUMIFS(Tab_RIT_BMP[SALDO],Tab_RIT_BMP[CONTA],610552701,Tab_RIT_BMP[ANO],$L$7) -> 30594889.31 | M20: =SUMIFS(Tab_RIT_BMP[SALDO],Tab_RIT_BMP[CONTA],610530701,Tab_RIT_BMP[ANO],$M$7)+SUMIFS(Tab_RIT_BMP[SALDO],Tab_RIT_BMP[CONTA],610550701,Tab_RIT_BMP[ANO],$M$7)+ SUMIFS(Tab_RIT_BMP[SALDO],Tab_RIT_BMP[CONTA],610532701,Tab_RIT_BMP[ANO],$M$7)+SUMIFS(Tab_RIT_BMP[SALDO],Tab_RIT_BMP[CONTA],610552701,Tab_RIT_BMP[ANO],$M$7) -> 33028385.26 | P20: (4) instalações elétricas internas de unidades consumidoras; | Q20: =SUMIFS(Tab_Uderor[R$],Tab_Uderor[Competencia],Entrada!Q$7,Tab_Uderor[TipoReceita],Entrada!$P20) -> 0 | R20: =SUMIFS(Tab_Uderor[R$],Tab_Uderor[Competencia],Entrada!R$7,Tab_Uderor[TipoReceita],Entrada!$P20) -> 0 | S20: =SUMIFS(Tab_Uderor[R$],Tab_Uderor[Competencia],Entrada!S$7,Tab_Uderor[TipoReceita],Entrada!$P20) -> 0 | T20: =SUMIFS(Tab_Uderor[R$],Tab_Uderor[Competencia],Entrada!T$7,Tab_Uderor[TipoReceita],Entrada!$P20) -> 0 | U20: =SUMIFS(Tab_Uderor[R$],Tab_Uderor[Competencia],Entrada!U$7,Tab_Uderor[TipoReceita],Entrada!$P20) -> 0 | V20: =SUMIFS(Tab_Uderor[R$],Tab_Uderor[Competencia],Entrada!V$7,Tab_Uderor[TipoReceita],Entrada!$P20) -> 0 | W20: =SUMIFS(Tab_Uderor[R$],Tab_Uderor[Competencia],Entrada!W$7,Tab_Uderor[TipoReceita],Entrada!$P20) -> 0 | X20: =SUMIFS(Tab_Uderor[R$],Tab_Uderor[Competencia],Entrada!X$7,Tab_Uderor[TipoReceita],Entrada!$P20) -> 0 | Y20: =SUMIFS(Tab_Uderor[R$],Tab_Uderor[Competencia],Entrada!Y$7,Tab_Uderor[TipoReceita],Entrada!$P20) -> 0 | Z20: =SUMIFS(Tab_Uderor[R$],Tab_Uderor[Competencia],Entrada!Z$7,Tab_Uderor[TipoReceita],Entrada!$P20) -> 0 | AA20: =SUMIFS(Tab_Uderor[R$],Tab_Uderor[Competencia],Entrada!AA$7,Tab_Uderor[TipoReceita],Entrada!$P20) -> 0 | AB20: =SUMIFS(Tab_Uderor[R$],Tab_Uderor[Competencia],Entrada!AB$7,Tab_Uderor[TipoReceita],Entrada!$P20) -> 0 | AC20: =SUMIFS(Tab_Uderor[R$],Tab_Uderor[Competencia],Entrada!AC$7,Tab_Uderor[TipoReceita],Entrada!$P20) -> 0 | AD20: =SUMIFS(Tab_Uderor[R$],Tab_Uderor[Competencia],Entrada!AD$7,Tab_Uderor[TipoReceita],Entrada!$P20) -> 0 | AE20: =SUMIFS(Tab_Uderor[R$],Tab_Uderor[Competencia],Entrada!AE$7,Tab_Uderor[TipoReceita],Entrada!$P20) -> 0 | AF20: =SUMIFS(Tab_Uderor[R$],Tab_Uderor[Competencia],Entrada!AF$7,Tab_Uderor[TipoReceita],Entrada!$P20) -> 0 | AG20: =SUMIFS(Tab_Uderor[R$],Tab_Uderor[Competencia],Entrada!AG$7,Tab_Uderor[TipoReceita],Entrada!$P20) -> 0 | AH20: =SUMIFS(Tab_Uderor[R$],Tab_Uderor[Competencia],Entrada!AH$7,Tab_Uderor[TipoReceita],Entrada!$P20) -> 0 | AI20: =SUMIFS(Tab_Uderor[R$],Tab_Uderor[Competencia],Entrada!AI$7,Tab_Uderor[TipoReceita],Entrada!$P20) -> 0 | AJ20: =SUMIFS(Tab_Uderor[R$],Tab_Uderor[Competencia],Entrada!AJ$7,Tab_Uderor[TipoReceita],Entrada!$P20) -> 0 | AK20: =SUMIFS(Tab_Uderor[R$],Tab_Uderor[Competencia],Entrada!AK$7,Tab_Uderor[TipoReceita],Entrada!$P20) -> 0 | AL20: =SUMIFS(Tab_Uderor[R$],Tab_Uderor[Competencia],Entrada!AL$7,Tab_Uderor[TipoReceita],Entrada!$P20) -> 0 | AM20: =SUMIFS(Tab_Uderor[R$],Tab_Uderor[Competencia],Entrada!AM$7,Tab_Uderor[TipoReceita],Entrada!$P20) -> 0 | AN20: =SUMIFS(Tab_Uderor[R$],Tab_Uderor[Competencia],Entrada!AN$7,Tab_Uderor[TipoReceita],Entrada!$P20) -> 0 | AO20: =SUMIFS(Tab_Uderor[R$],Tab_Uderor[Competencia],Entrada!AO$7,Tab_Uderor[TipoReceita],Entrada!$P20) -> 0 | AP20: =SUMIFS(Tab_Uderor[R$],Tab_Uderor[Competencia],Entrada!AP$7,Tab_Uderor[TipoReceita],Entrada!$P20) -> 0 | AQ20: =SUMIFS(Tab_Uderor[R$],Tab_Uderor[Competencia],Entrada!AQ$7,Tab_Uderor[TipoReceita],Entrada!$P20) -> 0 | AR20: =SUMIFS(Tab_Uderor[R$],Tab_Uderor[Competencia],Entrada!AR$7,Tab_Uderor[TipoReceita],Entrada!$P20) -> 0 | AS20: =SUMIFS(Tab_Uderor[R$],Tab_Uderor[Competencia],Entrada!AS$7,Tab_Uderor[TipoReceita],Entrada!$P20) -> 0 | AT20: =SUMIFS(Tab_Uderor[R$],Tab_Uderor[Competencia],Entrada!AT$7,Tab_Uderor[TipoReceita],Entrada!$P20) -> 0 | AU20: =SUMIFS(Tab_Uderor[R$],Tab_Uderor[Competencia],Entrada!AU$7,Tab_Uderor[TipoReceita],Entrada!$P20) -> 0 | AV20: =SUMIFS(Tab_Uderor[R$],Tab_Uderor[Competencia],Entrada!AV$7,Tab_Uderor[TipoReceita],Entrada!$P20) -> 0 | AW20: =SUMIFS(Tab_Uderor[R$],Tab_Uderor[Competencia],Entrada!AW$7,Tab_Uderor[TipoReceita],Entrada!$P20) -> 0 | AX20: =SUMIFS(Tab_Uderor[R$],Tab_Uderor[Competencia],Entrada!AX$7,Tab_Uderor[TipoReceita],Entrada!$P20) -> 0 | AY20: =SUMIFS(Tab_Uderor[R$],Tab_Uderor[Competencia],Entrada!AY$7,Tab_Uderor[TipoReceita],Entrada!$P20) -> 0 | AZ20: =SUMIFS(Tab_Uderor[R$],Tab_Uderor[Competencia],Entrada!AZ$7,Tab_Uderor[TipoReceita],Entrada!$P20) -> 0
F21: (15) Saldo RGR PLPT | G21: =G87*VLOOKUP(DATE(YEAR(CAPA!$C$10),MONTH(CAPA!$C$10)-1,1),Índices!$B$135:$D$638,3,0)/VLOOKUP(DATE(YEAR($G$72),MONTH($G$72)-1,1),Índices!$B$135:$D$638,3,0) -> 0 | J21: BMP - 610530799; 610550799; 610532799; 610552799 | K21: Outros | L21: =SUMIFS(Tab_RIT_BMP[SALDO],Tab_RIT_BMP[CONTA],610530799,Tab_RIT_BMP[ANO],$L$7)+SUMIFS(Tab_RIT_BMP[SALDO],Tab_RIT_BMP[CONTA],610550799,Tab_RIT_BMP[ANO],$L$7)+ SUMIFS(Tab_RIT_BMP[SALDO],Tab_RIT_BMP[CONTA],610532799,Tab_RIT_BMP[ANO],$L$7)+SUMIFS(Tab_RIT_BMP[SALDO],Tab_RIT_BMP[CONTA],610552799,Tab_RIT_BMP[ANO],$L$7) -> 163297.2 | M21: =SUMIFS(Tab_RIT_BMP[SALDO],Tab_RIT_BMP[CONTA],610530799,Tab_RIT_BMP[ANO],$M$7)+SUMIFS(Tab_RIT_BMP[SALDO],Tab_RIT_BMP[CONTA],610550799,Tab_RIT_BMP[ANO],$M$7)+ SUMIFS(Tab_RIT_BMP[SALDO],Tab_RIT_BMP[CONTA],610532799,Tab_RIT_BMP[ANO],$M$7)+SUMIFS(Tab_RIT_BMP[SALDO],Tab_RIT_BMP[CONTA],610552799,Tab_RIT_BMP[ANO],$M$7) -> 54206.41 | P21: (5) banco de capacitores; | Q21: =SUMIFS(Tab_Uderor[R$],Tab_Uderor[Competencia],Entrada!Q$7,Tab_Uderor[TipoReceita],Entrada!$P21) -> 0 | R21: =SUMIFS(Tab_Uderor[R$],Tab_Uderor[Competencia],Entrada!R$7,Tab_Uderor[TipoReceita],Entrada!$P21) -> 0 | S21: =SUMIFS(Tab_Uderor[R$],Tab_Uderor[Competencia],Entrada!S$7,Tab_Uderor[TipoReceita],Entrada!$P21) -> 0 | T21: =SUMIFS(Tab_Uderor[R$],Tab_Uderor[Competencia],Entrada!T$7,Tab_Uderor[TipoReceita],Entrada!$P21) -> 0 | U21: =SUMIFS(Tab_Uderor[R$],Tab_Uderor[Competencia],Entrada!U$7,Tab_Uderor[TipoReceita],Entrada!$P21) -> 0 | V21: =SUMIFS(Tab_Uderor[R$],Tab_Uderor[Competencia],Entrada!V$7,Tab_Uderor[TipoReceita],Entrada!$P21) -> 0 | W21: =SUMIFS(Tab_Uderor[R$],Tab_Uderor[Competencia],Entrada!W$7,Tab_Uderor[TipoReceita],Entrada!$P21) -> 0 | X21: =SUMIFS(Tab_Uderor[R$],Tab_Uderor[Competencia],Entrada!X$7,Tab_Uderor[TipoReceita],Entrada!$P21) -> 0 | Y21: =SUMIFS(Tab_Uderor[R$],Tab_Uderor[Competencia],Entrada!Y$7,Tab_Uderor[TipoReceita],Entrada!$P21) -> 0 | Z21: =SUMIFS(Tab_Uderor[R$],Tab_Uderor[Competencia],Entrada!Z$7,Tab_Uderor[TipoReceita],Entrada!$P21) -> 0 | AA21: =SUMIFS(Tab_Uderor[R$],Tab_Uderor[Competencia],Entrada!AA$7,Tab_Uderor[TipoReceita],Entrada!$P21) -> 0 | AB21: =SUMIFS(Tab_Uderor[R$],Tab_Uderor[Competencia],Entrada!AB$7,Tab_Uderor[TipoReceita],Entrada!$P21) -> 0 | AC21: =SUMIFS(Tab_Uderor[R$],Tab_Uderor[Competencia],Entrada!AC$7,Tab_Uderor[TipoReceita],Entrada!$P21) -> 0 | AD21: =SUMIFS(Tab_Uderor[R$],Tab_Uderor[Competencia],Entrada!AD$7,Tab_Uderor[TipoReceita],Entrada!$P21) -> 0 | AE21: =SUMIFS(Tab_Uderor[R$],Tab_Uderor[Competencia],Entrada!AE$7,Tab_Uderor[TipoReceita],Entrada!$P21) -> 0 | AF21: =SUMIFS(Tab_Uderor[R$],Tab_Uderor[Competencia],Entrada!AF$7,Tab_Uderor[TipoReceita],Entrada!$P21) -> 0 | AG21: =SUMIFS(Tab_Uderor[R$],Tab_Uderor[Competencia],Entrada!AG$7,Tab_Uderor[TipoReceita],Entrada!$P21) -> 0 | AH21: =SUMIFS(Tab_Uderor[R$],Tab_Uderor[Competencia],Entrada!AH$7,Tab_Uderor[TipoReceita],Entrada!$P21) -> 0 | AI21: =SUMIFS(Tab_Uderor[R$],Tab_Uderor[Competencia],Entrada!AI$7,Tab_Uderor[TipoReceita],Entrada!$P21) -> 0 | AJ21: =SUMIFS(Tab_Uderor[R$],Tab_Uderor[Competencia],Entrada!AJ$7,Tab_Uderor[TipoReceita],Entrada!$P21) -> 0 | AK21: =SUMIFS(Tab_Uderor[R$],Tab_Uderor[Competencia],Entrada!AK$7,Tab_Uderor[TipoReceita],Entrada!$P21) -> 0 | AL21: =SUMIFS(Tab_Uderor[R$],Tab_Uderor[Competencia],Entrada!AL$7,Tab_Uderor[TipoReceita],Entrada!$P21) -> 0 | AM21: =SUMIFS(Tab_Uderor[R$],Tab_Uderor[Competencia],Entrada!AM$7,Tab_Uderor[TipoReceita],Entrada!$P21) -> 0 | AN21: =SUMIFS(Tab_Uderor[R$],Tab_Uderor[Competencia],Entrada!AN$7,Tab_Uderor[TipoReceita],Entrada!$P21) -> 0 | AO21: =SUMIFS(Tab_Uderor[R$],Tab_Uderor[Competencia],Entrada!AO$7,Tab_Uderor[TipoReceita],Entrada!$P21) -> 0 | AP21: =SUMIFS(Tab_Uderor[R$],Tab_Uderor[Competencia],Entrada!AP$7,Tab_Uderor[TipoReceita],Entrada!$P21) -> 0 | AQ21: =SUMIFS(Tab_Uderor[R$],Tab_Uderor[Competencia],Entrada!AQ$7,Tab_Uderor[TipoReceita],Entrada!$P21) -> 0 | AR21: =SUMIFS(Tab_Uderor[R$],Tab_Uderor[Competencia],Entrada!AR$7,Tab_Uderor[TipoReceita],Entrada!$P21) -> 0 | AS21: =SUMIFS(Tab_Uderor[R$],Tab_Uderor[Competencia],Entrada!AS$7,Tab_Uderor[TipoReceita],Entrada!$P21) -> 0 | AT21: =SUMIFS(Tab_Uderor[R$],Tab_Uderor[Competencia],Entrada!AT$7,Tab_Uderor[TipoReceita],Entrada!$P21) -> 0 | AU21: =SUMIFS(Tab_Uderor[R$],Tab_Uderor[Competencia],Entrada!AU$7,Tab_Uderor[TipoReceita],Entrada!$P21) -> 0 | AV21: =SUMIFS(Tab_Uderor[R$],Tab_Uderor[Competencia],Entrada!AV$7,Tab_Uderor[TipoReceita],Entrada!$P21) -> 0 | AW21: =SUMIFS(Tab_Uderor[R$],Tab_Uderor[Competencia],Entrada!AW$7,Tab_Uderor[TipoReceita],Entrada!$P21) -> 0 | AX21: =SUMIFS(Tab_Uderor[R$],Tab_Uderor[Competencia],Entrada!AX$7,Tab_Uderor[TipoReceita],Entrada!$P21) -> 0 | AY21: =SUMIFS(Tab_Uderor[R$],Tab_Uderor[Competencia],Entrada!AY$7,Tab_Uderor[TipoReceita],Entrada!$P21) -> 0 | AZ21: =SUMIFS(Tab_Uderor[R$],Tab_Uderor[Competencia],Entrada!AZ$7,Tab_Uderor[TipoReceita],Entrada!$P21) -> 0
F22: (16) Saldo RGR Demais Investimentos | G22: =G88*VLOOKUP(DATE(YEAR(CAPA!$C$10),MONTH(CAPA!$C$10)-1,1),Índices!$B$135:$D$638,3,0)/VLOOKUP(DATE(YEAR($G$72),MONTH($G$72)-1,1),Índices!$B$135:$D$638,3,0) -> 0 | J22: BMP - 610530710; 610550710; 610532710; 610552710 | K22: (-) Créditos de Tributos Recuperáveis | L22: =SUMIFS(Tab_RIT_BMP[SALDO],Tab_RIT_BMP[CONTA],610530710,Tab_RIT_BMP[ANO],$L$7)+SUMIFS(Tab_RIT_BMP[SALDO],Tab_RIT_BMP[CONTA],610550710,Tab_RIT_BMP[ANO],$L$7)+ SUMIFS(Tab_RIT_BMP[SALDO],Tab_RIT_BMP[CONTA],610532710,Tab_RIT_BMP[ANO],$L$7)+SUMIFS(Tab_RIT_BMP[SALDO],Tab_RIT_BMP[CONTA],610552710,Tab_RIT_BMP[ANO],$L$7) -> -868956.85 | M22: =SUMIFS(Tab_RIT_BMP[SALDO],Tab_RIT_BMP[CONTA],610530710,Tab_RIT_BMP[ANO],$M$7)+SUMIFS(Tab_RIT_BMP[SALDO],Tab_RIT_BMP[CONTA],610550710,Tab_RIT_BMP[ANO],$M$7)+ SUMIFS(Tab_RIT_BMP[SALDO],Tab_RIT_BMP[CONTA],610532710,Tab_RIT_BMP[ANO],$M$7)+SUMIFS(Tab_RIT_BMP[SALDO],Tab_RIT_BMP[CONTA],610552710,Tab_RIT_BMP[ANO],$M$7) -> -1054272.76 | P22: (6) padrões de entrada de unidades consumidoras atendidas em baixa tensão; | Q22: =SUMIFS(Tab_Uderor[R$],Tab_Uderor[Competencia],Entrada!Q$7,Tab_Uderor[TipoReceita],Entrada!$P22) -> 0 | R22: =SUMIFS(Tab_Uderor[R$],Tab_Uderor[Competencia],Entrada!R$7,Tab_Uderor[TipoReceita],Entrada!$P22) -> 0 | S22: =SUMIFS(Tab_Uderor[R$],Tab_Uderor[Competencia],Entrada!S$7,Tab_Uderor[TipoReceita],Entrada!$P22) -> 0 | T22: =SUMIFS(Tab_Uderor[R$],Tab_Uderor[Competencia],Entrada!T$7,Tab_Uderor[TipoReceita],Entrada!$P22) -> 0 | U22: =SUMIFS(Tab_Uderor[R$],Tab_Uderor[Competencia],Entrada!U$7,Tab_Uderor[TipoReceita],Entrada!$P22) -> 0 | V22: =SUMIFS(Tab_Uderor[R$],Tab_Uderor[Competencia],Entrada!V$7,Tab_Uderor[TipoReceita],Entrada!$P22) -> 0 | W22: =SUMIFS(Tab_Uderor[R$],Tab_Uderor[Competencia],Entrada!W$7,Tab_Uderor[TipoReceita],Entrada!$P22) -> 0 | X22: =SUMIFS(Tab_Uderor[R$],Tab_Uderor[Competencia],Entrada!X$7,Tab_Uderor[TipoReceita],Entrada!$P22) -> 0 | Y22: =SUMIFS(Tab_Uderor[R$],Tab_Uderor[Competencia],Entrada!Y$7,Tab_Uderor[TipoReceita],Entrada!$P22) -> 0 | Z22: =SUMIFS(Tab_Uderor[R$],Tab_Uderor[Competencia],Entrada!Z$7,Tab_Uderor[TipoReceita],Entrada!$P22) -> 0 | AA22: =SUMIFS(Tab_Uderor[R$],Tab_Uderor[Competencia],Entrada!AA$7,Tab_Uderor[TipoReceita],Entrada!$P22) -> 0 | AB22: =SUMIFS(Tab_Uderor[R$],Tab_Uderor[Competencia],Entrada!AB$7,Tab_Uderor[TipoReceita],Entrada!$P22) -> 0 | AC22: =SUMIFS(Tab_Uderor[R$],Tab_Uderor[Competencia],Entrada!AC$7,Tab_Uderor[TipoReceita],Entrada!$P22) -> 0 | AD22: =SUMIFS(Tab_Uderor[R$],Tab_Uderor[Competencia],Entrada!AD$7,Tab_Uderor[TipoReceita],Entrada!$P22) -> 0 | AE22: =SUMIFS(Tab_Uderor[R$],Tab_Uderor[Competencia],Entrada!AE$7,Tab_Uderor[TipoReceita],Entrada!$P22) -> 0 | AF22: =SUMIFS(Tab_Uderor[R$],Tab_Uderor[Competencia],Entrada!AF$7,Tab_Uderor[TipoReceita],Entrada!$P22) -> 0 | AG22: =SUMIFS(Tab_Uderor[R$],Tab_Uderor[Competencia],Entrada!AG$7,Tab_Uderor[TipoReceita],Entrada!$P22) -> 0 | AH22: =SUMIFS(Tab_Uderor[R$],Tab_Uderor[Competencia],Entrada!AH$7,Tab_Uderor[TipoReceita],Entrada!$P22) -> 0 | AI22: =SUMIFS(Tab_Uderor[R$],Tab_Uderor[Competencia],Entrada!AI$7,Tab_Uderor[TipoReceita],Entrada!$P22) -> 0 | AJ22: =SUMIFS(Tab_Uderor[R$],Tab_Uderor[Competencia],Entrada!AJ$7,Tab_Uderor[TipoReceita],Entrada!$P22) -> 0 | AK22: =SUMIFS(Tab_Uderor[R$],Tab_Uderor[Competencia],Entrada!AK$7,Tab_Uderor[TipoReceita],Entrada!$P22) -> 0 | AL22: =SUMIFS(Tab_Uderor[R$],Tab_Uderor[Competencia],Entrada!AL$7,Tab_Uderor[TipoReceita],Entrada!$P22) -> 0 | AM22: =SUMIFS(Tab_Uderor[R$],Tab_Uderor[Competencia],Entrada!AM$7,Tab_Uderor[TipoReceita],Entrada!$P22) -> 0 | AN22: =SUMIFS(Tab_Uderor[R$],Tab_Uderor[Competencia],Entrada!AN$7,Tab_Uderor[TipoReceita],Entrada!$P22) -> 0 | AO22: =SUMIFS(Tab_Uderor[R$],Tab_Uderor[Competencia],Entrada!AO$7,Tab_Uderor[TipoReceita],Entrada!$P22) -> 0 | AP22: =SUMIFS(Tab_Uderor[R$],Tab_Uderor[Competencia],Entrada!AP$7,Tab_Uderor[TipoReceita],Entrada!$P22) -> 0 | AQ22: =SUMIFS(Tab_Uderor[R$],Tab_Uderor[Competencia],Entrada!AQ$7,Tab_Uderor[TipoReceita],Entrada!$P22) -> 0 | AR22: =SUMIFS(Tab_Uderor[R$],Tab_Uderor[Competencia],Entrada!AR$7,Tab_Uderor[TipoReceita],Entrada!$P22) -> 0 | AS22: =SUMIFS(Tab_Uderor[R$],Tab_Uderor[Competencia],Entrada!AS$7,Tab_Uderor[TipoReceita],Entrada!$P22) -> 0 | AT22: =SUMIFS(Tab_Uderor[R$],Tab_Uderor[Competencia],Entrada!AT$7,Tab_Uderor[TipoReceita],Entrada!$P22) -> 0 | AU22: =SUMIFS(Tab_Uderor[R$],Tab_Uderor[Competencia],Entrada!AU$7,Tab_Uderor[TipoReceita],Entrada!$P22) -> 0 | AV22: =SUMIFS(Tab_Uderor[R$],Tab_Uderor[Competencia],Entrada!AV$7,Tab_Uderor[TipoReceita],Entrada!$P22) -> 0 | AW22: =SUMIFS(Tab_Uderor[R$],Tab_Uderor[Competencia],Entrada!AW$7,Tab_Uderor[TipoReceita],Entrada!$P22) -> 0 | AX22: =SUMIFS(Tab_Uderor[R$],Tab_Uderor[Competencia],Entrada!AX$7,Tab_Uderor[TipoReceita],Entrada!$P22) -> 0 | AY22: =SUMIFS(Tab_Uderor[R$],Tab_Uderor[Competencia],Entrada!AY$7,Tab_Uderor[TipoReceita],Entrada!$P22) -> 0 | AZ22: =SUMIFS(Tab_Uderor[R$],Tab_Uderor[Competencia],Entrada!AZ$7,Tab_Uderor[TipoReceita],Entrada!$P22) -> 0
F23: (17) Taxa de Depreciação | G23: =G89 -> 0.041 | K23: Subtotal | L23: =SUM(L20:L22) -> 29889229.66 | M23: =SUM(M20:M22) -> 32028318.91 | P23: (7) sistemas de medição de energia elétrica; | Q23: =SUMIFS(Tab_Uderor[R$],Tab_Uderor[Competencia],Entrada!Q$7,Tab_Uderor[TipoReceita],Entrada!$P23) -> 0 | R23: =SUMIFS(Tab_Uderor[R$],Tab_Uderor[Competencia],Entrada!R$7,Tab_Uderor[TipoReceita],Entrada!$P23) -> 0 | S23: =SUMIFS(Tab_Uderor[R$],Tab_Uderor[Competencia],Entrada!S$7,Tab_Uderor[TipoReceita],Entrada!$P23) -> 0 | T23: =SUMIFS(Tab_Uderor[R$],Tab_Uderor[Competencia],Entrada!T$7,Tab_Uderor[TipoReceita],Entrada!$P23) -> 0 | U23: =SUMIFS(Tab_Uderor[R$],Tab_Uderor[Competencia],Entrada!U$7,Tab_Uderor[TipoReceita],Entrada!$P23) -> 0 | V23: =SUMIFS(Tab_Uderor[R$],Tab_Uderor[Competencia],Entrada!V$7,Tab_Uderor[TipoReceita],Entrada!$P23) -> 0 | W23: =SUMIFS(Tab_Uderor[R$],Tab_Uderor[Competencia],Entrada!W$7,Tab_Uderor[TipoReceita],Entrada!$P23) -> 0 | X23: =SUMIFS(Tab_Uderor[R$],Tab_Uderor[Competencia],Entrada!X$7,Tab_Uderor[TipoReceita],Entrada!$P23) -> 0 | Y23: =SUMIFS(Tab_Uderor[R$],Tab_Uderor[Competencia],Entrada!Y$7,Tab_Uderor[TipoReceita],Entrada!$P23) -> 0 | Z23: =SUMIFS(Tab_Uderor[R$],Tab_Uderor[Competencia],Entrada!Z$7,Tab_Uderor[TipoReceita],Entrada!$P23) -> 0 | AA23: =SUMIFS(Tab_Uderor[R$],Tab_Uderor[Competencia],Entrada!AA$7,Tab_Uderor[TipoReceita],Entrada!$P23) -> 0 | AB23: =SUMIFS(Tab_Uderor[R$],Tab_Uderor[Competencia],Entrada!AB$7,Tab_Uderor[TipoReceita],Entrada!$P23) -> 0 | AC23: =SUMIFS(Tab_Uderor[R$],Tab_Uderor[Competencia],Entrada!AC$7,Tab_Uderor[TipoReceita],Entrada!$P23) -> 0 | AD23: =SUMIFS(Tab_Uderor[R$],Tab_Uderor[Competencia],Entrada!AD$7,Tab_Uderor[TipoReceita],Entrada!$P23) -> 0 | AE23: =SUMIFS(Tab_Uderor[R$],Tab_Uderor[Competencia],Entrada!AE$7,Tab_Uderor[TipoReceita],Entrada!$P23) -> 0 | AF23: =SUMIFS(Tab_Uderor[R$],Tab_Uderor[Competencia],Entrada!AF$7,Tab_Uderor[TipoReceita],Entrada!$P23) -> 0 | AG23: =SUMIFS(Tab_Uderor[R$],Tab_Uderor[Competencia],Entrada!AG$7,Tab_Uderor[TipoReceita],Entrada!$P23) -> 0 | AH23: =SUMIFS(Tab_Uderor[R$],Tab_Uderor[Competencia],Entrada!AH$7,Tab_Uderor[TipoReceita],Entrada!$P23) -> 0 | AI23: =SUMIFS(Tab_Uderor[R$],Tab_Uderor[Competencia],Entrada!AI$7,Tab_Uderor[TipoReceita],Entrada!$P23) -> 0 | AJ23: =SUMIFS(Tab_Uderor[R$],Tab_Uderor[Competencia],Entrada!AJ$7,Tab_Uderor[TipoReceita],Entrada!$P23) -> 0 | AK23: =SUMIFS(Tab_Uderor[R$],Tab_Uderor[Competencia],Entrada!AK$7,Tab_Uderor[TipoReceita],Entrada!$P23) -> 0 | AL23: =SUMIFS(Tab_Uderor[R$],Tab_Uderor[Competencia],Entrada!AL$7,Tab_Uderor[TipoReceita],Entrada!$P23) -> 0 | AM23: =SUMIFS(Tab_Uderor[R$],Tab_Uderor[Competencia],Entrada!AM$7,Tab_Uderor[TipoReceita],Entrada!$P23) -> 0 | AN23: =SUMIFS(Tab_Uderor[R$],Tab_Uderor[Competencia],Entrada!AN$7,Tab_Uderor[TipoReceita],Entrada!$P23) -> 0 | AO23: =SUMIFS(Tab_Uderor[R$],Tab_Uderor[Competencia],Entrada!AO$7,Tab_Uderor[TipoReceita],Entrada!$P23) -> 0 | AP23: =SUMIFS(Tab_Uderor[R$],Tab_Uderor[Competencia],Entrada!AP$7,Tab_Uderor[TipoReceita],Entrada!$P23) -> 0 | AQ23: =SUMIFS(Tab_Uderor[R$],Tab_Uderor[Competencia],Entrada!AQ$7,Tab_Uderor[TipoReceita],Entrada!$P23) -> 0 | AR23: =SUMIFS(Tab_Uderor[R$],Tab_Uderor[Competencia],Entrada!AR$7,Tab_Uderor[TipoReceita],Entrada!$P23) -> 0 | AS23: =SUMIFS(Tab_Uderor[R$],Tab_Uderor[Competencia],Entrada!AS$7,Tab_Uderor[TipoReceita],Entrada!$P23) -> 0 | AT23: =SUMIFS(Tab_Uderor[R$],Tab_Uderor[Competencia],Entrada!AT$7,Tab_Uderor[TipoReceita],Entrada!$P23) -> 0 | AU23: =SUMIFS(Tab_Uderor[R$],Tab_Uderor[Competencia],Entrada!AU$7,Tab_Uderor[TipoReceita],Entrada!$P23) -> 0 | AV23: =SUMIFS(Tab_Uderor[R$],Tab_Uderor[Competencia],Entrada!AV$7,Tab_Uderor[TipoReceita],Entrada!$P23) -> 0 | AW23: =SUMIFS(Tab_Uderor[R$],Tab_Uderor[Competencia],Entrada!AW$7,Tab_Uderor[TipoReceita],Entrada!$P23) -> 0 | AX23: =SUMIFS(Tab_Uderor[R$],Tab_Uderor[Competencia],Entrada!AX$7,Tab_Uderor[TipoReceita],Entrada!$P23) -> 0 | AY23: =SUMIFS(Tab_Uderor[R$],Tab_Uderor[Competencia],Entrada!AY$7,Tab_Uderor[TipoReceita],Entrada!$P23) -> 0 | AZ23: =SUMIFS(Tab_Uderor[R$],Tab_Uderor[Competencia],Entrada!AZ$7,Tab_Uderor[TipoReceita],Entrada!$P23) -> 0
B24: Gasto do Conselho de Consumidores | C24: EBO | D24: 45793 | F24: (18) Quota de Reintegração Regulatória = (5) * (17) | G24: =G23*G11 -> 205971351.7 | J24: CONTA TERCEIROS | P24: (8) geradores, incluindo-se unidades de microgeração e minigeração distribuída; | Q24: =SUMIFS(Tab_Uderor[R$],Tab_Uderor[Competencia],Entrada!Q$7,Tab_Uderor[TipoReceita],Entrada!$P24) -> 0 | R24: =SUMIFS(Tab_Uderor[R$],Tab_Uderor[Competencia],Entrada!R$7,Tab_Uderor[TipoReceita],Entrada!$P24) -> 0 | S24: =SUMIFS(Tab_Uderor[R$],Tab_Uderor[Competencia],Entrada!S$7,Tab_Uderor[TipoReceita],Entrada!$P24) -> 0 | T24: =SUMIFS(Tab_Uderor[R$],Tab_Uderor[Competencia],Entrada!T$7,Tab_Uderor[TipoReceita],Entrada!$P24) -> 0 | U24: =SUMIFS(Tab_Uderor[R$],Tab_Uderor[Competencia],Entrada!U$7,Tab_Uderor[TipoReceita],Entrada!$P24) -> 0 | V24: =SUMIFS(Tab_Uderor[R$],Tab_Uderor[Competencia],Entrada!V$7,Tab_Uderor[TipoReceita],Entrada!$P24) -> 0 | W24: =SUMIFS(Tab_Uderor[R$],Tab_Uderor[Competencia],Entrada!W$7,Tab_Uderor[TipoReceita],Entrada!$P24) -> 0 | X24: =SUMIFS(Tab_Uderor[R$],Tab_Uderor[Competencia],Entrada!X$7,Tab_Uderor[TipoReceita],Entrada!$P24) -> 0 | Y24: =SUMIFS(Tab_Uderor[R$],Tab_Uderor[Competencia],Entrada!Y$7,Tab_Uderor[TipoReceita],Entrada!$P24) -> 0 | Z24: =SUMIFS(Tab_Uderor[R$],Tab_Uderor[Competencia],Entrada!Z$7,Tab_Uderor[TipoReceita],Entrada!$P24) -> 0 | AA24: =SUMIFS(Tab_Uderor[R$],Tab_Uderor[Competencia],Entrada!AA$7,Tab_Uderor[TipoReceita],Entrada!$P24) -> 0 | AB24: =SUMIFS(Tab_Uderor[R$],Tab_Uderor[Competencia],Entrada!AB$7,Tab_Uderor[TipoReceita],Entrada!$P24) -> 0 | AC24: =SUMIFS(Tab_Uderor[R$],Tab_Uderor[Competencia],Entrada!AC$7,Tab_Uderor[TipoReceita],Entrada!$P24) -> 0 | AD24: =SUMIFS(Tab_Uderor[R$],Tab_Uderor[Competencia],Entrada!AD$7,Tab_Uderor[TipoReceita],Entrada!$P24) -> 0 | AE24: =SUMIFS(Tab_Uderor[R$],Tab_Uderor[Competencia],Entrada!AE$7,Tab_Uderor[TipoReceita],Entrada!$P24) -> 0 | AF24: =SUMIFS(Tab_Uderor[R$],Tab_Uderor[Competencia],Entrada!AF$7,Tab_Uderor[TipoReceita],Entrada!$P24) -> 0 | AG24: =SUMIFS(Tab_Uderor[R$],Tab_Uderor[Competencia],Entrada!AG$7,Tab_Uderor[TipoReceita],Entrada!$P24) -> 0 | AH24: =SUMIFS(Tab_Uderor[R$],Tab_Uderor[Competencia],Entrada!AH$7,Tab_Uderor[TipoReceita],Entrada!$P24) -> 0 | AI24: =SUMIFS(Tab_Uderor[R$],Tab_Uderor[Competencia],Entrada!AI$7,Tab_Uderor[TipoReceita],Entrada!$P24) -> 0 | AJ24: =SUMIFS(Tab_Uderor[R$],Tab_Uderor[Competencia],Entrada!AJ$7,Tab_Uderor[TipoReceita],Entrada!$P24) -> 0 | AK24: =SUMIFS(Tab_Uderor[R$],Tab_Uderor[Competencia],Entrada!AK$7,Tab_Uderor[TipoReceita],Entrada!$P24) -> 0 | AL24: =SUMIFS(Tab_Uderor[R$],Tab_Uderor[Competencia],Entrada!AL$7,Tab_Uderor[TipoReceita],Entrada!$P24) -> 0 | AM24: =SUMIFS(Tab_Uderor[R$],Tab_Uderor[Competencia],Entrada!AM$7,Tab_Uderor[TipoReceita],Entrada!$P24) -> 0 | AN24: =SUMIFS(Tab_Uderor[R$],Tab_Uderor[Competencia],Entrada!AN$7,Tab_Uderor[TipoReceita],Entrada!$P24) -> 0 | AO24: =SUMIFS(Tab_Uderor[R$],Tab_Uderor[Competencia],Entrada!AO$7,Tab_Uderor[TipoReceita],Entrada!$P24) -> 0 | AP24: =SUMIFS(Tab_Uderor[R$],Tab_Uderor[Competencia],Entrada!AP$7,Tab_Uderor[TipoReceita],Entrada!$P24) -> 0 | AQ24: =SUMIFS(Tab_Uderor[R$],Tab_Uderor[Competencia],Entrada!AQ$7,Tab_Uderor[TipoReceita],Entrada!$P24) -> 0 | AR24: =SUMIFS(Tab_Uderor[R$],Tab_Uderor[Competencia],Entrada!AR$7,Tab_Uderor[TipoReceita],Entrada!$P24) -> 0 | AS24: =SUMIFS(Tab_Uderor[R$],Tab_Uderor[Competencia],Entrada!AS$7,Tab_Uderor[TipoReceita],Entrada!$P24) -> 0 | AT24: =SUMIFS(Tab_Uderor[R$],Tab_Uderor[Competencia],Entrada!AT$7,Tab_Uderor[TipoReceita],Entrada!$P24) -> 0 | AU24: =SUMIFS(Tab_Uderor[R$],Tab_Uderor[Competencia],Entrada!AU$7,Tab_Uderor[TipoReceita],Entrada!$P24) -> 0 | AV24: =SUMIFS(Tab_Uderor[R$],Tab_Uderor[Competencia],Entrada!AV$7,Tab_Uderor[TipoReceita],Entrada!$P24) -> 0 | AW24: =SUMIFS(Tab_Uderor[R$],Tab_Uderor[Competencia],Entrada!AW$7,Tab_Uderor[TipoReceita],Entrada!$P24) -> 0 | AX24: =SUMIFS(Tab_Uderor[R$],Tab_Uderor[Competencia],Entrada!AX$7,Tab_Uderor[TipoReceita],Entrada!$P24) -> 0 | AY24: =SUMIFS(Tab_Uderor[R$],Tab_Uderor[Competencia],Entrada!AY$7,Tab_Uderor[TipoReceita],Entrada!$P24) -> 0 | AZ24: =SUMIFS(Tab_Uderor[R$],Tab_Uderor[Competencia],Entrada!AZ$7,Tab_Uderor[TipoReceita],Entrada!$P24) -> 0
B25: Despesa 2023 | C25: 0 | D25: 45793 | J25: RIT - RP 800 - Célula F20 | K25: Manut. e Conserv. Bens e Instalações vinculadas ao Serviço Concedido | L25: =SUMIFS(Tab_RIT_BMP[SALDO],Tab_RIT_BMP[CONTA],1,Tab_RIT_BMP[ANO],$L$7) -> 9217281.37 | M25: 11964028.23 | P25: (9) sistemas de iluminação pública. | Q25: =SUMIFS(Tab_Uderor[R$],Tab_Uderor[Competencia],Entrada!Q$7,Tab_Uderor[TipoReceita],Entrada!$P25) -> 0 | R25: =SUMIFS(Tab_Uderor[R$],Tab_Uderor[Competencia],Entrada!R$7,Tab_Uderor[TipoReceita],Entrada!$P25) -> 0 | S25: =SUMIFS(Tab_Uderor[R$],Tab_Uderor[Competencia],Entrada!S$7,Tab_Uderor[TipoReceita],Entrada!$P25) -> 0 | T25: =SUMIFS(Tab_Uderor[R$],Tab_Uderor[Competencia],Entrada!T$7,Tab_Uderor[TipoReceita],Entrada!$P25) -> 0 | U25: =SUMIFS(Tab_Uderor[R$],Tab_Uderor[Competencia],Entrada!U$7,Tab_Uderor[TipoReceita],Entrada!$P25) -> 0 | V25: =SUMIFS(Tab_Uderor[R$],Tab_Uderor[Competencia],Entrada!V$7,Tab_Uderor[TipoReceita],Entrada!$P25) -> 0 | W25: =SUMIFS(Tab_Uderor[R$],Tab_Uderor[Competencia],Entrada!W$7,Tab_Uderor[TipoReceita],Entrada!$P25) -> 0 | X25: =SUMIFS(Tab_Uderor[R$],Tab_Uderor[Competencia],Entrada!X$7,Tab_Uderor[TipoReceita],Entrada!$P25) -> 0 | Y25: =SUMIFS(Tab_Uderor[R$],Tab_Uderor[Competencia],Entrada!Y$7,Tab_Uderor[TipoReceita],Entrada!$P25) -> 0 | Z25: =SUMIFS(Tab_Uderor[R$],Tab_Uderor[Competencia],Entrada!Z$7,Tab_Uderor[TipoReceita],Entrada!$P25) -> 0 | AA25: =SUMIFS(Tab_Uderor[R$],Tab_Uderor[Competencia],Entrada!AA$7,Tab_Uderor[TipoReceita],Entrada!$P25) -> 0 | AB25: =SUMIFS(Tab_Uderor[R$],Tab_Uderor[Competencia],Entrada!AB$7,Tab_Uderor[TipoReceita],Entrada!$P25) -> 0 | AC25: =SUMIFS(Tab_Uderor[R$],Tab_Uderor[Competencia],Entrada!AC$7,Tab_Uderor[TipoReceita],Entrada!$P25) -> 0 | AD25: =SUMIFS(Tab_Uderor[R$],Tab_Uderor[Competencia],Entrada!AD$7,Tab_Uderor[TipoReceita],Entrada!$P25) -> 0 | AE25: =SUMIFS(Tab_Uderor[R$],Tab_Uderor[Competencia],Entrada!AE$7,Tab_Uderor[TipoReceita],Entrada!$P25) -> 0 | AF25: =SUMIFS(Tab_Uderor[R$],Tab_Uderor[Competencia],Entrada!AF$7,Tab_Uderor[TipoReceita],Entrada!$P25) -> 0 | AG25: =SUMIFS(Tab_Uderor[R$],Tab_Uderor[Competencia],Entrada!AG$7,Tab_Uderor[TipoReceita],Entrada!$P25) -> 0 | AH25: =SUMIFS(Tab_Uderor[R$],Tab_Uderor[Competencia],Entrada!AH$7,Tab_Uderor[TipoReceita],Entrada!$P25) -> 0 | AI25: =SUMIFS(Tab_Uderor[R$],Tab_Uderor[Competencia],Entrada!AI$7,Tab_Uderor[TipoReceita],Entrada!$P25) -> 0 | AJ25: =SUMIFS(Tab_Uderor[R$],Tab_Uderor[Competencia],Entrada!AJ$7,Tab_Uderor[TipoReceita],Entrada!$P25) -> 0 | AK25: =SUMIFS(Tab_Uderor[R$],Tab_Uderor[Competencia],Entrada!AK$7,Tab_Uderor[TipoReceita],Entrada!$P25) -> 0 | AL25: =SUMIFS(Tab_Uderor[R$],Tab_Uderor[Competencia],Entrada!AL$7,Tab_Uderor[TipoReceita],Entrada!$P25) -> 0 | AM25: =SUMIFS(Tab_Uderor[R$],Tab_Uderor[Competencia],Entrada!AM$7,Tab_Uderor[TipoReceita],Entrada!$P25) -> 0 | AN25: =SUMIFS(Tab_Uderor[R$],Tab_Uderor[Competencia],Entrada!AN$7,Tab_Uderor[TipoReceita],Entrada!$P25) -> 0 | AO25: =SUMIFS(Tab_Uderor[R$],Tab_Uderor[Competencia],Entrada!AO$7,Tab_Uderor[TipoReceita],Entrada!$P25) -> 0 | AP25: =SUMIFS(Tab_Uderor[R$],Tab_Uderor[Competencia],Entrada!AP$7,Tab_Uderor[TipoReceita],Entrada!$P25) -> 0 | AQ25: =SUMIFS(Tab_Uderor[R$],Tab_Uderor[Competencia],Entrada!AQ$7,Tab_Uderor[TipoReceita],Entrada!$P25) -> 0 | AR25: =SUMIFS(Tab_Uderor[R$],Tab_Uderor[Competencia],Entrada!AR$7,Tab_Uderor[TipoReceita],Entrada!$P25) -> 0 | AS25: =SUMIFS(Tab_Uderor[R$],Tab_Uderor[Competencia],Entrada!AS$7,Tab_Uderor[TipoReceita],Entrada!$P25) -> 0 | AT25: =SUMIFS(Tab_Uderor[R$],Tab_Uderor[Competencia],Entrada!AT$7,Tab_Uderor[TipoReceita],Entrada!$P25) -> 0 | AU25: =SUMIFS(Tab_Uderor[R$],Tab_Uderor[Competencia],Entrada!AU$7,Tab_Uderor[TipoReceita],Entrada!$P25) -> 0 | AV25: =SUMIFS(Tab_Uderor[R$],Tab_Uderor[Competencia],Entrada!AV$7,Tab_Uderor[TipoReceita],Entrada!$P25) -> 0 | AW25: =SUMIFS(Tab_Uderor[R$],Tab_Uderor[Competencia],Entrada!AW$7,Tab_Uderor[TipoReceita],Entrada!$P25) -> 0 | AX25: =SUMIFS(Tab_Uderor[R$],Tab_Uderor[Competencia],Entrada!AX$7,Tab_Uderor[TipoReceita],Entrada!$P25) -> 0 | AY25: =SUMIFS(Tab_Uderor[R$],Tab_Uderor[Competencia],Entrada!AY$7,Tab_Uderor[TipoReceita],Entrada!$P25) -> 0 | AZ25: =SUMIFS(Tab_Uderor[R$],Tab_Uderor[Competencia],Entrada!AZ$7,Tab_Uderor[TipoReceita],Entrada!$P25) -> 0
B26: Despesa 2022 | C26: 28673.86 | D26: 45793 | F26: Gasto do Conselho de Consumidores | J26: RIT - RP 800 - Célula F21 | K26: Auditoria e Consultoria | L26: =SUMIFS(Tab_RIT_BMP[SALDO],Tab_RIT_BMP[CONTA],2,Tab_RIT_BMP[ANO],$L$7) -> 1361338.62 | M26: 12644682.02 | P26: (10) estações de recarga de veículos elétricos, incluindo a prestação de serviços aos usuários | Q26: =SUMIFS(Tab_Uderor[R$],Tab_Uderor[Competencia],Entrada!Q$7,Tab_Uderor[TipoReceita],Entrada!$P26) -> 0 | R26: =SUMIFS(Tab_Uderor[R$],Tab_Uderor[Competencia],Entrada!R$7,Tab_Uderor[TipoReceita],Entrada!$P26) -> 0 | S26: =SUMIFS(Tab_Uderor[R$],Tab_Uderor[Competencia],Entrada!S$7,Tab_Uderor[TipoReceita],Entrada!$P26) -> 0 | T26: =SUMIFS(Tab_Uderor[R$],Tab_Uderor[Competencia],Entrada!T$7,Tab_Uderor[TipoReceita],Entrada!$P26) -> 0 | U26: =SUMIFS(Tab_Uderor[R$],Tab_Uderor[Competencia],Entrada!U$7,Tab_Uderor[TipoReceita],Entrada!$P26) -> 0 | V26: =SUMIFS(Tab_Uderor[R$],Tab_Uderor[Competencia],Entrada!V$7,Tab_Uderor[TipoReceita],Entrada!$P26) -> 0 | W26: =SUMIFS(Tab_Uderor[R$],Tab_Uderor[Competencia],Entrada!W$7,Tab_Uderor[TipoReceita],Entrada!$P26) -> 0 | X26: =SUMIFS(Tab_Uderor[R$],Tab_Uderor[Competencia],Entrada!X$7,Tab_Uderor[TipoReceita],Entrada!$P26) -> 0 | Y26: =SUMIFS(Tab_Uderor[R$],Tab_Uderor[Competencia],Entrada!Y$7,Tab_Uderor[TipoReceita],Entrada!$P26) -> 0 | Z26: =SUMIFS(Tab_Uderor[R$],Tab_Uderor[Competencia],Entrada!Z$7,Tab_Uderor[TipoReceita],Entrada!$P26) -> 0 | AA26: =SUMIFS(Tab_Uderor[R$],Tab_Uderor[Competencia],Entrada!AA$7,Tab_Uderor[TipoReceita],Entrada!$P26) -> 0 | AB26: =SUMIFS(Tab_Uderor[R$],Tab_Uderor[Competencia],Entrada!AB$7,Tab_Uderor[TipoReceita],Entrada!$P26) -> 0 | AC26: =SUMIFS(Tab_Uderor[R$],Tab_Uderor[Competencia],Entrada!AC$7,Tab_Uderor[TipoReceita],Entrada!$P26) -> 0 | AD26: =SUMIFS(Tab_Uderor[R$],Tab_Uderor[Competencia],Entrada!AD$7,Tab_Uderor[TipoReceita],Entrada!$P26) -> 0 | AE26: =SUMIFS(Tab_Uderor[R$],Tab_Uderor[Competencia],Entrada!AE$7,Tab_Uderor[TipoReceita],Entrada!$P26) -> 0 | AF26: =SUMIFS(Tab_Uderor[R$],Tab_Uderor[Competencia],Entrada!AF$7,Tab_Uderor[TipoReceita],Entrada!$P26) -> 0 | AG26: =SUMIFS(Tab_Uderor[R$],Tab_Uderor[Competencia],Entrada!AG$7,Tab_Uderor[TipoReceita],Entrada!$P26) -> 0 | AH26: =SUMIFS(Tab_Uderor[R$],Tab_Uderor[Competencia],Entrada!AH$7,Tab_Uderor[TipoReceita],Entrada!$P26) -> 0 | AI26: =SUMIFS(Tab_Uderor[R$],Tab_Uderor[Competencia],Entrada!AI$7,Tab_Uderor[TipoReceita],Entrada!$P26) -> 0 | AJ26: =SUMIFS(Tab_Uderor[R$],Tab_Uderor[Competencia],Entrada!AJ$7,Tab_Uderor[TipoReceita],Entrada!$P26) -> 0 | AK26: =SUMIFS(Tab_Uderor[R$],Tab_Uderor[Competencia],Entrada!AK$7,Tab_Uderor[TipoReceita],Entrada!$P26) -> 0 | AL26: =SUMIFS(Tab_Uderor[R$],Tab_Uderor[Competencia],Entrada!AL$7,Tab_Uderor[TipoReceita],Entrada!$P26) -> 0 | AM26: =SUMIFS(Tab_Uderor[R$],Tab_Uderor[Competencia],Entrada!AM$7,Tab_Uderor[TipoReceita],Entrada!$P26) -> 0 | AN26: =SUMIFS(Tab_Uderor[R$],Tab_Uderor[Competencia],Entrada!AN$7,Tab_Uderor[TipoReceita],Entrada!$P26) -> 0 | AO26: =SUMIFS(Tab_Uderor[R$],Tab_Uderor[Competencia],Entrada!AO$7,Tab_Uderor[TipoReceita],Entrada!$P26) -> 0 | AP26: =SUMIFS(Tab_Uderor[R$],Tab_Uderor[Competencia],Entrada!AP$7,Tab_Uderor[TipoReceita],Entrada!$P26) -> 0 | AQ26: =SUMIFS(Tab_Uderor[R$],Tab_Uderor[Competencia],Entrada!AQ$7,Tab_Uderor[TipoReceita],Entrada!$P26) -> 0 | AR26: =SUMIFS(Tab_Uderor[R$],Tab_Uderor[Competencia],Entrada!AR$7,Tab_Uderor[TipoReceita],Entrada!$P26) -> 0 | AS26: =SUMIFS(Tab_Uderor[R$],Tab_Uderor[Competencia],Entrada!AS$7,Tab_Uderor[TipoReceita],Entrada!$P26) -> 0 | AT26: =SUMIFS(Tab_Uderor[R$],Tab_Uderor[Competencia],Entrada!AT$7,Tab_Uderor[TipoReceita],Entrada!$P26) -> 0 | AU26: =SUMIFS(Tab_Uderor[R$],Tab_Uderor[Competencia],Entrada!AU$7,Tab_Uderor[TipoReceita],Entrada!$P26) -> 0 | AV26: =SUMIFS(Tab_Uderor[R$],Tab_Uderor[Competencia],Entrada!AV$7,Tab_Uderor[TipoReceita],Entrada!$P26) -> 0 | AW26: =SUMIFS(Tab_Uderor[R$],Tab_Uderor[Competencia],Entrada!AW$7,Tab_Uderor[TipoReceita],Entrada!$P26) -> 0 | AX26: =SUMIFS(Tab_Uderor[R$],Tab_Uderor[Competencia],Entrada!AX$7,Tab_Uderor[TipoReceita],Entrada!$P26) -> 0 | AY26: =SUMIFS(Tab_Uderor[R$],Tab_Uderor[Competencia],Entrada!AY$7,Tab_Uderor[TipoReceita],Entrada!$P26) -> 0 | AZ26: =SUMIFS(Tab_Uderor[R$],Tab_Uderor[Competencia],Entrada!AZ$7,Tab_Uderor[TipoReceita],Entrada!$P26) -> 0
B27: Despesa 2021 | C27: 6411.56 | D27: 45793 | F27: =Indexador!D132 -> Despesa 2024 | G27: =G28 -> 144209.78 | H27: 45840 | J27: RIT - RP 800 - Célula F22 | K27: Serviços Jurídicos | L27: =SUMIFS(Tab_RIT_BMP[SALDO],Tab_RIT_BMP[CONTA],3,Tab_RIT_BMP[ANO],$L$7) -> 0 | M27: 0 | P27: Eficientização do consumo de energia elétrica e instalação de cogeração qualificada, desde que não enquadráveis nos projetos de Pesquisa e Desenvolvimento (P&D) ou de Eficiência Energética estabelecidos em lei | Q27: =SUMIFS(Tab_Uderor[R$],Tab_Uderor[Competencia],Entrada!Q$7,Tab_Uderor[TipoReceita],Entrada!$P27) -> 0 | R27: =SUMIFS(Tab_Uderor[R$],Tab_Uderor[Competencia],Entrada!R$7,Tab_Uderor[TipoReceita],Entrada!$P27) -> 0 | S27: =SUMIFS(Tab_Uderor[R$],Tab_Uderor[Competencia],Entrada!S$7,Tab_Uderor[TipoReceita],Entrada!$P27) -> 0 | T27: =SUMIFS(Tab_Uderor[R$],Tab_Uderor[Competencia],Entrada!T$7,Tab_Uderor[TipoReceita],Entrada!$P27) -> 0 | U27: =SUMIFS(Tab_Uderor[R$],Tab_Uderor[Competencia],Entrada!U$7,Tab_Uderor[TipoReceita],Entrada!$P27) -> 0 | V27: =SUMIFS(Tab_Uderor[R$],Tab_Uderor[Competencia],Entrada!V$7,Tab_Uderor[TipoReceita],Entrada!$P27) -> 0 | W27: =SUMIFS(Tab_Uderor[R$],Tab_Uderor[Competencia],Entrada!W$7,Tab_Uderor[TipoReceita],Entrada!$P27) -> 0 | X27: =SUMIFS(Tab_Uderor[R$],Tab_Uderor[Competencia],Entrada!X$7,Tab_Uderor[TipoReceita],Entrada!$P27) -> 0 | Y27: =SUMIFS(Tab_Uderor[R$],Tab_Uderor[Competencia],Entrada!Y$7,Tab_Uderor[TipoReceita],Entrada!$P27) -> 0 | Z27: =SUMIFS(Tab_Uderor[R$],Tab_Uderor[Competencia],Entrada!Z$7,Tab_Uderor[TipoReceita],Entrada!$P27) -> 0 | AA27: =SUMIFS(Tab_Uderor[R$],Tab_Uderor[Competencia],Entrada!AA$7,Tab_Uderor[TipoReceita],Entrada!$P27) -> 0 | AB27: =SUMIFS(Tab_Uderor[R$],Tab_Uderor[Competencia],Entrada!AB$7,Tab_Uderor[TipoReceita],Entrada!$P27) -> 0 | AC27: =SUMIFS(Tab_Uderor[R$],Tab_Uderor[Competencia],Entrada!AC$7,Tab_Uderor[TipoReceita],Entrada!$P27) -> 0 | AD27: =SUMIFS(Tab_Uderor[R$],Tab_Uderor[Competencia],Entrada!AD$7,Tab_Uderor[TipoReceita],Entrada!$P27) -> 0 | AE27: =SUMIFS(Tab_Uderor[R$],Tab_Uderor[Competencia],Entrada!AE$7,Tab_Uderor[TipoReceita],Entrada!$P27) -> 0 | AF27: =SUMIFS(Tab_Uderor[R$],Tab_Uderor[Competencia],Entrada!AF$7,Tab_Uderor[TipoReceita],Entrada!$P27) -> 0 | AG27: =SUMIFS(Tab_Uderor[R$],Tab_Uderor[Competencia],Entrada!AG$7,Tab_Uderor[TipoReceita],Entrada!$P27) -> 0 | AH27: =SUMIFS(Tab_Uderor[R$],Tab_Uderor[Competencia],Entrada!AH$7,Tab_Uderor[TipoReceita],Entrada!$P27) -> 0 | AI27: =SUMIFS(Tab_Uderor[R$],Tab_Uderor[Competencia],Entrada!AI$7,Tab_Uderor[TipoReceita],Entrada!$P27) -> 0 | AJ27: =SUMIFS(Tab_Uderor[R$],Tab_Uderor[Competencia],Entrada!AJ$7,Tab_Uderor[TipoReceita],Entrada!$P27) -> 0 | AK27: =SUMIFS(Tab_Uderor[R$],Tab_Uderor[Competencia],Entrada!AK$7,Tab_Uderor[TipoReceita],Entrada!$P27) -> 0 | AL27: =SUMIFS(Tab_Uderor[R$],Tab_Uderor[Competencia],Entrada!AL$7,Tab_Uderor[TipoReceita],Entrada!$P27) -> 0 | AM27: =SUMIFS(Tab_Uderor[R$],Tab_Uderor[Competencia],Entrada!AM$7,Tab_Uderor[TipoReceita],Entrada!$P27) -> 0 | AN27: =SUMIFS(Tab_Uderor[R$],Tab_Uderor[Competencia],Entrada!AN$7,Tab_Uderor[TipoReceita],Entrada!$P27) -> 0 | AO27: =SUMIFS(Tab_Uderor[R$],Tab_Uderor[Competencia],Entrada!AO$7,Tab_Uderor[TipoReceita],Entrada!$P27) -> 0 | AP27: =SUMIFS(Tab_Uderor[R$],Tab_Uderor[Competencia],Entrada!AP$7,Tab_Uderor[TipoReceita],Entrada!$P27) -> 0 | AQ27: =SUMIFS(Tab_Uderor[R$],Tab_Uderor[Competencia],Entrada!AQ$7,Tab_Uderor[TipoReceita],Entrada!$P27) -> 0 | AR27: =SUMIFS(Tab_Uderor[R$],Tab_Uderor[Competencia],Entrada!AR$7,Tab_Uderor[TipoReceita],Entrada!$P27) -> 0 | AS27: =SUMIFS(Tab_Uderor[R$],Tab_Uderor[Competencia],Entrada!AS$7,Tab_Uderor[TipoReceita],Entrada!$P27) -> 0 | AT27: =SUMIFS(Tab_Uderor[R$],Tab_Uderor[Competencia],Entrada!AT$7,Tab_Uderor[TipoReceita],Entrada!$P27) -> 0 | AU27: =SUMIFS(Tab_Uderor[R$],Tab_Uderor[Competencia],Entrada!AU$7,Tab_Uderor[TipoReceita],Entrada!$P27) -> 0 | AV27: =SUMIFS(Tab_Uderor[R$],Tab_Uderor[Competencia],Entrada!AV$7,Tab_Uderor[TipoReceita],Entrada!$P27) -> 0 | AW27: =SUMIFS(Tab_Uderor[R$],Tab_Uderor[Competencia],Entrada!AW$7,Tab_Uderor[TipoReceita],Entrada!$P27) -> 0 | AX27: =SUMIFS(Tab_Uderor[R$],Tab_Uderor[Competencia],Entrada!AX$7,Tab_Uderor[TipoReceita],Entrada!$P27) -> 0 | AY27: =SUMIFS(Tab_Uderor[R$],Tab_Uderor[Competencia],Entrada!AY$7,Tab_Uderor[TipoReceita],Entrada!$P27) -> 0 | AZ27: =SUMIFS(Tab_Uderor[R$],Tab_Uderor[Competencia],Entrada!AZ$7,Tab_Uderor[TipoReceita],Entrada!$P27) -> 0
B28: Despesa 2020 | C28: 13777.12 | D28: 45793 | F28: =Indexador!E132 -> Despesa 2023 | G28: =C25+C31 -> 144209.78 | J28: RIT - RP 800 - Célula F23 | K28: Serviços de Informática | L28: =SUMIFS(Tab_RIT_BMP[SALDO],Tab_RIT_BMP[CONTA],4,Tab_RIT_BMP[ANO],$L$7)+SUMIFS(Tab_RIT_BMP[SALDO],Tab_RIT_BMP[CONTA],5,Tab_RIT_BMP[ANO],$L$7) -> 9280.8 | M28: 26580438.65 | P28: Serviços de comunicação de dados | Q28: =SUMIFS(Tab_Uderor[R$],Tab_Uderor[Competencia],Entrada!Q$7,Tab_Uderor[TipoReceita],Entrada!$P28) -> 0 | R28: =SUMIFS(Tab_Uderor[R$],Tab_Uderor[Competencia],Entrada!R$7,Tab_Uderor[TipoReceita],Entrada!$P28) -> 0 | S28: =SUMIFS(Tab_Uderor[R$],Tab_Uderor[Competencia],Entrada!S$7,Tab_Uderor[TipoReceita],Entrada!$P28) -> 0 | T28: =SUMIFS(Tab_Uderor[R$],Tab_Uderor[Competencia],Entrada!T$7,Tab_Uderor[TipoReceita],Entrada!$P28) -> 0 | U28: =SUMIFS(Tab_Uderor[R$],Tab_Uderor[Competencia],Entrada!U$7,Tab_Uderor[TipoReceita],Entrada!$P28) -> 0 | V28: =SUMIFS(Tab_Uderor[R$],Tab_Uderor[Competencia],Entrada!V$7,Tab_Uderor[TipoReceita],Entrada!$P28) -> 0 | W28: =SUMIFS(Tab_Uderor[R$],Tab_Uderor[Competencia],Entrada!W$7,Tab_Uderor[TipoReceita],Entrada!$P28) -> 0 | X28: =SUMIFS(Tab_Uderor[R$],Tab_Uderor[Competencia],Entrada!X$7,Tab_Uderor[TipoReceita],Entrada!$P28) -> 0 | Y28: =SUMIFS(Tab_Uderor[R$],Tab_Uderor[Competencia],Entrada!Y$7,Tab_Uderor[TipoReceita],Entrada!$P28) -> 0 | Z28: =SUMIFS(Tab_Uderor[R$],Tab_Uderor[Competencia],Entrada!Z$7,Tab_Uderor[TipoReceita],Entrada!$P28) -> 0 | AA28: =SUMIFS(Tab_Uderor[R$],Tab_Uderor[Competencia],Entrada!AA$7,Tab_Uderor[TipoReceita],Entrada!$P28) -> 0 | AB28: =SUMIFS(Tab_Uderor[R$],Tab_Uderor[Competencia],Entrada!AB$7,Tab_Uderor[TipoReceita],Entrada!$P28) -> 0 | AC28: =SUMIFS(Tab_Uderor[R$],Tab_Uderor[Competencia],Entrada!AC$7,Tab_Uderor[TipoReceita],Entrada!$P28) -> 0 | AD28: =SUMIFS(Tab_Uderor[R$],Tab_Uderor[Competencia],Entrada!AD$7,Tab_Uderor[TipoReceita],Entrada!$P28) -> 0 | AE28: =SUMIFS(Tab_Uderor[R$],Tab_Uderor[Competencia],Entrada!AE$7,Tab_Uderor[TipoReceita],Entrada!$P28) -> 0 | AF28: =SUMIFS(Tab_Uderor[R$],Tab_Uderor[Competencia],Entrada!AF$7,Tab_Uderor[TipoReceita],Entrada!$P28) -> 0 | AG28: =SUMIFS(Tab_Uderor[R$],Tab_Uderor[Competencia],Entrada!AG$7,Tab_Uderor[TipoReceita],Entrada!$P28) -> 0 | AH28: =SUMIFS(Tab_Uderor[R$],Tab_Uderor[Competencia],Entrada!AH$7,Tab_Uderor[TipoReceita],Entrada!$P28) -> 0 | AI28: =SUMIFS(Tab_Uderor[R$],Tab_Uderor[Competencia],Entrada!AI$7,Tab_Uderor[TipoReceita],Entrada!$P28) -> 0 | AJ28: =SUMIFS(Tab_Uderor[R$],Tab_Uderor[Competencia],Entrada!AJ$7,Tab_Uderor[TipoReceita],Entrada!$P28) -> 0 | AK28: =SUMIFS(Tab_Uderor[R$],Tab_Uderor[Competencia],Entrada!AK$7,Tab_Uderor[TipoReceita],Entrada!$P28) -> 0 | AL28: =SUMIFS(Tab_Uderor[R$],Tab_Uderor[Competencia],Entrada!AL$7,Tab_Uderor[TipoReceita],Entrada!$P28) -> 0 | AM28: =SUMIFS(Tab_Uderor[R$],Tab_Uderor[Competencia],Entrada!AM$7,Tab_Uderor[TipoReceita],Entrada!$P28) -> 0 | AN28: =SUMIFS(Tab_Uderor[R$],Tab_Uderor[Competencia],Entrada!AN$7,Tab_Uderor[TipoReceita],Entrada!$P28) -> 0 | AO28: =SUMIFS(Tab_Uderor[R$],Tab_Uderor[Competencia],Entrada!AO$7,Tab_Uderor[TipoReceita],Entrada!$P28) -> 0 | AP28: =SUMIFS(Tab_Uderor[R$],Tab_Uderor[Competencia],Entrada!AP$7,Tab_Uderor[TipoReceita],Entrada!$P28) -> 0 | AQ28: =SUMIFS(Tab_Uderor[R$],Tab_Uderor[Competencia],Entrada!AQ$7,Tab_Uderor[TipoReceita],Entrada!$P28) -> 0 | AR28: =SUMIFS(Tab_Uderor[R$],Tab_Uderor[Competencia],Entrada!AR$7,Tab_Uderor[TipoReceita],Entrada!$P28) -> 0 | AS28: =SUMIFS(Tab_Uderor[R$],Tab_Uderor[Competencia],Entrada!AS$7,Tab_Uderor[TipoReceita],Entrada!$P28) -> 0 | AT28: =SUMIFS(Tab_Uderor[R$],Tab_Uderor[Competencia],Entrada!AT$7,Tab_Uderor[TipoReceita],Entrada!$P28) -> 0 | AU28: =SUMIFS(Tab_Uderor[R$],Tab_Uderor[Competencia],Entrada!AU$7,Tab_Uderor[TipoReceita],Entrada!$P28) -> 0 | AV28: =SUMIFS(Tab_Uderor[R$],Tab_Uderor[Competencia],Entrada!AV$7,Tab_Uderor[TipoReceita],Entrada!$P28) -> 0 | AW28: =SUMIFS(Tab_Uderor[R$],Tab_Uderor[Competencia],Entrada!AW$7,Tab_Uderor[TipoReceita],Entrada!$P28) -> 0 | AX28: =SUMIFS(Tab_Uderor[R$],Tab_Uderor[Competencia],Entrada!AX$7,Tab_Uderor[TipoReceita],Entrada!$P28) -> 0 | AY28: =SUMIFS(Tab_Uderor[R$],Tab_Uderor[Competencia],Entrada!AY$7,Tab_Uderor[TipoReceita],Entrada!$P28) -> 0 | AZ28: =SUMIFS(Tab_Uderor[R$],Tab_Uderor[Competencia],Entrada!AZ$7,Tab_Uderor[TipoReceita],Entrada!$P28) -> 0
F29: =Indexador!F132 -> Despesa 2022 | G29: =C26+C32 -> 91747.04 | H29: <- necessário agregar EBO | J29: RIT - RP 800 - Célula F26 | K29: Viagens (Passagens Aéreas, etc) | L29: =SUMIFS(Tab_RIT_BMP[SALDO],Tab_RIT_BMP[CONTA],6,Tab_RIT_BMP[ANO],$L$7) -> 2016713.59 | M29: 4325603.15 | P29: Serviços de consultoria | Q29: =SUMIFS(Tab_Uderor[R$],Tab_Uderor[Competencia],Entrada!Q$7,Tab_Uderor[TipoReceita],Entrada!$P29) -> 0 | R29: =SUMIFS(Tab_Uderor[R$],Tab_Uderor[Competencia],Entrada!R$7,Tab_Uderor[TipoReceita],Entrada!$P29) -> 0 | S29: =SUMIFS(Tab_Uderor[R$],Tab_Uderor[Competencia],Entrada!S$7,Tab_Uderor[TipoReceita],Entrada!$P29) -> 0 | T29: =SUMIFS(Tab_Uderor[R$],Tab_Uderor[Competencia],Entrada!T$7,Tab_Uderor[TipoReceita],Entrada!$P29) -> 0 | U29: =SUMIFS(Tab_Uderor[R$],Tab_Uderor[Competencia],Entrada!U$7,Tab_Uderor[TipoReceita],Entrada!$P29) -> 0 | V29: =SUMIFS(Tab_Uderor[R$],Tab_Uderor[Competencia],Entrada!V$7,Tab_Uderor[TipoReceita],Entrada!$P29) -> 0 | W29: =SUMIFS(Tab_Uderor[R$],Tab_Uderor[Competencia],Entrada!W$7,Tab_Uderor[TipoReceita],Entrada!$P29) -> 0 | X29: =SUMIFS(Tab_Uderor[R$],Tab_Uderor[Competencia],Entrada!X$7,Tab_Uderor[TipoReceita],Entrada!$P29) -> 0 | Y29: =SUMIFS(Tab_Uderor[R$],Tab_Uderor[Competencia],Entrada!Y$7,Tab_Uderor[TipoReceita],Entrada!$P29) -> 0 | Z29: =SUMIFS(Tab_Uderor[R$],Tab_Uderor[Competencia],Entrada!Z$7,Tab_Uderor[TipoReceita],Entrada!$P29) -> 0 | AA29: =SUMIFS(Tab_Uderor[R$],Tab_Uderor[Competencia],Entrada!AA$7,Tab_Uderor[TipoReceita],Entrada!$P29) -> 0 | AB29: =SUMIFS(Tab_Uderor[R$],Tab_Uderor[Competencia],Entrada!AB$7,Tab_Uderor[TipoReceita],Entrada!$P29) -> 0 | AC29: =SUMIFS(Tab_Uderor[R$],Tab_Uderor[Competencia],Entrada!AC$7,Tab_Uderor[TipoReceita],Entrada!$P29) -> 0 | AD29: =SUMIFS(Tab_Uderor[R$],Tab_Uderor[Competencia],Entrada!AD$7,Tab_Uderor[TipoReceita],Entrada!$P29) -> 0 | AE29: =SUMIFS(Tab_Uderor[R$],Tab_Uderor[Competencia],Entrada!AE$7,Tab_Uderor[TipoReceita],Entrada!$P29) -> 0 | AF29: =SUMIFS(Tab_Uderor[R$],Tab_Uderor[Competencia],Entrada!AF$7,Tab_Uderor[TipoReceita],Entrada!$P29) -> 0 | AG29: =SUMIFS(Tab_Uderor[R$],Tab_Uderor[Competencia],Entrada!AG$7,Tab_Uderor[TipoReceita],Entrada!$P29) -> 0 | AH29: =SUMIFS(Tab_Uderor[R$],Tab_Uderor[Competencia],Entrada!AH$7,Tab_Uderor[TipoReceita],Entrada!$P29) -> 0 | AI29: =SUMIFS(Tab_Uderor[R$],Tab_Uderor[Competencia],Entrada!AI$7,Tab_Uderor[TipoReceita],Entrada!$P29) -> 0 | AJ29: =SUMIFS(Tab_Uderor[R$],Tab_Uderor[Competencia],Entrada!AJ$7,Tab_Uderor[TipoReceita],Entrada!$P29) -> 0 | AK29: =SUMIFS(Tab_Uderor[R$],Tab_Uderor[Competencia],Entrada!AK$7,Tab_Uderor[TipoReceita],Entrada!$P29) -> 0 | AL29: =SUMIFS(Tab_Uderor[R$],Tab_Uderor[Competencia],Entrada!AL$7,Tab_Uderor[TipoReceita],Entrada!$P29) -> 0 | AM29: =SUMIFS(Tab_Uderor[R$],Tab_Uderor[Competencia],Entrada!AM$7,Tab_Uderor[TipoReceita],Entrada!$P29) -> 0 | AN29: =SUMIFS(Tab_Uderor[R$],Tab_Uderor[Competencia],Entrada!AN$7,Tab_Uderor[TipoReceita],Entrada!$P29) -> 0 | AO29: =SUMIFS(Tab_Uderor[R$],Tab_Uderor[Competencia],Entrada!AO$7,Tab_Uderor[TipoReceita],Entrada!$P29) -> 0 | AP29: =SUMIFS(Tab_Uderor[R$],Tab_Uderor[Competencia],Entrada!AP$7,Tab_Uderor[TipoReceita],Entrada!$P29) -> 0 | AQ29: =SUMIFS(Tab_Uderor[R$],Tab_Uderor[Competencia],Entrada!AQ$7,Tab_Uderor[TipoReceita],Entrada!$P29) -> 0 | AR29: =SUMIFS(Tab_Uderor[R$],Tab_Uderor[Competencia],Entrada!AR$7,Tab_Uderor[TipoReceita],Entrada!$P29) -> 0 | AS29: =SUMIFS(Tab_Uderor[R$],Tab_Uderor[Competencia],Entrada!AS$7,Tab_Uderor[TipoReceita],Entrada!$P29) -> 0 | AT29: =SUMIFS(Tab_Uderor[R$],Tab_Uderor[Competencia],Entrada!AT$7,Tab_Uderor[TipoReceita],Entrada!$P29) -> 0 | AU29: =SUMIFS(Tab_Uderor[R$],Tab_Uderor[Competencia],Entrada!AU$7,Tab_Uderor[TipoReceita],Entrada!$P29) -> 0 | AV29: =SUMIFS(Tab_Uderor[R$],Tab_Uderor[Competencia],Entrada!AV$7,Tab_Uderor[TipoReceita],Entrada!$P29) -> 0 | AW29: =SUMIFS(Tab_Uderor[R$],Tab_Uderor[Competencia],Entrada!AW$7,Tab_Uderor[TipoReceita],Entrada!$P29) -> 0 | AX29: =SUMIFS(Tab_Uderor[R$],Tab_Uderor[Competencia],Entrada!AX$7,Tab_Uderor[TipoReceita],Entrada!$P29) -> 0 | AY29: =SUMIFS(Tab_Uderor[R$],Tab_Uderor[Competencia],Entrada!AY$7,Tab_Uderor[TipoReceita],Entrada!$P29) -> 0 | AZ29: =SUMIFS(Tab_Uderor[R$],Tab_Uderor[Competencia],Entrada!AZ$7,Tab_Uderor[TipoReceita],Entrada!$P29) -> 0
B30: Gasto do Conselho de Consumidores | C30: EPB | F30: =Indexador!G132 -> Despesa 2021 | G30: 232832.48 | H30: <- necessário agregar EBO | J30: RIT - RP 800 - Célula F27 | K30: Transportes (inclui Fretes) | L30: =SUMIFS(Tab_RIT_BMP[SALDO],Tab_RIT_BMP[CONTA],7,Tab_RIT_BMP[ANO],$L$7) -> 3593956.81 | M30: 4076727.72 | P30: Receita proveniente da comercialização de resultados de projetos de P&D COM comprovação | Q30: =SUMIFS(Tab_Uderor[R$],Tab_Uderor[Competencia],Entrada!Q$7,Tab_Uderor[TipoReceita],Entrada!$P30) -> 0 | R30: =SUMIFS(Tab_Uderor[R$],Tab_Uderor[Competencia],Entrada!R$7,Tab_Uderor[TipoReceita],Entrada!$P30) -> 0 | S30: =SUMIFS(Tab_Uderor[R$],Tab_Uderor[Competencia],Entrada!S$7,Tab_Uderor[TipoReceita],Entrada!$P30) -> 0 | T30: =SUMIFS(Tab_Uderor[R$],Tab_Uderor[Competencia],Entrada!T$7,Tab_Uderor[TipoReceita],Entrada!$P30) -> 0 | U30: =SUMIFS(Tab_Uderor[R$],Tab_Uderor[Competencia],Entrada!U$7,Tab_Uderor[TipoReceita],Entrada!$P30) -> 0 | V30: =SUMIFS(Tab_Uderor[R$],Tab_Uderor[Competencia],Entrada!V$7,Tab_Uderor[TipoReceita],Entrada!$P30) -> 0 | W30: =SUMIFS(Tab_Uderor[R$],Tab_Uderor[Competencia],Entrada!W$7,Tab_Uderor[TipoReceita],Entrada!$P30) -> 0 | X30: =SUMIFS(Tab_Uderor[R$],Tab_Uderor[Competencia],Entrada!X$7,Tab_Uderor[TipoReceita],Entrada!$P30) -> 0 | Y30: =SUMIFS(Tab_Uderor[R$],Tab_Uderor[Competencia],Entrada!Y$7,Tab_Uderor[TipoReceita],Entrada!$P30) -> 0 | Z30: =SUMIFS(Tab_Uderor[R$],Tab_Uderor[Competencia],Entrada!Z$7,Tab_Uderor[TipoReceita],Entrada!$P30) -> 0 | AA30: =SUMIFS(Tab_Uderor[R$],Tab_Uderor[Competencia],Entrada!AA$7,Tab_Uderor[TipoReceita],Entrada!$P30) -> 0 | AB30: =SUMIFS(Tab_Uderor[R$],Tab_Uderor[Competencia],Entrada!AB$7,Tab_Uderor[TipoReceita],Entrada!$P30) -> 0 | AC30: =SUMIFS(Tab_Uderor[R$],Tab_Uderor[Competencia],Entrada!AC$7,Tab_Uderor[TipoReceita],Entrada!$P30) -> 0 | AD30: =SUMIFS(Tab_Uderor[R$],Tab_Uderor[Competencia],Entrada!AD$7,Tab_Uderor[TipoReceita],Entrada!$P30) -> 0 | AE30: =SUMIFS(Tab_Uderor[R$],Tab_Uderor[Competencia],Entrada!AE$7,Tab_Uderor[TipoReceita],Entrada!$P30) -> 0 | AF30: =SUMIFS(Tab_Uderor[R$],Tab_Uderor[Competencia],Entrada!AF$7,Tab_Uderor[TipoReceita],Entrada!$P30) -> 0 | AG30: =SUMIFS(Tab_Uderor[R$],Tab_Uderor[Competencia],Entrada!AG$7,Tab_Uderor[TipoReceita],Entrada!$P30) -> 0 | AH30: =SUMIFS(Tab_Uderor[R$],Tab_Uderor[Competencia],Entrada!AH$7,Tab_Uderor[TipoReceita],Entrada!$P30) -> 0 | AI30: =SUMIFS(Tab_Uderor[R$],Tab_Uderor[Competencia],Entrada!AI$7,Tab_Uderor[TipoReceita],Entrada!$P30) -> 0 | AJ30: =SUMIFS(Tab_Uderor[R$],Tab_Uderor[Competencia],Entrada!AJ$7,Tab_Uderor[TipoReceita],Entrada!$P30) -> 0 | AK30: =SUMIFS(Tab_Uderor[R$],Tab_Uderor[Competencia],Entrada!AK$7,Tab_Uderor[TipoReceita],Entrada!$P30) -> 0 | AL30: =SUMIFS(Tab_Uderor[R$],Tab_Uderor[Competencia],Entrada!AL$7,Tab_Uderor[TipoReceita],Entrada!$P30) -> 0 | AM30: =SUMIFS(Tab_Uderor[R$],Tab_Uderor[Competencia],Entrada!AM$7,Tab_Uderor[TipoReceita],Entrada!$P30) -> 0 | AN30: =SUMIFS(Tab_Uderor[R$],Tab_Uderor[Competencia],Entrada!AN$7,Tab_Uderor[TipoReceita],Entrada!$P30) -> 0 | AO30: =SUMIFS(Tab_Uderor[R$],Tab_Uderor[Competencia],Entrada!AO$7,Tab_Uderor[TipoReceita],Entrada!$P30) -> 0 | AP30: =SUMIFS(Tab_Uderor[R$],Tab_Uderor[Competencia],Entrada!AP$7,Tab_Uderor[TipoReceita],Entrada!$P30) -> 0 | AQ30: =SUMIFS(Tab_Uderor[R$],Tab_Uderor[Competencia],Entrada!AQ$7,Tab_Uderor[TipoReceita],Entrada!$P30) -> 0 | AR30: =SUMIFS(Tab_Uderor[R$],Tab_Uderor[Competencia],Entrada!AR$7,Tab_Uderor[TipoReceita],Entrada!$P30) -> 0 | AS30: =SUMIFS(Tab_Uderor[R$],Tab_Uderor[Competencia],Entrada!AS$7,Tab_Uderor[TipoReceita],Entrada!$P30) -> 0 | AT30: =SUMIFS(Tab_Uderor[R$],Tab_Uderor[Competencia],Entrada!AT$7,Tab_Uderor[TipoReceita],Entrada!$P30) -> 0 | AU30: =SUMIFS(Tab_Uderor[R$],Tab_Uderor[Competencia],Entrada!AU$7,Tab_Uderor[TipoReceita],Entrada!$P30) -> 0 | AV30: =SUMIFS(Tab_Uderor[R$],Tab_Uderor[Competencia],Entrada!AV$7,Tab_Uderor[TipoReceita],Entrada!$P30) -> 0 | AW30: =SUMIFS(Tab_Uderor[R$],Tab_Uderor[Competencia],Entrada!AW$7,Tab_Uderor[TipoReceita],Entrada!$P30) -> 0 | AX30: =SUMIFS(Tab_Uderor[R$],Tab_Uderor[Competencia],Entrada!AX$7,Tab_Uderor[TipoReceita],Entrada!$P30) -> 0 | AY30: =SUMIFS(Tab_Uderor[R$],Tab_Uderor[Competencia],Entrada!AY$7,Tab_Uderor[TipoReceita],Entrada!$P30) -> 0 | AZ30: =SUMIFS(Tab_Uderor[R$],Tab_Uderor[Competencia],Entrada!AZ$7,Tab_Uderor[TipoReceita],Entrada!$P30) -> 0
B31: Despesa 2023 | C31: 144209.78 | F31: =Indexador!H132 -> Despesa 2020 | G31: 658360.22 | H31: <- necessário agregar EBO | J31: RIT - RP 800 - Célula F28 | K31: Propaganda e Publicidade (exceto Publicações Oficiais) | L31: =SUMIFS(Tab_RIT_BMP[SALDO],Tab_RIT_BMP[CONTA],8,Tab_RIT_BMP[ANO],$L$7) -> 0 | M31: =SUMIFS(Tab_RIT_BMP[SALDO],Tab_RIT_BMP[CONTA],9,Tab_RIT_BMP[ANO],$M$7) -> 0 | P31: Receita proveniente da comercialização de resultados de projetos de P&D SEM comprovação | Q31: =SUMIFS(Tab_Uderor[R$],Tab_Uderor[Competencia],Entrada!Q$7,Tab_Uderor[TipoReceita],Entrada!$P31) -> 0 | R31: =SUMIFS(Tab_Uderor[R$],Tab_Uderor[Competencia],Entrada!R$7,Tab_Uderor[TipoReceita],Entrada!$P31) -> 0 | S31: =SUMIFS(Tab_Uderor[R$],Tab_Uderor[Competencia],Entrada!S$7,Tab_Uderor[TipoReceita],Entrada!$P31) -> 0 | T31: =SUMIFS(Tab_Uderor[R$],Tab_Uderor[Competencia],Entrada!T$7,Tab_Uderor[TipoReceita],Entrada!$P31) -> 0 | U31: =SUMIFS(Tab_Uderor[R$],Tab_Uderor[Competencia],Entrada!U$7,Tab_Uderor[TipoReceita],Entrada!$P31) -> 0 | V31: =SUMIFS(Tab_Uderor[R$],Tab_Uderor[Competencia],Entrada!V$7,Tab_Uderor[TipoReceita],Entrada!$P31) -> 0 | W31: =SUMIFS(Tab_Uderor[R$],Tab_Uderor[Competencia],Entrada!W$7,Tab_Uderor[TipoReceita],Entrada!$P31) -> 0 | X31: =SUMIFS(Tab_Uderor[R$],Tab_Uderor[Competencia],Entrada!X$7,Tab_Uderor[TipoReceita],Entrada!$P31) -> 0 | Y31: =SUMIFS(Tab_Uderor[R$],Tab_Uderor[Competencia],Entrada!Y$7,Tab_Uderor[TipoReceita],Entrada!$P31) -> 0 | Z31: =SUMIFS(Tab_Uderor[R$],Tab_Uderor[Competencia],Entrada!Z$7,Tab_Uderor[TipoReceita],Entrada!$P31) -> 0 | AA31: =SUMIFS(Tab_Uderor[R$],Tab_Uderor[Competencia],Entrada!AA$7,Tab_Uderor[TipoReceita],Entrada!$P31) -> 0 | AB31: =SUMIFS(Tab_Uderor[R$],Tab_Uderor[Competencia],Entrada!AB$7,Tab_Uderor[TipoReceita],Entrada!$P31) -> 0 | AC31: =SUMIFS(Tab_Uderor[R$],Tab_Uderor[Competencia],Entrada!AC$7,Tab_Uderor[TipoReceita],Entrada!$P31) -> 0 | AD31: =SUMIFS(Tab_Uderor[R$],Tab_Uderor[Competencia],Entrada!AD$7,Tab_Uderor[TipoReceita],Entrada!$P31) -> 0 | AE31: =SUMIFS(Tab_Uderor[R$],Tab_Uderor[Competencia],Entrada!AE$7,Tab_Uderor[TipoReceita],Entrada!$P31) -> 0 | AF31: =SUMIFS(Tab_Uderor[R$],Tab_Uderor[Competencia],Entrada!AF$7,Tab_Uderor[TipoReceita],Entrada!$P31) -> 0 | AG31: =SUMIFS(Tab_Uderor[R$],Tab_Uderor[Competencia],Entrada!AG$7,Tab_Uderor[TipoReceita],Entrada!$P31) -> 0 | AH31: =SUMIFS(Tab_Uderor[R$],Tab_Uderor[Competencia],Entrada!AH$7,Tab_Uderor[TipoReceita],Entrada!$P31) -> 0 | AI31: =SUMIFS(Tab_Uderor[R$],Tab_Uderor[Competencia],Entrada!AI$7,Tab_Uderor[TipoReceita],Entrada!$P31) -> 0 | AJ31: =SUMIFS(Tab_Uderor[R$],Tab_Uderor[Competencia],Entrada!AJ$7,Tab_Uderor[TipoReceita],Entrada!$P31) -> 0 | AK31: =SUMIFS(Tab_Uderor[R$],Tab_Uderor[Competencia],Entrada!AK$7,Tab_Uderor[TipoReceita],Entrada!$P31) -> 0 | AL31: =SUMIFS(Tab_Uderor[R$],Tab_Uderor[Competencia],Entrada!AL$7,Tab_Uderor[TipoReceita],Entrada!$P31) -> 0 | AM31: =SUMIFS(Tab_Uderor[R$],Tab_Uderor[Competencia],Entrada!AM$7,Tab_Uderor[TipoReceita],Entrada!$P31) -> 0 | AN31: =SUMIFS(Tab_Uderor[R$],Tab_Uderor[Competencia],Entrada!AN$7,Tab_Uderor[TipoReceita],Entrada!$P31) -> 0 | AO31: =SUMIFS(Tab_Uderor[R$],Tab_Uderor[Competencia],Entrada!AO$7,Tab_Uderor[TipoReceita],Entrada!$P31) -> 0 | AP31: =SUMIFS(Tab_Uderor[R$],Tab_Uderor[Competencia],Entrada!AP$7,Tab_Uderor[TipoReceita],Entrada!$P31) -> 0 | AQ31: =SUMIFS(Tab_Uderor[R$],Tab_Uderor[Competencia],Entrada!AQ$7,Tab_Uderor[TipoReceita],Entrada!$P31) -> 0 | AR31: =SUMIFS(Tab_Uderor[R$],Tab_Uderor[Competencia],Entrada!AR$7,Tab_Uderor[TipoReceita],Entrada!$P31) -> 0 | AS31: =SUMIFS(Tab_Uderor[R$],Tab_Uderor[Competencia],Entrada!AS$7,Tab_Uderor[TipoReceita],Entrada!$P31) -> 0 | AT31: =SUMIFS(Tab_Uderor[R$],Tab_Uderor[Competencia],Entrada!AT$7,Tab_Uderor[TipoReceita],Entrada!$P31) -> 0 | AU31: =SUMIFS(Tab_Uderor[R$],Tab_Uderor[Competencia],Entrada!AU$7,Tab_Uderor[TipoReceita],Entrada!$P31) -> 0 | AV31: =SUMIFS(Tab_Uderor[R$],Tab_Uderor[Competencia],Entrada!AV$7,Tab_Uderor[TipoReceita],Entrada!$P31) -> 0 | AW31: =SUMIFS(Tab_Uderor[R$],Tab_Uderor[Competencia],Entrada!AW$7,Tab_Uderor[TipoReceita],Entrada!$P31) -> 0 | AX31: =SUMIFS(Tab_Uderor[R$],Tab_Uderor[Competencia],Entrada!AX$7,Tab_Uderor[TipoReceita],Entrada!$P31) -> 0 | AY31: =SUMIFS(Tab_Uderor[R$],Tab_Uderor[Competencia],Entrada!AY$7,Tab_Uderor[TipoReceita],Entrada!$P31) -> 0 | AZ31: =SUMIFS(Tab_Uderor[R$],Tab_Uderor[Competencia],Entrada!AZ$7,Tab_Uderor[TipoReceita],Entrada!$P31) -> 0
B32: Despesa 2022 | C32: 63073.18 | F32: Perdas Regulatórias | J32: RIT - RP 800 - Célula F29 | K32: Publicações Oficiais | L32: =SUMIFS(Tab_RIT_BMP[SALDO],Tab_RIT_BMP[CONTA],9,Tab_RIT_BMP[ANO],$L$7) -> 1000 | M32: =SUMIFS(Tab_RIT_BMP[SALDO],Tab_RIT_BMP[CONTA],9,Tab_RIT_BMP[ANO],$M$7) -> 0
B33: Despesa 2021 | C33: 226420.92 | F33: Perdas Não Técnicas | G33: 0.07912498191 | H33: 45884 | J33: RIT - RP 800 - Célula F30 | K33: Serviço de Engenharia e Supervisão de Obras | L33: =SUMIFS(Tab_RIT_BMP[SALDO],Tab_RIT_BMP[CONTA],10,Tab_RIT_BMP[ANO],$L$7) -> 0 | M33: =SUMIFS(Tab_RIT_BMP[SALDO],Tab_RIT_BMP[CONTA],10,Tab_RIT_BMP[ANO],$M$7) -> 0 | P33: Ultrapassagem de demanda e Excedente de reativos | Q33: Competência Final UDER | R33: =IF(CAPA!C7="Revisão",(DATE(YEAR('VPB e Fator X'!C10),MONTH('VPB e Fator X'!C10),1)),0) -> 45689
B34: Despesa 2020 | C34: 644583.1 | F34: Perdas Técnicas | G34: =602135.556/7024198.536 -> 0.08572302632 | H34: NT 87 (SEI 0171926) | J34: RIT - RP 800 - Célula F31 | K34: Gestão Comercial | L34: =SUMIFS(Tab_RIT_BMP[SALDO],Tab_RIT_BMP[CONTA],11,Tab_RIT_BMP[ANO],$L$7) -> 28020694.18 | M34: 28933517.58 | Q34: 60 | R34: =Q34-1 -> 59 | S34: =R34-1 -> 58 | T34: 57 | U34: 56 | V34: 55 | W34: 54 | X34: 53 | Y34: 52 | Z34: 51 | AA34: 50 | AB34: 49 | AC34: 48 | AD34: 47 | AE34: 46 | AF34: 45 | AG34: 44 | AH34: 43 | AI34: 42 | AJ34: 41 | AK34: 40 | AL34: 39 | AM34: 38 | AN34: 37 | AO34: 36 | AP34: 35 | AQ34: 34 | AR34: 33 | AS34: 32 | AT34: 31 | AU34: 30 | AV34: 29 | AW34: 28 | AX34: 27 | AY34: 26 | AZ34: 25 | BA34: 24 | BB34: 23 | BC34: 22 | BD34: 21 | BE34: 20 | BF34: 19 | BG34: 18 | BH34: 17 | BI34: 16 | BJ34: 15 | BK34: 14 | BL34: 13 | BM34: =BL34-1 -> 12 | BN34: 11 | BO34: 10 | BP34: 9 | BQ34: 8 | BR34: 7 | BS34: 6 | BT34: 5 | BU34: 4 | BV34: 3 | BW34: 2 | BX34: 1
J35: RIT - RP 800 - Célula F32 | K35: Outros Serviços Terceirizados | L35: =SUMIFS(Tab_RIT_BMP[SALDO],Tab_RIT_BMP[CONTA],12,Tab_RIT_BMP[ANO],$L$7) -> 10858580.19 | M35: 66288838.39 | P35: Tipo de Receita | Q35: =$R$33 -> 2025-02-01 | R35: =DATE(YEAR(Q35),MONTH(Q35)-1,1) -> 2025-01-01 | S35: =DATE(YEAR(R35),MONTH(R35)-1,1) -> 2024-12-01 | T35: 2024-11-01 | U35: 2024-10-01 | V35: 2024-09-01 | W35: 2024-08-01 | X35: 2024-07-01 | Y35: 2024-06-01 | Z35: 2024-05-01 | AA35: 2024-04-01 | AB35: 2024-03-01 | AC35: 2024-02-01 | AD35: 2024-01-01 | AE35: 2023-12-01 | AF35: 2023-11-01 | AG35: 2023-10-01 | AH35: 2023-09-01 | AI35: 2023-08-01 | AJ35: 2023-07-01 | AK35: 2023-06-01 | AL35: 2023-05-01 | AM35: 2023-04-01 | AN35: 2023-03-01 | AO35: 2023-02-01 | AP35: 2023-01-01 | AQ35: 2022-12-01 | AR35: 2022-11-01 | AS35: 2022-10-01 | AT35: 2022-09-01 | AU35: 2022-08-01 | AV35: 2022-07-01 | AW35: 2022-06-01 | AX35: 2022-05-01 | AY35: 2022-04-01 | AZ35: 2022-03-01 | BA35: 2022-02-01 | BB35: 2022-01-01 | BC35: 2021-12-01 | BD35: 2021-11-01 | BE35: 2021-10-01 | BF35: 2021-09-01 | BG35: 2021-08-01 | BH35: 2021-07-01 | BI35: 2021-06-01 | BJ35: 2021-05-01 | BK35: 2021-04-01 | BL35: 2021-03-01 | BM35: =DATE(YEAR(BL35),MONTH(BL35)-1,1) -> 2021-02-01 | BN35: =DATE(YEAR(BM35),MONTH(BM35)-1,1) -> 2021-01-01 | BO35: =DATE(YEAR(BN35),MONTH(BN35)-1,1) -> 2020-12-01 | BP35: =DATE(YEAR(BO35),MONTH(BO35)-1,1) -> 2020-11-01 | BQ35: =DATE(YEAR(BP35),MONTH(BP35)-1,1) -> 2020-10-01 | BR35: =DATE(YEAR(BQ35),MONTH(BQ35)-1,1) -> 2020-09-01 | BS35: =DATE(YEAR(BR35),MONTH(BR35)-1,1) -> 2020-08-01 | BT35: =DATE(YEAR(BS35),MONTH(BS35)-1,1) -> 2020-07-01 | BU35: =DATE(YEAR(BT35),MONTH(BT35)-1,1) -> 2020-06-01 | BV35: =DATE(YEAR(BU35),MONTH(BU35)-1,1) -> 2020-05-01 | BW35: =DATE(YEAR(BV35),MONTH(BV35)-1,1) -> 2020-04-01 | BX35: =DATE(YEAR(BW35),MONTH(BW35)-1,1) -> 2020-03-01
F36: Dados da Revisão Anterior - Componente Pd | J36: RIT - RP 800 - Célula F33 - BMP - 610530810,610550810,610532810,610552810 | K36: (-) Créditos de Tributos Recuperáveis | L36: =SUMIFS(Tab_RIT_BMP[SALDO],Tab_RIT_BMP[CONTA],610530810,Tab_RIT_BMP[ANO],$L$7)+SUMIFS(Tab_RIT_BMP[SALDO],Tab_RIT_BMP[CONTA],610550810,Tab_RIT_BMP[ANO],$L$7)+ SUMIFS(Tab_RIT_BMP[SALDO],Tab_RIT_BMP[CONTA],610532810,Tab_RIT_BMP[ANO],$L$7)+SUMIFS(Tab_RIT_BMP[SALDO],Tab_RIT_BMP[CONTA],610552810,Tab_RIT_BMP[ANO],$L$7) -> -1390227.31 | M36: =SUMIFS(Tab_RIT_BMP[SALDO],Tab_RIT_BMP[CONTA],610530810,Tab_RIT_BMP[ANO],$M$7)+SUMIFS(Tab_RIT_BMP[SALDO],Tab_RIT_BMP[CONTA],610550810,Tab_RIT_BMP[ANO],$M$7)+ SUMIFS(Tab_RIT_BMP[SALDO],Tab_RIT_BMP[CONTA],610532810,Tab_RIT_BMP[ANO],$M$7)+SUMIFS(Tab_RIT_BMP[SALDO],Tab_RIT_BMP[CONTA],610552810,Tab_RIT_BMP[ANO],$M$7) -> -1046743.39 | P36: Ultrapassagem de Demanda | Q36: =SUMIFS(Tab_Uderor[R$],Tab_Uderor[Competencia],Entrada!Q35,Tab_Uderor[TipoReceita],Entrada!$P36) -> 1272342.04 | R36: =SUMIFS(Tab_Uderor[R$],Tab_Uderor[Competencia],Entrada!R35,Tab_Uderor[TipoReceita],Entrada!$P36) -> 1224708.45 | S36: =SUMIFS(Tab_Uderor[R$],Tab_Uderor[Competencia],Entrada!S35,Tab_Uderor[TipoReceita],Entrada!$P36) -> 1338184.88 | T36: =SUMIFS(Tab_Uderor[R$],Tab_Uderor[Competencia],Entrada!T35,Tab_Uderor[TipoReceita],Entrada!$P36) -> 1240347.24 | U36: =SUMIFS(Tab_Uderor[R$],Tab_Uderor[Competencia],Entrada!U35,Tab_Uderor[TipoReceita],Entrada!$P36) -> 1021735.82 | V36: =SUMIFS(Tab_Uderor[R$],Tab_Uderor[Competencia],Entrada!V35,Tab_Uderor[TipoReceita],Entrada!$P36) -> 883494.07 | W36: =SUMIFS(Tab_Uderor[R$],Tab_Uderor[Competencia],Entrada!W35,Tab_Uderor[TipoReceita],Entrada!$P36) -> 819074.84 | X36: =SUMIFS(Tab_Uderor[R$],Tab_Uderor[Competencia],Entrada!X35,Tab_Uderor[TipoReceita],Entrada!$P36) -> 732731.7 | Y36: =SUMIFS(Tab_Uderor[R$],Tab_Uderor[Competencia],Entrada!Y35,Tab_Uderor[TipoReceita],Entrada!$P36) -> 1055506.05 | Z36: =SUMIFS(Tab_Uderor[R$],Tab_Uderor[Competencia],Entrada!Z35,Tab_Uderor[TipoReceita],Entrada!$P36) -> 1277652.42 | AA36: =SUMIFS(Tab_Uderor[R$],Tab_Uderor[Competencia],Entrada!AA35,Tab_Uderor[TipoReceita],Entrada!$P36) -> 1488382.81 | AB36: =SUMIFS(Tab_Uderor[R$],Tab_Uderor[Competencia],Entrada!AB35,Tab_Uderor[TipoReceita],Entrada!$P36) -> 1563390.72 | AC36: =SUMIFS(Tab_Uderor[R$],Tab_Uderor[Competencia],Entrada!AC35,Tab_Uderor[TipoReceita],Entrada!$P36) -> 1141000.22 | AD36: =SUMIFS(Tab_Uderor[R$],Tab_Uderor[Competencia],Entrada!AD35,Tab_Uderor[TipoReceita],Entrada!$P36) -> 1082307.31 | AE36: =SUMIFS(Tab_Uderor[R$],Tab_Uderor[Competencia],Entrada!AE35,Tab_Uderor[TipoReceita],Entrada!$P36) -> 1172419.74 | AF36: =SUMIFS(Tab_Uderor[R$],Tab_Uderor[Competencia],Entrada!AF35,Tab_Uderor[TipoReceita],Entrada!$P36) -> 1020815.86 | AG36: =SUMIFS(Tab_Uderor[R$],Tab_Uderor[Competencia],Entrada!AG35,Tab_Uderor[TipoReceita],Entrada!$P36) -> 800052.17 | AH36: =SUMIFS(Tab_Uderor[R$],Tab_Uderor[Competencia],Entrada!AH35,Tab_Uderor[TipoReceita],Entrada!$P36) -> 685695.23 | AI36: =SUMIFS(Tab_Uderor[R$],Tab_Uderor[Competencia],Entrada!AI35,Tab_Uderor[TipoReceita],Entrada!$P36) -> 692810.78 | AJ36: =SUMIFS(Tab_Uderor[R$],Tab_Uderor[Competencia],Entrada!AJ35,Tab_Uderor[TipoReceita],Entrada!$P36) -> 451199.53 | AK36: =SUMIFS(Tab_Uderor[R$],Tab_Uderor[Competencia],Entrada!AK35,Tab_Uderor[TipoReceita],Entrada!$P36) -> 733642.34 | AL36: =SUMIFS(Tab_Uderor[R$],Tab_Uderor[Competencia],Entrada!AL35,Tab_Uderor[TipoReceita],Entrada!$P36) -> 729354.26 | AM36: =SUMIFS(Tab_Uderor[R$],Tab_Uderor[Competencia],Entrada!AM35,Tab_Uderor[TipoReceita],Entrada!$P36) -> 944650.14 | AN36: =SUMIFS(Tab_Uderor[R$],Tab_Uderor[Competencia],Entrada!AN35,Tab_Uderor[TipoReceita],Entrada!$P36) -> 922879.18 | AO36: =SUMIFS(Tab_Uderor[R$],Tab_Uderor[Competencia],Entrada!AO35,Tab_Uderor[TipoReceita],Entrada!$P36) -> 777077.33 | AP36: =SUMIFS(Tab_Uderor[R$],Tab_Uderor[Competencia],Entrada!AP35,Tab_Uderor[TipoReceita],Entrada!$P36) -> 906679.67 | AQ36: =SUMIFS(Tab_Uderor[R$],Tab_Uderor[Competencia],Entrada!AQ35,Tab_Uderor[TipoReceita],Entrada!$P36) -> 971100.95 | AR36: =SUMIFS(Tab_Uderor[R$],Tab_Uderor[Competencia],Entrada!AR35,Tab_Uderor[TipoReceita],Entrada!$P36) -> 805259.01 | AS36: =SUMIFS(Tab_Uderor[R$],Tab_Uderor[Competencia],Entrada!AS35,Tab_Uderor[TipoReceita],Entrada!$P36) -> 661549.45 | AT36: =SUMIFS(Tab_Uderor[R$],Tab_Uderor[Competencia],Entrada!AT35,Tab_Uderor[TipoReceita],Entrada!$P36) -> 627086.64 | AU36: =SUMIFS(Tab_Uderor[R$],Tab_Uderor[Competencia],Entrada!AU35,Tab_Uderor[TipoReceita],Entrada!$P36) -> 518912.13 | AV36: =SUMIFS(Tab_Uderor[R$],Tab_Uderor[Competencia],Entrada!AV35,Tab_Uderor[TipoReceita],Entrada!$P36) -> 594450.47 | AW36: =SUMIFS(Tab_Uderor[R$],Tab_Uderor[Competencia],Entrada!AW35,Tab_Uderor[TipoReceita],Entrada!$P36) -> 562652.42 | AX36: =SUMIFS(Tab_Uderor[R$],Tab_Uderor[Competencia],Entrada!AX35,Tab_Uderor[TipoReceita],Entrada!$P36) -> 687203.05 | AY36: =SUMIFS(Tab_Uderor[R$],Tab_Uderor[Competencia],Entrada!AY35,Tab_Uderor[TipoReceita],Entrada!$P36) -> 744859.06 | AZ36: =SUMIFS(Tab_Uderor[R$],Tab_Uderor[Competencia],Entrada!AZ35,Tab_Uderor[TipoReceita],Entrada!$P36) -> 795750.96 | BA36: =SUMIFS(Tab_Uderor[R$],Tab_Uderor[Competencia],Entrada!BA35,Tab_Uderor[TipoReceita],Entrada!$P36) -> 827581.47 | BB36: =SUMIFS(Tab_Uderor[R$],Tab_Uderor[Competencia],Entrada!BB35,Tab_Uderor[TipoReceita],Entrada!$P36) -> 905524.76 | BC36: =SUMIFS(Tab_Uderor[R$],Tab_Uderor[Competencia],Entrada!BC35,Tab_Uderor[TipoReceita],Entrada!$P36) -> 998801.16 | BD36: =SUMIFS(Tab_Uderor[R$],Tab_Uderor[Competencia],Entrada!BD35,Tab_Uderor[TipoReceita],Entrada!$P36) -> 744508.97 | BE36: =SUMIFS(Tab_Uderor[R$],Tab_Uderor[Competencia],Entrada!BE35,Tab_Uderor[TipoReceita],Entrada!$P36) -> 724214.73 | BF36: =SUMIFS(Tab_Uderor[R$],Tab_Uderor[Competencia],Entrada!BF35,Tab_Uderor[TipoReceita],Entrada!$P36) -> 679497.07 | BG36: =SUMIFS(Tab_Uderor[R$],Tab_Uderor[Competencia],Entrada!BG35,Tab_Uderor[TipoReceita],Entrada!$P36) -> 548249.54 | BH36: =SUMIFS(Tab_Uderor[R$],Tab_Uderor[Competencia],Entrada!BH35,Tab_Uderor[TipoReceita],Entrada!$P36) -> 500694.03 | BI36: =SUMIFS(Tab_Uderor[R$],Tab_Uderor[Competencia],Entrada!BI35,Tab_Uderor[TipoReceita],Entrada!$P36) -> 479568.56 | BJ36: =SUMIFS(Tab_Uderor[R$],Tab_Uderor[Competencia],Entrada!BJ35,Tab_Uderor[TipoReceita],Entrada!$P36) -> 602230.68 | BK36: =SUMIFS(Tab_Uderor[R$],Tab_Uderor[Competencia],Entrada!BK35,Tab_Uderor[TipoReceita],Entrada!$P36) -> 652044.59 | BL36: =SUMIFS(Tab_Uderor[R$],Tab_Uderor[Competencia],Entrada!BL35,Tab_Uderor[TipoReceita],Entrada!$P36) -> 487402.31 | BM36: =SUMIFS(Tab_Uderor[R$],Tab_Uderor[Competencia],Entrada!BM35,Tab_Uderor[TipoReceita],Entrada!$P36) -> 665979.95 | BN36: =SUMIFS(Tab_Uderor[R$],Tab_Uderor[Competencia],Entrada!BN35,Tab_Uderor[TipoReceita],Entrada!$P36) -> 601604.11 | BO36: =SUMIFS(Tab_Uderor[R$],Tab_Uderor[Competencia],Entrada!BO35,Tab_Uderor[TipoReceita],Entrada!$P36) -> 771633.08 | BP36: =SUMIFS(Tab_Uderor[R$],Tab_Uderor[Competencia],Entrada!BP35,Tab_Uderor[TipoReceita],Entrada!$P36) -> 688617.73 | BQ36: =SUMIFS(Tab_Uderor[R$],Tab_Uderor[Competencia],Entrada!BQ35,Tab_Uderor[TipoReceita],Entrada!$P36) -> 0 | BR36: =SUMIFS(Tab_Uderor[R$],Tab_Uderor[Competencia],Entrada!BR35,Tab_Uderor[TipoReceita],Entrada!$P36) -> 0 | BS36: =SUMIFS(Tab_Uderor[R$],Tab_Uderor[Competencia],Entrada!BS35,Tab_Uderor[TipoReceita],Entrada!$P36) -> 0 | BT36: =SUMIFS(Tab_Uderor[R$],Tab_Uderor[Competencia],Entrada!BT35,Tab_Uderor[TipoReceita],Entrada!$P36) -> 0 | BU36: =SUMIFS(Tab_Uderor[R$],Tab_Uderor[Competencia],Entrada!BU35,Tab_Uderor[TipoReceita],Entrada!$P36) -> 0 | BV36: =SUMIFS(Tab_Uderor[R$],Tab_Uderor[Competencia],Entrada!BV35,Tab_Uderor[TipoReceita],Entrada!$P36) -> 0 | BW36: =SUMIFS(Tab_Uderor[R$],Tab_Uderor[Competencia],Entrada!BW35,Tab_Uderor[TipoReceita],Entrada!$P36) -> 0 | BX36: =SUMIFS(Tab_Uderor[R$],Tab_Uderor[Competencia],Entrada!BX35,Tab_Uderor[TipoReceita],Entrada!$P36) -> 0
B37: Dados da Revisão Anterior | C37: EBO | F37: Data Base Ativos e Consumidores | G37: 44410 | J37: RIT - RP 800 - Célula F34 - BMP - 610532801,610552801 | K37: Transferências da Administração Central | L37: =SUMIFS(Tab_RIT_BMP[SALDO],Tab_RIT_BMP[CONTA],610532801,Tab_RIT_BMP[ANO],$L$7)+SUMIFS(Tab_RIT_BMP[SALDO],Tab_RIT_BMP[CONTA],610552801,Tab_RIT_BMP[ANO],$M$7) -> 97968835.54 | M37: =SUMIFS(Tab_RIT_BMP[SALDO],Tab_RIT_BMP[CONTA],610532801,Tab_RIT_BMP[ANO],$M$7)+SUMIFS(Tab_RIT_BMP[SALDO],Tab_RIT_BMP[CONTA],610552801,Tab_RIT_BMP[ANO],$L$7)-98988311.94 -> 0 | P37: Excedente Reativo | Q37: =SUMIFS(Tab_Uderor[R$],Tab_Uderor[Competencia],Entrada!Q35,Tab_Uderor[TipoReceita],Entrada!$P37) -> 1137579.1 | R37: =SUMIFS(Tab_Uderor[R$],Tab_Uderor[Competencia],Entrada!R35,Tab_Uderor[TipoReceita],Entrada!$P37) -> 1095612.83 | S37: =SUMIFS(Tab_Uderor[R$],Tab_Uderor[Competencia],Entrada!S35,Tab_Uderor[TipoReceita],Entrada!$P37) -> 1135651.33 | T37: =SUMIFS(Tab_Uderor[R$],Tab_Uderor[Competencia],Entrada!T35,Tab_Uderor[TipoReceita],Entrada!$P37) -> 1091620.24 | U37: =SUMIFS(Tab_Uderor[R$],Tab_Uderor[Competencia],Entrada!U35,Tab_Uderor[TipoReceita],Entrada!$P37) -> 1059213.45 | V37: =SUMIFS(Tab_Uderor[R$],Tab_Uderor[Competencia],Entrada!V35,Tab_Uderor[TipoReceita],Entrada!$P37) -> 1034248.93 | W37: =SUMIFS(Tab_Uderor[R$],Tab_Uderor[Competencia],Entrada!W35,Tab_Uderor[TipoReceita],Entrada!$P37) -> 1154629.18 | X37: =SUMIFS(Tab_Uderor[R$],Tab_Uderor[Competencia],Entrada!X35,Tab_Uderor[TipoReceita],Entrada!$P37) -> 1110275.32 | Y37: =SUMIFS(Tab_Uderor[R$],Tab_Uderor[Competencia],Entrada!Y35,Tab_Uderor[TipoReceita],Entrada!$P37) -> 1066640.59 | Z37: =SUMIFS(Tab_Uderor[R$],Tab_Uderor[Competencia],Entrada!Z35,Tab_Uderor[TipoReceita],Entrada!$P37) -> 1054650.99 | AA37: =SUMIFS(Tab_Uderor[R$],Tab_Uderor[Competencia],Entrada!AA35,Tab_Uderor[TipoReceita],Entrada!$P37) -> 991224.49 | AB37: =SUMIFS(Tab_Uderor[R$],Tab_Uderor[Competencia],Entrada!AB35,Tab_Uderor[TipoReceita],Entrada!$P37) -> 952634.84 | AC37: =SUMIFS(Tab_Uderor[R$],Tab_Uderor[Competencia],Entrada!AC35,Tab_Uderor[TipoReceita],Entrada!$P37) -> 1094298.16 | AD37: =SUMIFS(Tab_Uderor[R$],Tab_Uderor[Competencia],Entrada!AD35,Tab_Uderor[TipoReceita],Entrada!$P37) -> 998919.74 | AE37: =SUMIFS(Tab_Uderor[R$],Tab_Uderor[Competencia],Entrada!AE35,Tab_Uderor[TipoReceita],Entrada!$P37) -> 908209.91 | AF37: =SUMIFS(Tab_Uderor[R$],Tab_Uderor[Competencia],Entrada!AF35,Tab_Uderor[TipoReceita],Entrada!$P37) -> 852008.32 | AG37: =SUMIFS(Tab_Uderor[R$],Tab_Uderor[Competencia],Entrada!AG35,Tab_Uderor[TipoReceita],Entrada!$P37) -> 874084.26 | AH37: =SUMIFS(Tab_Uderor[R$],Tab_Uderor[Competencia],Entrada!AH35,Tab_Uderor[TipoReceita],Entrada!$P37) -> 1053321.69 | AI37: =SUMIFS(Tab_Uderor[R$],Tab_Uderor[Competencia],Entrada!AI35,Tab_Uderor[TipoReceita],Entrada!$P37) -> 985215.26 | AJ37: =SUMIFS(Tab_Uderor[R$],Tab_Uderor[Competencia],Entrada!AJ35,Tab_Uderor[TipoReceita],Entrada!$P37) -> 883826.95 | AK37: =SUMIFS(Tab_Uderor[R$],Tab_Uderor[Competencia],Entrada!AK35,Tab_Uderor[TipoReceita],Entrada!$P37) -> 726398.53 | AL37: =SUMIFS(Tab_Uderor[R$],Tab_Uderor[Competencia],Entrada!AL35,Tab_Uderor[TipoReceita],Entrada!$P37) -> 919259.67 | AM37: =SUMIFS(Tab_Uderor[R$],Tab_Uderor[Competencia],Entrada!AM35,Tab_Uderor[TipoReceita],Entrada!$P37) -> 881202.06 | AN37: =SUMIFS(Tab_Uderor[R$],Tab_Uderor[Competencia],Entrada!AN35,Tab_Uderor[TipoReceita],Entrada!$P37) -> 908065.02 | AO37: =SUMIFS(Tab_Uderor[R$],Tab_Uderor[Competencia],Entrada!AO35,Tab_Uderor[TipoReceita],Entrada!$P37) -> 909392.34 | AP37: =SUMIFS(Tab_Uderor[R$],Tab_Uderor[Competencia],Entrada!AP35,Tab_Uderor[TipoReceita],Entrada!$P37) -> 966574.14 | AQ37: =SUMIFS(Tab_Uderor[R$],Tab_Uderor[Competencia],Entrada!AQ35,Tab_Uderor[TipoReceita],Entrada!$P37) -> 1071204.65 | AR37: =SUMIFS(Tab_Uderor[R$],Tab_Uderor[Competencia],Entrada!AR35,Tab_Uderor[TipoReceita],Entrada!$P37) -> 859648.52 | AS37: =SUMIFS(Tab_Uderor[R$],Tab_Uderor[Competencia],Entrada!AS35,Tab_Uderor[TipoReceita],Entrada!$P37) -> 858163.98 | AT37: =SUMIFS(Tab_Uderor[R$],Tab_Uderor[Competencia],Entrada!AT35,Tab_Uderor[TipoReceita],Entrada!$P37) -> 924530.5 | AU37: =SUMIFS(Tab_Uderor[R$],Tab_Uderor[Competencia],Entrada!AU35,Tab_Uderor[TipoReceita],Entrada!$P37) -> 959621.85 | AV37: =SUMIFS(Tab_Uderor[R$],Tab_Uderor[Competencia],Entrada!AV35,Tab_Uderor[TipoReceita],Entrada!$P37) -> 880581.22 | AW37: =SUMIFS(Tab_Uderor[R$],Tab_Uderor[Competencia],Entrada!AW35,Tab_Uderor[TipoReceita],Entrada!$P37) -> 993598.07 | AX37: =SUMIFS(Tab_Uderor[R$],Tab_Uderor[Competencia],Entrada!AX35,Tab_Uderor[TipoReceita],Entrada!$P37) -> 975606.56 | AY37: =SUMIFS(Tab_Uderor[R$],Tab_Uderor[Competencia],Entrada!AY35,Tab_Uderor[TipoReceita],Entrada!$P37) -> 951213.61 | AZ37: =SUMIFS(Tab_Uderor[R$],Tab_Uderor[Competencia],Entrada!AZ35,Tab_Uderor[TipoReceita],Entrada!$P37) -> 900771.36 | BA37: =SUMIFS(Tab_Uderor[R$],Tab_Uderor[Competencia],Entrada!BA35,Tab_Uderor[TipoReceita],Entrada!$P37) -> 950476.89 | BB37: =SUMIFS(Tab_Uderor[R$],Tab_Uderor[Competencia],Entrada!BB35,Tab_Uderor[TipoReceita],Entrada!$P37) -> 1013032.51 | BC37: =SUMIFS(Tab_Uderor[R$],Tab_Uderor[Competencia],Entrada!BC35,Tab_Uderor[TipoReceita],Entrada!$P37) -> 1000151.7 | BD37: =SUMIFS(Tab_Uderor[R$],Tab_Uderor[Competencia],Entrada!BD35,Tab_Uderor[TipoReceita],Entrada!$P37) -> 896479.19 | BE37: =SUMIFS(Tab_Uderor[R$],Tab_Uderor[Competencia],Entrada!BE35,Tab_Uderor[TipoReceita],Entrada!$P37) -> 939520.56 | BF37: =SUMIFS(Tab_Uderor[R$],Tab_Uderor[Competencia],Entrada!BF35,Tab_Uderor[TipoReceita],Entrada!$P37) -> 844192.71 | BG37: =SUMIFS(Tab_Uderor[R$],Tab_Uderor[Competencia],Entrada!BG35,Tab_Uderor[TipoReceita],Entrada!$P37) -> 766981.13 | BH37: =SUMIFS(Tab_Uderor[R$],Tab_Uderor[Competencia],Entrada!BH35,Tab_Uderor[TipoReceita],Entrada!$P37) -> 788389.77 | BI37: =SUMIFS(Tab_Uderor[R$],Tab_Uderor[Competencia],Entrada!BI35,Tab_Uderor[TipoReceita],Entrada!$P37) -> 788669.85 | BJ37: =SUMIFS(Tab_Uderor[R$],Tab_Uderor[Competencia],Entrada!BJ35,Tab_Uderor[TipoReceita],Entrada!$P37) -> 823723.12 | BK37: =SUMIFS(Tab_Uderor[R$],Tab_Uderor[Competencia],Entrada!BK35,Tab_Uderor[TipoReceita],Entrada!$P37) -> 847919.79 | BL37: =SUMIFS(Tab_Uderor[R$],Tab_Uderor[Competencia],Entrada!BL35,Tab_Uderor[TipoReceita],Entrada!$P37) -> 650135 | BM37: =SUMIFS(Tab_Uderor[R$],Tab_Uderor[Competencia],Entrada!BM35,Tab_Uderor[TipoReceita],Entrada!$P37) -> 772003.66 | BN37: =SUMIFS(Tab_Uderor[R$],Tab_Uderor[Competencia],Entrada!BN35,Tab_Uderor[TipoReceita],Entrada!$P37) -> 807343.5 | BO37: =SUMIFS(Tab_Uderor[R$],Tab_Uderor[Competencia],Entrada!BO35,Tab_Uderor[TipoReceita],Entrada!$P37) -> 949279.49 | BP37: =SUMIFS(Tab_Uderor[R$],Tab_Uderor[Competencia],Entrada!BP35,Tab_Uderor[TipoReceita],Entrada!$P37) -> 951433.31 | BQ37: =SUMIFS(Tab_Uderor[R$],Tab_Uderor[Competencia],Entrada!BQ35,Tab_Uderor[TipoReceita],Entrada!$P37) -> 0 | BR37: =SUMIFS(Tab_Uderor[R$],Tab_Uderor[Competencia],Entrada!BR35,Tab_Uderor[TipoReceita],Entrada!$P37) -> 0 | BS37: =SUMIFS(Tab_Uderor[R$],Tab_Uderor[Competencia],Entrada!BS35,Tab_Uderor[TipoReceita],Entrada!$P37) -> 0 | BT37: =SUMIFS(Tab_Uderor[R$],Tab_Uderor[Competencia],Entrada!BT35,Tab_Uderor[TipoReceita],Entrada!$P37) -> 0 | BU37: =SUMIFS(Tab_Uderor[R$],Tab_Uderor[Competencia],Entrada!BU35,Tab_Uderor[TipoReceita],Entrada!$P37) -> 0 | BV37: =SUMIFS(Tab_Uderor[R$],Tab_Uderor[Competencia],Entrada!BV35,Tab_Uderor[TipoReceita],Entrada!$P37) -> 0 | BW37: =SUMIFS(Tab_Uderor[R$],Tab_Uderor[Competencia],Entrada!BW35,Tab_Uderor[TipoReceita],Entrada!$P37) -> 0 | BX37: =SUMIFS(Tab_Uderor[R$],Tab_Uderor[Competencia],Entrada!BX35,Tab_Uderor[TipoReceita],Entrada!$P37) -> 0
B38: Mercado AT (MWh) | C38: 99855.123 | F38: Mercado AT (MWh) | G38: =C38+C43 -> 861697.744 | K38: Subtotal | L38: =SUM(L25:L37) -> 151657453.8 | M38: =SUM(M25:M37) -> 153767092.3
B39: Mercado MT (MWh) | C39: 187927.265 | F39: Mercado MT (MWh) | G39: =C39+C44 -> 1038195.384 | J39: CONTA SEGUROS | P39: Receitas Irrecuperáveis | Q39: Meses
B40: Mercado BT (MWh) | C40: 426067.432 | F40: Mercado BT (MWh) | G40: 3551883.075 | J40: BMP - 610531001; 610551001; 610533001; 610553001 | K40: Seguros | L40: =SUMIFS(Tab_RIT_BMP[SALDO],Tab_RIT_BMP[CONTA],610531001,Tab_RIT_BMP[ANO],$L$7)+SUMIFS(Tab_RIT_BMP[SALDO],Tab_RIT_BMP[CONTA],610551001,Tab_RIT_BMP[ANO],$L$7)+ SUMIFS(Tab_RIT_BMP[SALDO],Tab_RIT_BMP[CONTA],610533001,Tab_RIT_BMP[ANO],$L$7)+SUMIFS(Tab_RIT_BMP[SALDO],Tab_RIT_BMP[CONTA],610553001,Tab_RIT_BMP[ANO],$L$7) -> 1969973.29 | M40: =SUMIFS(Tab_RIT_BMP[SALDO],Tab_RIT_BMP[CONTA],610531001,Tab_RIT_BMP[ANO],$M$7)+SUMIFS(Tab_RIT_BMP[SALDO],Tab_RIT_BMP[CONTA],610551001,Tab_RIT_BMP[ANO],$M$7)+ SUMIFS(Tab_RIT_BMP[SALDO],Tab_RIT_BMP[CONTA],610533001,Tab_RIT_BMP[ANO],$M$7)+SUMIFS(Tab_RIT_BMP[SALDO],Tab_RIT_BMP[CONTA],610553001,Tab_RIT_BMP[ANO],$M$7) -> 2020109.51 | P40: Faturamento Total | Q40: 49 | R40: 50 | S40: 51 | T40: 52 | U40: 53 | V40: 54 | W40: 55 | X40: 56 | Y40: 57 | Z40: 58 | AA40: 59 | AB40: 60
B41: Número de unidades consumidoras | C41: 224691 | F41: Número de unidades consumidoras | G41: 1724438 | J41: BMP - 610531099; 610551099; 610533099; 610553099 | K41: Outros | L41: =SUMIFS(Tab_RIT_BMP[SALDO],Tab_RIT_BMP[CONTA],610531099,Tab_RIT_BMP[ANO],$L$7)+SUMIFS(Tab_RIT_BMP[SALDO],Tab_RIT_BMP[CONTA],610551099,Tab_RIT_BMP[ANO],$L$7)+ SUMIFS(Tab_RIT_BMP[SALDO],Tab_RIT_BMP[CONTA],610533099,Tab_RIT_BMP[ANO],$L$7)+SUMIFS(Tab_RIT_BMP[SALDO],Tab_RIT_BMP[CONTA],610553099,Tab_RIT_BMP[ANO],$L$7) -> 0 | M41: =SUMIFS(Tab_RIT_BMP[SALDO],Tab_RIT_BMP[CONTA],610531099,Tab_RIT_BMP[ANO],$M$7)+SUMIFS(Tab_RIT_BMP[SALDO],Tab_RIT_BMP[CONTA],610551099,Tab_RIT_BMP[ANO],$M$7)+ SUMIFS(Tab_RIT_BMP[SALDO],Tab_RIT_BMP[CONTA],610533099,Tab_RIT_BMP[ANO],$M$7)+SUMIFS(Tab_RIT_BMP[SALDO],Tab_RIT_BMP[CONTA],610553099,Tab_RIT_BMP[ANO],$M$7) -> 0 | P41: 1.Residencial | Q41: 158413529.6 | R41: 146076122.5 | S41: 137294608 | T41: 128820612.3 | U41: 128312005.5 | V41: 114239157 | W41: 139143357.4 | X41: 142533280.4 | Y41: 153404736.1 | Z41: 149402805.8 | AA41: 155550220.3 | AB41: 152239244
B42: Dados da Revisão Anterior | C42: EPB | J42: BMP - 610531010; 610551010; 610533010; 610553010 | K42: (-) Créditos de Tributos Recuperáveis | L42: =SUMIFS(Tab_RIT_BMP[SALDO],Tab_RIT_BMP[CONTA],610531010,Tab_RIT_BMP[ANO],$L$7)+SUMIFS(Tab_RIT_BMP[SALDO],Tab_RIT_BMP[CONTA],610551010,Tab_RIT_BMP[ANO],$L$7)+ SUMIFS(Tab_RIT_BMP[SALDO],Tab_RIT_BMP[CONTA],610533010,Tab_RIT_BMP[ANO],$L$7)+SUMIFS(Tab_RIT_BMP[SALDO],Tab_RIT_BMP[CONTA],610553010,Tab_RIT_BMP[ANO],$L$7) -> 0 | M42: =SUMIFS(Tab_RIT_BMP[SALDO],Tab_RIT_BMP[CONTA],610531010,Tab_RIT_BMP[ANO],$M$7)+SUMIFS(Tab_RIT_BMP[SALDO],Tab_RIT_BMP[CONTA],610551010,Tab_RIT_BMP[ANO],$M$7)+ SUMIFS(Tab_RIT_BMP[SALDO],Tab_RIT_BMP[CONTA],610533010,Tab_RIT_BMP[ANO],$M$7)+SUMIFS(Tab_RIT_BMP[SALDO],Tab_RIT_BMP[CONTA],610553010,Tab_RIT_BMP[ANO],$M$7) -> 0 | P42: 2.Industrial | Q42: 24741947.81 | R42: 23819351.07 | S42: 24364590.88 | T42: 23184539.64 | U42: 21630785.27 | V42: 19741728.62 | W42: 19041628.74 | X42: 17742747.01 | Y42: 20751231.42 | Z42: 22213824.73 | AA42: 22696939.99 | AB42: 23465832.77
B43: Mercado AT (MWh) | C43: 761842.621 | F43: OPEX | K43: Subtotal | L43: =SUM(L40:L42) -> 1969973.29 | M43: =SUM(M40:M42) -> 2020109.51 | P43: 3.Comercial | Q43: 59722366.63 | R43: 54912015.96 | S43: 52376761.01 | T43: 48484214.56 | U43: 45325562.11 | V43: 43376414.44 | W43: 49028390.81 | X43: 50324940.74 | Y43: 61416937.3 | Z43: 64091487.06 | AA43: 64068869.06 | AB43: 66809926.76
B44: Mercado MT (MWh) | C44: 850268.119 | F44: Extensão de redes subterrâneas (Km) | G44: 31.62 | H44: 45849 | J44: CONTA TRIBUTOS | P44: 4.Rural | Q44: 18094549.08 | R44: 16554247.98 | S44: 14835248.38 | T44: 12405280.5 | U44: 11729423.38 | V44: 11490367.61 | W44: 13103532.87 | X44: 13230873.15 | Y44: 13807576.17 | Z44: 14424323.75 | AA44: 16101987.46 | AB44: 17051470.91
B45: Mercado BT (MWh) | C45: 3125815.643 | F45: Extensão de rede de distribuição aérea (Km) | G45: 84601.32 | H45: <- informação preliminar EPB | J45: BMP - 6105316; 6105516; 6105336; 6105536 | K45: Tributos | L45: =SUMIFS(Tab_RIT_BMP[SALDO],Tab_RIT_BMP[CONTA],6105316,Tab_RIT_BMP[ANO],$L$7)+SUMIFS(Tab_RIT_BMP[SALDO],Tab_RIT_BMP[CONTA],6105516,Tab_RIT_BMP[ANO],$L$7)+ SUMIFS(Tab_RIT_BMP[SALDO],Tab_RIT_BMP[CONTA],6105336,Tab_RIT_BMP[ANO],$L$7)+SUMIFS(Tab_RIT_BMP[SALDO],Tab_RIT_BMP[CONTA],6105536,Tab_RIT_BMP[ANO],$L$7) -> 2102923.54 | M45: =SUMIFS(Tab_RIT_BMP[SALDO],Tab_RIT_BMP[CONTA],6105316,Tab_RIT_BMP[ANO],$M$7)+SUMIFS(Tab_RIT_BMP[SALDO],Tab_RIT_BMP[CONTA],6105516,Tab_RIT_BMP[ANO],$M$7)+ SUMIFS(Tab_RIT_BMP[SALDO],Tab_RIT_BMP[CONTA],6105336,Tab_RIT_BMP[ANO],$M$7)+SUMIFS(Tab_RIT_BMP[SALDO],Tab_RIT_BMP[CONTA],6105536,Tab_RIT_BMP[ANO],$M$7) -> 2620528.77 | P45: 5.Poder Público | Q45: 16320841.54 | R45: 14995387.08 | S45: 14046051.16 | T45: 13186229.8 | U45: 12713894.19 | V45: 12743512.95 | W45: 14163363.1 | X45: 14901803.05 | Y45: 18925974.67 | Z45: 19205693.94 | AA45: 18126199.94 | AB45: 20863794.35
B46: Número de unidades consumidoras | C46: 1499747 | F46: Extensão de rede de alta tensão (Km) | G46: 2485.26 | H46: <- informação preliminar EPB | K46: (+) Créditos de Tributos Recuperáveis | L46: =L45 -> 2102923.54 | M46: =M45 -> 2620528.77 | P46: 6.Iluminação Pública | Q46: 9591862.39 | R46: 9758628.85 | S46: 11176313.2 | T46: 11922310.37 | U46: 13408986.03 | V46: 8743821.29 | W46: 9152112.91 | X46: 9028360.3 | Y46: 9209308.68 | Z46: 10046878.69 | AA46: 9643001.87 | AB46: 11562183.6
F47: ="% PNT / BT Real de "&IF(MONTH(LnkTxtDRPData)>6,YEAR(LnkTxtDRPData)-1,YEAR(LnkTxtDRPData)-2) & " (Medido)" -> % PNT / BT Real de 2024 (Medido) | G47: 0.08187623027 | H47: <- necessário mesclar EBO EPB | J47: CONTA OUTROS | P47: 7.Serviço Público | Q47: 8883931.1 | R47: 8341307.36 | S47: 8370340.58 | T47: 8117226.95 | U47: 7986004.98 | V47: 7927544.73 | W47: 8265298.73 | X47: 8203579.66 | Y47: 8001934.62 | Z47: 8843567.5 | AA47: 8941765.02 | AB47: 9021381.89
F48: ="% PNT / BT Real de "&IF(MONTH(LnkTxtDRPData)>6,YEAR(LnkTxtDRPData)-1,YEAR(LnkTxtDRPData)-2)-1 & " (Medido)" -> % PNT / BT Real de 2023 (Medido) | G48: 0.08377474309 | H48: <- necessário mesclar EBO EPB | J48: BMP - 610531901; 610551901; 610533901; 610553901 | K48: Indenização por Perdas e Danos | L48: =SUMIFS(Tab_RIT_BMP[SALDO],Tab_RIT_BMP[CONTA],610531901,Tab_RIT_BMP[ANO],$L$7)+SUMIFS(Tab_RIT_BMP[SALDO],Tab_RIT_BMP[CONTA],610551901,Tab_RIT_BMP[ANO],$L$7)+ SUMIFS(Tab_RIT_BMP[SALDO],Tab_RIT_BMP[CONTA],610533901,Tab_RIT_BMP[ANO],$L$7)+SUMIFS(Tab_RIT_BMP[SALDO],Tab_RIT_BMP[CONTA],610553901,Tab_RIT_BMP[ANO],$L$7) -> 846062.39 | M48: =SUMIFS(Tab_RIT_BMP[SALDO],Tab_RIT_BMP[CONTA],610531901,Tab_RIT_BMP[ANO],$M$7)+SUMIFS(Tab_RIT_BMP[SALDO],Tab_RIT_BMP[CONTA],610551901,Tab_RIT_BMP[ANO],$M$7)+ SUMIFS(Tab_RIT_BMP[SALDO],Tab_RIT_BMP[CONTA],610533901,Tab_RIT_BMP[ANO],$M$7)+SUMIFS(Tab_RIT_BMP[SALDO],Tab_RIT_BMP[CONTA],610553901,Tab_RIT_BMP[ANO],$M$7) -> 989354.48
F49: ="% PNT / BT Real de "&IF(MONTH(LnkTxtDRPData)>6,YEAR(LnkTxtDRPData)-1,YEAR(LnkTxtDRPData)-2)-2 & " (Medido)" -> % PNT / BT Real de 2022 (Medido) | G49: 0.07255636078 | H49: <- necessário mesclar EBO EPB | J49: BMP - 610531902; 610551902; 610533902; 610553902 | K49: Consumo Próprio de Energia | L49: =SUMIFS(Tab_RIT_BMP[SALDO],Tab_RIT_BMP[CONTA],610531902,Tab_RIT_BMP[ANO],$L$7)+SUMIFS(Tab_RIT_BMP[SALDO],Tab_RIT_BMP[CONTA],610551902,Tab_RIT_BMP[ANO],$L$7)+ SUMIFS(Tab_RIT_BMP[SALDO],Tab_RIT_BMP[CONTA],610533902,Tab_RIT_BMP[ANO],$L$7)+SUMIFS(Tab_RIT_BMP[SALDO],Tab_RIT_BMP[CONTA],610553902,Tab_RIT_BMP[ANO],$L$7) -> 4246370.96 | M49: =SUMIFS(Tab_RIT_BMP[SALDO],Tab_RIT_BMP[CONTA],610531902,Tab_RIT_BMP[ANO],$M$7)+SUMIFS(Tab_RIT_BMP[SALDO],Tab_RIT_BMP[CONTA],610551902,Tab_RIT_BMP[ANO],$M$7)+ SUMIFS(Tab_RIT_BMP[SALDO],Tab_RIT_BMP[CONTA],610533902,Tab_RIT_BMP[ANO],$M$7)+SUMIFS(Tab_RIT_BMP[SALDO],Tab_RIT_BMP[CONTA],610553902,Tab_RIT_BMP[ANO],$M$7) -> 5076468.73 | P49: Receitas Irrecuperáveis | Q49: Meses
F50: ="DEC Apurado "&IF(MONTH(LnkTxtDRPData)>3,YEAR(LnkTxtDRPData)-1,YEAR(LnkTxtDRPData)-2) -> DEC Apurado 2024 | G50: ='Fator Q'!K62 -> 9.71 | J50: BMP - 610531905 | K50: Despesas com Conselho de Consumidores | L50: =SUMIFS(Tab_RIT_BMP[SALDO],Tab_RIT_BMP[CONTA],610531905,Tab_RIT_BMP[ANO],$L$7) -> 0 | M50: =SUMIFS(Tab_RIT_BMP[SALDO],Tab_RIT_BMP[CONTA],610531905,Tab_RIT_BMP[ANO],$M$7) -> 0 | P50: Faturamento não recebido até dez do ano anterior | Q50: 49 | R50: 50 | S50: 51 | T50: 52 | U50: 53 | V50: 54 | W50: 55 | X50: 56 | Y50: 57 | Z50: 58 | AA50: 59 | AB50: 60
B51: DEC EBO 2022 | C51: 3.41 | F51: ="DEC Apurado "&IF(MONTH(LnkTxtDRPData)>3,YEAR(LnkTxtDRPData)-1,YEAR(LnkTxtDRPData)-2)-1 -> DEC Apurado 2023 | G51: ='Fator Q'!H62 -> 10.99 | J51: BMP - 610531908; 610533907 | K51: Comunicação e Reprografia | L51: =SUMIFS(Tab_RIT_BMP[SALDO],Tab_RIT_BMP[CONTA],610531908,Tab_RIT_BMP[ANO],$L$7)+SUMIFS(Tab_RIT_BMP[SALDO],Tab_RIT_BMP[CONTA],610533907,Tab_RIT_BMP[ANO],$L$7) -> 6635177.6 | M51: =SUMIFS(Tab_RIT_BMP[SALDO],Tab_RIT_BMP[CONTA],610531908,Tab_RIT_BMP[ANO],$M$7)+SUMIFS(Tab_RIT_BMP[SALDO],Tab_RIT_BMP[CONTA],610533907,Tab_RIT_BMP[ANO],$M$7) -> 6536683.61 | P51: 1.Residencial | Q51: 2101432.26 | R51: 2360342.51 | S51: 1971830.69 | T51: 1417983.94 | U51: 1157838.51 | V51: 944742.81 | W51: 1064067.2 | X51: 1122366.32 | Y51: 2142702.04 | Z51: 1817319.5 | AA51: 1647752.46 | AB51: 1556865.38
B52: DEC EPB 2022 | C52: 11.69 | F52: ="DEC Apurado "&IF(MONTH(LnkTxtDRPData)>3,YEAR(LnkTxtDRPData)-1,YEAR(LnkTxtDRPData)-2)-2 -> DEC Apurado 2022 | G52: =(C51*SUM(C38:C41)+C52*SUM(C43:C46))/(SUM(C38:C41,C43:C46)) -> 10.60710061 | H52: DEC Ponderado | J52: BMP - 610531903; 610551903; 610533903; 610553903 | K52: Taxa de Arrecadação | L52: =SUMIFS(Tab_RIT_BMP[SALDO],Tab_RIT_BMP[CONTA],610531903,Tab_RIT_BMP[ANO],$L$7)+SUMIFS(Tab_RIT_BMP[SALDO],Tab_RIT_BMP[CONTA],610551903,Tab_RIT_BMP[ANO],$L$7)+ SUMIFS(Tab_RIT_BMP[SALDO],Tab_RIT_BMP[CONTA],610533903,Tab_RIT_BMP[ANO],$L$7)+SUMIFS(Tab_RIT_BMP[SALDO],Tab_RIT_BMP[CONTA],610553903,Tab_RIT_BMP[ANO],$L$7) -> 0 | M52: =SUMIFS(Tab_RIT_BMP[SALDO],Tab_RIT_BMP[CONTA],610531903,Tab_RIT_BMP[ANO],$M$7)+SUMIFS(Tab_RIT_BMP[SALDO],Tab_RIT_BMP[CONTA],610551903,Tab_RIT_BMP[ANO],$M$7)+ SUMIFS(Tab_RIT_BMP[SALDO],Tab_RIT_BMP[CONTA],610533903,Tab_RIT_BMP[ANO],$M$7)+SUMIFS(Tab_RIT_BMP[SALDO],Tab_RIT_BMP[CONTA],610553903,Tab_RIT_BMP[ANO],$M$7) -> 0 | P52: 2.Industrial | Q52: 181672.1 | R52: 72632.68 | S52: 77695.62 | T52: 71569.52 | U52: 28667 | V52: 27115.06 | W52: 69801.85 | X52: 78189.81 | Y52: 232535.75 | Z52: 233530.06 | AA52: 238495.91 | AB52: 59650.24
F53: Meta de % PNT / BT (Medido) | G53: 0.05905384468 | J53: BMP - 610531904; 610551904; 610533904; 610553904 | K53: Taxas Bancárias | L53: =SUMIFS(Tab_RIT_BMP[SALDO],Tab_RIT_BMP[CONTA],610531904,Tab_RIT_BMP[ANO],$L$7)+SUMIFS(Tab_RIT_BMP[SALDO],Tab_RIT_BMP[CONTA],610551904,Tab_RIT_BMP[ANO],$L$7)+ SUMIFS(Tab_RIT_BMP[SALDO],Tab_RIT_BMP[CONTA],610533904,Tab_RIT_BMP[ANO],$L$7)+SUMIFS(Tab_RIT_BMP[SALDO],Tab_RIT_BMP[CONTA],610553904,Tab_RIT_BMP[ANO],$L$7) -> 0 | M53: =SUMIFS(Tab_RIT_BMP[SALDO],Tab_RIT_BMP[CONTA],610531904,Tab_RIT_BMP[ANO],$M$7)+SUMIFS(Tab_RIT_BMP[SALDO],Tab_RIT_BMP[CONTA],610551904,Tab_RIT_BMP[ANO],$M$7)+ SUMIFS(Tab_RIT_BMP[SALDO],Tab_RIT_BMP[CONTA],610533904,Tab_RIT_BMP[ANO],$M$7)+SUMIFS(Tab_RIT_BMP[SALDO],Tab_RIT_BMP[CONTA],610553904,Tab_RIT_BMP[ANO],$M$7) -> 0 | P53: 3.Comercial | Q53: 736248.41 | R53: 448048.58 | S53: 389014.08 | T53: 308777.51 | U53: 242693 | V53: 215042.07 | W53: 264821.57 | X53: 272065.24 | Y53: 544992.49 | Z53: 993326.41 | AA53: 385460.66 | AB53: 648056.94
F54: DEC 8 anos (Limite V8) | G54: 8.46 | H54: <- Renato STD | J54: BMP - 610531910; 610551910; 610533910; 610553910 | K54: (-) Créditos de Tributos Recuperáveis | L54: =SUMIFS(Tab_RIT_BMP[SALDO],Tab_RIT_BMP[CONTA],610531910,Tab_RIT_BMP[ANO],$L$7)+SUMIFS(Tab_RIT_BMP[SALDO],Tab_RIT_BMP[CONTA],610551910,Tab_RIT_BMP[ANO],$L$7)+ SUMIFS(Tab_RIT_BMP[SALDO],Tab_RIT_BMP[CONTA],610533910,Tab_RIT_BMP[ANO],$L$7)+SUMIFS(Tab_RIT_BMP[SALDO],Tab_RIT_BMP[CONTA],610553910,Tab_RIT_BMP[ANO],$L$7) -> 0 | M54: =SUMIFS(Tab_RIT_BMP[SALDO],Tab_RIT_BMP[CONTA],610531910,Tab_RIT_BMP[ANO],$M$7)+SUMIFS(Tab_RIT_BMP[SALDO],Tab_RIT_BMP[CONTA],610551910,Tab_RIT_BMP[ANO],$M$7)+ SUMIFS(Tab_RIT_BMP[SALDO],Tab_RIT_BMP[CONTA],610533910,Tab_RIT_BMP[ANO],$M$7)+SUMIFS(Tab_RIT_BMP[SALDO],Tab_RIT_BMP[CONTA],610553910,Tab_RIT_BMP[ANO],$M$7) -> 0 | P54: 4.Rural | Q54: 263593.48 | R54: 239175.43 | S54: 206201.57 | T54: 168229.3 | U54: 105061.34 | V54: 103618.06 | W54: 119667.9 | X54: 116420.86 | Y54: 238982.3 | Z54: 195831.04 | AA54: 201741.02 | AB54: 195466.78
K55: Subtotal | L55: =SUM(L48:L54) -> 11727610.95 | M55: =SUM(M48:M54) -> 12602506.82 | P55: 5.Poder Público | Q55: 3162.87 | R55: 197.47 | S55: 10951.94 | T55: 11361.2 | U55: 191.62 | V55: 180.3 | W55: 194.67 | X55: 269.42 | Y55: 331.89 | Z55: 188.81 | AA55: 3136.79 | AB55: 328.56
B56: EBO | C56: Data original | D56: Data EPB | J56: Demais | P56: 6.Iluminação Pública | Q56: 38391.29 | R56: 39471.47 | S56: 38868.27 | T56: 39282.49 | U56: 39146.56 | V56: 37497.53 | W56: 39282.49 | X56: 38025.17 | Y56: 38947.2 | Z56: 49274.69 | AA56: 40827.27 | AB56: 41607.97
B57: Dados da última Revisão Tarifária | C57: 44228 | D57: 44378 | F57: Dados da última Revisão Tarifária | J57: BMP - 610531212; 610533212 | K57: Condenações Trabalhistas | P57: 7.Serviço Público | Q57: 20411.5 | R57: 19288.84 | S57: 18007.68 | T57: 14883.25 | U57: 14239.54 | V57: 12594.97 | W57: 12986.94 | X57: 15022 | Y57: 15792.57 | Z57: 16371.92 | AA57: 3858.08 | AB57: 3673.08
B58: Custos Operacionais (CO3) | C58: 55617860.08 | D58: =C58*VLOOKUP($C$57,Índices!$B$8:$F$1000,3)/VLOOKUP($D$57,Índices!$B$8:$F$1000,3) -> 53680285.55 | F58: Custos Operacionais (CO3) | G58: =D58+C73 -> 492630493.3 | J58: BMP - 610533908; 610531909 | K58: Gastos com CCEE
B59: Receitas Irrecuperáveis - Encargos Setoriais (Vi) | C59: 90207.08745 | D59: =C59*VLOOKUP($C$57,Índices!$B$8:$F$1000,3)/VLOOKUP($D$57,Índices!$B$8:$F$1000,3) -> 87064.51859 | F59: Receitas Irrecuperáveis - Encargos Setoriais (Vi) | G59: =D59+C74 -> 1943280.29 | J59: BMP - 611511401; 611512203; 611512103; 611512003; 611512303 | K59: Perdas na Alienação e Desativação | L59: =SUMIFS(Tab_RIT_BMP[SALDO],Tab_RIT_BMP[CONTA],611511401,Tab_RIT_BMP[ANO],$L$7)+SUMIFS(Tab_RIT_BMP[SALDO],Tab_RIT_BMP[CONTA],611512203,Tab_RIT_BMP[ANO],$L$7)+ SUMIFS(Tab_RIT_BMP[SALDO],Tab_RIT_BMP[CONTA], 611512103,Tab_RIT_BMP[ANO],$L$7)+SUMIFS(Tab_RIT_BMP[SALDO],Tab_RIT_BMP[CONTA],611512003,Tab_RIT_BMP[ANO],$L$7)+ SUMIFS(Tab_RIT_BMP[SALDO],Tab_RIT_BMP[CONTA],611512303,Tab_RIT_BMP[ANO],$L$7) -> 16779300.03 | M59: =SUMIFS(Tab_RIT_BMP[SALDO],Tab_RIT_BMP[CONTA],611511401,Tab_RIT_BMP[ANO],$M$7)+SUMIFS(Tab_RIT_BMP[SALDO],Tab_RIT_BMP[CONTA],611512203,Tab_RIT_BMP[ANO],$M$7)+ SUMIFS(Tab_RIT_BMP[SALDO],Tab_RIT_BMP[CONTA],611512103,Tab_RIT_BMP[ANO],$M$7)+SUMIFS(Tab_RIT_BMP[SALDO],Tab_RIT_BMP[CONTA],611512003,Tab_RIT_BMP[ANO],$M$7)+ SUMIFS(Tab_RIT_BMP[SALDO],Tab_RIT_BMP[CONTA],611512303,Tab_RIT_BMP[ANO],$M$7) -> 18718164.44 | P59: Previsão CCEE | Q59: =DATE(YEAR(LnkTxtDRPData),MONTH(LnkTxtDRPData),DAY(1)) -> 2025-08-01 | R59: =DATE(YEAR(Q59),MONTH(Q59)+1,DAY(1)) -> 2025-09-01 | S59: =DATE(YEAR(R59),MONTH(R59)+1,DAY(1)) -> 2025-10-01 | T59: 2025-11-01 | U59: 2025-12-01 | V59: 2026-01-01 | W59: 2026-02-01 | X59: 2026-03-01 | Y59: 2026-04-01 | Z59: 2026-05-01 | AA59: 2026-06-01 | AB59: 2026-07-01
B60: Demais Receitas Irrecuperáveis (Vse) | C60: 225429.2848 | D60: =C60*VLOOKUP($C$57,Índices!$B$8:$F$1000,3)/VLOOKUP($D$57,Índices!$B$8:$F$1000,3) -> 217575.9434 | F60: Demais Receitas Irrecuperáveis (Vse) | G60: 19630256.91 | J60: BMP - 611112103; 611112203; 611112303; 611112403; 611112503 | K60: Ganhos na Alienação de Materiais | L60: =SUMIFS(Tab_RIT_BMP[SALDO],Tab_RIT_BMP[CONTA],611112103,Tab_RIT_BMP[ANO],$L$7)+SUMIFS(Tab_RIT_BMP[SALDO],Tab_RIT_BMP[CONTA],611112203, Tab_RIT_BMP[ANO],$L$7)+ SUMIFS(Tab_RIT_BMP[SALDO],Tab_RIT_BMP[CONTA],611112303,Tab_RIT_BMP[ANO],$L$7)+SUMIFS(Tab_RIT_BMP[SALDO],Tab_RIT_BMP[CONTA], 611112403,Tab_RIT_BMP[ANO],$L$7)+ SUMIFS(Tab_RIT_BMP[SALDO],Tab_RIT_BMP[CONTA],611112503,Tab_RIT_BMP[ANO],$L$7) -> 0 | M60: =-ABS(SUMIFS(Tab_RIT_BMP[SALDO],Tab_RIT_BMP[CONTA],611112103,Tab_RIT_BMP[ANO],$M$7)+SUMIFS(Tab_RIT_BMP[SALDO],Tab_RIT_BMP[CONTA],611112203, Tab_RIT_BMP[ANO],$M$7)+ SUMIFS(Tab_RIT_BMP[SALDO],Tab_RIT_BMP[CONTA],611112303,Tab_RIT_BMP[ANO],$M$7)+SUMIFS(Tab_RIT_BMP[SALDO],Tab_RIT_BMP[CONTA], 611112403,Tab_RIT_BMP[ANO],$M$7)+ SUMIFS(Tab_RIT_BMP[SALDO],Tab_RIT_BMP[CONTA],611112503,Tab_RIT_BMP[ANO],$M$7)) -> 0 | P60: GSF | Q60: 0.68 | R60: 0.66 | S60: 0.73 | T60: 0.83 | U60: 0.9 | V60: 1.08 | W60: 1.07 | X60: 1.1 | Y60: 1 | Z60: 0.88 | AA60: 0.79 | AB60: 0.68 | AC60: Informa CCEE 13/05/2025
B61: Remuneração do Capital (RC) | C61: 19334039.63 | D61: =C61*VLOOKUP($C$57,Índices!$B$8:$F$1000,3)/VLOOKUP($D$57,Índices!$B$8:$F$1000,3) -> 18660494.43 | F61: Remuneração do Capital (RC) | G61: 218551239.1 | P61: PLD | Q61: 363 | R61: 264 | S61: 296 | T61: 185 | U61: 119 | V61: 100 | W61: 65 | X61: 70 | Y61: 59 | Z61: 86 | AA61: 119 | AB61: 123
B62: Quota de Reintegração Regulatória (QRR) | C62: 8875634.112 | D62: =C62*VLOOKUP($C$57,Índices!$B$8:$F$1000,3)/VLOOKUP($D$57,Índices!$B$8:$F$1000,3) -> 8566431.231 | F62: Quota de Reintegração Regulatória (QRR) | G62: 123412450.4
B63: Custo anual das instalações móveis e imóveis (CAIMI) | C63: 7548267.552 | D63: =C63*VLOOKUP($C$57,Índices!$B$8:$F$1000,3)/VLOOKUP($D$57,Índices!$B$8:$F$1000,3) -> 7285306.501 | F63: Custo anual das instalações móveis e imóveis (CAIMI) | G63: 57230691.2
B64: Índice de Produtividade (Pd) | C64: 0.003220845164 | D64: =C64 -> 0.003220845164 | F64: Índice de Produtividade (Pd) | G64: =(D64*SUM($D$58:$D$63,-$D$66,-$D$68,-$D$69)+C79*SUM($C$73:$C$78,-$C$81,-$C$83,-$C$84))/(SUM($D$58:$D$63,-$D$66,-$D$68,-$D$69,$C$73:$C$78,-$C$81,-$C$83,-$C$84)) -> 0.008535241776 | J64: Custo Médio do Capital - Atual
B65: Mecanismo de Qualidade (Q) | C65: -0.01034556574 | D65: =C65 -> -0.01034556574 | F65: Mecanismo de Qualidade (Q) | G65: =(D65*SUM($D$58:$D$63,-$D$66,-$D$68,-$D$69)+C80*SUM($C$73:$C$78,-$C$81,-$C$83,-$C$84))/(SUM($D$58:$D$63,-$D$66,-$D$68,-$D$69,$C$73:$C$78,-$C$81,-$C$83,-$C$84)) -> -0.002508531447 | J65: Tipo | K65: Norma | L65: Valor
B66: Outras Receitas (OR) (inserir o valor positivo) | C66: 2368506.976 | D66: =C66*VLOOKUP($C$57,Índices!$B$8:$F$1000,3)/VLOOKUP($D$57,Índices!$B$8:$F$1000,3) -> 2285994.654 | F66: Outras Receitas (OR) (inserir o valor positivo) | G66: 17330638.16 | J66: WACC real antes de impostos | K66: Despacho n°882, 27/03/2025 | L66: 0.121719 | M66: <- Atualizar | N66: Atualizado em 13/05/25
B67: Componente T - Última Revisão | C67: 0.009935359261 | D67: =C67 -> 0.009935359261 | F67: Componente T - Última Revisão | G67: =(D67*SUM($D$58:$D$63,-$D$66,-$D$68,-$D$69)+C82*SUM($C$73:$C$78,-$C$81,-$C$83,-$C$84))/(SUM($D$58:$D$63,-$D$66,-$D$68,-$D$69,$C$73:$C$78,-$C$81,-$C$83,-$C$84)) -> 0.009440766217 | J67: Taxa RGR/PLPT real | K67: Despacho n°882, 27/03/2025 | L67: -0.0207 | M67: <- Atualizar | N67: Atualizado em 13/05/25
B68: Ultrapassagem de Demanda | C68: 587036.2804 | D68: =C68*VLOOKUP($C$57,Índices!$B$8:$F$1000,3)/VLOOKUP($D$57,Índices!$B$8:$F$1000,3) -> 566585.5378 | F68: Ultrapassagem de Demanda | G68: 3989563.018 | J68: Taxa RGR Demais Investimentos | K68: Despacho n°882, 27/03/2025 | L68: -0.0207 | M68: <- Atualizar | N68: Atualizado em 13/05/25
B69: Excedente de Reativos | C69: 955455.6806 | D69: =C69*VLOOKUP($C$57,Índices!$B$8:$F$1000,3)/VLOOKUP($D$57,Índices!$B$8:$F$1000,3) -> 922170.211 | F69: Excedente de Reativos | G69: 6575240.566 | J69: Participação do Capital Próprio | K69: Despacho n°882, 27/03/2025 | L69: 0.5169 | M69: <- Atualizar | N69: Atualizado em 13/05/25
J70: Prêmio de Risco do negócio e financeiro após impostos | K70: Despacho n°882, 27/03/2025 | L70: 0.0919 | M70: <- Atualizar | N70: Atualizado em 13/05/25
B71: EBO | C71: Data original
B72: Dados da última Revisão Tarifária | C72: EPB | F72: Base de Ativos - SFF | G72: 45717
B73: Custos Operacionais (CO3) | C73: 438950207.7 | F73: (1) Ativo Imobilizado em Serviço (Valor Novo de Reposição) | G73: 6617965030 | H73: 45884 | J73: Custo Médio do Capital - Ultima Revisão
B74: Receitas Irrecuperáveis - Encargos Setoriais (Vi) | C74: 1856215.772 | F74: (2) Índice de Aproveitamento Integral | G74: 9003063.1 | J74: Tipo | K74: Norma | L74: Valor | N74: EBO | O74: EPB
B75: Demais Receitas Irrecuperáveis (Vse) | C75: 19412680.97 | F75: (3) Obrigações Especiais Bruta | G75: 933993138 | J75: WACC real antes de impostos | K75: DSP n° 692/2000, 12/03/2021 | L75: =(N75*$D$107+O75*$C$128)/($D$107+$C$128) -> 0.106741305 | N75: 0.1108366985 | O75: 0.1063543545
B76: Remuneração do Capital (RC) | C76: 199890744.7 | F76: (4) Bens Totalmente Depreciados | G76: 738260327 | J76: Taxa RGR/PLPT real | K76: DSP n° 692/2000, 12/03/2021 | L76: =(N76*$D$107+O76*$C$128)/($D$107+$C$128) -> 0.02178405328 | N76: 0.02281926149 | O76: 0.02168624234
B77: Quota de Reintegração Regulatória (QRR) | C77: 114846019.2 | F77: (5) Base de Remuneração Bruta = (1)-(2)-(3)-(4) | G77: =G73-G74-G75-G76 -> 4936708502 | H77: =G77*(Índices!$D$389/Índices!$D$341)/1000 -> 5810087.017 | J77: Taxa RGR Demais Investimentos | K77: DSP n° 692/2000, 12/03/2021 | L77: 0.02178405328 | N77: 0.02281926149 | O77: 0.02168624234
B78: Custo anual das instalações móveis e imóveis (CAIMI) | C78: 49945384.7 | F78: (6) Depreciação Acumulada | G78: 3281087583 | J78: Participação do Capital Próprio | K78: DSP n° 692/2000, 12/03/2021 | L78: 0.5235170258 | N78: 0.5782 | O78: 0.5183503422
B79: Índice de Produtividade (Pd) | C79: 0.009097503771 | F79: (7) AIS Líquido (Valor de Mercado em Uso) | G79: =G73-G78 -> 3336877448 | J79: Prêmio de Risco do negócio e financeiro após impostos | K79: DSP n° 692/2000, 12/03/2021 | L79: 0.08803402743 | N79: 0.0545 | O79: 0.09120246719
B80: Mecanismo de Qualidade (Q) | C80: -0.001679374937 | F80: (8) Índice de Aproveitamento Depreciado | G80: 6958499.19
B81: Outras Receitas (OR) (inserir o valor positivo) | C81: 15044643.5 | F81: (9) Valor da Base de Remuneração (VBR) | G81: =G79-G80 -> 3329918948
B82: Componente T - Última Revisão | C82: 0.009388438382 | F82: (10) Almoxarifado em Operação | G82: 5578565.98 | J82: Parâmetros atuais de Bandeiras Tarifárias | K82: Fonte | L82: Valor
B83: Ultrapassagem de Demanda | C83: 3422977.48 | F83: (11) Ativo Diferido | G83: 0 | J83: PLD
B84: Excedente de Reativos | C84: 5653070.355 | F84: (12) Obrigações Especiais Líquida | G84: 422406700.2 | J84: PLDmin | K84: ANEEL | L84: 61.07 | M84: <- Em caso de atualização, verificar se lógica de acionmento foi mantida. | O84: Atualizado em 17/04/25
F85: (13) Terrenos e Servidões | G85: 53493267.51 | J85: PLDmax | K85: ANEEL | L85: 716.8 | M85: <- Em caso de atualização, verificar se lógica de acionmento foi mantida. | O85: Atualizado em 17/04/25
F86: (14) Base de Rem. Líquida Total = (9)+(10)+(11)-(12)+(13) | G86: =G81+G82+G83-G84+G85 -> 2966584082 | H86: =G86*(Índices!$D$389/Índices!$D$341)/1000 -> 3491417.743 | J86: Adicionais de bandeira
F87: (15) Saldo RGR PLPT | G87: 0 | J87: Adicional AMARELA | K87: REH 3.051/2022 | L87: 18.85 | M87: <- Em caso de atualização, verificar se lógica de acionmento foi mantida. | O87: Atualizado em 17/04/25
F88: (16) Saldo RGR Demais Investimentos | G88: 0 | J88: Adicional VERMELHA I | K88: REH 3.051/2022 | L88: 44.63 | M88: <- Em caso de atualização, verificar se lógica de acionmento foi mantida. | O88: Atualizado em 17/04/25
F89: (17) Taxa de Depreciação | G89: 0.041 | J89: Adicional VERMELHA II | K89: REH 3.051/2022 | L89: 78.77 | M89: <- Em caso de atualização, verificar se lógica de acionmento foi mantida. | O89: Atualizado em 17/04/25
F90: (18) Quota de Reintegração Regulatória = (5) * (17) | G90: =G89*G77 -> 202405048.6 | J90: Parâmetros de acionamento
J91: VERDE | K91: Obter com coordenação de encargos | L91: 27.48 | M91: <- Em caso de atualização, verificar se lógica de acionmento foi mantida. | O91: Considerada a simulação de acionamento de bandeiras divulgada pela CCEE no Informa CCEE de 16/04/2025 (página 106)
B92: EPB | C92: Data original | D92: Data EPB | J92: AMARELA | K92: Obter com coordenação de encargos | L92: 68.99 | M92: <- Em caso de atualização, verificar se lógica de acionmento foi mantida. | O92: Considerada a simulação de acionamento de bandeiras divulgada pela CCEE no Informa CCEE de 16/04/2025 (página 106)
B93: Base de Ativos - Ciclo anterior | C93: 44228 | D93: 44378 | F93: Base de Ativos - Ciclo anterior | G93: 44378 | J93: VERMELHA I | K93: Obter com coordenação de encargos | L93: 95.05 | M93: <- Em caso de atualização, verificar se lógica de acionmento foi mantida. | O93: Considerada a simulação de acionamento de bandeiras divulgada pela CCEE no Informa CCEE de 16/04/2025 (página 106)
B94: (1) Ativo Imobilizado em Serviço (Valor Novo de Reposição) | C94: 408977426.8 | D94: =C94*VLOOKUP($D$93,Índices!$B$8:$F$1000,3)/VLOOKUP($C$93,Índices!$B$8:$F$1000,3) -> 423739349.8 | F94: (1) Ativo Imobilizado em Serviço (Valor Novo de Reposição) | G94: =D94+C115 -> 4409524563 | H94: =G7/G94-1 -> 0.5272782958 | J94: VERMELHA II | K94: Obter com coordenação de encargos | L94: 136.4595 | M94: <- Em caso de atualização, verificar se lógica de acionmento foi mantida. | O94: Considerada a simulação de acionamento de bandeiras divulgada pela CCEE no Informa CCEE de 16/04/2025 (página 106) | R94: https://www.ccee.org.br/documents/80415/29918896/InformaCCEE13052025.pdf/9b5cc822-9fe2-9808-e1df-aedc24e1c484
B95: (2) Índice de Aproveitamento Integral | C95: 9947.973526 | D95: =C95*VLOOKUP($D$93,Índices!$B$8:$F$1000,3)/VLOOKUP($C$93,Índices!$B$8:$F$1000,3) -> 10307.04278 | F95: (2) Índice de Aproveitamento Integral | G95: =D95+C116 -> 7735436.914 | H95: 0.1843796141
B96: (3) Obrigações Especiais Bruta | C96: 102769734.5 | D96: =C96*VLOOKUP($D$93,Índices!$B$8:$F$1000,3)/VLOOKUP($C$93,Índices!$B$8:$F$1000,3) -> 106479178.6 | F96: (3) Obrigações Especiais Bruta | G96: 720914598.3 | H96: 0.3183943821
B97: (4) Bens Totalmente Depreciados | C97: 79778506.75 | D97: =C97*VLOOKUP($D$93,Índices!$B$8:$F$1000,3)/VLOOKUP($C$93,Índices!$B$8:$F$1000,3) -> 82658089.1 | F97: (4) Bens Totalmente Depreciados | G97: 486333804.6 | H97: 0.5447583482
B98: (5) Base de Remuneração Bruta = (1)-(2)-(3)-(4) | C98: 226419237.6 | D98: =C98*VLOOKUP($D$93,Índices!$B$8:$F$1000,3)/VLOOKUP($C$93,Índices!$B$8:$F$1000,3) -> 234591775.1 | F98: (5) Base de Remuneração Bruta = (1)-(2)-(3)-(4) | G98: 2856832401 | H98: 0.7584831029
B99: (6) Depreciação Acumulada | C99: 208220473.8 | D99: =C99*VLOOKUP($D$93,Índices!$B$8:$F$1000,3)/VLOOKUP($C$93,Índices!$B$8:$F$1000,3) -> 215736132.1 | F99: (6) Depreciação Acumulada | G99: =D99+C120 -> 2105454209 | H99: 0.5858331822
B100: (7) AIS Líquido (Valor de Mercado em Uso) | C100: 200756953 | D100: =C100*VLOOKUP($D$93,Índices!$B$8:$F$1000,3)/VLOOKUP($C$93,Índices!$B$8:$F$1000,3) -> 208003217.7 | F100: (7) AIS Líquido (Valor de Mercado em Uso) | G100: =D100+C121 -> 2304070353 | H100: 0.4737709748
B101: (8) Índice de Aproveitamento Depreciado | C101: 7099.638526 | D101: =C101*VLOOKUP($D$93,Índices!$B$8:$F$1000,3)/VLOOKUP($C$93,Índices!$B$8:$F$1000,3) -> 7355.897945 | F101: (8) Índice de Aproveitamento Depreciado | G101: 5960103.848 | H101: 0.1880842326
B102: (9) Valor da Base de Remuneração (VBR) | C102: 200749853.4 | D102: =C102*VLOOKUP($D$93,Índices!$B$8:$F$1000,3)/VLOOKUP($C$93,Índices!$B$8:$F$1000,3) -> 207995861.8 | F102: (9) Valor da Base de Remuneração (VBR) | G102: 2298110250 | H102: 0.4745118977
B103: (10) Almoxarifado em Operação | C103: 663058.7108 | D103: =C103*VLOOKUP($D$93,Índices!$B$8:$F$1000,3)/VLOOKUP($C$93,Índices!$B$8:$F$1000,3) -> 686991.625 | F103: (10) Almoxarifado em Operação | G103: 4089510.677 | H103: 0.3881509856
B104: (11) Ativo Diferido | C104: 0 | D104: =C104*VLOOKUP($D$93,Índices!$B$8:$F$1000,3)/VLOOKUP($C$93,Índices!$B$8:$F$1000,3) -> 0 | F104: (11) Ativo Diferido | G104: 0
B105: (12) Obrigações Especiais Líquida | C105: 43440122.28 | D105: =C105*VLOOKUP($D$93,Índices!$B$8:$F$1000,3)/VLOOKUP($C$93,Índices!$B$8:$F$1000,3) -> 45008081.05 | F105: (12) Obrigações Especiais Líquida | G105: 412443143.3 | H105: =G18/G105-1 -> 0.04220268697
B106: (13) Terrenos e Servidões | C106: 2733625.388 | D106: =C106*VLOOKUP($D$93,Índices!$B$8:$F$1000,3)/VLOOKUP($C$93,Índices!$B$8:$F$1000,3) -> 2832294.813 | F106: (13) Terrenos e Servidões | G106: 39022412.95 | H106: =G19/G106-1 -> 0.3949880404
B107: (14) Base de Rem. Líquida Total = (1)-(6)-(8)+(10)+(11)-(12)+(13) | C107: 160706415.2 | D107: =C107*VLOOKUP($D$93,Índices!$B$8:$F$1000,3)/VLOOKUP($C$93,Índices!$B$8:$F$1000,3) -> 166507067.2 | F107: (14) Base de Rem. Líquida Total = (1)-(6)-(8)+(10)+(11)-(12)+(13) | G107: =G102+G103+G104-G105+G106 -> 1928779030 | H107: =G20/G107-1 -> 0.5651633308
B108: (15) Saldo RGR PLPT | C108: 0 | D108: =C108*VLOOKUP($D$93,Índices!$B$8:$F$1000,3)/VLOOKUP($C$93,Índices!$B$8:$F$1000,3) -> 0 | F108: (15) Saldo RGR PLPT | G108: =D108+C129 -> 0
B109: (16) Saldo RGR Demais Investimentos | C109: 0 | D109: =C109*VLOOKUP($D$93,Índices!$B$8:$F$1000,3)/VLOOKUP($C$93,Índices!$B$8:$F$1000,3) -> 0 | F109: (16) Saldo RGR Demais Investimentos | G109: =D109+C130 -> 0
B110: (17) Taxa de Depreciação | C110: 0.0392 | D110: =C110 -> 0.0392 | F110: (17) Taxa de Depreciação | G110: =(D110*D98+C131*C119)/(C119+D98) -> 0.03882937408
B111: (18) Quota de Reintegração Regulatória = (5) * (17) | C111: 8875634.112 | D111: =C111*VLOOKUP($D$93,Índices!$B$8:$F$1000,3)/VLOOKUP($C$93,Índices!$B$8:$F$1000,3) -> 9195997.583 | F111: (18) Quota de Reintegração Regulatória = (5) * (17) | G111: =D111+C132 -> 124042016.8
B113: EBO
B114: Base de Ativos - Ciclo anterior | C114: 44378
B115: (1) Ativo Imobilizado em Serviço (Valor Novo de Reposição) | C115: 3985785213
B116: (2) Índice de Aproveitamento Integral | C116: 7725129.872
B117: (3) Obrigações Especiais Bruta | C117: 614435419.7
B118: (4) Bens Totalmente Depreciados | C118: 403675715.5
B119: (5) Base de Remuneração Bruta = (1)-(2)-(3)-(4) | C119: 2959948948
B120: (6) Depreciação Acumulada | C120: 1889718077
B121: (7) AIS Líquido (Valor de Mercado em Uso) | C121: 2096067136
B122: (8) Índice de Aproveitamento Depreciado | C122: 5952747.95
B123: (9) Valor da Base de Remuneração (VBR) | C123: 2090114388
B124: (10) Almoxarifado em Operação | C124: 3402519.052
B125: (11) Ativo Diferido | C125: 0
B126: (12) Obrigações Especiais Líquida | C126: 367435062.3
B127: (13) Terrenos e Servidões | C127: 36190118.13
B128: (14) Base de Rem. Líquida Total = (1)-(6)-(8)+(10)+(11)-(12)+(13) | C128: 1762271963
B129: (15) Saldo RGR PLPT | C129: 0
B130: (16) Saldo RGR Demais Investimentos | C130: 0
B131: (17) Taxa de Depreciação | C131: 0.0388
B132: (18) Quota de Reintegração Regulatória = (5) * (17) | C132: 114846019.2

Sheet Subvenção Permissionária (hidden)
A1: Cooperativa
S2: Outras Receitas
A3: Cálculo PB | D3: Receita Agregada | K3: Subvenção
A4: UC | D4: Subgrupo | E4: Modalidade | F4: Classe | G4: Mercado TUSD | H4: Tarifa Fio B eco | I4: Receita | K4: Subvenção | R4: OUTRAS RECEITAS (R$) | W4: ='VPB e Fator X - Subvenção'!G163 -> 45658 | X4: ='VPB e Fator X - Subvenção'!H163 -> 45627 | Y4: ='VPB e Fator X - Subvenção'!I163 -> 45597 | Z4: ='VPB e Fator X - Subvenção'!J163 -> 45566 | AA4: ='VPB e Fator X - Subvenção'!K163 -> 45536 | AB4: ='VPB e Fator X - Subvenção'!L163 -> 45505 | AC4: ='VPB e Fator X - Subvenção'!M163 -> 45474 | AD4: ='VPB e Fator X - Subvenção'!N163 -> 45444 | AE4: ='VPB e Fator X - Subvenção'!O163 -> 45413 | AF4: ='VPB e Fator X - Subvenção'!P163 -> 45383 | AG4: ='VPB e Fator X - Subvenção'!Q163 -> 45352 | AH4: ='VPB e Fator X - Subvenção'!R163 -> 45323
A5: Data Base | D5: A3 | E5: Azul | F5: Demanda azul P | I5: =G5*H5 -> 0 | K5: PB COM COOPERATIVA | L5: ='VPB e Fator X - Subvenção'!C26 -> 877604775.9 | R5: Tipo de Receita | Y5: 3 meses antes | Z5: 4 meses antes | AA5: 5 meses antes | AB5: 6 meses antes | AC5: 7 meses antes | AD5: 8 meses antes | AE5: 9 meses antes | AF5: 10 meses antes | AG5: 11 meses antes | AH5: 12 meses antes
A6: (1) Ativo Imobilizado em Serviço (Valor Novo de Reposição) | F6: Demanda azul FP | I6: =G6*H6 -> 0 | K6: PB ORIGINAL SUPRIDORA | L6: =Resultado!D44 -> 1235389724 | R6: Serviços Cobráveis | V6: Atividade inerente ao serviço
A7: (2) Obrigações Especiais Bruta | F7: Energia TUSD azul | I7: 0 | K7: Diferença | L7: =L5-L6 -> -357784948 | R7: Arrecadação de convênios ou valores pela fatura | V7: Atividades acessórias próprias
A8: (3) Bens Totalmente Depreciados | E8: Geração | F8: Demanda Geração | I8: 0 | K8: Receita Agregada | L8: =I24 -> 0 | R8: Arrecadação de faturas de terceiros por estrutura própria
A9: (4) Base de Remuneração Bruta = (1)-(2)-(3) | K9: Subvenção | L9: =L7-L8 -> -357784948 | R9: Veiculação de publicidade
A10: (5) Depreciação Acumulada | D10: A4 | E10: Azul | F10: Demanda azul P | I10: 0 | R10: Aluguel ou cessão onerosa de imóveis e espaços físicos
A11: (6) Valor da Base de Remuneração (VBR) | F11: Demanda azul FP | I11: 0 | K11: subvenção de 2016 | R11: Compartilhamento de infraestrutura
A12: (7) Obrigações Especiais Líquida | F12: Energia TUSD azul E | I12: 0 | L12: =L9/L11-1 ->  | R12: Serviços de avaliação técnica e aferição de medidores.
A13: (8) Terrenos e Servidões | E13: Verde | F13: Demanda verde | I13: 0 | R13: Operacionalização de serviço de créditos tributários
A14: (9) Almoxarifado em Operação | F14: Energia TUSD verde EP | I14: 0 | K14: Item | L14: 2023 | M14: Calculo anterior | N14: variação | R14: Elaboração de projeto, construção, operação, manutenção ou reforma de: | V14: Atividades acessórias complementares
A15: (10) Base de Remuneração Líquida Total = (1)-(5)-(7)+(8)+(9) | F15: Energia TUSD verde EFP | I15: 0 | K15: Densidade Cooperativa | L15: =G24/B21 ->  | N15: =L15/M15-1 ->  | R15: (1) redes de distribuição de energia elétrica destinadas à regularização fundiária de interesse específico e ao atendimento dos empreendimentos de múltiplas unidades consumidoras;
A16: (11) Taxa de Depreciação | E16: Geração | F16: Demanda geração | I16: 0 | K16: Densidade Supridora | L16: =(Mercado!C24-Mercado!C17)/(Entrada!G44+Entrada!G45+Entrada!G46) -> 72.00248611 | N16: =L16/M16-1 ->  | R16: (2) redes de energia elétrica destinadas ao acesso dos sistemas de distribuição ou transmissão;
A17: (12) Quota de Reintegração Regulatória | K17: Mercado | L17: =G24 -> 0 | R17: (3) subestações de energia;
A18: (13) Remuneração de Capital (RC) = BRR líq x WACC | D18: BT | E18: Convencional ( B1, B2, B3) | F18: Energia TUSD B | I18: =G18*H18 -> 0 | K18: Km de rede | L18: =B21 -> 0 | R18: (4) instalações elétricas internas de unidades consumidoras;
E19: Branca | F19: Ponta | I19: 0 | R19: (5) banco de capacitores:
B20: Valores | E20: Branca | F20: Fora Ponta | I20: 0 | R20: (6) padrões de entrada de unidades consumidoras atendidas em baixa tensão;
A21: Total de km de rede (linhas e redes de distribuição) | E21: Branca | F21: Intermediário | I21: 0 | R21: (7) sistemas de medição de energia elétrica;
E22: Iluminação | F22: Energia TUSD B4a | I22: 0 | R22: (8) geradores, incluindo-se unidades de microgeração e minigeração distribuída;
F23: Energia TUSD B4b | I23: =G23*H23 -> 0 | R23: (9) sistemas de iluminação pública.
D24: Total Energia | G24: =G7+G12+G14+G15+G18+G22+G23 -> 0 | H24: Receita total | I24: =SUM(I5:I23) -> 0 | R24: Eficientização do consumo de energia elétrica e instalação de cogeração qualificada, desde que não enquadráveis nos projetos de Pesquisa e Desenvolvimento (P&D) ou de Eficiência Energética estabelecidos em lei
D25: Total demanda | G25: =G5+G6+G8+G10+G11+G13+G16 -> 0 | R25: Serviços de comunicação de dados
R26: Serviços de consultoria

Sheet VPB e Fator X - Subvenção (hidden)
B2: Cálculo da Parcela B de Revisão | E2: Anexo II | F2: =Resultado!$D$6 -> 0.06731740628
E3: Anexo I | F3: =Resultado!$D$8 -> 0.0269341683
B5: Parâmetros | E5: Parcela A
B6: Descrição | C6: Valor | E6: Descrição | F6: Valor
B7: Número de anos no Ciclo | C7: =VLOOKUP(0,Dados_Revisao[],4,FALSE) -> 4 | E7: Encagos | F7: =Resultado!D19 -> 566988786.7
B8: Data da Revisão | C8: =CAPA!C10 -> 45897 | E8: Transporte | F8: =Resultado!D29 -> 314873644.9
B9: Data Base Ativos, Consumidores e Mercado da Revisao Anterior | C9: =Entrada!G37 -> 44410 | E9: Energia | F9: =Resultado!D38 -> 1378330879
B10: Data Base Ativos, Consumidores e Mercado da Revisão Atual | C10: =DATE(YEAR(C8),MONTH(C8)-5,0) -> 45716 | E10: VPA | F10: =Resultado!D39 -> 2260193311
B11: Número de anos do próximo Ciclo | C11: =VLOOKUP(401,Dados_Revisao[],4,FALSE) -> 4
B12: Formação da Parcela B (resumo)
B13: Descrição | C13: Valor
B14: Custo de Administração, Operação e Manutenção (CAOM) | C14: =SUM(C15:C17) -> 248940235.7
B15: Custos Operacionais (CO) | C15: ='VPB e Fator X'!C15+'VPB e Fator X - Subvenção'!H158 -> 242654840.6
B16: Receitas Irrecuperáveis - Encargos Setoriais (Vi) | C16: =C204 -> 6285395.065
B17: Demais Receitas Irrecuperáveis (Vse) | C17: =C208 -> 0
B18: Custo Anual dos Ativos (CAA) | C18: =SUM(C19:C21) -> 666735466
B19: Remuneração do Capital (RC) | C19: =C95 -> 376847196.7
B20: Quota de Reintegração Regulatória (QRR) | C20: =C77 -> 205971351.7
B21: Custo anual das instalações móveis e imóveis (CAIMI) | C21: =C67 -> 83916917.56
B22: CAOM + CAA | C22: =C18+C14 -> 915675701.7
B23: Fator de Ajuste do Mercado | C23: =C33 -> 0.0146368038
B24: Mecanismo de Incentivo à Qualidade | C24: =C40 -> -0.01117759053
B25: OR + UD + ER | C25: =D189+D196+D197 -> 34903408.18
B26: VPB | C26: =(1-C23-C24)*C22-C25 -> 877604775.9
B29: Fator X
B31: Fator X
B32: Descrição | C32: Valor
B33: Componente Pd | C33: =0.663%+0.317*(C34-1.521%) -> 0.0146368038
B34: MWhXT-6 | C34: =(POWER(1 + IFERROR(LN(DSUM(MercadoBase,"TUSD_E",C45:C48)/VLOOKUP("AT",TabMercado6[],2,FALSE))*VLOOKUP(CAPA!$C$23,TaBTodososPesos[],2,FALSE),0) + IFERROR(LN(DSUM(MercadoBase,"TUSD_E",D45:D48)/VLOOKUP("MT",TabMercado6[],2,FALSE))*VLOOKUP(CAPA!$C$23,TaBTodososPesos[],3,FALSE),0) + IFERROR(LN(DSUM(MercadoBase,"TUSD_E",E45:E46)/VLOOKUP("BT",TabMercado6[],2,FALSE))*VLOOKUP(CAPA!$C$23,TaBTodososPesos[],4,FALSE),0),1/5) - 1) -> 0.04046805614
B36: Componente T | C36: =(1-(C39/C38)^(1/(C11-1)))*(C38/C37) -> 0.02509702555
B37: VPB | C37: =C26 -> 877604775.9 | E37: Ajuste de Custos Operacionais para Calculo do Componente T
B38: Custos Operacionais | C38: =C121+G41 -> 615035657.2 | E38: Descrição | G38: Valor
B39: Meta de Custos Operacionais | C39: =C120+G41 -> 551297867.5 | E39: Valor de Ajuste da Parcela B [VPB- (CAOM+CAA)] | G39: =C26-C22 -> -38070925.72
B40: Componente Q (Fator de Qualidade) | C40: ='VPB1'!F42 -> -0.01117759053 | E40: Participação dos CO no VPB antes do Ajuste | G40: =C15/C22 -> 0.2650008515
B41: Fator X Revisão | C41: =C33+C36+C40 -> 0.02855623882 | E41: Valor de Ajuste dos Custos Operacionais | G41: =G40*G39 -> -10088827.73
B43: Variação de Mercado e Unidades Consumidoras
B44: Descrição | C44: Mercado AT (MWh) | D44: Mercado MT (MWh) | E44: Mercado BT (MWh) | F44: Total | G44: Unidades Consumidoras
B45: Critérios | C45: Subgrupo | D45: Subgrupo | E45: Subgrupo | F45: - | G45: AnoMes
C46: ="=A1" -> =A1 | D46: ="=A3a" -> =A3a | E46: B | F46: - | G46: =DATE(YEAR(CAPA!C10),MONTH(CAPA!C10)-6,1) -> 45689
C47: ="=A2" -> =A2 | D47: ="=A4" -> =A4 | E47: B | F47: -
C48: ="=A3" -> =A3 | D48: ="=As" -> =As | E48: B | F48: -
B49: Revisão Atual | C49: =DSUM(MercadoBase,"TUSD_E",C45:C48) -> 637914.804 | D49: =DSUM(MercadoBase,"TUSD_E",D45:D48) -> 1303960.603 | E49: =DSUM(MercadoBase,"TUSD_E",E45:E46) -> 4330851.578 | F49: =SUM(C49:E49) -> 6272726.985 | G49: =DSUM(MercadoBase,"UC",G45:G46)+'Subvenção Permissionária'!B4 -> 1872995
B50: Revisão Anterior | C50: =Entrada!G38 -> 861697.744 | D50: =Entrada!G39 -> 1038195.384 | E50: =Entrada!G40 -> 3551883.075 | F50: =SUM(C50:E50) -> 5451776.203 | G50: =Entrada!G41 -> 1724438
B51: Variação | C51: =IFERROR((C49/C50-1),0) -> -0.2597000416 | D51: =IFERROR((D49/D50-1),0) -> 0.2559876716 | E51: =IFERROR((E49/E50-1),0) -> 0.219311415 | F51: =IFERROR((F49/F50-1),0) -> 0.1505840943 | G51: =IFERROR((G49/G50-1),0) -> 0.08614806679
B52: Peso | C52: =VLOOKUP(201,Dados_Revisao[#Data],4,FALSE) -> 0.03582559738 | D52: =VLOOKUP(202,Dados_Revisao[#Data],4,FALSE) -> 0.1913686646 | E52: =VLOOKUP(203,Dados_Revisao[#Data],4,FALSE) -> 0.772805738 | F52: 0 | G52: -
B53: Participação na Variação de Mercado | C53: =IFERROR(LN(C49/C50)*C52,0) -> -0.01077275089 | D53: =IFERROR(LN(D49/D50)*D52,0) -> 0.04361717707 | E53: =IFERROR(LN(E49/E50)*E52,0) -> 0.1532367792 | F53: =SUM(C53:E53) -> 0.1860812053 | G53: -
B56: Custo Anual do Ativos (CAA)
B58: Custo Anual das Instalações Móveis e Imóveis (CAIMI)
B59: Descrição | C59: Valores
B60: (1) Base de Anuidade Regulatória (BAR) | C60: =2.7159*(Entrada!G7-Entrada!G8+'Subvenção Permissionária'!B6)^(-0.167+1)*(VLOOKUP((DATE(YEAR(CAPA!C10),MONTH(CAPA!C10)-1,1)),Índices!B82:D10000,3,FALSE)/VLOOKUP(DATE(2014,12,1),Índices!B82:D10000,3,FALSE))^0.167 -> 460547133.5
B61: (2) Base de Anuidade - Infraestrutura de imóveis e móveis administrativos (BARA) | C61: =C60*0.45 -> 207246210.1
B62: (3) Base de Anuidade - Veículos (BARV) | C62: =C60*0.12 -> 55265656.02
B63: (4) Base de Anuidade - Sistemas de Informática (BARI) | C63: =C60*0.43 -> 198035267.4
B64: (5) Anuidade - Infraestrutura de imóveis e móveis administrativos (CAL) | C64: =C61*(1/19.5+F81/2) -> 23240911.5
B65: (6) Anuidade - Veículos (CAV) | C65: =C62*(1/7+F81/2) -> 11258533.91
B66: (7) Anuidade - Sistemas de Informática (CAI) | C66: =C63*(1/5.3+F81/2) -> 49417472.15
B67: (8) CAIMI = (5)+(6)+(7) | C67: =SUM(C64:C66) -> 83916917.56
B69: Base de Remuneração Bruta e Quota de Reintegração Regulatória (QRR)
B70: Descrição | C70: Valor
B71: (1) Ativo Imobilizado em Serviço (Valor Novo de Reposição) | C71: =Entrada!G7+'Subvenção Permissionária'!B6 -> 6734571160
B72: (2) Índice de Aproveitamento Integral | C72: =Entrada!G8 -> 9161693.787
B73: (3) Obrigações Especiais Bruta | C73: =Entrada!G9+'Subvenção Permissionária'!B7 -> 950449756.4 | F73: 0.1136 | G73: 0.1108366985 | H73: 0.1063543545
B74: (4) Bens Totalmente Depreciados | C74: =Entrada!G10+'Subvenção Permissionária'!B7 -> 751268204.7 | F74: 0.0135 | G74: 0.02281926149 | H74: 0.02168624234
B75: (5) Base de Remuneração Bruta | C75: =C71-C72-C73-C74 -> 5023691505 | F75: 0.0362 | G75: 0.02281926149 | H75: 0.02168624234
B76: (17) Taxa de Depreciação | C76: =Entrada!G23 -> 0.041
B77: (18) Quota de Reintegração Regulatória | C77: =C75*C76 -> 205971351.7 | G77: 0.5782 | H77: 0.5183503422
G78: 0.0545 | H78: 0.09120246719
B79: Base de Remuneração Líquida e Remuneração do Capital (RC) | E79: Custo Médio do Capital | I79: Cálculo do Beta (Res. Normativa 473)
B80: Descrição | C80: Valor | E80: Tipo | F80: Valor | G80: Norma | I80: Descrição | J80: Valor
B81: (1) Ativo Imobilizado em Serviço (Valor Novo de Reposição) | C81: =C71 -> 6734571160 | E81: WACC real antes de impostos | F81: ='VPB e Fator X'!G81 -> 0.121719 | G81: ='VPB e Fator X'!H81 -> Despacho n° 829, 24/03/2023 | I81: Depreciação AIS | J81: =SUM(C61/27.9,C62/7,C63/5.3) -> 52688418.09
B82: (6) Depreciação Acumulada | C82: =Entrada!G12+'Subvenção Permissionária'!B10 -> 3338899149 | E82: Taxa RGR/PLPT real | F82: ='VPB e Fator X'!G82 -> 0.000797 | G82: ='VPB e Fator X'!H82 -> Despacho n° 829, 24/03/2023 | I82: Remuneração AIS | J82: =SUM(C61,C62,C63)*(F81/2) -> 28028668.27
B83: (7) AIS Líquido (Valor de Mercado em Uso) | C83: =Entrada!G13+'Subvenção Permissionária'!B6-'Subvenção Permissionária'!B10 -> 3395672011 | E83: Taxa RGR Demais Investimentos | F83: ='VPB e Fator X'!G83 -> 0.000797 | G83: ='VPB e Fator X'!H83 -> Despacho n° 829, 24/03/2023 | I83: Remuneração de Capital Bruta pós pd | J83: =(C95+J82)*Resultado!G30/Resultado!G27 -> 403475313
B84: (8) Índice de Aproveitamento Depreciado | C84: =Entrada!G14 -> 7081105.407 | I84: Quota de Reintegração Bruta pós pd | J84: =(C77+J81)*(Resultado!G30/Resultado!G27) -> 257765010.5
B85: (9) Valor da Base de Remuneração (VBR) | C85: =Entrada!G15+'Subvenção Permissionária'!B11 -> 3388590905 | I85: Custo Operacional pós pd | J85: =Resultado!G19*(Resultado!G30/Resultado!G27) -> 606050261.3
B86: (10) Almoxarifado em Operação | C86: =Entrada!G16+'Subvenção Permissionária'!B14 -> 5676858.277 | I86: Outras Receitas (OR) proporcional RCB | J86: =C25*(J83/(J85+J84+J83)) -> 11112418.66
B87: (11) Ativo Diferido | C87: =Entrada!G17 -> 0 | E87: Remuneração sobre Obrigações Especiais | I87: Remuenração de Capital Bruta - OR proporcional | J87: =J83-J86 -> 392362894.4
B88: (12) Obrigações Especiais Líquida | C88: =Entrada!G18+'Subvenção Permissionária'!B7 -> 429849352.2 | E88: Descrição | G88: Valor | I88: Beta | J88: =J87/Resultado!G30 -> 0.3086031629
B89: (13) Terrenos e Servidões | C89: =Entrada!G19+'Subvenção Permissionária'!B13 -> 54435799.37 | E89: CAA-RCOE | G89: =C77+C93+C67 -> 657340184.9
B90: (14) Base de Remuneração Líquida | C90: =C81-C82-C84+C86+C87-C88+C89 -> 3018854211 | E90: CAOM / (CAOM+CAA-RCOE) | G90: =(C14+H158)/(C14+G89+H158) -> 0.2746834534
